Workbook

Sheet Fert
A1: Quadro de Fertilizantes e Corretivos | O1: Quadro de Fertilizantes FOLIARES | AI1: Quadro de Corretivos, Talcos e Inoculantes
A6: Cod. | B6: Insumos | C6: Marca/modelo | D6: Descrição | E6: Marca | F6: Unid | K6: N | L6: P | M6: K | O6: Cod. | P6: Insumos | Q6: Marca/modelo | R6: Descrição | S6: Marca | T6: Unid | Y6: N | Z6: P | AA6: K | AI6: Cod. | AJ6: Insumos | AK6: Marca/modelo | AL6: Descrição | AM6: Marca | AN6: Unid | AS6: N | AT6: P | AU6: K | AV6: CaO | AW6: MgO | AZ6: Cod. | BA6: Insumos | BB6: Marca/modelo | BC6: Descrição | BD6: Marca | BE6: Unid
A7: 1 | F7: - | I7: =A7 -> 1 | K7: 0 | L7: 0 | M7: 0 | O7: 1 | T7: - | W7: =O7 -> 1 | Y7: 0 | Z7: 0 | AA7: 0 | AI7: 1 | AN7: - | AQ7: =AI7 -> 1 | AS7: 0 | AT7: 0 | AU7: 0 | AZ7: 1
A8: 2 | B8: Ácido Bórico | D8: Fertilizante | F8: Kg | I8: 2 | J8: Ácido Bórico | M8: 0 | O8: 2 | P8: Ácido Bórico | R8: Foliar | T8: Kg | W8: 2 | X8: =P8 -> Ácido Bórico | AA8: 0 | AI8: 2 | AJ8: Calcário Calcítico - PRNT 85% | AL8: Corretivo | AN8: Ton | AQ8: 2 | AR8: =AJ8 -> Calcário Calcítico - PRNT 85% | AV8: 0.53 | AW8: 0.03 | AZ8: 2 | BA8: Semente de soja conv. | BC8: Semente | BD8: Agroceres | BE8: Kg
A9: 3 | B9: Ad. 00-18-18 | D9: Fertilizante | F9: Ton | I9: 3 | J9: Ad. 00-18-18 | K9: 0 | L9: 18 | M9: 18 | O9: 3 | P9: Ad. Foliar Manganês | R9: Foliar | T9: Kg | W9: 3 | X9: Ad. Foliar Manganês | AI9: 3 | AJ9: Calc. Dolomitico (36%CaO e 12%MgO)- PRNT 85% | AL9: Corretivo | AN9: Ton | AQ9: 3 | AR9: =AJ9 -> Calc. Dolomitico (36%CaO e 12%MgO)- PRNT 85% | AV9: 0.36 | AW9: 0.12 | AZ9: 3 | BA9: Semente de milho conv. | BC9: Semente | BE9: Kg
A10: 4 | B10: Ad. 00-18-20 | D10: Fertilizante | F10: Ton | I10: 4 | J10: Ad. 00-18-20 | K10: 0 | L10: 18 | M10: 20 | O10: 4 | P10: Arbore COMO (TS) | R10: Foliar | T10: Kg | W10: 4 | X10: Arbore COMO (TS) | AI10: 4 | AJ10: Calcário Magnesiano | AL10: Corretivo | AN10: Ton | AQ10: 4 | AR10: =AJ10 -> Calcário Magnesiano | AZ10: 4 | BA10: Semente de Trigo | BC10: Semente | BE10: 60.000 pl
A11: 5 | B11: Ad. 00-20-20 | D11: Fertilizante | F11: Ton | I11: 5 | J11: Ad. 00-20-20 | K11: 0 | L11: 20 | M11: 20 | O11: 5 | P11: Arbore Stater CO-MO | R11: Foliar | T11: Kg | W11: 5 | X11: Arbore Stater CO-MO | AI11: 5 | AJ11: Gesso | AL11: Corretivo | AN11: Ton | AQ11: 5 | AR11: =AJ11 -> Gesso | AZ11: 5 | BA11: Semente de Algodão | BC11: Semente | BD11: Agroceres | BE11: Kg
A12: 6 | B12: Ad. 00-32-00 | D12: Fertilizante | F12: Ton | I12: 6 | J12: Ad. 00-32-00 | K12: 0 | L12: 32 | M12: 0 | O12: 6 | P12: CaB | R12: Foliar | T12: Kg | W12: 6 | X12: CaB | AI12: 6 | AJ12: Talco | AK12: lubrificação seca | AL12: Inerte | AN12: kg | AQ12: 6 | AR12: =AJ12 -> Talco | AV12: 0.36 | AW12: 0.12 | AZ12: 6 | BA12: Semente de milheto | BC12: Semente | BE12: Kg
A13: 7 | B13: Ad. 02-18-20 | D13: Fertilizante | F13: Ton | I13: 7 | J13: Ad. 02-18-20 | K13: 2 | L13: 18 | M13: 20 | O13: 7 | P13: Cloreto de Potássio | R13: Foliar | T13: Kg | W13: 7 | X13: Cloreto de Potássio | Y13: 0 | Z13: 0 | AA13: 60 | AI13: 7 | AJ13: Inoculante | AL13: Inoculante | AN13: Unid | AQ13: =AI13 -> 7 | AR13: =AJ13 -> Inoculante | AZ13: 7 | BA13: Semente de girassol | BC13: Semente | BE13: Kg
A14: 8 | B14: Ad. 02-20-10 | D14: Fertilizante | F14: Ton | I14: 8 | J14: Ad. 02-20-10 | K14: 2 | L14: 20 | M14: 10 | O14: 8 | P14: COMOL | R14: Foliar | T14: Kg | W14: 8 | X14: COMOL | AI14: 8 | AQ14: 8 | AR14: 0 | AU14: 0 | AZ14: 8 | BA14: Semente de soja OGM | BC14: Semente | BE14: Kg
A15: 9 | B15: Ad. 02-20-18 | D15: Fertilizante | F15: Ton | I15: 9 | J15: Ad. 02-20-18 | K15: 2 | L15: 20 | M15: 18 | O15: 9 | P15: Enxofre | R15: Foliar | T15: Kg | W15: 9 | X15: Enxofre | AI15: 9 | AQ15: 9 | AR15: 0 | AZ15: 9 | BA15: Semente de milho OGM | BC15: Semente | BE15: 60.000 pl
A16: 10 | B16: Ad. 02-20-20 | D16: Fertilizante | F16: Ton | I16: 10 | J16: Ad. 02-20-20 | K16: 2 | L16: 20 | M16: 20 | O16: 10 | P16: Manganes | R16: Foliar | T16: Kg | W16: 10 | X16: Manganes | AI16: 10 | AQ16: 10 | AR16: 0 | AZ16: 10 | BA16: Semente de sorgo | BC16: Semente | BE16: Kg
A17: 11 | B17: Ad. 02-20-30 | D17: Fertilizante | F17: Ton | I17: 11 | J17: Ad. 02-20-30 | K17: 2 | L17: 20 | M17: 30 | O17: 11 | P17: micro nutrientes | R17: Foliar | T17: Kg | W17: 11 | X17: micro nutrientes | AI17: 11 | AQ17: 11 | AR17: 0 | AZ17: 11 | BA17: Semente de Aveia preta | BC17: Semente | BE17: Kg
A18: 12 | B18: Ad. 02-28-20 | D18: Fertilizante | F18: Ton | I18: 12 | J18: Ad. 02-28-20 | K18: 2 | L18: 28 | M18: 20 | O18: 12 | P18: Nitrato de amônio | R18: Foliar | T18: Kg | W18: =O18 -> 12 | X18: =P18 -> Nitrato de amônio | Y18: 33 | Z18: 0 | AA18: 0 | AI18: 12 | AQ18: 12 | AR18: 0 | AZ18: 12 | BA18: Semente de Feijão | BC18: Semente | BE18: Kg
A19: 13 | B19: Ad. 04-20-20 + Zn | D19: Fertilizante | F19: Ton | I19: 13 | J19: Ad. 04-20-20 + Zn | K19: 4 | L19: 20 | M19: 20 | O19: 13 | P19: Nitrato de potássio | R19: Foliar | T19: Kg | W19: 13 | X19: Nitrato de potássio | Y19: 13 | Z19: 0 | AA19: 44 | AI19: 13 | AQ19: 13 | AR19: 0 | AZ19: 13 | BA19: Semente de Feijão preto | BC19: Semente | BE19: Kg
A20: 14 | B20: Ad. 05-20-20 | D20: Fertilizante | F20: Ton | I20: 14 | J20: Ad. 05-20-20 | K20: 5 | L20: 20 | M20: 20 | O20: 14 | P20: Profol gallop S | R20: Foliar | T20: Kg | W20: 14 | X20: Profol gallop S | AI20: 14 | AQ20: 14 | AR20: 0 | AZ20: 14 | BA20: Semente de Crotalária | BC20: Semente | BE20: Kg
A21: 15 | B21: Ad. 05-25-15 + 0,4% B | D21: Fertilizante | F21: Ton | I21: 15 | J21: Ad. 05-25-15 + 0,4% B | K21: 5 | L21: 25 | M21: 15 | O21: 15 | P21: Sulfato de amônio | R21: Foliar | T21: Kg | W21: 15 | X21: Sulfato de amônio | Y21: 20 | Z21: 0 | AA21: 0 | AI21: 15 | AQ21: 15 | AR21: 0 | AZ21: 15 | BA21: Semente Intacta | BC21: Semente | BE21: Kg
A22: 16 | B22: Ad. 05-25-25 | D22: Fertilizante | F22: Ton | I22: 16 | J22: Ad. 05-25-25 | K22: 5 | L22: 25 | M22: 25 | O22: 16 | P22: Sulfato de potássio | R22: Foliar | T22: Kg | U22: 21 | W22: 16 | X22: Sulfato de potássio | Y22: 0 | Z22: 0 | AA22: 50 | AI22: 16 | AQ22: 16 | AR22: 0 | AZ22: 16 | BC22: Semente | BE22: Kg
A23: 17 | B23: Ad. 05-35-15 + 0,5% B | D23: Fertilizante | F23: Ton | I23: 17 | J23: Ad. 05-35-15 + 0,5% B | K23: 5 | L23: 35 | M23: 15 | O23: 17 | P23: Uréia | Q23: 45%N | R23: Foliar | T23: Kg | W23: 17 | X23: Uréia | Y23: 45 | Z23: 0 | AA23: 0 | AI23: 17 | AQ23: 17 | AR23: 0 | AZ23: 17 | BC23: Semente | BE23: Kg
A24: 18 | B24: Ad. 06-30-10 + 0,4% B + 0,5%Mn | D24: Fertilizante | F24: Ton | I24: 18 | J24: Ad. 06-30-10 + 0,4% B + 0,5%Mn | K24: 6 | L24: 30 | M24: 10 | O24: 18 | P24: Zinco turbo 44%Zn | R24: T | T24: Kg | W24: 18 | X24: Zinco turbo 44%Zn | AI24: 18 | AQ24: 18 | AR24: 0 | AZ24: 18 | BC24: Semente | BE24: Kg
A25: 19 | B25: Ad. 08-16-16 + 0,5% Zn | D25: Fertilizante | F25: Ton | I25: 19 | J25: Ad. 08-16-16 + 0,5% Zn | K25: 8 | L25: 16 | M25: 16 | O25: 19 | W25: 19 | X25: 0 | AI25: 19 | AQ25: 19 | AR25: 0 | AZ25: 19 | BC25: Semente | BE25: Kg
A26: 20 | B26: Ad. 08-20-18 | D26: Fertilizante | F26: Ton | I26: 20 | J26: Ad. 08-20-18 | K26: 8 | L26: 20 | M26: 18 | O26: 20 | W26: 20 | X26: 0 | AZ26: 20 | BC26: Semente | BE26: Kg
A27: 21 | B27: Ad. 08-20-20 | D27: Fertilizante | F27: Ton | I27: 21 | J27: Ad. 08-20-20 | K27: 8 | L27: 20 | M27: 20 | O27: 21 | W27: 21 | X27: 0 | AZ27: 21 | BC27: Semente | BE27: Kg
A28: 22 | B28: Ad. 08-20-20 + 0,5% Zn | D28: Fertilizante | F28: Ton | I28: 22 | J28: Ad. 08-20-20 + 0,5% Zn | K28: 8 | L28: 20 | M28: 20 | O28: 22 | W28: 22 | X28: 0 | AZ28: 22 | BC28: Semente | BE28: Kg
A29: 23 | B29: Ad. 08-24-12 | D29: Fertilizante | F29: Ton | I29: 23 | J29: Ad. 08-24-12 | K29: 8 | L29: 24 | M29: 12 | O29: 23 | W29: 23 | X29: 0 | AZ29: 23 | BC29: Semente | BE29: Kg
A30: 24 | B30: Ad. 08-28-12 + 0,3%B + 0,3%Zn | D30: Fertilizante | F30: Ton | I30: 24 | J30: Ad. 08-28-12 + 0,3%B + 0,3%Zn | K30: 8 | L30: 28 | M30: 12 | O30: 24 | W30: 24 | X30: 0
A31: 25 | B31: Ad. 08-28-16 + 0,4% Zn | D31: Fertilizante | F31: Ton | I31: 25 | J31: Ad. 08-28-16 + 0,4% Zn | K31: 8 | L31: 28 | M31: 16 | O31: 25 | W31: 25 | X31: 0
A32: 26 | B32: Ad. 08-30-16 + 0,5% Zn | D32: Fertilizante | F32: Ton | I32: 26 | J32: Ad. 08-30-16 + 0,5% Zn | K32: 8 | L32: 30 | M32: 16 | O32: 26 | W32: 26 | X32: 0
A33: 27 | B33: Ad. 08-30-20 | D33: Fertilizante | F33: Ton | I33: 27 | J33: Ad. 08-30-20 | K33: 8 | L33: 30 | M33: 20 | O33: 27 | W33: 27 | X33: 0
A34: 28 | B34: Ad. 08-30-20 | D34: Fertilizante | F34: Ton | I34: 28 | J34: Ad. 08-30-20 | K34: 8 | L34: 30 | M34: 20 | O34: 28 | W34: 28 | X34: 0
A35: 29 | B35: Ad. 09-20-15 | D35: Fertilizante | F35: Ton | I35: 29 | J35: Ad. 09-20-15 | K35: 9 | L35: 20 | M35: 15 | O35: 29 | W35: 29 | X35: 0
A36: 30 | B36: Ad. 09-23-18 | D36: Fertilizante | F36: Ton | I36: 30 | J36: Ad. 09-23-18 | K36: 9 | L36: 23 | M36: 18 | O36: 30 | W36: 30 | X36: 0
A37: 31 | B37: Ad. 09-33-12 | D37: Fertilizante | F37: Ton | I37: 31 | J37: Ad. 09-33-12 | K37: 9 | L37: 33 | M37: 12
A38: 32 | B38: Ad. 09-48-00 + 0,8% B | D38: Fertilizante | F38: Ton | I38: 32 | J38: Ad. 09-48-00 + 0,8% B | K38: 9 | L38: 48 | M38: 0
A39: 33 | B39: Ad. 10-20-20 | D39: Fertilizante | F39: Ton | I39: =A39 -> 33 | J39: Ad. 10-20-20 | K39: 10 | L39: 20 | M39: 20
A40: 34 | B40: Ad. 10-25-25 | D40: Fertilizante | F40: Ton | I40: 34 | J40: Ad. 10-25-25 | K40: 10 | L40: 25 | M40: 25
A41: 35 | B41: Ad. 10-30-20 + 0,5% Zn | D41: Fertilizante | F41: Ton | I41: 35 | J41: Ad. 10-30-20 + 0,5% Zn | K41: 10 | L41: 30 | M41: 20
A42: 36 | B42: Ad. 12-06-12 | D42: Fertilizante | F42: Ton | I42: 36 | J42: Ad. 12-06-12 | K42: 12 | L42: 6 | M42: 12
A43: 37 | B43: Ad. 12-15-15 | D43: Fertilizante | F43: Ton | I43: 37 | J43: Ad. 12-15-15 | K43: 12 | L43: 15 | M43: 15
A44: 38 | B44: Ad. 14-34-00 | D44: Fertilizante | F44: Ton | I44: 38 | J44: Ad. 14-34-00 | K44: 14 | L44: 34 | M44: 0
A45: 39 | B45: Ad. 20-00-20 | D45: Fertilizante | F45: Ton | I45: 39 | J45: Ad. 20-00-20 | K45: 20 | L45: 0 | M45: 20
A46: 40 | B46: Ad. 20-00-20 0,7%b | D46: Fertilizante | F46: Ton | I46: 40 | J46: Ad. 20-00-20 0,7%b | K46: 20 | L46: 0 | M46: 20
A47: 41 | B47: Ad. 20-00-30 + 0,4% B | D47: Fertilizante | F47: Ton | G47: N | I47: 41 | J47: Ad. 20-00-30 + 0,4% B | K47: 20 | L47: 0 | M47: 30
A48: 42 | B48: Ad. 30-00-16 + 0,5% Zn | D48: Fertilizante | F48: Ton | I48: 42 | J48: Ad. 30-00-16 + 0,5% Zn | K48: 30 | L48: 0 | M48: 16
A49: 43 | B49: Ad. 30-00-20 | D49: Fertilizante | F49: Ton | I49: 43 | J49: Ad. 30-00-20 | K49: 30 | L49: 0 | M49: 20
A50: 44 | B50: Calcário Calcítico | D50: Corretivo | F50: Ton | I50: =A50 -> 44 | J50: =B50 -> Calcário Calcítico
A51: 45 | B51: Calcário Dolomítico | D51: Corretivo | F51: Ton | I51: 45 | J51: Calcário Dolomítico
A52: 46 | B52: Calcário Magnesiano | D52: Corretivo | F52: Ton | I52: 46 | J52: Calcário Magnesiano
A53: 47 | B53: Cloreto de Potássio (KCl) | D53: Fertilizante | F53: Ton | I53: 47 | J53: Cloreto de Potássio (KCl) | K53: 0 | L53: 0 | M53: 60
A54: 48 | B54: MAP (11-52-00) | D54: Fertilizante | F54: Ton | I54: 48 | J54: MAP (11-52-00) | K54: 12 | L54: 52 | M54: 0
A55: 49 | B55: MAP Purificado | D55: Foliar | F55: kg | I55: 49 | J55: MAP Purificado
A56: 50 | B56: Micronutriente (FTE BR 12) | D56: Fertilizante | F56: Ton | I56: 50 | J56: Micronutriente (FTE BR 12)
A57: 51 | B57: Minercal | D57: Corretivo | F57: Ton | I57: 51 | J57: Minercal
A58: 52 | B58: Nitrato de amônio | D58: Fertilizante | F58: Ton | I58: 52 | J58: Nitrato de amônio | K58: 33 | L58: 0 | M58: 0
A59: 53 | B59: Nitrato de potássio | D59: Foliar | F59: kg | I59: 53 | J59: Nitrato de potássio | K59: 13 | L59: 0 | M59: 44
A60: 54 | B60: Sulfato de amônio | D60: Fertilizante | F60: Ton | I60: 54 | J60: Sulfato de amônio | K60: 20 | L60: 0 | M60: 0
A61: 55 | B61: Sulfato de potássio | D61: Foliar | F61: kg | G61: 21 | I61: 55 | J61: Sulfato de potássio | K61: 0 | L61: 0 | M61: 50
A62: 56 | B62: Super Simples | D62: Fertilizante | F62: Ton | I62: 56 | J62: Super Simples | K62: 0 | L62: 20 | M62: 0
A63: 57 | B63: Talco | C63: lubrificação seca | D63: Inerte | F63: kg | I63: 57 | J63: Talco
A64: 58 | B64: Uréia | C64: 45%N | D64: Fertilizante | F64: Ton | I64: 58 | J64: Uréia | K64: 45 | L64: 0 | M64: 0
A65: 59 | B65: Zinco turbo 44%Zn | D65: trat, semente | F65: L | I65: 59 | J65: Zinco turbo 44%Zn
A66: 60 | B66: Ad. 02-30-15 | I66: 60 | J66: Ad. 02-30-15 | K66: 2 | L66: 30 | M66: 15
A67: 61 | I67: 61 | J67: 0
A68: 62 | I68: 62 | J68: 0
A69: 63 | I69: 63 | J69: 0
A70: 64 | I70: 64 | J70: 0
A71: 65 | I71: =A71 -> 65 | J71: 0
A72: 66 | I72: 66 | J72: 0
A73: 67 | I73: 67 | J73: 0
A74: 68 | I74: 68 | J74: 0
A75: 69 | I75: 69 | J75: 0
A76: 70 | I76: 70 | J76: 0
A77: 71 | I77: 71 | J77: 0
A78: 72 | I78: 72 | J78: 0
A79: 73 | I79: 73 | J79: 0
A80: 74 | I80: 74 | J80: 0
A81: 75 | I81: 75 | J81: 0
A82: 76 | I82: 76 | J82: 0
A83: 77 | I83: 77 | J83: 0
A84: 78 | I84: 78 | J84: 0
A85: 79 | I85: 79 | J85: 0
A86: 80 | I86: 80 | J86: 0
A87: 81 | I87: =A87 -> 81 | J87: 0
A88: 82 | I88: 82 | J88: 0
A89: 83 | I89: 83 | J89: 0
A90: 84 | I90: 84 | J90: 0
A91: 85 | I91: 85 | J91: 0
A92: 86 | I92: 86 | J92: 0
A93: 87 | I93: 87 | J93: 0
A94: 88 | I94: 88 | J94: 0

Sheet Def_agr
A1: Quadro de Herbicidas | AA1: Quadro de Inseticidas | BA1: Quadro de Fungicidas | CA1: Quadro de Adjuvantes
A2: 1 | B2: 2 | C2: 3 | D2: 4 | E2: 5 | F2: 6 | G2: 7 | H2: 8 | I2: 9 | J2: 10
O4: Dose de produto comercial recomendado por hectare - MAPA | AK4: Dose de produto comercial recomendado por hectare - MAPA | BO4: Dose de produto comercial recomendado por hectare - MAPA
K5: Algo | M5: milho | O5: soja | Q5: trigo | AK5: Algodão | AM5: milho | AO5: Soja | AQ5: trigo | BK5: Algo | BM5: milho | BO5: soja | BQ5: trigo
A6: Cod. | B6: Produto | C6: Nome comercial | D6: Princípio ativo | E6: Cultura | F6: Formulação | G6: Conc. | H6: Classe | I6: Empresa | J6: Unid | K6: min | L6: max | M6: min | N6: max | O6: min | P6: max | Q6: min | R6: max | AA6: Cod. | AC6: Nome comercial | AD6: Princípio ativo | AE6: Cultura | AF6: Formulação | AG6: Conc. | AH6: Classe | AI6: Empresa | AJ6: Unid | AK6: min | AL6: max | AM6: min | AN6: max | AO6: min | AP6: max | AQ6: min | AR6: max | BA6: Cod. | BC6: Nome comercial | BD6: Princípio ativo | BE6: Cultura | BF6: Formulação | BG6: Conc. | BH6: Classe | BI6: Empresa | BJ6: Unid | BK6: min | BL6: max | BM6: min | BN6: max | BO6: min | BP6: max | BQ6: min | BR6: max | CA6: Cod. | CB6: Produto | CC6: Nome comercial | CD6: Princípio ativo | CE6: Cultura | CF6: Formulação | CG6: Conc. | CH6: Classe | CI6: Empresa | CJ6: Unid
A7: 1 | J7: - | AA7: 1 | AJ7: - | BA7: 1 | BE7: Milho | BJ7: - | CA7: 1 | CJ7: -
A8: 2 | B8: Herbicida | C8: Accent | J8: Litros | AA8: 2 | AB8: Acaricida | AC8: Abamectina | AD8: Abamectina | AF8: EC | AG8: 18g/l | AH8: III | AI8: Nortox | AJ8: kg | AK8: 0.3 | AL8: 0.6 | BA8: 2 | BB8: Fungicida | BC8: Alto 100 | BD8: ciproconazol | BF8: SL | BG8: 100g/l | BH8: III | BI8: Syngenta | BJ8: Litros | BO8: 0.3 | BP8: 0.3 | BQ8: 0.2 | BR8: 1 | CA8: 2 | CB8: Atrativo | CC8: Açucar | CJ8: Kg
A9: 3 | B9: Herbicida | C9: Actara | D9: tiametoxam | F9: GR | G9: 10g/kg | H9: III | I9: Syngenta | J9: Kg | AA9: 3 | AB9: Inseticida | AC9: Actara | AD9: tiametoxam | AF9: WG | AG9: 250g/kg | AH9: III | AI9: Syngenta | AJ9: Litros | AK9: 0.1 | AL9: 0.2 | AQ9: 0.075 | AR9: 0.075 | BA9: 3 | BB9: Fungicida | BC9: Aproach Prima | BJ9: Litros | CA9: 3 | CB9: Adjuvante | CC9: Agral | CJ9: Litros
A10: 4 | B10: Herbicida | C10: Agimix | D10: Alaclor + Atrazina | E10: Milho | F10: SC | G10: 260+260 | H10: II | I10: Milenia | J10: Litros | M10: 6 | N10: 8 | AA10: 4 | AB10: Inseticida | AC10: Ampligo | AJ10: Litros | BA10: 4 | BB10: Fungicida | BC10: Baytan 250 (TS) | BD10: Triadimenol | BF10: SC | BG10: 150g/l | BH10: III | BI10: Bayer | BJ10: Litros | BK10: 0.2 | BL10: 0.2 | BQ10: 0.235 | BR10: 0.27 | CA10: 4 | CB10: Antiespuma | CC10: Antiespuma | CJ10: Litros
A11: 5 | B11: Herbicida | C11: Alaclor + Atrazina SC Nortox | D11: Alaclor + Atrazina | E11: Milho | F11: SC | G11: 240+250 | H11: I | I11: Nortox | J11: Litros | M11: 6 | N11: 7 | AA11: 5 | AB11: Inseticida | AC11: Artea | AD11: ciproconazol+propiconazol | AF11: EC | AG11: 80+250g/l | AH11: I | AI11: Syngenta | AJ11: Litros | AO11: 0.3 | AP11: 0.3 | AQ11: 0.2 | AR11: 0.4 | BA11: 5 | BB11: Fungicida | BC11: Cabrio-Top | BJ11: kg | CA11: 5 | CB11: oleo mineral | CC11: Assit | CJ11: Litros
A12: 6 | B12: Herbicida | C12: Alaclor Nortox | D12: Alaclor | E12: Milho | F12: CE | G12: 480 g/l | H12: II | I12: Nortox | J12: Litros | K12: 5 | L12: 7 | M12: 5 | N12: 7 | O12: 5 | P12: 7 | AA12: 6 | AB12: Inseticida | AC12: Atrabron | AD12: clorfluazurom | AF12: EC | AG12: 50g/l | AH12: I | AI12: Isk Bioscience | AJ12: Litros | AK12: 0.2 | AL12: 0.5 | AM12: 0.15 | AN12: 0.3 | AO12: 0.1 | AP12: 0.75 | BA12: 6 | BB12: Fungicida | BC12: Carben 500 SC | BJ12: Litros | CA12: 6 | CB12: oleo mineral | CC12: Atach | CJ12: Litros
A13: 7 | B13: Herbicida | C13: Ally | D13: Metsulfurom-metílico | F13: WG | G13: 600g/kg | H13: III | I13: Du Pont | J13: Kg | Q13: 3.3 | R13: 6.6 | AA13: 7 | AB13: Inseticida | AC13: Avaunt | AD13: indoxacarbe | AF13: SC | AG13: 150g/l | AH13: II | AI13: Du Pont | AJ13: Litros | AK13: 0.2 | AL13: 0.4 | AM13: 0.25 | AN13: 0.4 | BA13: 7 | BB13: Fungicida | BC13: Cercobin | BD13: tiofanato-metílico | BF13: SC | BG13: 500g/l | BH13: III | BI13: Ihara | BJ13: Litros | BK13: 0.3 | BL13: 0.8 | BM13: 0.8 | BN13: 1 | BO13: 0.1 | BP13: 0.8 | CA13: 7 | CB13: oleo mineral | CC13: Aureo | CJ13: Litros
A14: 8 | B14: Herbicida | C14: Atranex 500 | D14: Atrazina | E14: Milho | F14: SC | G14: 500 g/l | H14: II | I14: Milenia | J14: Litros | M14: 4 | N14: 5 | AA14: 8 | AB14: Inseticida | AC14: Azodrin 400 | AJ14: Litros | BA14: 8 | BB14: Fungicida | BC14: Corbel | BD14: fenpropimorfe | BF14: EC | BG14: 750g/l | BH14: II | BI14: Basf | BJ14: Litros | BQ14: 0.75 | BR14: 1 | CA14: 8 | CB14: Adjuvante | CC14: Energic | CJ14: Litros
A15: 9 | B15: Herbicida | C15: Atrasimex 500 SC | D15: Atrazina + Simazina | E15: Milho | F15: SC | G15: 250+250 | H15: III | I15: Milenia | J15: Litros | M15: 4 | N15: 6 | AA15: 9 | AB15: Inseticida | AC15: Belt | AJ15: Litros | BA15: 9 | BB15: Fungicida | BC15: Derosal 500 SC | BD15: Carbendazin | BF15: SC | BG15: 500g/l | BH15: II | BI15: Bayer | BJ15: Litros | BK15: 0.08 | BL15: 0.08 | BO15: 0.1 | BP15: 0.5 | BQ15: 0.6 | BR15: 0.6 | CA15: 9 | CB15: Adjuvante | CC15: Iharagen | CJ15: Litros
A16: 10 | B16: Herbicida | C16: Atrazina Atanor 50 | D16: Atrazina | E16: Milho | F16: SC | G16: 500 g/l | H16: III | I16: Cheminova | J16: Litros | M16: 4 | N16: 6 | AA16: 10 | AB16: Inseticida | AC16: Blitz | AD16: Fipronil | AE16: Formiga | AF16: GB | AG16: 0,03g/kg | AH16: IV | AI16: Basf | AJ16: Kilo | BA16: 10 | BB16: Fungicida | BC16: Derosal Plus | BD16: Carbendazin + Tiram | BF16: SC | BG16: 150+350g/l | BH16: III | BI16: Bayer | BJ16: Litros | BK16: 0.6 | BL16: 0.6 | BM16: 0.2 | BN16: 0.3 | BO16: 0.2 | BP16: 0.2 | CA16: 10 | CB16: oleo mineral | CC16: Iharol | CJ16: Litros
A17: 11 | B17: Herbicida | C17: Aurora | D17: Carfentrazone-ethyl | F17: EC | G17: 400g/l | H17: II | I17: FMC | J17: Litros | K17: 50 | L17: 75 | M17: 25 | N17: 75 | O17: 25 | P17: 75 | AA17: 11 | AB17: Inseticida | AC17: Bravick | AJ17: Litros | BA17: 11 | BB17: Fungicida | BC17: Eminent | BD17: Tetraconazol | BF17: EW | BG17: 125g/l | BH17: II | BI17: Arysta | BJ17: Litros | BK17: 0.3 | BL17: 0.5 | BO17: 0.3 | BP17: 0.5 | BQ17: 0.8 | BR17: 1 | CA17: 11 | CB17: Adjuvante | CC17: Imantic | CJ17: Litros
A18: 12 | B18: Herbicida | C18: Basagran | D18: Bentazona | F18: SL | G18: 480g/l | H18: I | I18: Basf | J18: Litros | M18: 1.5 | N18: 1.5 | O18: 1.5 | P18: 1.5 | AA18: 12 | AB18: Inseticida | AC18: Bulldock | AD18: Beta-ciflutrina | AF18: SC | AG18: 125g/l | AH18: II | AI18: Bayer | AJ18: Litros | AK18: 0.03 | AL18: 0.1 | AM18: 0.04 | AN18: 0.04 | AO18: 0.02 | AP18: 0.06 | AQ18: 0.04 | AR18: 0.04 | BA18: 12 | BB18: Fungicida | BC18: Euparen | BD18: Tolifluanida | BF18: WP | BG18: 500g/l | BH18: III | BI18: Bayer | BJ18: kg | BK18: 0.15 | BL18: 0.15 | BM18: 0.15 | BN18: 0.15 | BO18: 0.15 | BP18: 0.15 | CA18: 12 | CB18: Adjuvante | CC18: Joint Oil | CE18: Todas | CJ18: Litros
A19: 13 | B19: Herbicida | C19: Boxer | D19: Alaclor + Atrazina | E19: Milho | F19: SC | G19: 300+180 | H19: I | I19: Monsanto | J19: Litros | M19: 7 | N19: 9 | AA19: 13 | AB19: Inseticida | AC19: Cartap | AD19: Cloridrato de cartape | AF19: SP | AG19: 500g/kg | AH19: III | AI19: Sumitomo | AJ19: Kilo | AK19: 1 | AL19: 1.5 | AQ19: 1 | AR19: 1.5 | BA19: 13 | BB19: Fungicida | BC19: Folicur | BD19: Tebuconzol | BF19: EC | BG19: 200g/l | BH19: III | BI19: Bayer | BJ19: Litros | BK19: 0.1 | BL19: 0.1 | BM19: 1 | BN19: 1 | BO19: 0.3 | BP19: 0.75 | BQ19: 0.6 | BR19: 0.75 | CA19: 13 | CB19: Adjuvante | CC19: Nimbus | CJ19: Litros
A20: 14 | B20: Herbicida | C20: Callisto | D20: Mesotriona | E20: Milho | F20: SC | G20: 480g/l | H20: III | I20: Syngenta | J20: Litros | AA20: 14 | AB20: Inseticida | AC20: Certero | AD20: triflumurom | AF20: SC | AG20: 480g/l | AH20: IV | AI20: Bayer | AJ20: Litros | AK20: 0.03 | AL20: 0.08 | AM20: 0.05 | AN20: 0.05 | AO20: 0.03 | AP20: 0.03 | AQ20: 0.03 | AR20: 0.03 | BA20: 14 | BB20: Fungicida | BC20: Furazin | BD20: carbofurano | BF20: SC | BG20: 310g/l | BH20: I | BI20: FMC | BJ20: Litros | BM20: 2.25 | BN20: 2.25 | CA20: 14 | CB20: Adjuvante | CC20: Oppa | CJ20: Litros
A21: 15 | B21: Herbicida | C21: Capri | D21: 2,4-D Sal Dimetilamina | E21: Milho | F21: SL | G21: 868 g/l | H21: I | I21: Monsanto | J21: Litros | M21: 1 | N21: 1.25 | Q21: 1 | R21: 1 | AA21: 15 | AB21: Inseticida | AC21: Cipermetrina | AD21: Cipermetrina | AF21: EC | AG21: 250g/l | AH21: I | AI21: Nortox | AJ21: Litros | AK21: 0.2 | AL21: 0.25 | AM21: 0.04 | AN21: 0.065 | AO21: 0.2 | AP21: 0.2 | BA21: 15 | BB21: Fungicida | BC21: Futor | BE21: Milho | BJ21: Litros | CA21: 15 | CB21: Regulador | CC21: Pix | CJ21: Litros
A22: 16 | B22: Herbicida | C22: Classic | D22: Clorimurom etílico | E22: Soja | F22: WG | G22: 250 g/l | H22: III | I22: Du Pont | J22: Kg | O22: 0.06 | P22: 0.08 | AA22: 16 | AB22: Inseticida | AC22: Connect | AD22: imidacloprido+beta-ciflutrina | AF22: SC | AG22: 100+12,5g/l | AH22: II | AI22: Bayer | AJ22: Litros | AK22: 0.75 | AL22: 1 | AM22: 0.5 | AN22: 1 | AO22: 0.4 | AP22: 1 | AQ22: 0.25 | AR22: 0.75 | BA22: 16 | BB22: Fungicida | BC22: Impact | BD22: flutriafol | BF22: SC | BG22: 125g/l | BH22: I | BI22: Cheminova | BJ22: Litros | BK22: 0.8 | BL22: 1 | BO22: 0.4 | BP22: 1 | CA22: 16 | CB22: Regulador | CC22: Pix HC | CJ22: Litros
A23: 17 | B23: Herbicida | C23: Clorimuron (G) | D23: Clorimurom etílico | F23: WG | G23: 250g/kg | H23: IV | I23: Nortox | J23: Kg | O23: 0.06 | P23: 0.08 | AA23: 17 | AB23: Inseticida | AC23: Cruiser (TS) | AD23: tiametoxam | AF23: SC | AG23: 350g/l | AH23: III | AI23: Syngenta | AJ23: Kilo | AK23: 0.4 | AL23: 0.6 | AM23: 0.4 | AN23: 0.6 | AO23: 0.05 | AP23: 0.3 | AQ23: 0.05 | AR23: 0.07 | BA23: 17 | BB23: Fungicida | BC23: Maxim XL (TS) | BD23: Fludioxinil + Metalaxyl | BE23: Milho | BF23: SC | BG23: 25+10 | BH23: III | BI23: Syngenta | BJ23: Litros | BM23: 0.1 | BN23: 0.15 | BO23: 0.1 | BP23: 0.1 | CA23: 17 | CB23: Regulador | CC23: Tuval | CJ23: Litros
A24: 18 | B24: Herbicida | C24: Cobra | D24: Lactofem | E24: Soja | F24: EC | G24: 240g/l | H24: I | I24: Bayer CropScience | J24: Litros | O24: 0.625 | P24: 0.75 | AA24: 18 | AB24: Inseticida | AC24: Curacron | AD24: profenofós | AF24: EC | AG24: 500g/l | AH24: III | AI24: Syngenta | AJ24: Litros | AK24: 0.2 | AL24: 1 | AM24: 0.5 | AN24: 0.5 | AO24: 0.16 | AP24: 0.2 | AQ24: 0.2 | AR24: 0.5 | BA24: 18 | BB24: Fungicida | BC24: Monceren | BD24: pencicurom | BF24: SC | BG24: 250g/l | BH24: II | BI24: Bayer | BJ24: kg | BK24: 0.3 | BL24: 0.5 | CA24: 18 | CB24: Regulador | CC24: Sponsor | CJ24: Litros
A25: 19 | B25: Herbicida | C25: Cotton Quik | D25: Etefom | F25: SL | G25: 273g/l | H25: I | I25: Nufarm | J25: Litros | K25: 4 | L25: 6 | AA25: 19 | AB25: Inseticida | AC25: Curyon | AD25: lufenurom+profenofós | AF25: EC | AG25: 50+500g/l | AH25: II | AI25: Syngenta | AJ25: Litros | AO25: 0.1 | AP25: 0.15 | BA25: 19 | BB25: Fungicida | BC25: Nativo | BD25: trifloxistrobina + tebuconazol | BF25: SC | BG25: 100+200g/l | BH25: III | BI25: Bayer | BJ25: Litros | BK25: 0.6 | BL25: 0.75 | BM25: 0.6 | BN25: 0.75 | BO25: 0.4 | BP25: 0.6 | BQ25: 0.6 | BR25: 0.75 | CA25: 19
A26: 20 | B26: Herbicida | C26: Diuron | D26: Diurom | F26: WP | G26: 800g/kg | H26: III | I26: Nortox | J26: Kg | K26: 0.7 | L26: 2.5 | AA26: 20 | AB26: Inseticida | AC26: Cyptrin 250 CE | AD26: Cypermetrin | AE26: Milho | AF26: CE | AG26: 250 g/l | AH26: I | AI26: Crompton | AJ26: Litros | AK26: 0.05 | AL26: 0.25 | AM26: 0.05 | AN26: 0.06 | AO26: 0.06 | AP26: 0.1 | BA26: 20 | BB26: Fungicida | BC26: Opera | BD26: Epoxiconazole + Pyraclostrobin | BF26: SE | BG26: 50+133g/l | BH26: II | BI26: Basf | BJ26: Litros | BM26: 0.75 | BN26: 0.75 | BO26: 0.5 | BP26: 0.6 | BQ26: 0.5 | BR26: 1 | CA26: 20
A27: 21 | B27: Herbicida | C27: DMA 806 BR (2,4D) | D27: 2,4-D (ácido ariloxialcanóico) 806 | F27: SL | G27: 806g/l | H27: I | I27: Milenia | J27: Litros | M27: 0.5 | N27: 1.5 | O27: 1 | P27: 1.5 | Q27: 0.5 | R27: 0.75 | AA27: 21 | AB27: Inseticida | AC27: Decis 200 | AD27: deltametrina | AF27: SC | AG27: 200g/l | AH27: IV | AI27: Bayer | AJ27: Litros | AK27: 0.05 | AL27: 0.05 | BA27: 21 | BB27: Fungicida | BC27: Opera Plus | BD27: Epoxiconazole + Pyraclostrobin | BF27: SE | BG27: 50+133g/l | BH27: II | BI27: Basf | BJ27: Litros | BM27: 0.75 | BN27: 0.75 | BO27: 0.5 | BP27: 0.6 | BQ27: 0.5 | BR27: 1 | CA27: 21
A28: 22 | B28: Herbicida | C28: Dropp | D28: Tidiazurom | F28: SC | G28: 120g/l | H28: IV | I28: Bayer CropScience | J28: Litros | K28: 0.4 | L28: 0.5 | AA28: 22 | AB28: Inseticida | AC28: Delamax | AJ28: Litros | BA28: 22 | BB28: Fungicida | BC28: Priori SC | BD28: azoxistrobina | BF28: SC | BG28: 250g/l | BH28: III | BI28: Syngenta | BJ28: Litros | BO28: 0.2 | BP28: 0.2 | BQ28: 0.2 | BR28: 0.4 | CA28: 22
A29: 23 | B29: Herbicida | C29: Dual | D29: S-metolacloro | F29: EC | G29: 960g/l | H29: I | I29: Syngenta | J29: Litros | K29: 1.25 | L29: 1.5 | M29: 1.25 | N29: 1.75 | O29: 1.5 | P29: 2 | AA29: 23 | AB29: Inseticida | AC29: Deltafos | AD29: deltametrina+triazofós | AF29: EC | AG29: 10+350g/l | AH29: I | AI29: Bayer | AJ29: Litros | AK29: 0.75 | AL29: 1 | AM29: 0.25 | AN29: 0.35 | BA29: 23 | BB29: Fungicida | BC29: Priori xtra | BD29: Ciproconazol+Azoxistrobina | BF29: SC | BG29: 200+80g/l | BH29: III | BI29: Syngenta | BJ29: Litros | BK29: 0.3 | BL29: 0.3 | BM29: 0.3 | BN29: 0.3 | BO29: 0.3 | BP29: 0.3 | BQ29: 0.3 | BR29: 0.3 | CA29: 23
A30: 24 | B30: Herbicida | C30: Envoke | D30: Trifloxissulfurom-sódico | F30: WG | G30: 750g/l | H30: III | I30: Syngenta | J30: Kg | M30: 10 | N30: 10 | AA30: 24 | AB30: Inseticida | AC30: Diafuran 50 | AD30: Carbofuran | AE30: Milho | AF30: GR | AG30: 50 g/kg | AH30: I | AI30: FMC | AJ30: Kilo | AK30: 30 | AL30: 50 | AM30: 20 | AN30: 60 | AQ30: 15 | AR30: 20 | BA30: 24 | BB30: Fungicida | BC30: Rival | BD30: Tebuconzol | BF30: EC | BG30: 200g/l | BH30: I | BI30: Nufarm | BJ30: Litros | BO30: 0.3 | BP30: 0.75 | BQ30: 0.75 | BR30: 0.75 | CA30: 24
A31: 25 | B31: Herbicida | C31: Equip Plus | D31: Foramsulfuron + Safener + Iodosulfuron | E31: Milho | F31: WG | G31: 300+300+20 | H31: III | I31: Bayer CropScience | J31: Litros | M31: 0.12 | N31: 0.15 | AA31: 25 | AB31: Inseticida | AC31: Dimilin | AD31: Diflubenzuron | AE31: Milho | AF31: PM | AG31: 250 g/kg | AH31: IV | AI31: Crompton | AJ31: Kilo | AK31: 0.06 | AL31: 0.06 | AM31: 0.1 | AN31: 0.1 | AO31: 0.03 | AP31: 0.06 | BA31: 25 | BB31: Fungicida | BC31: Score | BD31: difenoconazol | BF31: EC | BG31: 250g/l | BH31: I | BI31: Syngenta | BJ31: Litros | BK31: 0.3 | BL31: 0.3 | BO31: 0.15 | BP31: 0.3 | CA31: 25 | CJ31: Kg
A32: 26 | B32: Herbicida | C32: Finale | D32: Glufosinato - sal de amônio | F32: SL | G32: 200g/l | H32: I | I32: Bayer CropScience | J32: Litros | K32: 2 | L32: 2 | M32: 1.5 | N32: 1.5 | O32: 2 | P32: 2.5 | Q32: 2 | R32: 2 | AA32: 26 | AC32: Dimilin 80 WG | AJ32: Kilo | BA32: 26 | BB32: Fungicida | BC32: Sphere Max | BJ32: Litros | CA32: 26 | CJ32: Litros
A33: 27 | B33: Herbicida | C33: Finish | D33: Etefom | F33: SC | G33: 480g/l | H33: I | I33: Bayer CropScience | J33: Litros | K33: 1.5 | L33: 2.5 | AA33: 27 | AB33: Inseticida | AC33: Endosulfan | AD33: Endossulfan | AF33: EC | AG33: 350g/l | AH33: I | AI33: Nufarm | AJ33: Litros | AK33: 1 | AL33: 2.5 | AO33: 0.5 | AP33: 1.5 | BA33: 27 | BB33: Fungicida | BC33: Stratego | BD33: Propiconazol + Trifloxistrobina | BF33: EC | BG33: 125+125g/l | BH33: II | BI33: Bayer | BJ33: Litros | BK33: 0.5 | BL33: 0.6 | BM33: 0.6 | BN33: 0.8 | BO33: 0.4 | BP33: 0.4 | BQ33: 0.6 | BR33: 0.6 | CA33: 27 | CJ33: Litros
A34: 28 | B34: Herbicida | C34: Flex | D34: Fomesafen | F34: SL | G34: 250g/l | H34: I | I34: Syngenta | J34: Litros | O34: 0.9 | P34: 1 | AA34: 28 | AB34: Inseticida | AC34: Endosulfan Nortox | AD34: Endossulfan | AF34: EC | AG34: 350g/l | AH34: I | AI34: Nortox | AJ34: Litros | AK34: 1 | AL34: 2 | AO34: 0.5 | AP34: 1.5 | BA34: 28 | BB34: Fungicida | BC34: Tilt | BJ34: Litros | CA34: 28 | CJ34: Litros
A35: 29 | B35: Herbicida | C35: Flumizin | J35: Litros | AA35: 29 | AB35: Inseticida | AC35: Engeo | AD35: cipermetrina+tiametoxam | AF35: EC | AG35: 220+110g/l | AH35: III | AI35: Syngenta | AJ35: Litros | AM35: 0.2 | AN35: 0.3 | AO35: 0.18 | AP35: 0.25 | BA35: 29 | BB35: Fungicida | BC35: Vitavax - Thiram (TS) | BD35: Carboxina + Tiram | BF35: SC | BG35: 200+200g/l | BH35: IV | BI35: Chemtura | BJ35: Litros | BK35: 0.4 | BL35: 0.5 | BM35: 0.25 | BN35: 0.3 | BO35: 0.25 | BP35: 0.3 | BQ35: 0.25 | BR35: 0.3 | CA35: 29 | CJ35: Litros
A36: 30 | B36: Herbicida | C36: Fusiflex | D36: Fomesafem + fluazifope-P-butílico | F36: SL | G36: 250g/l | H36: II | I36: Syngenta | J36: Litros | O36: 1.6 | P36: 2 | AA36: 30 | AB36: Inseticida | AC36: Engeo Pleno | AD36: tiametoxam+lambda-cialotrina | AF36: SC | AG36: 141+106g/l | AH36: III | AI36: Syngenta | AJ36: Litros | AM36: 0.2 | AN36: 0.25 | AO36: 0.075 | AP36: 0.25 | AQ36: 0.04 | AR36: 0.15 | BA36: 30 | BB36: Fungicida | BC36: Vitavax (TS) | BD36: Carboxina | BF36: WP | BG36: 750g/kg | BH36: II | BI36: Cheminova | BJ36: Litros | BK36: 0.15 | BL36: 0.25 | BM36: 0.15 | BN36: 0.25 | BO36: 0.15 | BP36: 0.25 | CA36: 30 | CJ36: Litros
A37: 31 | B37: Herbicida | C37: Fusilade | D37: Fluazifop-p-butil | F37: EW | G37: 250g/l | H37: III | I37: Syngenta | J37: Litros | K37: 0.5 | L37: 1 | O37: 0.5 | P37: 0.75 | AA37: 31 | AB37: Inseticida | AC37: Fastac 100 SC | AD37: Alfacypermetrina | AE37: Milho | AF37: SC | AG37: 100 g/l | AH37: III | AI37: Basf | AJ37: Litros | AK37: 75 | AL37: 300 | AM37: 50 | AN37: 50 | AO37: 100 | AP37: 120 | BA37: 31 | BB37: Fungicida | BC37: Fox | BD37: Protioconazol + trifloxistrobina | BF37: SC | BG37: 775 g/k | BH37: I | BI37: Bayer | BJ37: Litros | CA37: 31 | CJ37: Litros
A38: 32 | B38: Herbicida | C38: Gamit | D38: Clomazona | F38: SC | G38: 360g/l | H38: III | I38: FMC | J38: Litros | K38: 2.1 | L38: 3.5 | AA38: 32 | AB38: Inseticida | AC38: Fênix | AD38: Carbosulfan | AE38: Trt. Milho | AF38: SC | AG38: 250 g/l | AH38: II | AI38: FMC | AJ38: Litros | AK38: 0.3 | AL38: 0.3 | BA38: 32 | BB38: Fungicida | BC38: Emerald | BD38: Tetraconazol | BF38: EW | BG38: 875 g/l | BH38: II | BI38: FMC | BJ38: Litros | CA38: 32 | CJ38: Litros
A39: 33 | B39: Herbicida | C39: Gesapax 500 Ciba-Geigy | D39: Ametrina | E39: Milho | F39: SC | G39: 500 g/l | H39: III | I39: Syngenta | J39: Litros | M39: 3 | N39: 4 | AA39: 33 | AB39: Inseticida | AC39: Folidol 600 | AD39: Parathion metilico | AJ39: Litros | BA39: 33 | BB39: Fungicida | BC39: Domark XL | BD39: azoxistrobina + tetraconazol | BJ39: Litros | CA39: 33 | CJ39: Litros
A40: 34 | B40: Herbicida | C40: Gesaprim 500 Ciba | D40: Atrazina | E40: Milho | F40: SC | G40: 500g/l | H40: II | I40: Syngenta | J40: Litros | M40: 4 | N40: 5 | AA40: 34 | AB40: Inseticida | AC40: Folisuper | AD40: Parathion metilico | AF40: EC | AG40: 600g/l | AH40: I | AI40: Nufarm | AJ40: Litros | AK40: 0.27 | AL40: 0.8 | AM40: 0.5 | AN40: 0.65 | AO40: 0.45 | AP40: 0.9 | AQ40: 0.5 | AR40: 0.6 | BA40: 34 | BB40: Fungicida | BC40: Elatus | BJ40: Litros | CA40: 34 | CJ40: Litros
A41: 35 | B41: Herbicida | C41: Gesaprin 880 GRDA | J41: Litros | AA41: 35 | AB41: Inseticida | AC41: Furadan 350 TS | AD41: Carbofuran | AE41: Trt. Milho | AF41: SC | AG41: 350 g/l | AH41: I | AI41: Crompton | AJ41: Litros | AK41: 2 | AL41: 2 | AM41: 2 | AN41: 3 | BA41: 35 | BB41: Fungicida | BC41: Orkestra | BJ41: Litros | CA41: 35 | CJ41: Litros
A42: 36 | B42: Herbicida | C42: Glifosato (480g) | D42: Gliphosato | F42: SL | G42: 480g/l | H42: III | I42: Nortox | J42: Litros | K42: 1 | L42: 6 | M42: 1 | N42: 6 | O42: 1 | P42: 6 | Q42: 1 | R42: 6 | AA42: 36 | AB42: Inseticida | AC42: Furadan 350 TS | AD42: Carbofuran | AE42: Trt. Milho | AF42: SC | AG42: 350 g/l | AH42: I | AI42: FMC | AJ42: Litros | AK42: 2 | AL42: 2 | AM42: 2 | AN42: 3 | BA42: 36 | BC42: Unizeb Gold | BJ42: Litros | CA42: 36 | CJ42: Litros
A43: 37 | B43: Herbicida | C43: Gramaxone 200 | D43: Dicloreto de paraquate | G43: 200g/l | H43: I | I43: Syngenta | J43: Litros | K43: 1 | L43: 3 | M43: 1.5 | N43: 3 | O43: 1.5 | P43: 3 | AA43: 37 | AB43: Inseticida | AC43: Furazin 310 TS | AD43: Carbofuran | AE43: Trt. Milho | AF43: SC | AG43: 310 g/l | AH43: I | AI43: FMC | AJ43: Litros | AM43: 2.25 | AN43: 2.25 | BA43: 37 | BJ43: Litros | CA43: 37 | CJ43: Litros
A44: 38 | B44: Herbicida | C44: Gramoxil | D44: Dicloreto de paraquate | F44: SC | G44: 200g/l | H44: II | I44: Syngenta | J44: Litros | K44: 2 | L44: 3 | M44: 2 | N44: 3 | O44: 2 | P44: 3 | Q44: 2 | R44: 3 | AA44: 38 | AB44: Inseticida | AC44: Fury 200 | AD44: Zeta-cipermetrina | AF44: EC | AG44: 400g/l | AH44: II | AI44: FMC | AJ44: Litros | AK44: 0.1 | AL44: 0.125 | AM44: 0.0375 | AN44: 0.8 | AO44: 0.025 | AP44: 0.03 | BA44: 38 | BJ44: Litros | CA44: 38 | CJ44: Litros
A45: 39 | B45: Herbicida | C45: Helmoxone | J45: Litros | AA45: 39 | AB45: Inseticida | AC45: Fury 400 | AD45: Zeta-cipermetrina | AF45: EC | AG45: 400g/l | AH45: II | AI45: FMC | AJ45: Litros | AK45: 0.1 | AL45: 0.125 | AM45: 0.0375 | AN45: 0.08 | AO45: 0.025 | AP45: 0.0375 | BA45: 39 | BJ45: Litros | CA45: 39 | CJ45: Litros
A46: 40 | B46: Herbicida | C46: Herbimix SC | D46: Atrazina + Simazina | E46: Milho | F46: SC | G46: 250+250 | H46: III | I46: Monsanto | J46: Litros | M46: 6 | N46: 7 | AA46: 40 | AB46: Inseticida | AC46: Gallaxy 100 CE | AD46: Novaluron | AE46: Milho | AF46: CE | AG46: 100 g/l | AH46: IV | AI46: Du Pont | AJ46: Litros | AK46: 0.1 | AL46: 0.25 | AM46: 0.15 | AN46: 0.15 | AO46: 0.05 | AP46: 0.075 | AQ46: 0.05 | AR46: 0.1 | BA46: 40 | BJ46: Litros | CA46: 40 | CJ46: Litros
A47: 41 | B47: Herbicida | C47: Herbimix SC | D47: Atrazina + Simazina | E47: Milho | F47: SC | G47: 250+250 | H47: III | I47: Milenia | J47: Litros | M47: 6 | N47: 7 | AA47: 41 | AB47: Inseticida | AC47: Gaucho (TS) | AD47: imidacloprido | AF47: WS | AG47: 700g/kg | AH47: IV | AI47: Bayer | AJ47: Litros | AK47: 0.4 | AL47: 0.5 | AM47: 0.7 | AN47: 1 | AQ47: 0.05 | AR47: 0.05 | BA47: 41 | BJ47: Litros | CA47: 41 | CJ47: Litros
A48: 42 | B48: Herbicida | C48: Herbitrin 500 BR | D48: Atrazina | E48: Milho | F48: SC | G48: 500 g/l | H48: III | I48: Milenia | J48: Litros | M48: 4 | N48: 5 | AA48: 42 | AB48: Inseticida | AC48: Hostation | AD48: triazofós | AF48: EC | AG48: 400g/l | AH48: II | AI48: Bayer | AJ48: Litros | AK48: 0.75 | AL48: 2 | AM48: 0.3 | AN48: 0.5 | AO48: 0.5 | AP48: 1.5 | AQ48: 0.5 | AR48: 1 | BA48: 42 | BJ48: Litros | CA48: 42 | CJ48: Litros
A49: 43 | B49: Herbicida | C49: Herburon | D49: Diurom | F49: SC | G49: 500g/l | H49: IV | I49: Milenia | J49: Litros | K49: 3.2 | L49: 4 | AA49: 43 | AC49: Imunit | AJ49: Litros | BA49: 43 | BJ49: Litros | CA49: 43 | CJ49: Litros
A50: 44 | B50: Herbicida | C50: Hussar | J50: Litros | AA50: 44 | AB50: Inseticida | AC50: Karate 250 Zeon | AD50: Lambdacyhalothrin | AE50: Milho | AF50: CS | AG50: 250 g/l | AH50: III | AI50: Syngenta | AJ50: Litros | AK50: 0.02 | AL50: 0.06 | AM50: 0.03 | AN50: 0.1 | AO50: 0.015 | AP50: 0.03 | BA50: 44 | BJ50: Litros | CA50: 44 | CJ50: Litros
A51: 45 | B51: Herbicida | C51: Kadett CE | D51: Acetochlor | E51: Milho | F51: CE | G51: 840 g/l | H51: I | I51: Monsanto | J51: Litros | M51: 3 | N51: 4 | AA51: 45 | AB51: Inseticida | AC51: Karate 50 Zeon CS | AD51: Lambdacyhalothrin | AE51: Milho | AF51: CS | AG51: 50 g/l | AH51: III | AI51: Syngenta | AJ51: Litros | AK51: 0.1 | AL51: 0.4 | AM51: 0.15 | AN51: 0.6 | AO51: 0.075 | AP51: 0.15 | AQ51: 0.1 | AR51: 0.1 | BA51: 45 | BJ51: Litros | CA51: 45 | CJ51: Litros
A52: 46 | B52: Herbicida | C52: Laço CE | D52: Alaclor | E52: Milho | F52: CE | G52: 480 g/l | H52: I | I52: Monsanto | J52: Litros | K52: 5 | L52: 7 | M52: 5 | N52: 7 | O52: 5 | P52: 7 | AA52: 46 | AB52: Inseticida | AC52: Keshet | AD52: Deltametrina | AF52: EC | AG52: 25g/l | AH52: I | AI52: Milenia | AJ52: Litros | AK52: 0.4 | AL52: 0.8 | AM52: 0.2 | AN52: 0.2 | AO52: 0.2 | AP52: 0.4 | BA52: 46 | BJ52: Litros | CA52: 46 | CJ52: Litros
A53: 47 | B53: Herbicida | C53: Lanzar | E53: Soja | F53: ME | G53: 200 + 250 g/l | H53: III | I53: Syngenta | J53: Litros | AA53: 47 | AB53: Inseticida | AC53: Lannate | AD53: Metomil | AF53: SL | AG53: 250g/l | AH53: I | AI53: Du Pont | AJ53: Litros | AK53: 0.3 | AL53: 1.5 | AM53: 0.6 | AN53: 0.6 | AO53: 0.3 | AP53: 2 | AQ53: 0.5 | AR53: 3 | BA53: 47 | BJ53: Litros | CA53: 47 | CJ53: Litros
A54: 48 | B54: Herbicida | C54: MSMA | D54: MSMA | F54: SL | G54: 720g/l | H54: III | I54: Dow AgroSciences | J54: Litros | K54: 2.5 | L54: 4 | AA54: 48 | AB54: Inseticida | AC54: Larvin | AD54: Tiodicarbe | AF54: SC | AG54: 350g/l | AH54: II | AI54: Bayer | AJ54: Litros | AK54: 0.2 | AL54: 1.5 | AO54: 0.2 | AP54: 1.5 | BA54: 48 | BJ54: Litros | CA54: 48 | CJ54: Litros
A55: 49 | B55: Herbicida | C55: Naja | D55: Lactofem | E55: Soja | F55: EC | G55: 240g/l | H55: I | I55: Milenia | J55: Litros | O55: 0.5 | P55: 0.7 | AA55: 49 | AB55: Inseticida | AC55: Laser 400 SC | AD55: Benfuracarb | AE55: Milho | AF55: SC | AG55: 400 g/l | AH55: II | AI55: Iharabras | AJ55: Litros | AK55: 1.5 | AL55: 2.5 | AM55: 1.75 | AN55: 2.5 | BA55: 49 | BJ55: Litros | CA55: 49 | CJ55: Litros
A56: 50 | B56: Herbicida | C56: Nicosulfuron Nortox 40 SC | D56: Nicosulfuron | E56: Milho | F56: SC | G56: 40 g/l | H56: III | I56: Nortox | J56: Litros | M56: 1.25 | N56: 1.5 | AA56: 50 | AB56: Inseticida | AC56: Lorsban 480 BR | AD56: Clorpirifós | AE56: Milho | AF56: CE | AG56: 480 g/l | AH56: II | AI56: Dow AgroSciences | AJ56: Litros | AK56: 0.3 | AL56: 2 | AM56: 0.4 | AN56: 1 | AO56: 0.25 | AP56: 1 | AQ56: 0.2 | AR56: 1.25 | BA56: 50 | BJ56: Litros | CA56: 50 | CJ56: Litros
A57: 51 | B57: Herbicida | C57: Pacto | D57: Cloransulam-metílico | F57: WG | G57: 840g/kg | H57: III | I57: Dow AgroSciences | J57: Kg | O57: 35.7 | P57: 47.6 | AA57: 51 | AB57: Inseticida | AC57: Marshal 400 | AD57: Carbossulfano | AF57: SC | AG57: 400g/l | AH57: II | AI57: FMC | AJ57: Litros | AK57: 0.3 | AL57: 0.3 | BA57: 51 | BJ57: Litros | CA57: 51 | CJ57: Litros
A58: 52 | B58: Herbicida | C58: Panther | D58: Quizalofope-P-tefurílico | F58: EC | G58: 120g/l | H58: I | I58: Chemtura | J58: Litros | K58: 0.6 | L58: 1 | O58: 0.6 | P58: 1 | AA58: 52 | AB58: Inseticida | AC58: Match CE | AD58: Lufenuron | AE58: Milho | AF58: CE | AG58: 50 g/l | AH58: IV | AI58: Syngenta | AJ58: Litros | AK58: 0.3 | AL58: 1 | AM58: 0.3 | AN58: 0.3 | AO58: 0.15 | AP58: 0.15 | AQ58: 0.1 | AR58: 0.1 | BA58: 52 | BJ58: Litros | CA58: 52 | CJ58: Litros
A59: 53 | B59: Herbicida | C59: Pivot | D59: Imazetapir | F59: SL | G59: 100g/l | H59: IV | I59: Basf | J59: Litros | O59: 1 | P59: 1 | AA59: 53 | AC59: Metamidofós | AD59: Metamidofós | AF59: SL | AG59: 600g/l | AH59: I | AI59: Fersol | AJ59: Litros | AK59: 0.35 | AL59: 0.7 | AO59: 0.25 | AP59: 0.75 | BA59: 53 | BJ59: Litros | CA59: 53 | CJ59: Litros
A60: 54 | B60: Herbicida | C60: Poast | AA60: 54 | AB60: Inseticida | AC60: Metomex | AD60: Metomil | AF60: SL | AG60: 215g/l | AH60: II | AI60: Milenia | AJ60: Litros | AK60: 0.8 | AL60: 0.8 | AM60: 0.6 | AN60: 0.6 | AO60: 0.5 | AP60: 1 | BA60: 54 | BJ60: Litros | CA60: 54 | CJ60: Litros
A61: 55 | B61: Herbicida | C61: Podium S | D61: Cletodim | F61: EC | G61: 50g/l | H61: II | I61: Bayer CropScience | J61: Litros | O61: 0.8 | P61: 1 | AA61: 55 | AB61: Inseticida | AC61: Metox | AD61: Parathion metilico | AF61: EC | AG61: 600g/l | AH61: II | AI61: Prentiss | AJ61: Litros | AK61: 0.27 | AL61: 1 | AM61: 0.65 | AN61: 0.65 | AO61: 0.45 | AP61: 1 | AQ61: 0.5 | AR61: 0.6 | BA61: 55 | BJ61: Litros | CA61: 55 | CJ61: Litros
A62: 56 | B62: Herbicida | C62: Posmil | D62: Atrazina | E62: Milho | F62: SC | G62: 400 g/l | H62: IV | I62: Milenia | J62: Litros | M62: 5 | N62: 7 | AA62: 56 | AB62: Inseticida | AC62: Mospilan | AD62: Acetamiprido | AF62: SP | AG62: 200g/kg | AH62: III | AI62: Iharabras | AJ62: Kilo | AK62: 0.1 | AL62: 0.1 | AQ62: 0.375 | AR62: 0.375 | BA62: 56 | BJ62: Litros | CA62: 56 | CJ62: Litros
A63: 57 | B63: Herbicida | C63: Primatop SC | D63: Atrazina + Simazina | E63: Milho | F63: SC | G63: 250+250 | H63: III | I63: Syngenta | J63: Litros | M63: 6 | N63: 8 | AA63: 57 | AB63: Inseticida | AC63: Nomolt | AD63: Teflubenzurom | AF63: SC | AG63: 150g/l | AH63: IV | AI63: Basf | AJ63: Litros | AK63: 0.05 | AL63: 0.05 | AM63: 0.05 | AN63: 0.1 | AO63: 0.05 | AP63: 0.05 | BA63: 57 | BJ63: Litros | CA63: 57 | CJ63: Litros
A64: 58 | B64: Herbicida | C64: Primestra Gold | D64: Atrazina + Metolachlor | E64: Milho | F64: SC | G64: 370+290 | H64: II | I64: Syngenta | J64: Litros | M64: 3.25 | N64: 4.5 | AA64: 58 | AB64: Inseticida | AC64: Nuvacron 400 | AJ64: Litros | BA64: 58 | BJ64: Litros | CA64: 58 | CJ64: Litros
A65: 59 | B65: Herbicida | C65: Primoleo | D65: Atrazina | E65: Milho | F65: SC | G65: 400 g/l | H65: IV | I65: Syngenta | J65: Litros | M65: 5 | N65: 6 | AA65: 59 | AB65: Inseticida | AC65: Orthene | AD65: Acefato | AF65: SP | AG65: 750g/kg | AH65: IV | AI65: Arysta | AJ65: Kg | AK65: 0.4 | AL65: 1.5 | AO65: 0.2 | AP65: 1 | BA65: 59 | BJ65: Litros | CA65: 59 | CJ65: Litros
A66: 60 | B66: Herbicida | C66: Reglone | D66: Dibrometo de diquate | G66: 200g/l | H66: III | I66: Syngenta | J66: Litros | O66: 1 | P66: 2 | AA66: 60 | AB66: Inseticida | AC66: Parathion | AJ66: Litros | BA66: 60 | BJ66: Litros | CA66: 60 | CJ66: Litros
A67: 61 | B67: Herbicida | C67: Round up original | D67: Gliphosato 480 | F67: SL | G67: 480g/l | H67: III | I67: Monsanto | J67: Litros | K67: 0.5 | L67: 6 | M67: 0.5 | N67: 6 | O67: 0.5 | P67: 6 | Q67: 0.5 | R67: 6 | AA67: 61 | AB67: Inseticida | AC67: PBROPE | AD67: Gossiplure | AF67: LA | AG67: 467g/l | AH67: IV | AI67: Iharabras | AJ67: Litros | BA67: 61 | BJ67: Litros | CA67: 61 | CJ67: Litros
A68: 62 | B68: Herbicida | C68: Round up Transorb | D68: Gliphosato | E68: alg | F68: SL | G68: 648g/l | H68: III | I68: Monsanto | J68: Litros | K68: 0.75 | L68: 4.5 | M68: 0.75 | N68: 4.5 | O68: 1 | P68: 4.5 | Q68: 0.75 | R68: 4.5 | AA68: 62 | AB68: Inseticida | AC68: Piredan | AD68: Permetrina | AF68: EC | AG68: 384g/l | AH68: II | AI68: Du Pont | AJ68: Litros | AK68: 0.16 | AL68: 0.35 | AM68: 0.0105 | AN68: 0.065 | AO68: 0.04 | AP68: 0.13 | AQ68: 0.065 | AR68: 0.065 | BA68: 62 | BJ68: Litros | CA68: 62 | CJ68: Litros
A69: 63 | B69: Herbicida | C69: Round up WG | D69: Gliphosato 792,5 WG | F69: WG | G69: 792,5g/l | H69: IV | I69: Monsanto | J69: Kg | K69: 0.5 | L69: 3.5 | M69: 0.5 | N69: 3.5 | O69: 0.5 | P69: 3.5 | Q69: 0.5 | R69: 3.5 | AA69: 63 | AB69: Inseticida | AC69: Politrin | AD69: Profenofós+Cipermetrina | AF69: EC | AG69: 400+40g/l | AH69: III | AI69: Syngenta | AJ69: Litros | AK69: 0.15 | AL69: 1 | AM69: 0.25 | AN69: 0.4 | AO69: 0.1 | AP69: 0.12 | BA69: 63 | BJ69: Litros | CA69: 63 | CJ69: Litros
A70: 64 | B70: Herbicida | C70: Roundup ready | J70: Litros | AA70: 64 | AB70: Inseticida | AC70: Polo | AD70: Diafentiuron | AF70: SC | AG70: 500g/l | AH70: III | AI70: Syngenta | AJ70: Litros | AK70: 0.5 | AL70: 0.8 | BA70: 64 | BJ70: Litros | CA70: 64 | CJ70: Litros
A71: 65 | B71: Herbicida | C71: Sanson 40 SC | D71: Nicosulfuron | E71: Milho | F71: SC | G71: 40 g/l | H71: IV | I71: Basf | J71: Litros | M71: 1.25 | N71: 1.5 | AA71: 65 | AB71: Inseticida | AC71: Pounce 384 | AD71: Permetrina | AF71: EC | AG71: 384g/l | AH71: III | AI71: FMC | AJ71: Litros | AK71: 0.26 | AL71: 0.325 | AM71: 0.0105 | AN71: 0.13 | AO71: 0.04 | AP71: 0.13 | AQ71: 0.0105 | AR71: 0.13 | BA71: 65 | BJ71: Litros | CA71: 65 | CJ71: Litros
A72: 66 | B72: Herbicida | C72: Scepter | D72: Imazaquim | F72: SL | G72: 161g/l | H72: II | I72: Basf | J72: Litros | O72: 1 | P72: 1 | AA72: 66 | AC72: Prêmio | AJ72: Litros | BA72: 66 | BJ72: Litros | CA72: 66 | CJ72: Litros
A73: 67 | B73: Herbicida | C73: Select | D73: Cletodim | F73: EC | G73: 240g/l | H73: II | I73: Arysta | J73: Litros | K73: 0.35 | L73: 0.45 | O73: 0.35 | P73: 0.45 | AA73: 67 | AB73: Inseticida | AC73: Propstar (TS) | AD73: imidacloprido+tiodicarbe | AF73: SC | AG73: 150+450g/l | AH73: II | AI73: Bayer | AJ73: Litros | AM73: 0.25 | AN73: 0.35 | BA73: 67 | BJ73: Litros | CA73: 67 | CJ73: Litros
A74: 68 | B74: Herbicida | C74: Soberan | J74: Litros | AA74: 68 | AB74: Inseticida | AC74: Ralzer 350 TS | AD74: Carbofuran | AE74: Trt. Milho | AF74: SC | AG74: 350 g/l | AH74: I | AI74: Dow AgroSciences | AJ74: Litros | AM74: 2 | AN74: 3 | BA74: 68 | BJ74: Litros | CA74: 68 | CJ74: Litros
A75: 69 | B75: Herbicida | C75: Spyder | D75: Diclosulam | F75: WG | G75: 840g,l | H75: II | I75: Dow AgroSciences | J75: Kg | O75: 23.8 | P75: 41.7 | AA75: 69 | AB75: Inseticida | AC75: Regent | AD75: Fipronil | AF75: WG | AG75: 800g/kg | AH75: II | AI75: Basf | AJ75: Litros | AK75: 0.015 | AL75: 0.1 | AM75: 0.1 | AN75: 0.1 | AO75: 0.04 | AP75: 0.04 | BA75: 69 | BJ75: Litros | CA75: 69 | CJ75: Litros
A76: 70 | B76: Herbicida | C76: Staple | D76: Piritiobaque-sódico | F76: SL | G76: 280g/l | H76: III | I76: Ihara | J76: Litros | K76: 150 | L76: 500 | AA76: 70 | AC76: Rimon | AJ76: Litros | BA76: 70 | BJ76: Litros | CA76: 70 | CJ76: Litros
A77: 71 | B77: Herbicida | C77: Surpass | D77: Acetochlor | E77: Milho | G77: 768 g/l | H77: I | I77: Dow AgroSciences | J77: Litros | AA77: 71 | AB77: Inseticida | AC77: Rivat | AJ77: Litros | BA77: 71 | BJ77: Litros | CA77: 71 | CJ77: Litros
A78: 72 | B78: Herbicida | C78: Tarzan | AA78: 72 | AB78: Inseticida | AC78: Saurus | AD78: acetamiprido | AF78: SP | AG78: 200g/kg | AH78: III | AI78: Iharabras | AJ78: Litros | AK78: 0.1 | AL78: 0.1 | AQ78: 0.375 | AR78: 0.375 | BA78: 72 | BJ78: Litros | CA78: 72 | CJ78: Litros
A79: 73 | B79: Herbicida | C79: Trifluralina Nortox | D79: Trifluralina | F79: EC | G79: 445g/l | H79: II | I79: Nortox | J79: Litros | K79: 1.2 | L79: 2.4 | O79: 1.2 | P79: 2.4 | AA79: 73 | AB79: Inseticida | AC79: Semevin 350 RA | AD79: Tiodicarbe | AF79: SC | AG79: 350g/l | AH79: I | AI79: Bayer | AJ79: Litros | AM79: 2 | AN79: 2 | BA79: 73 | BJ79: Litros | CA79: 73 | CJ79: Litros
A80: 74 | B80: Herbicida | C80: Trop | D80: Gliphosato | F80: SL | G80: 480g/l | H80: IV | I80: Milenia | J80: Litros | K80: 1 | L80: 6 | M80: 1 | N80: 5 | O80: 1 | P80: 6 | Q80: 1 | R80: 6 | AA80: 74 | AB80: Inseticida | AC80: Standak (TS) | AD80: Fipronil | AE80: Trt. Soja | AF80: SC | AG80: 250g/l | AH80: III | AI80: Basf | AJ80: Kilo | AK80: 0.25 | AL80: 0.3 | AM80: 0.04 | AN80: 0.05 | AO80: 0.08 | AP80: 0.2 | AQ80: 0.1 | AR80: 0.15 | BA80: 74 | BJ80: Litros | CA80: 74 | CJ80: Litros
A81: 75 | B81: Herbicida | C81: Verdict | D81: Haloxfop R | E81: Soja | G81: 124,7g/l | H81: II | I81: Dow AgroSciences | J81: Litros | K81: 0.4 | L81: 0.5 | O81: 0.4 | P81: 0.5 | AA81: 75 | AB81: Inseticida | AC81: Sumidan | AD81: esfenvalerato | AF81: SC | AG81: 150g/l | AH81: I | AI81: Sumitomo | AJ81: Litros | AK81: 0.045 | AL81: 0.2 | AO81: 0.05 | AP81: 0.065 | BA81: 75 | BJ81: Litros | CA81: 75 | CJ81: Litros
A82: 76 | B82: Herbicida | C82: Zapp QI | D82: Glifosato-sal de potássio | F82: SL | G82: 620g/l | H82: III | I82: Syngenta | J82: Litros | K82: 0.7 | L82: 4.2 | M82: 0.7 | N82: 4.2 | O82: 0.7 | P82: 4.2 | Q82: 1.1 | R82: 4.2 | AA82: 76 | AB82: Inseticida | AC82: Talstar | AD82: Bifentrina | AF82: EC | AG82: 100g/l | AH82: III | AI82: FMC | AJ82: Litros | AK82: 0.5 | AL82: 1 | AO82: 0.02 | AP82: 0.16 | BA82: 76 | BJ82: Litros | CA82: 76 | CJ82: Litros
A83: 77 | C83: Hussar | J83: Litros | AA83: 77 | AB83: Inseticida | AC83: Tamaron BR | AD83: Metamidofós | AF83: SL | AG83: 600g/l | AH83: II | AI83: Bayer | AJ83: Litros | AK83: 0.4 | AL83: 1.5 | AO83: 0.25 | AP83: 0.8 | AQ83: 0.2 | AR83: 0.3 | BA83: 77 | BJ83: Litros | CA83: 77 | CJ83: Litros
A84: 78 | J84: Litros | AA84: 78 | AB84: Inseticida | AC84: Tecto 100 (TS) | AD84: THIABENDAZOLE | AF84: DP | AG84: 100g/kg | AH84: IV | AI84: Syngenta | AJ84: Litros | AK84: 0.2 | AL84: 0.4 | AM84: 0.1 | AN84: 0.2 | AO84: 0.1 | AP84: 0.2 | AQ84: 0.2 | AR84: 0.3 | BA84: 78 | BJ84: Litros | CA84: 78 | CJ84: Litros
A85: 79 | J85: Litros | AA85: 79 | AB85: Inseticida | AC85: Thiodan | AD85: Endossulfan | AF85: EC | AG85: 350g/l | AH85: II | AI85: Bayer | AJ85: Litros | AK85: 1 | AL85: 2.5 | AO85: 0.5 | AP85: 1.5 | BA85: 79 | BJ85: Litros | CA85: 79 | CJ85: Litros
A86: 80 | J86: Litros | AA86: 80 | AB86: Inseticida | AC86: Tracer | AD86: Espinosade | AF86: SC | AG86: 480g/l | AH86: IV | AI86: Dow AgroSciences | AJ86: Litros | AK86: 0.025 | AL86: 0.15 | AM86: 0.0375 | AN86: 0.1 | AO86: 0.0125 | AP86: 0.05 | BA86: 80 | BJ86: Litros | CA86: 80 | CJ86: Litros
A87: 81 | J87: Litros | AA87: 81 | AB87: Inseticida | AC87: Tudor | AJ87: Litros | BA87: 81 | BJ87: Litros | CA87: 81 | CJ87: Litros
A88: 82 | J88: Litros | AA88: 82 | AB88: Inseticida | AC88: Turbo | AJ88: Litros | BA88: 82 | BJ88: Litros | CA88: 82 | CJ88: Litros
A89: 83 | J89: Litros | AA89: 83 | AB89: Acaricida | AC89: Vertimec | AD89: Abamectina | AF89: EC | AG89: 18g/l | AH89: III | AI89: Syngenta | AJ89: Litros | AK89: 0.3 | AL89: 0.6 | BA89: 83 | BJ89: Litros | CA89: 83 | CJ89: Litros
A90: 84 | J90: Litros | AA90: 84 | AB90: Inseticida | AC90: Malathion | AD90: Malationa | AJ90: Litros | BA90: 84 | BJ90: Litros | CA90: 84 | CJ90: Litros
A91: 85 | J91: Litros | AA91: 85 | AB91: Inseticida | AC91: Marshal Star | AD91: Carbossulfano | AF91: EC | AG91: 300 g/l | AH91: I | AI91: FMC | AJ91: Litros | BA91: 85 | BJ91: Litros | CA91: 85 | CJ91: Litros
A92: 86 | J92: Litros | AA92: 86 | AC92: Imidacloprido 700 | BA92: 86 | BJ92: Litros | CA92: 86 | CJ92: Litros
A93: 87 | J93: Litros | AA93: 87 | BA93: 87 | BJ93: Litros | CA93: 87 | CJ93: Litros
A94: 88 | J94: Litros | AA94: 88 | BA94: 88 | BJ94: Litros | CA94: 88 | CJ94: Litros
A95: 89 | J95: Litros | AA95: 89 | BA95: 89 | BJ95: Litros | CA95: 89 | CJ95: Litros
A96: 90 | J96: Litros | AA96: 90 | BA96: 90 | BJ96: Litros | CA96: 90 | CJ96: Litros
A97: 91 | J97: Litros | AA97: 91 | BA97: 91 | BJ97: Litros | CA97: 91 | CJ97: Litros
A98: 92 | J98: Litros | AA98: 92 | BA98: 92 | BJ98: Litros | CA98: 92 | CJ98: Litros
A99: 93 | J99: Litros | AA99: 93 | BA99: 93 | BJ99: Litros | CA99: 93 | CJ99: Litros
A100: 94 | J100: Litros | AA100: 94 | BA100: 94 | BJ100: Litros | CA100: 94 | CJ100: Litros
A101: 95 | J101: Litros | AA101: 95 | BA101: 95 | BJ101: Litros | CA101: 95 | CJ101: Litros
A102: 96 | J102: Litros | AA102: 96 | BA102: 96 | BJ102: Litros | CA102: 96 | CJ102: Litros
A103: 97 | J103: Litros | AA103: 97 | BA103: 97 | BJ103: Litros | CA103: 97 | CJ103: Litros
A104: 98 | J104: Litros | AA104: 98 | BA104: 98 | BJ104: Litros | CA104: 98 | CJ104: Litros
A105: 99 | J105: Litros | AA105: 99 | BA105: 99 | BJ105: Litros | CA105: 99 | CJ105: Litros
A106: 100 | J106: Litros | AA106: 100 | BA106: 100 | BJ106: Litros | CA106: 100 | CJ106: Litros
A107: 101 | J107: Litros | AA107: 101 | BA107: 101 | BJ107: Litros | CA107: 101 | CJ107: Litros
A108: 102 | J108: Litros | AA108: 102 | BA108: 102 | BJ108: Litros | CA108: 102 | CJ108: Litros
A109: 103 | J109: Litros | AA109: 103 | BA109: 103 | BJ109: Litros | CA109: 103 | CJ109: Litros
A110: 104 | J110: Litros | AA110: 104 | BA110: 104 | BJ110: Litros | CA110: 104 | CJ110: Litros
A111: 105 | J111: Litros | AA111: 105 | BA111: 105 | BJ111: Litros | CA111: 105 | CJ111: Litros
A112: 106 | J112: Litros | AA112: 106 | BA112: 106 | BJ112: Litros | CA112: 106 | CJ112: Litros
A113: 107 | J113: Litros | AA113: 107 | BA113: 107 | BJ113: Litros | CA113: 107 | CJ113: Litros
A114: 108 | J114: Litros | AA114: 108 | BA114: 108 | BJ114: Litros | CA114: 108 | CJ114: Litros
A115: 109 | J115: Litros | AA115: 109 | BA115: 109 | BJ115: Litros | CA115: 109 | CJ115: Litros
A116: 110 | J116: Litros | AA116: 110 | BA116: 110 | BJ116: Litros | CA116: 110 | CJ116: Litros
A117: 111 | J117: Litros | AA117: 111 | BA117: 111 | BJ117: Litros | CA117: 111 | CJ117: Litros
A118: 112 | J118: Litros | AA118: 112 | BA118: 112 | BJ118: Litros | CA118: 112 | CJ118: Litros
A119: 113 | J119: Litros | AA119: 113 | BA119: 113 | BJ119: Litros | CA119: 113 | CJ119: Litros
A120: 114 | J120: Litros | AA120: 114 | BA120: 114 | BJ120: Litros | CA120: 114 | CJ120: Litros
A121: 115 | J121: Litros | AA121: 115 | BA121: 115 | BJ121: Litros | CA121: 115 | CJ121: Litros
A122: 116 | AA122: 116 | BA122: 116 | BJ122: Litros | CA122: 116 | CJ122: Litros
A123: 117 | AA123: 117 | BA123: 117 | BJ123: Litros | CA123: 117 | CJ123: Litros
A124: 118 | AA124: 118 | BA124: 118 | BJ124: Litros | CA124: 118 | CJ124: Litros
A125: 119 | AA125: 119 | BA125: 119 | BJ125: Litros | CA125: 119 | CJ125: Litros
A126: 120 | J126: Litros | AA126: 120 | BA126: 120 | BJ126: Litros | CA126: 120 | CJ126: Litros
BO127: Dose de produto comercial recomendado por hectare - MAPA
AA128: Inseticidas registrado para tratamento de semente | AK128: Algodão | AM128: milho | AO128: Soja | AQ128: trigo | BA128: Fungicidas registrado para tratamento de semente | BK128: Algo | BM128: milho | BO128: soja | BQ128: trigo
AA129: Cod. | AC129: Nome comercial | AD129: Princípio ativo | AE129: Cultura | AF129: Formulação | AG129: Conc. | AH129: Classe | AI129: Empresa | AJ129: Unid | AK129: min | AL129: max | AM129: min | AN129: max | AO129: min | AP129: max | AQ129: min | AR129: max | BA129: Cod. | BC129: Nome comercial | BD129: Princípio ativo | BE129: Cultura | BF129: Formulação | BG129: Conc. | BH129: Classe | BI129: Empresa | BJ129: Unid | BK129: min | BL129: max | BM129: min | BN129: max | BO129: min | BP129: max | BQ129: min | BR129: max
AA130: 1 | AF130: SC | AG130: 350 g/l | AH130: I | AI130: Crompton | AJ130: -- | BA130: 1 | BE130: Milho | BJ130: -
AA131: 2 | AB131: Inset. TS | AC131: Furadan 350 TS | AD131: Carbofuran | AE131: Trt. Milho | AF131: SC | AG131: 350 g/l | AH131: I | AI131: Crompton | AJ131: Litros | AK131: 2 | AL131: 2 | AM131: 2 | AN131: 3 | BA131: 2 | BB131: Fungicida | BC131: Maxim XL (TS) | BD131: Fludioxinil + Metalaxyl | BE131: Milho | BF131: SC | BG131: 25+10 | BH131: III | BI131: Syngenta | BJ131: Litros | BM131: 0.1 | BN131: 0.15 | BO131: 0.1 | BP131: 0.1
AA132: 3 | AB132: Inset. TS | AC132: Furadan 350 TS | AD132: Carbofuran | AE132: Trt. Milho | AF132: SC | AG132: 350 g/l | AH132: I | AI132: FMC | AJ132: Litros | AK132: 2 | AL132: 2 | AM132: 2 | AN132: 3 | BA132: 3 | BB132: Fungicida | BC132: Vitavax (TS) | BD132: Carboxina | BF132: WP | BG132: 750g/kg | BH132: II | BI132: Cheminova | BJ132: Litros | BK132: 0.15 | BL132: 0.25 | BM132: 0.15 | BN132: 0.25 | BO132: 0.15 | BP132: 0.25
AA133: 4 | AB133: Inset. TS | AC133: Furazin 310 TS | AD133: Carbofuran | AE133: Trt. Milho | AF133: SC | AG133: 310 g/l | AH133: I | AI133: FMC | AJ133: Litros | AM133: 2.25 | AN133: 2.25 | BA133: 4 | BB133: Fungicida | BC133: Derosal Plus (TS) | BD133: Carbendazin + Tiram | BF133: SC | BG133: 150+350g/l | BH133: III | BI133: Bayer | BJ133: Litros | BK133: 0.6 | BL133: 0.6 | BM133: 0.2 | BN133: 0.3 | BO133: 0.2 | BP133: 0.2
AA134: 5 | AB134: Inset. TS | AC134: Ralzer 350 TS | AD134: Carbofuran | AE134: Trt. Milho | AF134: SC | AG134: 350 g/l | AH134: I | AI134: Dow AgroSciences | AJ134: Litros | AM134: 2 | AN134: 3 | BA134: 5 | BB134: Fungicida | BC134: Baytan 250 (TS) | BD134: Triadimenol | BF134: SC | BG134: 150g/l | BH134: III | BI134: Bayer | BJ134: Litros | BK134: 0.2 | BL134: 0.2 | BQ134: 0.235 | BR134: 0.27
AA135: 6 | AB135: Inset. TS | AC135: Standak Top (TS) | AD135: Fipronil | AE135: Trt. Soja | AF135: SC | AG135: 250g/l | AH135: III | AI135: Basf | AJ135: Kilo | AK135: 0.25 | AL135: 0.3 | AM135: 0.04 | AN135: 0.05 | AO135: 0.08 | AP135: 0.2 | AQ135: 0.1 | AR135: 0.15 | BA135: 6 | BB135: Fungicida | BC135: Vitavax - Thiram (TS) | BD135: Carboxina + Tiram | BF135: SC | BG135: 200+200g/l | BH135: IV | BI135: Chemtura | BJ135: Litros | BK135: 0.4 | BL135: 0.5 | BM135: 0.25 | BN135: 0.3 | BO135: 0.25 | BP135: 0.3 | BQ135: 0.25 | BR135: 0.3
AA136: 7 | AB136: Inset. TS | AC136: Gaucho (TS) | AD136: imidacloprido | AF136: WS | AG136: 700g/kg | AH136: IV | AI136: Bayer | AJ136: Litros | AK136: 0.4 | AL136: 0.5 | AM136: 0.7 | AN136: 1 | AQ136: 0.05 | AR136: 0.05 | BA136: 7 | BB136: Fungicida | BC136: Derosal 500 SC (TS) | BD136: Carbendazin | BF136: SC | BG136: 500g/l | BH136: II | BI136: Bayer | BJ136: Litros | BK136: 0.08 | BL136: 0.08 | BO136: 0.1 | BP136: 0.5 | BQ136: 0.6 | BR136: 0.6
AA137: 8 | AB137: Inset. TS | AC137: Cruiser (TS) | AD137: tiametoxam | AF137: SC | AG137: 350g/l | AH137: III | AI137: Syngenta | AJ137: Kilo | AK137: 0.4 | AL137: 0.6 | AM137: 0.4 | AN137: 0.6 | AO137: 0.05 | AP137: 0.3 | AQ137: 0.05 | AR137: 0.07 | BA137: 8 | BB137: Fungicida | BC137: Euparen (TS) | BD137: Tolifluanida | BF137: WP | BG137: 500g/l | BH137: III | BI137: Bayer | BJ137: kg | BK137: 0.15 | BL137: 0.15 | BM137: 0.15 | BN137: 0.15 | BO137: 0.15 | BP137: 0.15
AA138: 9 | AB138: Inset. TS | AC138: Cropstar (TS) | AD138: imidacloprido+tiodicarbe | AF138: SC | AG138: 150+450g/l | AH138: II | AI138: Bayer | AJ138: Litros | AM138: 0.25 | AN138: 0.35 | BA138: 9 | BB138: Fungicida | BC138: Monceren (TS) | BD138: pencicurom | BF138: SC | BG138: 250g/l | BH138: II | BI138: Bayer | BJ138: kg | BK138: 0.3 | BL138: 0.5
AA139: 10 | AB139: Inseticida | AC139: Tecto 100 (TS) | AD139: THIABENDAZOLE | AF139: DP | AG139: 100g/kg | AH139: IV | AI139: Syngenta | AJ139: Litros | AK139: 0.2 | AL139: 0.4 | AM139: 0.1 | AN139: 0.2 | AO139: 0.1 | AP139: 0.2 | AQ139: 0.2 | AR139: 0.3 | BA139: 10 | BB139: Fertilizante | BC139: Comol
AA140: 11 | AB140: Inseticida | AC140: Futor (TS) | AJ140: Litros | BA140: 11 | BB140: Fungicida | BC140: Spectro | BD140: Difenoconazol | BF140: SC | BG140: 150g/l | BH140: III | BI140: Syngenta | BJ140: Litros
AA141: 12 | AB141: Inseticida | AC141: Semevin (TS) | AD141: Tiodicarbe | AF141: SC | AG141: 350g/l | AH141: I | AI141: Bayer | AJ141: Litros | AM141: 2 | AN141: 2 | BA141: 12
AA142: 13 | AB142: Inseticida | AC142: Larvin | AJ142: Litros | BA142: 13
AA143: 14 | AC143: Fenix | BA143: 14
BA144: 15

Sheet item
A1: ID_tratos | B1: Tratos culturais | C1: Unid
A2: 1 | B2: - | C2: -
A3: 2 | B3: 1 a Pulverização | C3: hm
A4: 3 | B4: 2 a Pulverização | C4: hm
A5: 4 | B5: 3 a Pulverização | C5: hm
A6: 5 | B6: 4 a Pulverização | C6: hm
A7: 6 | B7: 5 a Pulverização | C7: hm
A8: 7 | B8: 6 a Pulverização | C8: hm
A9: 8 | B9: 7 a Pulverização | C9: hm
A10: 9 | B10: 8 a Pulverização | C10: hm
A11: 10 | B11: 9 a Pulverização | C11: hm
A12: 11 | B12: 10 a Pulverização | C12: hm
A13: 12 | B13: 11 a Pulverização | C13: hm
A14: 13 | B14: 12 a Pulverização | C14: hm
A15: 14 | B15: 13 a Pulverização | C15: hm
A16: 15 | B16: 14 a Pulverização | C16: hm
A17: 16 | B17: 15 a Pulverização | C17: hm
A18: 17 | B18: 16 a Pulverização | C18: hm
A19: 18 | B19: 17 a Pulverização | C19: hm
A20: 19 | B20: 18 a Pulverização | C20: hm
A21: 20 | B21: 19 a Pulverização | C21: hm
A22: 21 | B22: 20 a Pulverização | C22: hm
A23: 22 | B23: 21 a Pulverização | C23: hm
A24: 23 | B24: 22 a Pulverização | C24: hm
A25: 24 | B25: 23 a Pulverização | C25: hm
A26: 25 | B26: 24 a Pulverização | C26: hm
A27: 26 | B27: 25 a Pulverização | C27: hm
A28: 27 | B28: 26 a Pulverização | C28: hm
A29: 28 | B29: 27 a Pulverização | C29: hm
A30: 29 | B30: 28 a Pulverização | C30: hm
A31: 30 | B31: 29 a Pulverização | C31: hm
A32: 31 | B32: 30 a Pulverização | C32: hm
A33: 32 | B33: 1a. Fertigação | C33: hm
A34: 33 | B34: 2a. Fertigação | C34: hm
A35: 34 | B35: 3a. Fertigação | C35: hm
A36: 35 | B36: 4a. Fertigação | C36: hm
A37: 36 | B37: 5a. Fertigação | C37: hm
A38: 37 | B38: Adubação básica | C38: t/ha
A39: 38 | B39: Adubação cobertura (de adubo p/ Cob) | C39: t/ha
A40: 39 | B40: Adubação de pré-plantio
A41: 40 | B41: Adubação Foliar | C41: hm
A42: 41 | B42: Apl. De Fósforo | C42: hm
A43: 42 | B43: Apl. De Potássio | C43: hm
A44: 43 | B44: Aplic. de herbicida pós-emerg | C44: hm
A45: 44 | B45: Aplic. de herbicida pré-emerg | C45: hm
A46: 45 | B46: Aplic. de herbicida plantio pré incorporado | C46: hm
A47: 46 | B47: Aplicação de calcário | C47: hm
A48: 47 | B48: Aplicação de dessecante | C48: hm
A49: 48 | B49: Aplicação de fungicida no solo | C49: hm
A50: 49 | B50: Aplicação de gesso (gessagem) | C50: hm
A51: 50 | B51: Aplicação de inseticida no solo | C51: hm
A52: 51 | B52: Aplicação de isca | C52: hm
A53: 52 | B53: Aração | C53: hm
A54: 53 | B54: Bass Boy | C54: hm
A55: 54 | B55: Bombeiro | C55: hm
A56: 55 | B56: Bordadura | C56: hm
A57: 56 | B57: Capina mecânica | C57: hm
A58: 57 | B58: Colheita manual | C58: hh
A59: 58 | B59: Colheita mecânica | C59: hm
A60: 59 | B60: Destr. da soqueira mecânica (Roçadeira) | C60: hm
A61: 60 | B61: Destr. da soqueira química (pulv) | C61: hm
A62: 61 | B62: Destruição de restos de cultura (tiguera) | C62: hm
A63: 62 | B63: Grade aradora | C63: hm
A64: 63 | B64: Grade leve | C64: hm
A65: 64 | B65: Grade niveladora | C65: hm
A66: 65 | B66: Grade niveladora intermediária | C66: hm
A67: 66 | B67: Irrigação | C67: hm
A68: 67 | B68: Manutenção de terraço | C68: hm
A69: 68 | B69: Micronutriente | C69: kg/ha
A70: 69 | B70: Monitoramento de campo | C70: hm
A71: 70 | B71: Óleo diesel Colheita | C71: L ou Kg/ha
A72: 71 | B72: Plantio de forragem p/ PD | C72: hm
A73: 72 | B73: Poda | C73: hh
A74: 73 | B74: Prensagem | C74: hm
A75: 74 | B75: Pulverização | C75: hm
A76: 75 | B76: Semeadura/Plantio | C76: hm
A77: 76 | B77: Semente | C77: kg/ha
A78: 77 | B78: Subsolagem | C78: hm
A79: 78 | B79: Terraceador | C79: hm
A80: 79 | B80: Transporte Interno - Transmódulo | C80: hm
A81: 80 | B81: Transporte interno da produção | C81: hm
A82: 81 | B82: Transporte interno de água | C82: hm
A83: 82 | B83: Transporte interno de combustível | C83: hm
A84: 83 | B84: Transporte interno de insumos | C84: hm
A85: 84 | B85: Transporte terceirizado | C85: hm
A86: 85 | B86: Tratamento de semente | C86: hm
A87: 86 | B87: Xampu e Graxa
A88: 87
A89: 88
A90: 89

Sheet produto
A1: ID | B1: Produto
A2: 1
A3: 2 | B3: Soja Convencional
A4: 3 | B4: Soja RR
A5: 4 | B5: Milho verão Convencional
A6: 5 | B6: Milho 2ª safra Convencional
A7: 6 | B7: Milho Verão OGM
A8: 7 | B8: Milho 2ª safra OGM
A9: 8 | B9: Trigo
A10: 9 | B10: Milheto
A11: 10 | B11: Arroz sequeiro
A12: 11 | B12: Algodão 1ª Saf. Conv.
A13: 12 | B13: Algodão 1ª Saf. LL
A14: 13 | B14: Algodão 1ª Saf. WS
A15: 14 | B15: Algodão 2ª Saf. (0,76-0,90) Conv.
A16: 15 | B16: Algodão 2ª Saf. (0,76-0,90) LL
A17: 16 | B17: Algodão 2ª Saf. (0,76-0,90) WS
A18: 17 | B18: Algodão 2ª Saf. (Adens.) Conv.
A19: 18 | B19: Algodão 2ª Saf. (Adens.) LL
A20: 19 | B20: Algodão 2ª Saf. (Adens.) WS
A21: 20 | B21: Mandioca 1 ciclo
A22: 21 | B22: Mandioca 2 ciclo
A23: 22 | B23: Feijão das águas
A24: 23 | B24: Feijão da seca
A25: 24 | B25: Feijão de inverno
A26: 25 | B26: Cevada
A27: 26 | B27: Sorgo
A28: 27 | B28: Soja Intacta

Sheet unid
A1: ID_Unid | B1: desc | C1: fator | D1: ID_Unid | H1: ID_rat | I1: Rateio
A2: 1 | D2: 1 | H2: 1
A3: 2 | B3: ha | C3: 10000 | D3: 2 | E3: R$/ha | H3: 2 | I3: Receita
A4: 3 | B4: alq | C4: 24200 | D4: 3 | E4: R$/alq | H4: 3 | I4: Área
A5: 4 | B5: ALQ | C5: =C4*2 -> 48400 | D5: 4 | E5: R$/ALQ
A6: 5 | B6: acre | D6: 5 | E6: R$/acre
A7: 6 | B7: Sc. 60kg | C7: 60 | D7: 6 | E7: h/ha
A8: 7 | B8: Sc. 50kg | C8: 50 | D8: 7 | E8: h/alq
A9: 8 | B9: Sc. 25kg | C9: 25 | D9: 8 | E9: h/ALQ
A10: 9 | B10: Arroba | C10: 15 | D10: 9 | E10: h/acre
A11: 10 | B11: Ton | C11: 1000 | D11: 10 | E11: t/ha
A12: 11 | B12: R$/Sc. 60kg | C12: 60 | D12: 11 | E12: t/alq
A13: 12 | B13: R$/Sc. 50kg | C13: 50 | D13: 12 | E13: t/alq
A14: 13 | B14: R$/Sc. 25kg | C14: 25 | D14: 13
A15: 14 | B15: R$/kg | D15: 14
A16: 15 | B16: R$/lp | D16: 15
A17: 16 | B17: R$/@ | D17: 16
A18: 17 | B18: R$/fardo (200kg)
A19: 18 | B19: bushel | C19: 2.205
A20: 19 | B20: Libra-peso | C20: =1/2.2046 -> 0.4535970244 | F20: =E26*C20 -> 1.406150776
A21: 20 | B21: Kg | C21: 1
A22: 21 | B22: %
A23: 22 | B23: US$/Sc. 60kg
E26: 3.1

Sheet dados
B2: Planilha de Custo de Produção
B4: Centro de Estudos Avançados em Economia Aplicada
E6: www.cepea.esalq.usp.br | H6: cepea@usp.br
C7: Fone: 19 - 3429 8800 | F7: Fax: 19 - 3429 8829 | J7: Direito reservado ao Cepea-USP
A8: Análise de Custo de Produção
A9: Cultura | B9: Soja, Milho Verão, Milho 2ª Safra e Trigo
A10: Município | B10: Cascavel | G10: UF | H10: PR
A11: Nome:
A12: Local
A13: Safra
A15: Unidade de área | B15: 2 | D15: =IF(B15>0, VLOOKUP(B15,[1]unid!$A$2:$C$27,3), 0) -> 10000 | E15: =20% -> 0.2 | F15: Porcentagem da área referente a APP e RL
A16: Descrição da propriedade | E16: Valor da terra | G16: % | H16: Valor da propriedade
A17: Reserva legal e APP | B17: =(B19/(1-E15))*E15 -> 16.25 | C17: =IF(D17>0, VLOOKUP(D17,[1]unid!$A$2:$C$27,2), 0) -> ha | D17: =$B$15 -> 2 | E17: =(1300/2.42)*$H$26 -> 32794.47149 | F17: =C17 -> ha | G17: =B17/$B$22 -> 0.2 | H17: =B17*E17 -> 532910.1617
A18: Área de pastagem | C18: =IF(D18>0, VLOOKUP(D18,[1]unid!$A$2:$C$27,2), 0) -> ha | D18: 2 | F18: =C18 -> ha | G18: =B18/$B$22 -> 0 | H18: =B18*E18 -> 0 | N18: 1
A19: Área agrícola | B19: =65 -> 65 | C19: =IF(D19>0, VLOOKUP(D19,[1]unid!$A$2:$C$27,2), 0) -> ha | D19: 2 | E19: =(1750/2.42)*$H$26 -> 44146.40393 | F19: =C19 -> ha | G19: =B19/$B$22 -> 0.8 | H19: =B19*E19 -> 2869516.255 | J19: =E19*1.86% -> 821.123113
A20: Área arrendada | C20: =IF(D20>0, VLOOKUP(D20,[1]unid!$A$2:$C$27,2), 0) -> ha | D20: 2 | F20: =C20 -> ha | G20: =B20/$B$22 -> 0 | H20: =B20*E20 -> 0
A21: Área de reflorestamento | C21: =IF(D21>0, VLOOKUP(D21,[1]unid!$A$2:$C$27,2), 0) -> ha | D21: 2 | F21: =C21 -> ha | G21: =B21/$B$22 -> 0 | H21: =B21*E21 -> 0
A22: Área Total | B22: =SUM(B17:B19,B21) -> 81.25 | C22: =IF(D22>0, VLOOKUP(D22,[1]unid!$A$2:$C$27,2), 0) -> ha | D22: 2 | H22: =SUM(H17:H21) -> 3402426.417
A23: Área de cultivo | B23: =SUM(B26:B33) -> 117 | C23: =IF(D23>0, VLOOKUP(D23,[1]unid!$A$2:$C$27,2), 0) -> ha | D23: 2 | P23: Critério de rateio do custo geral | S23: 2
L24: Arrendamento (sc/ha) | Q24: 20
A25: Culturas | B25: Áreas | E25: Produtividade | F25: Unidade | H25: Preço considerado | I25: Unidade | L25: Fator | N25: Valor do fator | Q25: receita liq | R25: Rec. Liq prop | S25: % receita | T25: % Area
A26: 3 | B26: =B19*0.8 -> 52 | C26: =IF(D26>0, VLOOKUP(D26,unid!$A$2:$C$27,2), 0) -> ha | D26: =$B$15 -> 2 | E26: 58 | G26: 6 | H26: =venda!G22 -> 61.04817 | J26: 11 | L26: =$Q$24*($S$26+S30) -> 11.13294806 | N26: =$H$26 -> 61.04817 | P26: =L26*N26 -> 679.6461055 | Q26: =E26*H26 -> 3540.79386 | R26: =Q26*B26 -> 184121.2807 | S26: =R26/$R$34 -> 0.4499728134 | T26: =B26/$B$23 -> 0.4444444444
A27: 7 | B27: =($B$19*0.8)*0.9 -> 46.8 | C27: =IF(D27>0, VLOOKUP(D27,unid!$A$2:$C$27,2), 0) -> ha | D27: 2 | E27: 120 | G27: 6 | H27: =venda!G44 -> 30.775 | J27: 11 | L27: =$Q$24*($S$28+$S$27) -> 8.867051945 | N27: =$H$26 -> 61.04817 | P27: 541.3172945 | Q27: =E27*H27 -> 3693 | R27: =Q27*B27 -> 172832.4 | S27: 0.4223839904 | T27: 0.4
A28: 8 | B28: =($B$19*0.8)*0.1 -> 5.2 | C28: =IF(D28>0, VLOOKUP(D28,unid!$A$2:$C$27,2), 0) -> ha | D28: 2 | E28: 55 | G28: 6 | H28: =venda!G66 -> 30 | J28: 11 | L28: =L27 -> 8.867051945 | N28: 61.04817 | P28: 541.3172945 | Q28: 1650 | R28: 8580 | S28: 0.0209686068 | T28: 0.04444444444
A29: 1 | C29: =IF(D29>0, VLOOKUP(D29,unid!$A$2:$C$27,2), 0) -> ha | D29: 2 | G29: 1 | H29: =venda!G88 -> 0 | J29: 1 | N29: 61.04817 | P29: 0 | Q29: 0 | R29: 0 | S29: 0 | T29: 0
A30: 27 | B30: =B19*0.2 -> 13 | C30: =IF(D30>0, VLOOKUP(D30,unid!$A$2:$C$27,2), 0) -> ha | D30: 2 | E30: 55 | G30: 6 | H30: =venda!G110 -> 61.04817 | J30: 11 | L30: =L26 -> 11.13294806 | N30: 61.04817 | P30: 679.6461055 | Q30: 3357.64935 | R30: 43649.44155 | S30: 0.1066745894 | T30: 0.1111111111
A31: 1 | C31: =IF(D31>0, VLOOKUP(D31,unid!$A$2:$C$27,2), 0) -> ha | D31: 2 | G31: 1 | H31: =venda!G132 -> 0 | J31: 1 | N31: 61.04817 | P31: 0 | Q31: 0 | R31: 0 | S31: 0 | T31: 0
A32: 1 | C32: =IF(D32>0, VLOOKUP(D32,unid!$A$2:$C$27,2), 0) -> ha | D32: 2 | G32: 1 | H32: =venda!G154 -> 0 | J32: 1 | N32: 61.04817 | P32: 0 | Q32: 0 | R32: 0 | S32: 0 | T32: 0
A33: 1 | C33: =IF(D33>0, VLOOKUP(D33,unid!$A$2:$C$27,2), 0) -> ha | D33: 2 | G33: 1 | H33: =venda!G176 -> 0 | J33: 1 | N33: 61.04817 | P33: 0 | Q33: 0 | R33: 0 | S33: 0 | T33: 0
Q34: =SUM(Q26:Q33) -> 12241.44321 | R34: =SUM(R26:R33) -> 409183.1223 | S34: =SUM(S26:S33) -> 1
E35: Taxas
A36: Funrural | B36: 0.023 | E36: Tx de juros real (r) | H36: 0.0249 | L36: Dólar considerado
E37: Tx de juros p/ maq e impl - gov | H37: 0.075 | L37: UPF/MT 2013 | P37: 99.23
A38: Preço do diesel | B38: 2.97 | E38: Tx de juros p/ capitais - b.privada | H38: 0.075 | U38: 1 | V38: 2 | W38: 3 | X38: 4 | Y38: 5 | Z38: 6 | AA38: 7 | AB38: 8 | AC38: 9 | AD38: 10 | AE38: 11 | AF38: 12 | AG38: 13 | AH38: 14 | AI38: 15 | AJ38: 16 | AK38: 17 | AL38: 18 | AM38: 19 | AN38: 20
U39: a | V39: b | W39: c | X39: d | Y39: e | Z39: f | AA39: g | AB39: h | AC39: i | AD39: j | AE39: k | AF39: l | AG39: m | AH39: n | AI39: o | AJ39: p | AK39: q | AL39: r | AM39: s | AN39: t
E41: Capital | F41: Bancos | H41: Bancos | J41: Tradings | L41: Cooperativas e/ou | O41: Outras
E42: Próprio | F42: Rec. Controlado | H42: Rec. Livre | L42: Revendas Agrícolas | O42: Fontes
E43: (%) a.a | F43: (%) a.a | H43: (%) a.a | J43: (%) a.a | L43: (%) a.a | O43: (%) a.a
C44: Taxa | E44: 0.0783 | F44: 0.115 | L44: 0.1956
B46: =VLOOKUP(A26,produto!$A$2:$B$28,2) -> Soja RR | E46: 0.05 | F46: 0.8 | L46: 0.15 | R46: =SUM(E46:Q46) -> 1 | T46: =(F46*$F$44*F55/12)+(H46*$H$44*H55/12)+(J46*$J$44*J55/12)+(L46*$L$44*L55/12)+(O46*$O$44*P55/12) -> 0.07600333333
B47: =VLOOKUP(A27,produto!$A$2:$B$28,2) -> Milho 2ª safra OGM | E47: 0.05 | F47: 0.6 | L47: 0.35 | R47: 1 | T47: =(F47*$F$44*F56/12)+(H47*$H$44*H56/12)+(J47*$J$44*J56/12)+(L47*$L$44*L56/12)+(O47*$O$44*P56/12) -> 0.08023
B48: =VLOOKUP(A28,produto!$A$2:$B$28,2) -> Trigo | F48: 0.85 | L48: 0.15 | R48: 1 | T48: 0.07983666667
B49: =VLOOKUP(A29,produto!$A$2:$B$28,2) -> 0 | R49: 0 | T49: 0
B50: =VLOOKUP(A30,produto!$A$2:$B$28,2) -> Soja Intacta | E50: 0.05 | F50: 0.8 | L50: 0.15 | R50: 1 | T50: 0.07600333333
B51: =VLOOKUP(A31,produto!$A$2:$B$28,2) -> 0 | R51: 0 | T51: 0
B52: =VLOOKUP(A32,produto!$A$2:$B$28,2) -> 0 | R52: 0 | T52: 0
B53: =VLOOKUP(A33,produto!$A$2:$B$28,2) -> 0 | R53: 0 | T53: 0
B55: Meses p/ pagamento | D55: =VLOOKUP(A26,produto!$A$2:$B$28,2) -> Soja RR | F55: 8 | L55: 6
D56: =VLOOKUP(A27,produto!$A$2:$B$28,2) -> Milho 2ª safra OGM | F56: 8 | L56: 6
D57: =VLOOKUP(A28,produto!$A$2:$B$28,2) -> Trigo | F57: 8 | L57: 6
D58: =VLOOKUP(A29,produto!$A$2:$B$28,2) -> 0
D59: =VLOOKUP(A30,produto!$A$2:$B$28,2) -> Soja Intacta | F59: 8 | L59: 6
D60: =VLOOKUP(A31,produto!$A$2:$B$28,2) -> 0
D61: =VLOOKUP(A32,produto!$A$2:$B$28,2) -> 0
D62: =VLOOKUP(A33,produto!$A$2:$B$28,2) -> 0
B64: Outras Taxas de juros
A65: Tx. Media juros insumos | B65: 0.015 | C65: a m
A66: Taxa DI | B66: 0.017 | C66: a m
B67: =(1+B65)^12-1 -> 0.1956181715
C68: R$/US$
A69: Preço do Kwa | B69: 0.185 | C69: Kwa/h
A70: Preço da Gasolina | B70: 2.65 | C70: R$/l
A71: Preço do Álcool | B71: 1.6 | C71: R$/l
A73: Fertilizante
A74: Ureia | B74: 820 | C74: R$/t
A75: Cloreto de potássio | C75: R$/t
A76: Super Simples | C76: R$/t
A77: MAP

Sheet bens
A1: Determinação do custo de manutenção, depreciação, seguro e juros. | U1: Determinação do custo de manutenção, depreciação, seguro e juros dos implementos. | AK1: =AJ1+1 -> 1 | AP1: Quadro de Benfeitorias
B2: Valor do Diesel | C2: =dados!B38 -> 2.97
A3: 1 | B3: 2 | C3: 3 | D3: 4 | E3: 5 | F3: 6 | G3: 7 | H3: 8 | I3: 9 | J3: 10 | K3: 11 | L3: 12 | M3: 13 | N3: 14 | O3: 15 | P3: 16 | Q3: 17 | U3: 1 | V3: 2 | W3: 3 | X3: 4 | Y3: 5 | Z3: 6 | AA3: 7 | AB3: 8 | AC3: 9 | AD3: 10 | AE3: 11 | AF3: 12 | AG3: 13 | AH3: 14 | AI3: 15 | AJ3: 16 | AP3: 1 | AQ3: 2 | AR3: 3 | AS3: 4 | AT3: 5 | AU3: 6 | AV3: 7 | AW3: 8 | AX3: 9
G4: Coeficientes Técnicos | AA4: Coeficientes Técnicos | AK4: Custos do Implemento
A5: =IF($C$2=0," Falta inserir preço do diesel - posto na fazenda","") ->  | F5: Preço | M5: Taxa | N5: Vida | O5: Utilização | P5: Taxa | Q5: Taxa | AF5: Taxa | AG5: Vida | AH5: Utilização | AI5: Taxa | AJ5: Taxa | AT5: Taxa | AU5: Vida | AV5: Utilização | AW5: Taxa | AX5: Taxa | BC5: 1 | BD5: 2 | BE5: 3 | BF5: 4 | BG5: 5 | BH5: 6 | BI5: 7 | BJ5: 8 | BK5: 9 | BL5: 10 | BM5: 11 | BN5: 12 | BO5: 13 | BP5: 14 | BQ5: 15
F6: Novo | G6: Largura | H6: Veloc. | I6: Efic. | J6: Rend. | K6: Cap. | L6: Consumo | M6: Residual | N6: Útil | O6: Anual | P6: Seguro | Q6: Manutenção | AA6: Largura | AB6: Veloc. | AC6: Efic. | AD6: Rend. | AE6: Cap. | AF6: Residual | AG6: Útil | AH6: Anual | AI6: Seguro | AJ6: Manutenção | AK6: Combustível | AT6: Residual | AU6: Útil | AV6: Anual | AW6: Seguro | AX6: Manutenção | BJ6: Taxa | BK6: Vida | BL6: Utilização | BM6: Taxa | BN6: Seguro | BP6: Taxa | BQ6: Taxa
B7: Máquina | C7: Marca/modelo | E7: CV | F7: (R$) | G7: (m) | H7: (km/h) | I7: (%) | J7: (ha/h) | K7: (h/ha) | L7: (l/h) | M7: (%) | N7: (h) | O7: (h/ano) | P7: (%) | Q7: (%) | U7: Cod. | V7: Implemento | W7: Marca/modelo | X7: Descrição | AA7: (m) | AB7: (km/h) | AC7: (%) | AD7: (h/ha) | AE7: (h/ha) | AF7: (%) | AG7: (horas) | AH7: (h/ano) | AI7: (%) | AJ7: (%) | AK7: (R$/hora) | AP7: Cod. | AQ7: Benefeitoria | AR7: Marca/modelo | AS7: Descrição | AT7: (%) | AU7: (ano) | AV7: (h/ano) | AW7: (%) | AX7: (%) | BH7: Combustível | BI7: Consumo | BJ7: Residual | BK7: Útil | BL7: Anual | BM7: IPVA | BN7: Obrigatório | BO7: Licenciamento | BP7: Seguro | BQ7: Manutenção
A8: 1 | D8: - | J8: =G8*H8*1000/10000*I8 -> 0 | K8: =IF(J8>0, 1/J8, 0) -> 0 | L8: =E8*0.12 -> 0 | M8: 0.2 | N8: 12000 | O8: =N8/10 -> 1200 | P8: 0.012 | Q8: 1 | U8: 1 | AC8: 0.7 | AD8: =AA8*AB8*1000/10000*AC8 -> 0 | AE8: =IF(AD8>0, 1/AD8, 0) -> 0 | AF8: 0.2 | AG8: 2000 | AH8: =AG8/10 -> 200 | AI8: =AI7 -> (%) | AJ8: 0.5 | AP8: 1 | AT8: 0.5 | AU8: 30 | AV8: 0 | AW8: 0.012 | AX8: 0 | BD8: Veículo | BE8: Categoria | BF8: Descrição | BG8: Marca | BI8: (km/l) | BJ8: (%) | BK8: km | BL8: (km/ano) | BM8: (%) | BN8: DPVA | BP8: (%) | BQ8: (%) | BV8: ID | BW8: Categora | BX8: Férias | BY8: FGTS | BZ8: INSS | CA8: hora extra | CB8: hora extra not | CF8: Serviço | CI8: ID | CJ8: Categora
A9: 2 | B9: trator 62 cv 4x2 | C9: trator 62 cv 4x2 | D9: hm | E9: 65 | J9: =G9*H9*1000/10000*I9 -> 0 | K9: =IF(J9>0, 1/J9, 0) -> 0 | L9: =E9*0.12 -> 7.8 | M9: 0.2 | N9: 12000 | O9: =N9/10 -> 1200 | P9: 0.012 | Q9: 1 | U9: 2 | V9: Adub/Cultiv. 10 linhas Jumil | AA9: 1.5 | AB9: 5 | AC9: 0.7 | AD9: =AA9*AB9*1000/10000*AC9 -> 0.525 | AE9: =IF(AD9>0, 1/AD9, 0) -> 1.904761905 | AF9: 0.2 | AG9: 2000 | AH9: =AG9/10 -> 200 | AI9: =AI8 -> (%) | AJ9: 0.5 | AP9: 2 | AQ9: Casa do proprietário - 100 m² | AR9: Alvenaria 100 m2 | AS9: Casa | AT9: =AT8 -> 0.5 | AU9: =AU8 -> 30 | AV9: =24*365 -> 8760 | AW9: =AW8 -> 0.012 | AX9: 0.1 | BC9: 1 | BV9: 1 | CE9: 1 | CI9: 1
A10: 3 | B10: trator 65 cv 4x2 | C10: trator 65 cv 4x2 | D10: hm | E10: 65 | J10: 0 | K10: =IF(J10>0, 1/J10, 0) -> 0 | L10: =E10*0.12 -> 7.8 | M10: 0.2 | N10: 12000 | O10: 1200 | P10: 0.012 | Q10: 1 | U10: 3 | V10: Afofador 3 pontos | AA10: 1.5 | AB10: 5 | AC10: 0.7 | AD10: =AA10*AB10*1000/10000*AC10 -> 0.525 | AE10: =IF(AD10>0, 1/AD10, 0) -> 1.904761905 | AF10: 0.2 | AG10: 2000 | AH10: 200 | AI10: =AI9 -> (%) | AJ10: 0.5 | AP10: 3 | AQ10: Casa do funcionário - 70 m² | AR10: 70 m | AS10: Casa | AT10: =AT9 -> 0.5 | AU10: =AU9 -> 30 | AV10: =24*365 -> 8760 | AW10: =AW9 -> 0.012 | AX10: 0.1 | BC10: 2 | BD10: Moto Agrale | BE10: moto | BF10: Moto | BH10: Gasolina | BI10: 25 | BJ10: 0.2 | BK10: 100000 | BL10: 15000 | BM10: 0.04 | BN10: 105.65 | BO10: 65.86 | BP10: 0.05 | BQ10: 0.5 | BV10: 2 | BW10: Gerente | BX10: =1/3/12 -> 0.02777777778 | BY10: 0.08 | BZ10: 0.027 | CA10: 0.5 | CB10: 1 | CE10: 2 | CF10: Frete | CI10: 2 | CJ10: Aux. Geral ("badeco"/safrista)
A11: 4 | B11: trator 75 cv 4x2 | C11: trator 75 cv 4x2 | D11: hm | E11: 76 | J11: 0 | K11: =IF(J11>0, 1/J11, 0) -> 0 | L11: 9.12 | M11: 0.2 | N11: 12000 | O11: 1200 | P11: 0.012 | Q11: 1 | U11: 4 | V11: Arado 3 discos 28" | X11: Implemento | AA11: 1.5 | AB11: 5 | AC11: 0.7 | AD11: =AA11*AB11*1000/10000*AC11 -> 0.525 | AE11: =IF(AD11>0, 1/AD11, 0) -> 1.904761905 | AF11: 0.2 | AG11: 2000 | AH11: 200 | AI11: (%) | AJ11: 1 | AP11: 4 | AQ11: Galpão - 300 m² | AR11: 450 m2 | AS11: Casa | AT11: 0.5 | AU11: 30 | AV11: 8760 | AW11: 0.012 | AX11: 0.1 | BC11: 3 | BD11: Moto DT | BE11: moto | BF11: Moto | BH11: Gasolina | BI11: 25 | BJ11: 0.2 | BK11: 100000 | BL11: =BL10 -> 15000 | BM11: 0.04 | BN11: 105.65 | BO11: 65.86 | BP11: 0.05 | BQ11: 0.5 | BV11: 3 | BW11: Subgerente | BX11: 0.02777777778 | BY11: 0.08 | BZ11: 0.027 | CA11: 0.5 | CB11: 1 | CE11: 3 | CF11: Avião | CI11: 3
A12: 5 | B12: trator 75 cv 4x4 | C12: trator 75 cv 4x4 | D12: hm | E12: 76 | G12: 12 | H12: 5 | I12: 0.7 | J12: =G12*H12*1000/10000*I12 -> 4.2 | K12: =IF(J12>0, 1/J12, 0) -> 0.2380952381 | L12: 9.12 | M12: 0.2 | N12: 12000 | O12: 1200 | P12: 0.012 | Q12: 0.8 | U12: 5 | V12: Arado 4 discos 28" | AC12: 0.7 | AD12: =AA12*AB12*1000/10000*AC12 -> 0 | AE12: =IF(AD12>0, 1/AD12, 0) -> 0 | AF12: 0.2 | AG12: 2000 | AH12: 200 | AI12: (%) | AJ12: 0.5 | AP12: 5 | AQ12: Tanque de combustivel 2000 l | AR12: Fixo | AS12: Galpão | AT12: 0.5 | AU12: 30 | AV12: 8760 | AW12: 0.012 | AX12: 0.1 | BC12: 4 | BD12: Moto XL | BE12: moto | BF12: Moto | BH12: Gasolina | BI12: 25 | BJ12: 0.2 | BK12: 100000 | BL12: =BL11 -> 15000 | BM12: 0.04 | BN12: 105.65 | BO12: 65.86 | BP12: 0.05 | BQ12: 0.5 | BV12: 4 | BW12: Op. Máquinas | BX12: 0.02777777778 | BY12: 0.08 | BZ12: 0.027 | CA12: 0.5 | CB12: 1 | CE12: 4 | CF12: Caminhão Carreta | CI12: 4
A13: 6 | B13: trator 90 cv 4x2 | C13: trator 90 cv 4x2 | D13: hm | E13: 90 | J13: 0 | K13: =IF(J13>0, 1/J13, 0) -> 0 | L13: 10.8 | M13: 0.2 | N13: 12000 | O13: 1200 | P13: 0.012 | Q13: 1 | U13: 6 | V13: Arado 5 discos 28" reversivel | AC13: 0.7 | AD13: 0 | AE13: 0 | AF13: 0.2 | AG13: 2000 | AH13: 200 | AI13: (%) | AJ13: 0.5 | AP13: 6 | AQ13: Caixa dágua - 5.000 litros | AR13: 10000 litros | AS13: Casa | AT13: 0.5 | AU13: 30 | AV13: 8760 | AW13: 0.012 | AX13: 0.1 | BC13: 5 | BD13: Gol - G | BE13: Cat - 1 | BF13: Carro | BG13: WV | BH13: Gasolina | BI13: 12 | BJ13: 0.2 | BK13: 100000 | BL13: 18000 | BM13: 0.04 | BN13: 105.65 | BO13: 65.86 | BP13: 0.05 | BQ13: 0.5 | BV13: 5 | BW13: Ajudante (diarista) | BX13: 0.02777777778 | BY13: 0.08 | BZ13: 0.027 | CA13: 0.5 | CB13: 1 | CE13: 5 | CF13: Semeadura mecanizada | CI13: 5
A14: 7 | B14: trator 90 cv 4x4 | C14: trator 90 cv 4x4 | D14: hm | E14: 90 | J14: 0 | K14: 0 | L14: 10.8 | M14: 0.2 | N14: 12000 | O14: 1200 | P14: 0.012 | Q14: 0.8 | U14: 7 | V14: Arado aiveca 3 haste | AC14: 0.7 | AD14: 0 | AE14: 0 | AF14: 0.2 | AG14: 2000 | AH14: 200 | AI14: (%) | AJ14: 0.5 | AP14: 7 | AQ14: Bomba de água | AS14: Casa | AT14: 0.5 | AU14: 30 | AV14: 8760 | AW14: 0.012 | AX14: 0.1 | BC14: 6 | BD14: Gol - A | BE14: Cat - 1 | BF14: Carro | BG14: WV | BH14: Álcool | BI14: 10 | BJ14: 0.2 | BK14: 100000 | BL14: =BL13 -> 18000 | BM14: 0.04 | BN14: 105.65 | BO14: 65.86 | BP14: 0.05 | BQ14: 0.5 | BV14: 6 | BW14: Tratorista III | BX14: 0.02777777778 | BY14: 0.08 | BZ14: 0.027 | CA14: 0.5 | CB14: 1 | CE14: 6 | CF14: Colheita mecanizada | CI14: 6
A15: 8 | B15: trator 105 cv 4x2 | C15: trator 105 cv 4x2 | D15: hm | E15: 105 | J15: 0 | K15: 0 | L15: 12.6 | M15: 0.2 | N15: 12000 | O15: 1200 | P15: 0.012 | Q15: 1 | U15: 8 | V15: Arrancador de amendoim 2 linhas | W15: Arrancador de amendoim Agroamérica 2 linhas | AC15: 0.7 | AD15: 0 | AE15: 0 | AF15: 0.2 | AG15: 2000 | AH15: 200 | AI15: (%) | AJ15: 0.5 | AP15: 8 | AQ15: Equipamentos Oficina | AS15: Casa | AT15: 0.5 | AU15: 30 | AV15: 8760 | AW15: 0.012 | AX15: 0.1 | BC15: 7 | BD15: Palio - G | BE15: Cat - 1 | BF15: Carro | BG15: Fiat | BH15: Gasolina | BI15: 12 | BJ15: 0.2 | BK15: 100000 | BL15: =BL14 -> 18000 | BM15: 0.04 | BN15: 105.65 | BO15: 65.86 | BP15: =BP14 -> 0.05 | BQ15: 0.5 | BV15: 7 | BW15: Operador uniport | BX15: 0.02777777778 | BY15: 0.08 | BZ15: 0.027 | CA15: 0.5 | CB15: 1 | CE15: 7 | CF15: Beneficiamento | CI15: 7
A16: 9 | B16: trator 105 cv 4x4 | C16: trator 105 cv 4x4 | D16: hm | E16: 105 | J16: 0 | K16: 0 | L16: 12.6 | M16: 0.2 | N16: 12000 | O16: 1200 | P16: 0.012 | Q16: 0.8 | U16: 9 | V16: Bass Boy | AC16: 0.7 | AD16: 0 | AE16: 0 | AF16: 0.2 | AG16: 3000 | AH16: 300 | AI16: (%) | AJ16: 0.75 | AP16: 9 | AT16: 0.5 | AU16: 30 | AV16: 8760 | AW16: 0.012 | AX16: 0.1 | BC16: 8 | BD16: Palio - A | BE16: Cat - 1 | BF16: Carro | BG16: Fiat | BH16: Álcool | BI16: 10 | BJ16: 0.2 | BK16: 100000 | BL16: 18000 | BM16: 0.04 | BN16: 105.65 | BO16: 65.86 | BP16: =BP15 -> 0.05 | BQ16: 0.5 | BV16: 8 | BW16: Aux. Geral (ajudante) | BX16: 0.02777777778 | BY16: 0.08 | BZ16: 0.027 | CA16: 0.5 | CB16: 1 | CE16: 8 | CF16: Capina manual | CI16: 8
A17: 10 | B17: trator 110 cv 4x4 | C17: trator 110 cv 4x4 | D17: hm | E17: 110 | J17: 0 | K17: 0 | L17: 13.2 | M17: 0.2 | N17: 12000 | O17: 1200 | P17: 0.012 | Q17: 0.8 | U17: 10 | V17: Canteirador | AC17: 0.7 | AD17: 0 | AE17: 0 | AF17: 0.2 | AG17: 1500 | AH17: 150 | AI17: (%) | AJ17: 0.8 | AP17: 10 | AT17: 0.5 | AU17: 30 | AV17: 8760 | AW17: 0.012 | AX17: 0.1 | BC17: 9 | BD17: Ka 1.0 8L - G | BE17: Cat - 1 | BF17: Carro | BG17: Ford | BH17: Gasolina | BI17: 12 | BJ17: 0.2 | BK17: 100000 | BL17: 18000 | BM17: 0.04 | BN17: 105.65 | BO17: 65.86 | BP17: =BP16 -> 0.05 | BQ17: 0.5 | BV17: 9 | BW17: Doseiro | BX17: 0.02777777778 | BY17: 0.08 | BZ17: 0.027 | CA17: 0.5 | CB17: 1 | CE17: 9 | CF17: Pressagem | CI17: 9
A18: 11 | B18: trator 126 cv 4x4 | C18: trator 126 cv 4x4 | D18: hm | E18: 126 | J18: 0 | K18: 0 | L18: 15.12 | M18: 0.2 | N18: 12000 | O18: 1200 | P18: 0.012 | Q18: 0.8 | U18: 11 | V18: Carreta Cap. 1,5 ton | W18: 2 rodas madeira | AC18: 0.7 | AD18: 0 | AE18: 0 | AF18: 0.2 | AG18: 3000 | AH18: 300 | AI18: (%) | AJ18: 0.7 | AP18: 11 | AS18: Alojamento | AT18: 0.5 | AU18: 30 | AV18: 8760 | AW18: 0.012 | AX18: 0.1 | BC18: 10 | BD18: Ka 1.0 8L - A | BE18: Cat - 1 | BF18: Carro | BG18: Ford | BH18: Álcool | BI18: 10 | BJ18: 0.2 | BK18: 100000 | BL18: 18000 | BM18: 0.04 | BN18: 105.65 | BO18: 65.86 | BP18: 0.05 | BQ18: 0.5 | BV18: 10 | BW18: Meloso | BX18: 0.02777777778 | BY18: 0.08 | BZ18: 0.027 | CA18: 0.5 | CB18: 1 | CE18: 10 | CF18: Impl. Isca | CI18: 10
A19: 12 | B19: Trator 85 cv 4x2 | C19: Trator 85 cv 4x2 | D19: hm | E19: 85 | J19: 0 | K19: 0 | L19: 10.2 | M19: 0.2 | N19: 12000 | O19: 1200 | P19: 0.012 | Q19: 1 | U19: 12 | V19: Carreta Cap. 15 ton 4 rodas | AC19: 0.7 | AD19: 0 | AE19: 0 | AF19: 0.2 | AG19: 3000 | AH19: 300 | AI19: (%) | AJ19: 0.7 | AP19: 12 | AT19: 0.5 | AU19: 30 | AV19: 8760 | AW19: 0.012 | AX19: 0.1 | BC19: 11 | BD19: Fiesta 1.0 8L - G | BE19: Cat - 1 | BF19: Carro | BG19: Ford | BH19: Gasolina | BI19: 12 | BJ19: 0.2 | BK19: 100000 | BL19: 18000 | BM19: 0.04 | BN19: 105.65 | BO19: 65.86 | BP19: 0.05 | BQ19: 0.5 | BV19: 11 | BW19: Cozinheira | BX19: 0.02777777778 | BY19: 0.08 | BZ19: 0.027 | CA19: 0.5 | CB19: 1 | CE19: 11 | CF19: Colheita manual | CI19: 11
A20: 13 | B20: Trator 105 cv 4x4 | C20: Trator 105 cv 4x4 | D20: hm | E20: 105 | J20: 0 | K20: 0 | L20: 12.6 | M20: 0.2 | N20: 12000 | O20: 1200 | P20: 0.012 | Q20: 0.8 | U20: 13 | V20: Carreta Cap. 3 ton 2 rodas | AC20: 0.7 | AD20: 0 | AE20: 0 | AF20: 0.2 | AG20: =(3000/10)*4 -> 1200 | AH20: 120 | AI20: (%) | AJ20: 0.7 | AP20: 13 | AT20: 0.5 | AU20: 30 | AV20: 8760 | AW20: 0.012 | AX20: 0.1 | BC20: 12 | BD20: Fiesta 1.0 8L - A | BE20: Cat - 1 | BF20: Carro | BG20: Ford | BH20: Álcool | BI20: 10 | BJ20: 0.2 | BK20: 100000 | BL20: 18000 | BM20: 0.04 | BN20: 105.65 | BO20: 65.86 | BP20: 0.05 | BQ20: 0.5 | BV20: 12 | BW20: Aux. Cozinha | BX20: 0.02777777778 | BY20: 0.08 | BZ20: 0.027 | CA20: 0.5 | CB20: 1 | CE20: 12 | CF20: Arranquio - Feijão
A21: 14 | B21: Trator 121 cv 4x4 | C21: Trator 121 cv 4x4 | D21: hm | E21: 121 | J21: 0 | K21: 0 | L21: 14.52 | M21: 0.2 | N21: 12000 | O21: 1200 | P21: 0.012 | Q21: 0.8 | U21: 14 | V21: Carreta Cap. 5 ton 4 rodas | AC21: 0.7 | AD21: 0 | AE21: 0 | AF21: 0.2 | AG21: 3000 | AH21: 300 | AI21: (%) | AJ21: 0.7 | AP21: 14 | AT21: 0.5 | AU21: 30 | AV21: 8760 | AW21: 0.012 | AX21: 0.1 | BC21: 13 | BD21: Corsa - G | BE21: Cat - 1 | BF21: Carro | BG21: GM | BH21: Gasolina | BI21: 12 | BJ21: 0.2 | BK21: 100000 | BL21: 18000 | BM21: 0.04 | BN21: 105.65 | BO21: 65.86 | BP21: 0.05 | BQ21: 0.5 | BV21: 13 | BW21: Mecanicos | BX21: 0.02777777778 | BY21: 0.08 | BZ21: 0.027 | CA21: 0.5 | CB21: 1 | CE21: 13 | CF21: 1 apanha - Algodão
A22: 15 | B22: Pá carregadora | C22: Pá carregadora (110) | D22: hm | E22: 110 | J22: 0 | K22: 0 | L22: 13.2 | M22: 0.2 | N22: 12000 | O22: 1200 | P22: 0.012 | Q22: 0.8 | U22: 15 | V22: Carreta/Canuto-15 t | W22: Graneleira | AC22: 0.7 | AD22: 0 | AE22: 0 | AF22: 0.2 | AG22: 3000 | AH22: 300 | AI22: (%) | AJ22: 0.7 | AP22: 15 | AT22: 0.5 | AU22: 30 | AV22: 8760 | AW22: 0.012 | AX22: 0.1 | BC22: 14 | BD22: Corsa - A | BE22: Cat - 1 | BF22: Carro | BG22: GM | BH22: Álcool | BI22: 10 | BJ22: 0.2 | BK22: 100000 | BL22: 18000 | BM22: 0.04 | BN22: 105.65 | BO22: 65.86 | BP22: 0.05 | BQ22: 0.5 | BV22: 14 | BW22: Borracheiro | BX22: 0.02777777778 | BY22: 0.08 | BZ22: 0.027 | CA22: 0.5 | CB22: 1 | CE22: 14 | CF22: 2 apanha - Algodão
A23: 16 | B23: Trator 150 cv 4x4 | C23: Trator 150 cv 4x4 | D23: hm | E23: 150 | J23: 0 | K23: 0 | L23: 18 | M23: 0.2 | N23: 12000 | O23: 1200 | P23: 0.012 | Q23: 0.8 | U23: 16 | V23: Chupim | AC23: 0.7 | AD23: 0 | AE23: 0 | AF23: 0.2 | AG23: 2000 | AH23: 200 | AI23: (%) | AJ23: 0.5 | AP23: 16 | AT23: 0.5 | AU23: 30 | AV23: 8760 | AW23: 0.012 | AX23: 0.1 | BC23: 15 | BD23: Saveiro - G | BE23: Cat - 1 | BF23: Pick Up Leve | BG23: WV | BH23: Gasolina | BI23: 10 | BJ23: 0.2 | BK23: 100000 | BL23: 20000 | BM23: 0.04 | BN23: =BN22 -> 105.65 | BO23: =BO22 -> 65.86 | BP23: 0.05 | BQ23: 0.5 | BV23: 15 | BW23: Almoxarife | BX23: 0.02777777778 | BY23: 0.08 | BZ23: 0.027 | CA23: 0.5 | CB23: 1 | CE23: 15 | CF23: 3 apanha - Algodão
A24: 17 | B24: Trator 140 cv 4x4 | C24: Trator 140 cv 4x4 | D24: hm | E24: 140 | J24: 0 | K24: 0 | L24: 16.8 | M24: 0.2 | N24: 12000 | O24: 1200 | P24: 0.012 | Q24: 0.8 | U24: 17 | V24: Concha Adianteira | W24: Stara - 600 kg | AC24: 0.7 | AD24: 0 | AE24: 0 | AF24: 0.2 | AG24: 2000 | AH24: 200 | AI24: (%) | AJ24: 0.5 | AP24: 17 | AT24: 0.5 | AU24: 30 | AV24: 8760 | AW24: 0.012 | AX24: 0.1 | BC24: 16 | BD24: Saveiro - A | BE24: Cat - 1 | BF24: Pick Up Leve | BG24: WV | BH24: Álcool | BI24: 8.6 | BJ24: 0.2 | BK24: 100000 | BL24: 20000 | BM24: 0.04 | BN24: =BN23 -> 105.65 | BO24: 65.86 | BP24: 0.05 | BQ24: 0.5 | BV24: 16 | BW24: Aux adm | BX24: 0.02777777778 | BY24: 0.08 | BZ24: 0.027 | CA24: 0.5 | CB24: 1 | CE24: 16 | CF24: Caminhão Pipa
A25: 18 | B25: Trator 180 cv 4x4 | C25: Trator 180 cv 4x4 | D25: hm | E25: 180 | J25: 0 | K25: 0 | L25: 21.6 | M25: 0.2 | N25: 12000 | O25: 1200 | P25: 0.012 | Q25: 0.8 | U25: 18 | V25: Concha traseira | AC25: 0.7 | AD25: 0 | AE25: 0 | AF25: 0.2 | AG25: 4000 | AH25: 400 | AI25: (%) | AJ25: 0.5 | AP25: 18 | AT25: 0.5 | AU25: 30 | AV25: 8760 | AW25: 0.012 | AX25: 0.1 | BC25: 17 | BD25: Strada - G | BE25: Cat - 1 | BF25: Pick Up Leve | BG25: Fiat | BH25: Gasolina | BI25: 10 | BJ25: 0.2 | BK25: 100000 | BL25: 20000 | BM25: 0.04 | BN25: =BN24 -> 105.65 | BO25: 65.86 | BP25: 0.05 | BQ25: 0.5 | BV25: 17 | BW25: Pragueiro | BX25: 0.02777777778 | BY25: 0.08 | BZ25: 0.027 | CA25: 0.5 | CB25: 1 | CE25: 17 | CF25: Caminhão truck (15t)
A26: 19 | B26: trator 173 cv 4x4 | C26: trator 173 cv 4x4 | D26: hm | E26: 173 | J26: =G26*H26*1000/10000*I26 -> 0 | K26: 0 | L26: 20.76 | M26: 0.2 | N26: 12000 | O26: 1200 | P26: 0.012 | Q26: 0.8 | U26: 19 | V26: conj. Concha dianteira Kit total | W26: Stara - 1000 kg | AC26: 0.7 | AD26: 0 | AE26: 0 | AF26: 0.2 | AG26: 2000 | AH26: 200 | AI26: (%) | AJ26: 0.5 | AP26: 19 | AT26: 0.5 | AU26: 30 | AV26: 8760 | AW26: 0.012 | AX26: 0.1 | BC26: 18 | BD26: Strada - A | BE26: Cat - 1 | BF26: Pick Up Leve | BG26: Fiat | BH26: Álcool | BI26: 8.6 | BJ26: 0.2 | BK26: 100000 | BL26: 20000 | BM26: 0.04 | BN26: =BN25 -> 105.65 | BO26: 65.86 | BP26: 0.05 | BQ26: 0.5 | BV26: 18 | BW26: Operador de secador | BX26: 0.02777777778 | BY26: 0.08 | BZ26: 0.027 | CA26: 0.5 | CB26: 1 | CE26: 18 | CF26: Apl. De calc
A27: 20 | B27: Uniport 2000 | C27: Uniport 2000 jacto (130) | D27: hm | E27: 130 | J27: =G27*H27*1000/10000*I27 -> 0 | K27: 0 | L27: 15.6 | M27: 0.2 | N27: 12000 | O27: 1200 | P27: 0.012 | Q27: 0.7 | U27: 20 | V27: Correntao | W27: 80 metros sem faca | AC27: 0.7 | AD27: 0 | AE27: 0 | AF27: 0.2 | AG27: 2000 | AH27: 200 | AI27: (%) | AJ27: 0.5 | AP27: 20 | AT27: 0.5 | AU27: 30 | AV27: 8760 | AW27: 0.012 | AX27: 0.1 | BC27: 19 | BD27: Courier L - G | BE27: Cat - 1 | BF27: Pick Up Leve | BG27: Ford | BH27: Gasolina | BI27: 10 | BJ27: 0.2 | BK27: 100000 | BL27: 20000 | BM27: 0.04 | BN27: =BN26 -> 105.65 | BO27: 65.86 | BP27: 0.05 | BQ27: 0.5 | BV27: 19 | BW27: Ajudante do secador | BX27: 0.02777777778 | BY27: 0.08 | BZ27: 0.027 | CA27: 0.5 | CB27: 1 | CE27: 19 | CF27: Pulv. Autopropelido
A28: 21 | B28: TC 59 | C28: TC 59 (240) | D28: hm | E28: 240 | J28: =G28*H28*1000/10000*I28 -> 0 | K28: 0 | L28: 28.8 | M28: 0.2 | N28: 4000 | O28: 400 | P28: 0.012 | Q28: 0.7 | U28: 21 | V28: Corrente 80 m | AC28: 0.7 | AD28: 0 | AE28: 0 | AF28: 0.2 | AG28: 2000 | AH28: 200 | AI28: (%) | AJ28: 0.5 | AP28: 21 | AT28: 0.5 | AU28: 30 | AV28: 8760 | AW28: 0.012 | AX28: 0.1 | BC28: 20 | BD28: Courier L - A | BE28: Cat - 1 | BF28: Pick Up Leve | BG28: Ford | BH28: Álcool | BI28: 8.6 | BJ28: 0.2 | BK28: 100000 | BL28: =BL27 -> 20000 | BM28: 0.04 | BN28: 105.65 | BO28: 65.86 | BP28: 0.05 | BQ28: 0.5 | BV28: 20 | BW28: Peão | BX28: 0.02777777778 | BY28: 0.08 | BZ28: 0.027 | CA28: 0.5 | CB28: 1 | CE28: 20
A29: 22 | B29: Colhedora Jdeere 1550 | C29: JD 1550/SLC 23 pes (240) | D29: hm | E29: 240 | J29: 0 | K29: 0 | L29: 28.8 | M29: 0.2 | N29: 4000 | O29: 400 | P29: 0.012 | Q29: 0.7 | U29: 22 | V29: Cultivador 2 linhas | W29: Cultivador com adubadeira | AC29: 0.7 | AD29: 0 | AE29: 0 | AF29: 0.2 | AG29: 3000 | AH29: 300 | AI29: (%) | AJ29: 0.8 | AP29: 22 | AT29: 0.5 | AU29: 30 | AV29: 8760 | AW29: 0.012 | AX29: 0.1 | BC29: 21 | BD29: Montana - G | BE29: Cat - 1 | BF29: Pick Up Leve | BG29: GM | BH29: Gasolina | BI29: 10 | BJ29: 0.2 | BK29: 100000 | BL29: 20000 | BM29: 0.04 | BN29: 105.65 | BO29: 65.86 | BP29: 0.05 | BQ29: 0.5 | BV29: 21 | BW29: Capataz | BX29: 0.02777777778 | BY29: 0.08 | BZ29: 0.027 | CA29: 0.5 | CB29: 1 | CE29: 21
A30: 23 | B30: Colhedora TC 5070 | C30: Colhedora TC 5070 | D30: hm | E30: 155 | I30: 0.75 | J30: 0 | K30: 0 | L30: 18.6 | M30: 0.2 | N30: 4000 | O30: =N30/15 -> 266.6666667 | P30: 0.012 | Q30: 0.7 | U30: 23 | V30: Cultivador 4 linhas | W30: C disco | AC30: 0.7 | AD30: 0 | AE30: 0 | AF30: 0.2 | AG30: 2000 | AH30: 200 | AI30: (%) | AJ30: 0.5 | AP30: 23 | AT30: 0.5 | AU30: 30 | AV30: 8760 | AW30: 0.012 | AX30: 0.1 | BC30: 22 | BD30: Montana - A | BE30: Cat - 1 | BG30: GM | BH30: Álcool | BI30: 8.6 | BJ30: 0.2 | BK30: 100000 | BL30: 20000 | BM30: 0.04 | BN30: 105.65 | BO30: 65.86 | BP30: 0.05 | BQ30: 0.5 | BV30: 22 | BW30: Vaqueiro | BX30: 0.02777777778 | BY30: 0.08 | BZ30: 0.027 | CA30: 0.5 | CB30: 1 | CE30: 22
A31: 24 | B31: Colhedora JD 9970 - 5 L (Algodão) | C31: JD 9970 Algodão/ SLC (250) | D31: hm | E31: 250 | I31: 0.75 | J31: 0 | K31: 0 | L31: 30 | M31: 0.2 | N31: 4000 | O31: 400 | P31: 0.012 | Q31: 0.8 | U31: 24 | V31: Cultivador 5 linhas | AC31: 0.7 | AD31: 0 | AE31: 0 | AF31: 0.2 | AG31: 3000 | AH31: 300 | AI31: (%) | AJ31: 0.8 | AP31: 24 | AT31: 0.5 | AU31: 30 | AV31: 8760 | AW31: 0.012 | AX31: 0.1 | BC31: 23 | BD31: Ranger - G | BE31: Cat - 1 | BF31: Pick Up Média | BG31: Ford | BH31: Gasolina | BI31: 10 | BJ31: 0.2 | BK31: 100000 | BL31: 50000 | BM31: 0.04 | BN31: 105.65 | BO31: 65.86 | BP31: 0.05 | BQ31: 0.5 | BV31: 23 | BX31: 0.02777777778 | BY31: 0.08 | BZ31: 0.027 | CA31: 0.5 | CB31: 1 | CE31: 23
A32: 25 | B32: Case 2388 - Axial Flow | C32: Case 2388 - Axial Flow (260) | D32: hm | E32: 260 | I32: 0.75 | J32: 0 | K32: 0 | L32: 31.2 | M32: 0.2 | N32: 4000 | O32: 400 | P32: 0.012 | Q32: 0.7 | U32: 25 | V32: Cultivador 6 Linhas | W32: Cultivamax - Jumil | AC32: 0.7 | AD32: 0 | AE32: 0 | AF32: 0.2 | AG32: 2000 | AH32: 200 | AI32: (%) | AJ32: 0.5 | AP32: 25 | AT32: 0.5 | AU32: 30 | AV32: 8760 | AW32: 0.012 | AX32: 0.1 | BC32: 24 | BD32: Ranger - D | BE32: Cat - 1 | BF32: Pick Up Média | BG32: Ford | BH32: Diesel | BI32: 8 | BJ32: 0.2 | BK32: 100000 | BL32: 50000 | BM32: 0.04 | BN32: 105.65 | BO32: 65.86 | BP32: 0.05 | BQ32: 0.5 | BV32: 24 | BX32: 0.02777777778 | BY32: 0.08 | BZ32: 0.027 | CA32: 0.5 | CB32: 1 | CE32: 24
A33: 26 | B33: Colhedora JD 2 linhas - Algodão | C33: John Deere - 2 linhas - Alg, (270) | D33: hm | E33: 270 | I33: 0.75 | J33: 0 | K33: 0 | L33: 32.4 | M33: 0.2 | N33: 4000 | O33: 400 | P33: 0.012 | Q33: 0.8 | U33: 26 | V33: Cultivador 7 Linhas | W33: Cultivamax - Jumil | AC33: 0.7 | AD33: 0 | AE33: 0 | AF33: 0.2 | AG33: 2000 | AH33: 200 | AI33: (%) | AJ33: 0.5 | AP33: 26 | AT33: 0.5 | AU33: 30 | AV33: 8760 | AW33: 0.012 | AX33: 0.1 | BC33: 25 | BD33: Frontier - G | BE33: Cat - 1 | BF33: Pick Up Média | BG33: Nissan | BH33: Gasolina | BI33: 10 | BJ33: 0.2 | BK33: 100000 | BL33: 50000 | BM33: 0.04 | BN33: 105.65 | BO33: 65.86 | BP33: 0.05 | BQ33: 0.5 | BV33: 25 | BX33: 0.02777777778 | BY33: 0.08 | BZ33: 0.027 | CA33: 0.5 | CB33: 1 | CE33: 25
A34: 27 | B34: Pulverizador jato dirigido | C34: Pulv. Jato dirigido Jumil (120) | D34: hm | E34: 120 | I34: 0.75 | J34: 0 | K34: 0 | L34: 14.4 | M34: 0.2 | N34: 4000 | O34: =N34/10 -> 400 | P34: 0.012 | Q34: 0.7 | U34: 27 | V34: Cultivador 8 Linhas | W34: Cultivamax - Jumil | AC34: 0.7 | AD34: 0 | AE34: 0 | AF34: 0.2 | AG34: 2000 | AH34: 200 | AI34: (%) | AJ34: 0.5 | AP34: 27 | AT34: 0.5 | AU34: 30 | AV34: 8760 | AW34: 0.012 | AX34: 0.1 | BC34: 26 | BD34: Frontier - D | BE34: Cat - 1 | BF34: Pick Up Média | BG34: Nissan | BH34: Diesel | BI34: 8 | BJ34: 0.2 | BK34: 100000 | BL34: 50000 | BM34: 0.04 | BN34: 105.65 | BO34: 65.86 | BP34: 0.05 | BQ34: 0.5 | BV34: 26 | BX34: 0.02777777778 | BY34: 0.08 | BZ34: 0.027 | CA34: 0.5 | CB34: 1 | CE34: 26
A35: 28 | B35: Uniport 2000 GPS | C35: Uniport 2000 jacto gps (130) | D35: hm | E35: 130 | J35: =G35*H35*1000/10000*I35 -> 0 | K35: 0 | L35: =E35*0.12 -> 15.6 | M35: 0.2 | N35: 12000 | O35: =N35/10 -> 1200 | P35: 0.012 | Q35: 0.7 | U35: 28 | V35: Cultivador 9 linhas | AC35: 0.7 | AD35: 0 | AE35: 0 | AF35: 0.2 | AG35: 20000 | AH35: 2000 | AI35: (%) | AJ35: 0.5 | AP35: 28 | AT35: 0.5 | AU35: 30 | AV35: 8760 | AW35: 0.012 | AX35: 0.1 | BC35: 27 | BD35: Hilux L200 - D | BE35: Cat - 1 | BF35: Pick Up Média | BG35: Toyota | BH35: Diesel | BI35: 8 | BJ35: 0.2 | BK35: 100000 | BL35: 50000 | BM35: 0.04 | BN35: 105.65 | BO35: 65.86 | BP35: 0.05 | BQ35: 0.5 | CE35: 27
A36: 29 | B36: Colhedora JD | C36: JD 1175 (160) | D36: hm | E36: 160 | J36: =G36*H36*1000/10000*I36 -> 0 | K36: 0 | L36: =E36*0.12 -> 19.2 | M36: 0.2 | N36: 4000 | O36: =N36/10 -> 400 | P36: 0.012 | Q36: 0.7 | U36: 29 | V36: Destroidor de soqueira 5 linhas - Watanabe | AC36: 0.7 | AD36: 0 | AE36: 0 | AF36: 0.2 | AG36: 2000 | AH36: 200 | AI36: (%) | AJ36: 0.5 | AP36: 29 | AT36: 0.5 | AU36: 30 | AV36: 8760 | AW36: 0.012 | AX36: 0.1 | BC36: 28 | BD36: S-10 | BE36: Cat - 1 | BF36: Pick Up Média | BG36: Chevrolet | BH36: Diesel | BI36: 8 | BJ36: 0.2 | BK36: 100000 | BL36: 50000 | BM36: 0.04 | BN36: 105.65 | BO36: 65.86 | BP36: 0.05 | BQ36: 0.5 | CE36: 28
A37: 30 | B37: Colhedora JD 5 linhas - Algodão | C37: John Deere - 5 linhas - Alg. (270) | D37: hm | E37: 270 | I37: 0.75 | J37: =G37*H37*1000/10000*I37 -> 0 | K37: 0 | L37: =E37*0.12 -> 32.4 | M37: 0.2 | N37: 4000 | O37: =N37/10 -> 400 | P37: 0.012 | Q37: 0.8 | U37: 30 | V37: Dist. Calc. 7t - arrast | W37: Distrib. Calc./Fertil. 7t | AC37: 0.7 | AD37: 0 | AE37: 0 | AF37: 0.2 | AG37: 1200 | AH37: 120 | AI37: (%) | AJ37: 0.8 | AP37: 30 | AT37: 0.5 | AU37: 30 | AV37: 8760 | AW37: 0.012 | AX37: 0.1 | BC37: 29 | BD37: F250 | BE37: Cat - 1 | BF37: Pick Up Grande | BG37: Ford | BH37: Diesel | BI37: 8.6 | BJ37: 0.2 | BK37: 100000 | BL37: 50000 | BM37: 0.04 | BN37: 105.65 | BO37: 65.86 | BP37: 0.05 | BQ37: 0.5 | CE37: 29
A38: 31 | B38: Colhedora 8040 | C38: NH 8040 (150) | D38: hm | E38: 150 | I38: 0.75 | J38: =G38*H38*1000/10000*I38 -> 0 | K38: 0 | L38: =E38*0.12 -> 18 | M38: 0.2 | N38: 4000 | O38: =N38/10 -> 400 | P38: 0.012 | Q38: 0.8 | U38: 31 | V38: Distr. 12 t - Brutus | W38: Stara | AC38: 0.7 | AD38: 0 | AE38: 0 | AF38: 0.2 | AG38: 2000 | AH38: 200 | AI38: (%) | AJ38: 0.5 | AP38: 31 | AT38: 0.5 | AU38: 30 | AV38: 8760 | AW38: 0.012 | AX38: 0.1 | BC38: 30 | BD38: F350 | BE38: Cat - 2 | BF38: Pick Up Grande | BG38: Ford | BH38: Diesel | BI38: 9 | BJ38: 0.2 | BK38: 100000 | BL38: 50000 | BM38: 0.04 | BN38: 105.65 | BO38: 65.86 | BP38: 0.05 | BQ38: 0.5 | CE38: 30
A39: 32 | B39: Colhedora 320 cv | C39: Colhedora STS (320) | D39: hm | E39: 320 | J39: =G39*H39*1000/10000*I39 -> 0 | K39: 0 | L39: =E39*0.12 -> 38.4 | M39: 0.2 | N39: 4000 | O39: 400 | P39: 0.012 | Q39: 0.8 | U39: 32 | V39: Distr. 7,5 t | W39: 7,5 t | AC39: 0.7 | AD39: 0 | AE39: 0 | AF39: 0.2 | AG39: 2000 | AH39: 200 | AI39: (%) | AJ39: 0.5 | AP39: 32 | AT39: 0.5 | AU39: 30 | AV39: 8760 | AW39: 0.012 | AX39: 0.1 | BC39: 31 | BD39: F4000 | BE39: Cat - 2 | BF39: Pick Up Grande | BG39: Ford | BH39: Diesel | BI39: 10 | BJ39: 0.2 | BK39: 100000 | BL39: =BL38 -> 50000 | BM39: 0.04 | BN39: 105.65 | BO39: 65.86 | BP39: 0.05 | BQ39: 0.5 | CE39: 31
A40: 33 | B40: Colhedora 325 cv (30pes) | C40: Colhedora STS 9750 (325) | D40: hm | E40: 325 | J40: 0 | K40: 0 | L40: 39 | M40: 0.2 | N40: 4000 | O40: =N40/10 -> 400 | P40: 0.012 | Q40: 0.8 | U40: 33 | V40: Distrib. Adubo 1300 kg - Tornado | W40: Stara - 1300 kg | AC40: 0.7 | AD40: 0 | AE40: 0 | AF40: 0.2 | AG40: 1200 | AH40: 120 | AI40: (%) | AJ40: 0.8 | AP40: 33 | AT40: 0.5 | AU40: 30 | AV40: 8760 | AW40: 0.012 | AX40: 0.1 | BC40: 32 | BD40: 1728 | BE40: Cat - 3 | BF40: Caminhão | BG40: Mercedes-Benz | BH40: Diesel | BI40: 2.5 | BJ40: 0.2 | BK40: 100000 | BL40: 50000 | BM40: 0.04 | BN40: 105.65 | BO40: 65.86 | BP40: 0.05 | BQ40: 0.5 | CE40: 32
A41: 34 | B41: Melosa | C41: Caminhão melosa | D41: hm | J41: 0 | K41: 0 | L41: 0 | M41: 0.2 | N41: 12000 | O41: 1200 | P41: 0.012 | Q41: 0.8 | U41: 34 | V41: Distrib. Calc. 1200 kg | W41: Vicon TDS - 1200 kg | X41: Implemento | AA41: 2.8 | AB41: 10 | AC41: 0.7 | AD41: 1.96 | AE41: 0.5102040816 | AF41: 0.2 | AG41: 1200 | AH41: 120 | AI41: (%) | AJ41: 0.8 | AP41: 34 | AT41: 0.5 | AU41: 30 | AV41: 8760 | AW41: 0.012 | AX41: 0.1 | BC41: 33 | BD41: ATEGO 1315 | BE41: Cat - 3 | BF41: Caminhão | BG41: Mercedes-Benz | BH41: Diesel | BI41: 2.5 | BJ41: 0.2 | BK41: 100000 | BL41: 50000 | BM41: 0.04 | BN41: 105.65 | BO41: 65.86 | BP41: 0.05 | BQ41: 0.5 | CE41: 33
A42: 35 | B42: Moto | C42: Moto Bross | D42: hm | J42: =G42*H42*1000/10000*I42 -> 0 | K42: =IF(J42>0, 1/J42, 0) -> 0 | L42: =E42*0.12 -> 0 | M42: 0.2 | N42: 4000 | O42: =N42/10 -> 400 | P42: 0.012 | Q42: 0.8 | U42: 35 | V42: Distrib. Calc. 1200 kg | W42: Vicon TDS - 600 kg | X42: Implemento | AA42: 2.8 | AB42: 10 | AC42: 0.7 | AD42: 1.96 | AE42: 0.5102040816 | AF42: 0.2 | AG42: 1200 | AH42: 120 | AI42: (%) | AJ42: 0.8 | AP42: 35 | AT42: 0.5 | AU42: 30 | AV42: 8760 | AW42: 0.012 | AX42: 0.1 | BC42: 34 | BD42: ATEGO 1418 | BE42: Cat - 3 | BF42: Caminhão | BG42: Mercedes-Benz | BH42: Diesel | BI42: 2.5 | BJ42: 0.2 | BK42: 100000 | BL42: 50000 | BM42: 0.04 | BN42: 105.65 | BO42: 65.86 | BP42: 0.05 | BQ42: 0.5 | CE42: 34
A43: 36 | B43: Pickup | C43: Strada | D43: hm | J43: 0 | K43: 0 | L43: 0 | M43: 0.2 | N43: 4000 | O43: 400 | P43: 0.012 | Q43: 0.8 | U43: 36 | V43: Distrib. Calc. 2500 kg - Tornado | W43: Stara - 2500 kg | AC43: 0.7 | AD43: 0 | AE43: 0 | AF43: 0.2 | AG43: 1200 | AH43: 120 | AI43: (%) | AJ43: 0.8 | AP43: 36 | AT43: 0.5 | AU43: 30 | AV43: 8760 | AW43: 0.012 | AX43: 0.1 | BC43: 35 | BD43: F12000 | BE43: Cat - 3 | BF43: Caminhão | BG43: Ford | BH43: Diesel | BI43: 2.5 | BJ43: 0.2 | BK43: 100000 | BL43: 50000 | BM43: 0.04 | BN43: 105.65 | BO43: 65.86 | BP43: 0.05 | BQ43: 0.5 | CE43: 35
U44: 37 | V44: Distrib. Calc. 600 kg - Tornado | W44: Stara - 600 kg | AC44: 0.7 | AD44: 0 | AE44: 0 | AF44: 0.2 | AG44: 1200 | AH44: 120 | AI44: (%) | AJ44: 0.8 | AP44: 37 | AT44: 0.5 | AU44: 30 | AV44: 8760 | AW44: 0.012 | AX44: 0.1 | BC44: 36 | BD44: Cargo 815 | BE44: Cat - 3 | BF44: Caminhão | BG44: Ford | BH44: Diesel | BI44: 2.5 | BJ44: 0.2 | BK44: 100000 | BL44: 50000 | BM44: =BM43 -> 0.04 | BN44: =BN43 -> 105.65 | BO44: 65.86 | BP44: =BP43 -> 0.05 | BQ44: =BQ43 -> 0.5 | CE44: 36
U45: 38 | V45: Distrib. Calc./Fertil. 10t | W45: Distrib. Calc./Fertil. 10t | AC45: 0.7 | AD45: 0 | AE45: 0 | AF45: 0.2 | AG45: 1200 | AH45: 120 | AI45: (%) | AJ45: 0.8 | AP45: 38 | AT45: 0.5 | AU45: 30 | AV45: 8760 | AW45: 0.012 | AX45: 0.1 | CE45: 37
U46: 39 | V46: Distrib. Calc./Fertil. 5000 kg | AC46: 0.7 | AD46: 0 | AE46: 0 | AF46: 0.2 | AG46: 1200 | AH46: 120 | AI46: (%) | AJ46: 0.8 | AP46: 39 | AT46: 0.5 | AU46: 30 | AV46: 8760 | AW46: 0.012 | AX46: 0.1 | CE46: 38
U47: 40 | V47: Distribuidor de milheto | AC47: 0.7 | AD47: 0 | AE47: 0 | AF47: 0.2 | AG47: 1200 | AH47: 120 | AI47: (%) | AJ47: 0.8 | AP47: 40 | AT47: 0.5 | AU47: 30 | AV47: 8760 | AW47: 0.012 | AX47: 0.1 | CE47: 39
U48: 41 | V48: Duble master 2 - amendoim | W48: Batedeira de amendoim | AC48: 0.7 | AD48: 0 | AE48: 0 | AF48: 0.2 | AG48: 1500 | AH48: 150 | AI48: (%) | AJ48: 1.5 | AP48: 41 | AT48: 0.5 | AU48: 30 | AV48: 8760 | AW48: 0.012 | AX48: 0.1 | BD48: Moto | CE48: 40
U49: 42 | V49: Enxada rotativa | AC49: 0.7 | AD49: 0 | AE49: 0 | AF49: 0.2 | AG49: 1500 | AH49: 150 | AI49: (%) | AJ49: 0.8 | AP49: 42 | AT49: 0.5 | AU49: 30 | AV49: 8760 | AW49: 0.012 | AX49: 0.1 | BD49: Cat-1 | BE49: 0.04 | BF49: 105.65 | BG49: 65.86 | BH49: 0.05 | BI49: 0.5 | CE49: 41
U50: 43 | V50: Grade 28 discos 28 pol | W50: Aradora | X50: Implemento | AA50: 3 | AB50: 10 | AC50: 0.7 | AD50: 2.1 | AE50: 0.4761904762 | AF50: 0.2 | AG50: 2000 | AH50: 200 | AI50: (%) | AJ50: 0.6 | AP50: 43 | AT50: 0.5 | AU50: 30 | AV50: 8760 | AW50: 0.012 | AX50: 0.1 | BD50: Cat-2 | CE50: 42
U51: 44 | V51: Grade 52 discos 22 pol | W51: Niveladora | X51: Implemento | AA51: 2.8 | AB51: 8 | AC51: 0.7 | AD51: 1.568 | AE51: 0.637755102 | AF51: 0.2 | AG51: 2000 | AH51: 200 | AI51: (%) | AJ51: 0.6 | AP51: 44 | AT51: 0.5 | AU51: 30 | AV51: 8760 | AW51: 0.012 | AX51: 0.1 | BD51: Pickup 1 | CE51: 43
U52: 45 | V52: Grade aradora 18d x 22" | W52: 19 d 22 | X52: Implemento | AA52: 2.8 | AB52: 8 | AC52: 0.7 | AD52: 1.568 | AE52: 0.637755102 | AF52: 0.2 | AG52: 2000 | AH52: 200 | AI52: (%) | AJ52: 0.6 | AP52: 45 | AT52: 0.5 | AU52: 30 | AV52: 8760 | AW52: 0.012 | AX52: 0.1 | BD52: Pickup 2 | CE52: 44
U53: 46 | V53: Grade aradora 28" | W53: 40 discos 28 pol | X53: Implemento | AA53: 2.8 | AB53: 8 | AC53: 0.7 | AD53: 1.568 | AE53: 0.637755102 | AF53: 0.2 | AG53: 2000 | AH53: 200 | AI53: (%) | AJ53: 0.6 | AP53: 46 | AT53: 0.5 | AU53: 30 | AV53: 8760 | AW53: 0.012 | AX53: 0.1 | BD53: Caminhão 4t | CE53: 45
U54: 47 | V54: Grade aradora | W54: 24 discos 28 pol | X54: Implemento | AA54: 2.8 | AB54: 8 | AC54: 0.7 | AD54: 1.568 | AE54: 0.637755102 | AF54: 0.2 | AG54: 2000 | AH54: 200 | AI54: (%) | AJ54: 1.5 | AP54: 47 | AT54: 0.5 | AU54: 30 | AV54: 8760 | AW54: 0.012 | AX54: 0.1 | BD54: Caminhão 15t
U55: 48 | V55: Grade aradora 28d x 28" | W55: sem controle | X55: Implemento | AA55: 2.8 | AB55: 8 | AC55: 0.7 | AD55: 1.568 | AE55: 0.637755102 | AF55: 0.2 | AG55: 2000 | AH55: 200 | AI55: (%) | AJ55: 0.6 | AP55: 48 | AT55: 0.5 | AU55: 30 | AV55: 8760 | AW55: 0.012 | AX55: 0.1 | BD55: Caminhão 20t
U56: 49 | V56: Grade aradora 28d x 32" | AC56: 0.7 | AD56: 0 | AE56: 0 | AF56: 0.2 | AG56: 2000 | AH56: 200 | AI56: (%) | AJ56: 0.5 | AP56: 49 | AT56: 0.5 | AU56: 30 | AV56: 8760 | AW56: 0.012 | AX56: 0.1 | BD56: Caminhão 27t
U57: 50 | V57: Grade aradora 32" x 24 | W57: 24 discos 32 pol | X57: Implemento | AA57: 2.8 | AB57: 8 | AC57: 0.7 | AD57: 1.568 | AE57: 0.637755102 | AF57: 0.2 | AG57: 2000 | AH57: 200 | AI57: (%) | AJ57: 0.5 | AP57: 50 | AT57: 0.5 | AU57: 30 | AV57: 8760 | AW57: 0.012 | AX57: 0.1
U58: 51 | V58: Grade intermediaria | X58: Implemento | AA58: 1.5 | AB58: 10 | AC58: 0.7 | AD58: 1.05 | AE58: 0.9523809524 | AF58: 0.2 | AG58: 2000 | AH58: 200 | AI58: (%) | AJ58: 0.6 | AP58: 51 | AT58: 0.5 | AU58: 30 | AV58: 8760 | AW58: 0.012 | AX58: 0.1
U59: 52 | V59: Grade nivel. 52 x 22" | AA59: 2.8 | AB59: 8 | AC59: 0.7 | AD59: 1.568 | AE59: 0.637755102 | AF59: 0.2 | AG59: 2000 | AH59: 200 | AI59: (%) | AJ59: 1.5
U60: 53 | V60: Grade niveladora 22" | W60: 52X22" | AC60: 0.7 | AD60: 0 | AE60: 0 | AF60: 0.2 | AG60: 2000 | AH60: 200 | AI60: (%) | AJ60: 0.5
U61: 54 | V61: Grade niveladora 32d | AC61: 0.7 | AD61: 0 | AE61: 0 | AF61: 0.2 | AG61: 2000 | AH61: 200 | AI61: (%) | AJ61: 0.7
U62: 55 | V62: Grade niveladora 42d x 20" | AC62: 0.7 | AD62: 0 | AE62: 0 | AF62: 0.2 | AG62: 2000 | AH62: 200 | AI62: (%) | AJ62: 0.5
U63: 56 | V63: Grade niveladora 48d x 20" | AC63: 0.7 | AD63: 0 | AE63: 0 | AF63: 0.2 | AG63: 2000 | AH63: 200 | AI63: (%) | AJ63: 0.5
U64: 57 | V64: Grade niveladora 62d x 20" | AC64: 0.7 | AD64: 0 | AE64: 0 | AF64: 0.2 | AG64: 2000 | AH64: 200 | AI64: (%) | AJ64: 0.5
U65: 58 | V65: Grasmec | W65: 1000 kg por hora | AC65: 0.7 | AD65: 0 | AE65: 0 | AF65: 0.2 | AG65: 2000 | AH65: 200 | AI65: (%) | AJ65: 0.5
U66: 59 | V66: Guincho | AC66: 0.7 | AD66: 0 | AE66: 0 | AF66: 0.2 | AG66: 2000 | AH66: 200 | AI66: (%) | AJ66: 1.5
U67: 60 | V67: Guindaste c/ roda | AC67: 0.7 | AD67: 0 | AE67: 0 | AF67: 0.2 | AG67: 3000 | AH67: 300 | AI67: (%) | AJ67: 0.7
U68: 61 | V68: Moto bomba | AC68: 0.7 | AD68: 0 | AE68: 0 | AF68: 0.2 | AG68: 2000 | AH68: 200 | AI68: (%) | AJ68: 0.5
U69: 62 | V69: Moto Serra | AC69: 0.7 | AD69: 0 | AE69: 0 | AF69: 0.2 | AG69: 2000 | AH69: 200 | AI69: (%) | AJ69: 0.5
U70: 63 | V70: Patrola | AC70: 0.7 | AD70: 0 | AE70: 0 | AF70: 0.2 | AG70: 2000 | AH70: 200 | AI70: (%) | AJ70: 0.5
U71: 64 | V71: Plant. de mandioca 2 linhas | AC71: 0.7 | AD71: 0 | AE71: 0 | AF71: 0.2 | AG71: 2000 | AH71: 200 | AI71: (%) | AJ71: 0.5
U72: 65 | V72: Plantadeia JD 10 (A) e 15 (S) | W72: Vacuo | AC72: 0.7 | AD72: 0 | AE72: 0 | AF72: 0.2 | AG72: 2000 | AH72: 200 | AI72: (%) | AJ72: 0.5
U73: 66 | V73: Plantadeira Jumil 10 linhas | AC73: 0.7 | AD73: 0 | AE73: 0 | AF73: 0.2 | AG73: 2000 | AH73: =AG73/10 -> 200 | AI73: (%) | AJ73: 0.5
B74: Caminhonete | C74: F 350 | D74: hm | F74: 100000 | I74: 0.75 | J74: 0 | K74: 0 | L74: 0 | M74: 0.2 | N74: 4000 | O74: 400 | P74: 0.012 | Q74: 0.8 | U74: 67 | V74: Plantadeira Jumil 12 linhas | W74: Plantadeira Jumil 12 linhas | AC74: 0.7 | AD74: 0 | AE74: 0 | AF74: 0.2 | AG74: 2000 | AH74: 200 | AI74: =AI73 -> (%) | AJ74: 0.5
B75: Caminhão | D75: hm | N75: 12000 | O75: 1200 | U75: 68 | V75: Plantadeira SJ/MI. PD Semato/Tatu 8 Linhas | W75: Simples | AC75: 0.7 | AD75: 0 | AE75: 0 | AF75: 0.2 | AG75: 1500 | AH75: 150 | AI75: (%) | AJ75: 0.75
U76: 69 | V76: Plataforma de milho - 9 linhas | W76: Plataforma de milho - 9 linhas | AC76: 0.7 | AD76: =AA76*AB76*1000/10000*AC76 -> 0 | AE76: =IF(AD76>0, 1/AD76, 0) -> 0 | AF76: 0.2 | AG76: 2000 | AH76: 200 | AI76: (%) | AJ76: 0.5
U77: 70 | V77: Prensa 11 t | AC77: 0.7 | AD77: 0 | AE77: 0 | AF77: 0.2 | AG77: 3000 | AH77: 300 | AI77: (%) | AJ77: 0.75
U78: 71 | V78: Pulv. 2000 L 18m | W78: Pulverizador 2000 L 18m | AC78: 0.7 | AD78: 0 | AE78: 0 | AF78: 0.2 | AG78: 1500 | AH78: 150 | AI78: (%) | AJ78: 0.7
U79: 72 | V79: Pulv. 600 L Condor 14m | W79: Pulv. 600 L Condor 14m | AC79: 0.7 | AD79: 0 | AE79: 0 | AF79: 0.2 | AG79: 1500 | AH79: 150 | AI79: (%) | AJ79: 0.7
U80: 73 | V80: Pulv. Columbia AD-18 | W80: Pulverizador 2000 L 18m | AC80: 0.7 | AD80: 0 | AE80: 0 | AF80: 0.2 | AG80: 1500 | AH80: 150 | AI80: (%) | AJ80: 0.7
U81: 74 | V81: Pulv. Columbia Cross 18m | W81: Pulverizador 2000 L 18m | AC81: 0.7 | AD81: 0 | AE81: 0 | AF81: 0.2 | AG81: 1500 | AH81: 150 | AI81: (%) | AJ81: 0.7
U82: 75 | V82: Pulv. Jato dirigido | W82: Caseiro | AC82: 0.7 | AD82: 0 | AE82: 0 | AF82: 0.2 | AG82: 1500 | AH82: 150 | AI82: (%) | AJ82: 0.7
U83: 76 | V83: Pulv. Jato dirigido (Generico) | W83: Fabricaçao propria | AC83: 0.7 | AD83: 0 | AE83: 0 | AF83: 0.2 | AG83: 1500 | AH83: 150 | AI83: (%) | AJ83: 0.7
U84: 77 | V84: Reboke 12 t - Stara | AC84: 0.7 | AD84: 0 | AE84: 0 | AF84: 0.2 | AG84: 2000 | AH84: 200 | AI84: (%) | AJ84: 0.5
U85: 78 | V85: Roçadeira 1,5m (corte) | W85: 2 hélices | AC85: 0.7 | AD85: 0 | AE85: 0 | AF85: 0.2 | AG85: 2000 | AH85: 200 | AI85: (%) | AJ85: 1.5
U86: 79 | V86: Roçadeira 3 hélices | AC86: 0.7 | AD86: 0 | AE86: 0 | AF86: 0.2 | AG86: 2000 | AH86: 200 | AI86: (%) | AJ86: 0.8
U87: 80 | V87: Roçadeira Triton | W87: Triton | AC87: 0.7 | AD87: 0 | AE87: 0 | AF87: 0.2 | AG87: 2000 | AH87: 200 | AI87: (%) | AJ87: 1.5
U88: 81 | V88: Sem. PD 13 Linhas Tatu | W88: Sem. PD 13 Linhas Tatu | AC88: 0.7 | AD88: 0 | AE88: 0 | AF88: 0.2 | AG88: 1500 | AH88: 150 | AI88: (%) | AJ88: 0.75
U89: 82 | V89: Sem. PD JD 10 Linhas | W89: Sem. PD Jumil 14 Linhas | AC89: 0.7 | AD89: 0 | AE89: 0 | AF89: 0.2 | AG89: 1500 | AH89: 150 | AI89: (%) | AJ89: 0.75
U90: 83 | V90: Sem. PD JD 9215 16 Linhas | W90: Sem. PD JD 9215 16 Linhas | AC90: 0.7 | AD90: 0 | AE90: 0 | AF90: 0.2 | AG90: 1500 | AH90: 150 | AI90: (%) | AJ90: 0.75
U91: 84 | V91: Sem. PD Jumil 14 Linhas | W91: Sem. PD Jumil 14 Linhas | AC91: 0.7 | AD91: 0 | AE91: 0 | AF91: 0.2 | AG91: 1500 | AH91: 150 | AI91: (%) | AJ91: 0.75
U92: 85 | V92: Sem. PD Jumil 15 Linhas | W92: Semeadora PD Jumil exata 15 Linhas | AC92: 0.7 | AD92: 0 | AE92: 0 | AF92: 0.2 | AG92: 1500 | AH92: 150 | AI92: (%) | AJ92: 0.75
U93: 86 | V93: Sem. PD Jumil 2880 13 Linhas | W93: Semeadora PD Jumil 2880 13 Linhas | AC93: 0.7 | AD93: 0 | AE93: 0 | AF93: 0.2 | AG93: 1500 | AH93: 150 | AI93: (%) | AJ93: 0.75
U94: 87 | V94: Sem. PD Jumil 8 Linhas | W94: Semeadora PD Jumil 8 Linhas | AC94: 0.7 | AD94: 0 | AE94: 0 | AF94: 0.2 | AG94: 1500 | AH94: 150 | AI94: (%) | AJ94: 0.75
U95: 88 | V95: Sem. PD 9 Linhas | W95: Sem. PD Tatu 9 Linhas | AC95: 0.7 | AD95: 0 | AE95: 0 | AF95: 0.2 | AG95: 1500 | AH95: 150 | AI95: (%) | AJ95: 0.75
U96: 89 | V96: Sem. Baldan 4 linhas | AC96: 0.7 | AD96: 0 | AE96: 0 | AF96: 0.2 | AG96: 1500 | AH96: 150 | AI96: (%) | AJ96: 0.75
U97: 90 | V97: Sem. Baldan Sa 5000 18 Linhas | W97: Sem. Baldan Sa 5000 18 Linhas | AC97: 0.7 | AD97: 0 | AE97: 0 | AF97: 0.2 | AG97: 1500 | AH97: 150 | AI97: (%) | AJ97: 0.75
U98: 91 | V98: Sem. PD PS 8 - Semeato | W98: Sem. PD PS 8 - Semeato | AC98: 0.7 | AD98: 0 | AE98: 0 | AF98: 0.2 | AG98: 1500 | AH98: 150 | AI98: (%) | AJ98: 0.75
U99: 92 | V99: Sem. Tatu 4 linhas | AC99: 0.7 | AD99: 0 | AE99: 0 | AF99: 0.2 | AG99: 1500 | AH99: 150 | AI99: (%) | AJ99: 0.75
U100: 93 | V100: Sem.PD FH 5400 - 11 Linhas | W100: Sem. PD Fank Houser 5400 - 11 Linhas | AC100: 0.7 | AD100: 0 | AE100: 0 | AF100: 0.2 | AG100: 1500 | AH100: 150 | AI100: (%) | AJ100: 0.75
U101: 94 | V101: Sem.PD SMT 7 Linhas | W101: Semeadora PD Semeato 7 Linhas | AC101: 0.7 | AD101: 0 | AE101: 0 | AF101: 0.2 | AG101: 1500 | AH101: 150 | AI101: (%) | AJ101: 0.75
U102: 95 | V102: Sem.PD SMT PSM123 11 Linhas | W102: Semeadora PD Semeato PSM123 11 Linhas | AC102: 0.7 | AD102: 0 | AE102: 0 | AF102: 0.2 | AG102: 1500 | AH102: 150 | AI102: (%) | AJ102: 0.75
U103: 96 | V103: Semeadora JD 15 linhas | W103: Semeadora JD 15 linhas | X103: Implemento | AC103: 0.7 | AD103: 0 | AE103: 0 | AF103: 0.2 | AG103: 1500 | AH103: 150 | AI103: (%) | AJ103: 0.75
U104: 97 | V104: Subsolador 11 hastes | AC104: 0.7 | AD104: 0 | AE104: 0 | AF104: 0.2 | AG104: 2000 | AH104: 200 | AI104: (%) | AJ104: 0.75
U105: 98 | V105: Subsolador 7 hastes | AC105: 0.7 | AD105: 0 | AE105: 0 | AF105: 0.2 | AG105: 2000 | AH105: 200 | AI105: (%) | AJ105: 0.75
U106: 99 | V106: Subsolador 5 hastes | AC106: 0.7 | AD106: 0 | AE106: 0 | AF106: 0.2 | AG106: 2000 | AH106: 200 | AI106: (%) | AJ106: 0.75
U107: 100 | V107: Subsolador hidraulico | W107: Subsolador hidraulico | AC107: 0.7 | AD107: 0 | AE107: 0 | AF107: 0.2 | AG107: =(3000/10)*4 -> 1200 | AH107: 120 | AI107: (%) | AJ107: 0.7
U108: 101 | V108: Tanque Agua 10 mil litros | W108: 4 Rodas | AC108: 0.7 | AD108: 0 | AE108: 0 | AF108: 0.2 | AG108: 3000 | AH108: 300 | AI108: (%) | AJ108: 0.5
U109: 102 | V109: Tanque Agua 12 mil litros | AC109: 0.7 | AD109: 0 | AE109: 0 | AF109: 0.2 | AG109: 3000 | AH109: 300 | AI109: (%) | AJ109: 0.5
U110: 103 | V110: Tanque Agua 4 mil litros | AC110: 0.7 | AD110: 0 | AE110: 0 | AF110: 0.2 | AG110: 3000 | AH110: 300 | AI110: (%) | AJ110: 0.5
U111: 104 | V111: Tanque agua 6 mil litros | AC111: 0.7 | AD111: 0 | AE111: 0 | AF111: 0.2 | AG111: 3000 | AH111: 300 | AI111: (%) | AJ111: 0.5
U112: 105 | V112: Tanque de agua 20000 litros | W112: Cemag | AC112: 0.7 | AD112: 0 | AE112: 0 | AF112: 0.2 | AG112: =(3000/10)*4 -> 1200 | AH112: 120 | AI112: (%) | AJ112: 0.5
U113: 106 | V113: Tanque de combustível | AC113: 0.7 | AD113: 0 | AE113: 0 | AF113: 0.2 | AG113: 3000 | AH113: 300 | AI113: (%) | AJ113: 0.7
U114: 107 | V114: Terraceador | AC114: 0.7 | AD114: 0 | AE114: 0 | AF114: 0.2 | AG114: 3000 | AH114: 300 | AI114: (%) | AJ114: 1.5
U115: 108 | V115: Tombador | AC115: 0.7 | AD115: 0 | AE115: 0 | AF115: 0.2 | AG115: 2000 | AH115: 200 | AI115: (%) | AJ115: 0.5
U116: 109 | V116: Transbordo de amendoim | W116: cap. 2 maq | AC116: 0.7 | AD116: 0 | AE116: 0 | AF116: 0.2 | AG116: 2000 | AH116: 200 | AI116: (%) | AJ116: 0.5
U117: 110 | V117: Transmódulo | AC117: 0.7 | AD117: 0 | AE117: 0 | AF117: 0.2 | AG117: 3000 | AH117: 300 | AI117: (%) | AJ117: 0.7
U118: 111 | V118: Tratamento de semente | AC118: 0.7 | AD118: 0 | AE118: 0 | AF118: 0.2 | AG118: 3000 | AH118: 300 | AI118: (%) | AJ118: 0.7
U119: 112 | V119: GPS | AC119: 0.7 | AD119: 0 | AE119: 0 | AF119: 0.2 | AG119: 2000 | AH119: 200 | AI119: (%) | AJ119: 0.5
U120: 113 | V120: Semeadora 27 linhas de trigo e 11 soja | W120: Semeadora 27 linhas de trigo e 11 soja - Semeato | AC120: 0.7 | AD120: 0 | AE120: 0 | AF120: 0.2 | AG120: 2000 | AH120: 200 | AI120: (%) | AJ120: 0.5
U121: 114 | V121: Distribuidor Amazon 2,5 ton | AC121: 0.7 | AD121: 0 | AE121: 0 | AF121: 0.2 | AG121: 2000 | AH121: 200 | AI121: (%) | AJ121: 0.5
U122: 115 | V122: Classificador de Semente | AC122: 0.7 | AD122: 0 | AE122: 0 | AF122: 0.2 | AG122: 2000 | AH122: 200 | AI122: (%) | AJ122: 0.5
U123: 116 | V123: Lamina de Arrasto | AC123: 0.7 | AD123: 0 | AE123: 0 | AF123: 0.2 | AG123: 2000 | AH123: 200 | AI123: (%) | AJ123: 0.5
U124: 117 | V124: Madal Scraper | AC124: 0.7 | AD124: 0 | AE124: 0 | AF124: 0.2 | AG124: 2000 | AH124: 200 | AI124: (%) | AJ124: 0.5
U125: 118 | V125: Semeadora Kuhm 17 linhas | AC125: 0.7 | AD125: 0 | AE125: 0 | AF125: 0.2 | AG125: 2000 | AH125: 200 | AI125: (%) | AJ125: 0.5
U126: 119 | AC126: 0.7 | AD126: 0 | AE126: 0 | AF126: 0.2 | AG126: 2000 | AH126: 200 | AI126: (%) | AJ126: 0.5
U127: 120 | AC127: 0.7 | AD127: 0 | AE127: 0 | AF127: 0.2 | AG127: 2000 | AH127: 200 | AI127: (%) | AJ127: 0.5
U128: 121 | AC128: 0.7 | AD128: 0 | AE128: 0 | AF128: 0.2 | AG128: 2000 | AH128: 200 | AI128: (%) | AJ128: 0.5
U129: 122 | AC129: 0.7 | AD129: 0 | AE129: 0 | AF129: 0.2 | AG129: 2000 | AH129: 200 | AI129: (%) | AJ129: 0.5
U130: 123 | AC130: 0.7 | AD130: 0 | AE130: 0 | AF130: 0.2 | AG130: 2000 | AH130: 200 | AI130: (%) | AJ130: 0.5
U131: 124 | AC131: 0.7 | AD131: 0 | AE131: 0 | AF131: 0.2 | AG131: 2000 | AH131: 200 | AI131: (%) | AJ131: 0.5
U132: 125 | AC132: 0.7 | AD132: 0 | AE132: 0 | AF132: 0.2 | AG132: 2000 | AH132: 200 | AI132: (%) | AJ132: 0.5
U133: 126 | AC133: 0.7 | AD133: 0 | AE133: 0 | AF133: 0.2 | AG133: 2000 | AH133: 200 | AI133: (%) | AJ133: 0.5
U134: 127 | AC134: 0.7 | AD134: 0 | AE134: 0 | AF134: 0.2 | AG134: 2000 | AH134: 200 | AI134: (%) | AJ134: 0.5
U135: 128 | AC135: 0.7 | AD135: 0 | AE135: 0 | AF135: 0.2 | AG135: 2000 | AH135: 200 | AI135: (%) | AJ135: 0.5
U136: 129 | AC136: 0.7 | AD136: 0 | AE136: 0 | AF136: 0.2 | AG136: 2000 | AH136: 200 | AI136: (%) | AJ136: 0.5
F137: =SUM(F8:F136) -> 100000 | U137: 130 | AC137: 0.7 | AD137: 0 | AE137: 0 | AF137: 0.2 | AG137: 2000 | AH137: =AG137/10 -> 200 | AI137: (%) | AJ137: 0.5
U138: 131 | AC138: 0.7 | AD138: 0 | AE138: 0 | AF138: 0.2 | AG138: 2000 | AH138: 200 | AI138: =AI137 -> (%) | AJ138: 0.5
U139: 132 | AC139: 0.7 | AD139: 0 | AE139: 0 | AF139: 0.2 | AG139: 2000 | AH139: 200 | AI139: (%) | AJ139: 0.5
U140: 133 | AC140: 0.7 | AD140: =AA140*AB140*1000/10000*AC140 -> 0 | AE140: =IF(AD140>0, 1/AD140, 0) -> 0 | AF140: 0.2 | AG140: 2000 | AH140: 200 | AI140: (%) | AJ140: 0.5
U141: 134 | AC141: 0.7 | AD141: 0 | AE141: 0 | AF141: 0.2 | AG141: 2000 | AH141: 200 | AI141: (%) | AJ141: 0.5
U142: 135 | AC142: 0.7 | AD142: 0 | AE142: 0 | AF142: 0.2 | AG142: 2000 | AH142: 200 | AI142: (%) | AJ142: 0.5
U143: 136 | AC143: 0.7 | AD143: 0 | AE143: 0 | AF143: 0.2 | AG143: 2000 | AH143: 200 | AI143: (%) | AJ143: 0.5
U144: 137 | AC144: 0.7 | AD144: 0 | AE144: 0 | AF144: 0.2 | AG144: 2000 | AH144: 200 | AI144: (%) | AJ144: 0.5
U145: 138 | AC145: 0.7 | AD145: 0 | AE145: 0 | AF145: 0.2 | AG145: 2000 | AH145: 200 | AI145: (%) | AJ145: 0.5
U146: 139 | AC146: 0.7 | AD146: 0 | AE146: 0 | AF146: 0.2 | AG146: 2000 | AH146: 200 | AI146: (%) | AJ146: 0.5
U147: 140 | AC147: 0.7 | AD147: 0 | AE147: 0 | AF147: 0.2 | AG147: 2000 | AH147: 200 | AI147: (%) | AJ147: 0.5
U148: 141 | AC148: 0.7 | AD148: 0 | AE148: 0 | AF148: 0.2 | AG148: 2000 | AH148: 200 | AI148: (%) | AJ148: 0.5
U149: 142 | AC149: 0.7 | AD149: 0 | AE149: 0 | AF149: 0.2 | AG149: 2000 | AH149: 200 | AI149: (%) | AJ149: 0.5
U150: 143 | AC150: 0.7 | AD150: 0 | AE150: 0 | AF150: 0.2 | AG150: 2000 | AH150: 200 | AI150: (%) | AJ150: 0.5
U151: 144 | AC151: 0.7 | AD151: 0 | AE151: 0 | AF151: 0.2 | AG151: 2000 | AH151: 200 | AI151: (%) | AJ151: 0.5
U152: 145 | AC152: 0.7 | AD152: 0 | AE152: 0 | AF152: 0.2 | AG152: 2000 | AH152: 200 | AI152: (%) | AJ152: 0.5
U153: 146 | AC153: 0.7 | AD153: 0 | AE153: 0 | AF153: 0.2 | AG153: 2000 | AH153: 200 | AI153: (%) | AJ153: 0.5
U154: 147 | AC154: 0.7 | AD154: 0 | AE154: 0 | AF154: 0.2 | AG154: 2000 | AH154: 200 | AI154: (%) | AJ154: 0.5
U155: 148 | AC155: 0.7 | AD155: 0 | AE155: 0 | AF155: 0.2 | AG155: 2000 | AH155: 200 | AI155: (%) | AJ155: 0.5
U156: 149 | AC156: 0.7 | AD156: 0 | AE156: 0 | AF156: 0.2 | AG156: 2000 | AH156: 200 | AI156: (%) | AJ156: 0.5
U157: 150 | AC157: 0.7 | AD157: 0 | AE157: 0 | AF157: 0.2 | AG157: 2000 | AH157: 200 | AI157: (%) | AJ157: 0.5
U158: 151 | AC158: 0.7 | AD158: 0 | AE158: 0 | AF158: 0.2 | AG158: 2000 | AH158: 200 | AI158: (%) | AJ158: 0.5
U159: 152 | AC159: 0.7 | AD159: 0 | AE159: 0 | AF159: 0.2 | AG159: 2000 | AH159: 200 | AI159: (%) | AJ159: 0.5
U160: 153 | AC160: 0.7 | AD160: 0 | AE160: 0 | AF160: 0.2 | AG160: 2000 | AH160: 200 | AI160: (%) | AJ160: 0.5
U161: 154 | AC161: 0.7 | AD161: 0 | AE161: 0 | AF161: 0.2 | AG161: 2000 | AH161: 200 | AI161: (%) | AJ161: 0.5
U162: 155 | AC162: 0.7 | AD162: 0 | AE162: 0 | AF162: 0.2 | AG162: 2000 | AH162: 200 | AI162: (%) | AJ162: 0.5
U163: 156 | AC163: 0.7 | AD163: 0 | AE163: 0 | AF163: 0.2 | AG163: 2000 | AH163: 200 | AI163: (%) | AJ163: 0.5
U164: 157 | AC164: 0.7 | AD164: 0 | AE164: 0 | AF164: 0.2 | AG164: 2000 | AH164: 200 | AI164: (%) | AJ164: 0.5
U165: 158 | AC165: 0.7 | AD165: 0 | AE165: 0 | AF165: 0.2 | AG165: 2000 | AH165: 200 | AI165: (%) | AJ165: 0.5
U166: 159 | AC166: 0.7 | AD166: 0 | AE166: 0 | AF166: 0.2 | AG166: 2000 | AH166: 200 | AI166: (%) | AJ166: 0.5
U167: 160 | AC167: 0.7 | AD167: 0 | AE167: 0 | AF167: 0.2 | AG167: 2000 | AH167: 200 | AI167: (%) | AJ167: 0.5
U168: 161 | AC168: 0.7 | AD168: 0 | AE168: 0 | AF168: 0.2 | AG168: 2000 | AH168: 200 | AI168: (%) | AJ168: 0.5
U169: 162 | AC169: 0.7 | AD169: 0 | AE169: 0 | AF169: 0.2 | AG169: 2000 | AH169: 200 | AI169: (%) | AJ169: 0.5
U170: 163 | V170: dd | AC170: 0.7 | AD170: 0 | AE170: 0 | AF170: 0.2 | AG170: 2000 | AH170: 200 | AI170: (%) | AJ170: 0.5

Sheet Inventario
A1: Máquinas agrícolas | L1: 0.0075 | M1: =dados!H37 -> 0.075 | Q1: {[(Vn-Vr)/2]*i}/ano | R1: {[(Vn-Vr)/2]*i}/ano | AA1: Implemento agrícola | AJ1: 0.0075 | AK1: =dados!H37 -> 0.075 | AN1: {[(Vn-Vr)/2]*i}/ano | AO1: {[(Vn-Vr)/2]*i}/ano | AX1: Benfeitorias | BE1: =dados!$H$37 -> 0.075 | BG1: 0.0035 | BH1: =dados!H38 -> 0.075 | BK1: =AX4*((((AZ4+BC4)/2)*$BG$1)/BD4) -> 9.1875 | BL1: =AX4*((((AZ4+BC4)/2)*$BH$1)/BD4) -> 196.875 | BV1: Quantidade de colaboradores | CE1: 0.027 | CG1: 0.08 | CI1: 1 | CL1: 0.02 | CS1: Rateio da mão de obra | DE1: Utilitários
I2: =dados!B38 -> 2.97 | L2: horas/ano | M2: horas/ano | N2: Total | Q2: Ano | T2: CARP | U2: =dados!$H$36 -> 0.0249 | V2: =dados!B23 -> 117 | AL2: Total | AN2: Ano | AQ2: CARP | BF2: Anual | BI2: Total fazenda | BL2: =AX5*((((AZ5+BC5)/2)*$BH$1)/BD5) -> 110.25 | BN2: CARP | BZ2: Encargo trabalhista | CC2: Encargo social | DM2: Anual | DP2: Total | DU2: CARP
A3: Quantidade | B3: Máquina | C3: Valor do novo | D3: Valor do usado | E3: Ano de compra | F3: Valor residual | G3: Horas | H3: Consumo de diesel | I3: Despesa com combustível | J3: Manutenção | K3: Depr. Linear | L3: Seguro | M3: Juros | N3: Combustível | O3: Manutenção | P3: Depr. Linear | Q3: Seguro | R3: Juros | S3: Vida útil (ano) | T3: frc | U3: of use | V3: carp unit | W3: carp total | AA3: Quantidade | AB3: Implemento | AC3: Valor do novo | AD3: Valor do usado | AE3: Ano de compra | AF3: Valor residual | AG3: Horas | AH3: Manutenção | AI3: Depr. Linear | AJ3: Seguro | AK3: Juros | AL3: Manutenção | AM3: Depr. Linear | AN3: Seguro | AO3: Juros | AP3: Vida útil (ano) | AQ3: frc | AR3: of use | AS3: carp unit | AT3: carp total | AX3: Quantidade | AY3: Benfeitorias | AZ3: Valor do novo | BA3: Valor do usado | BB3: Ano de constr. | BC3: Valor residual | BD3: Anos | BE3: Manutenção | BF3: Depr. Linear | BG3: Seguro | BH3: Juros | BI3: Manutenção | BJ3: Depr. Linear | BK3: Seguro | BL3: Juros | BM3: Vida útil (ano) | BN3: frc | BO3: of use | BP3: carp unit | BQ3: carp total | BV3: Quantidade | BW3: Categorias | BX3: Salário | BY3: Valor hora c/encagos | BZ3: Férias | CA3: Adicional férias | CB3: 13 | CC3: INSS 13 | CD3: FGTS 13 | CE3: INSS | CF3: INSS férias | CG3: FGTS | CH3: FGTS férias | CI3: Aviso previo | CJ3: INSS AP | CK3: FGTS AP | CL3: Seguro trabalho | CM3: Enc. Trabalhista | CN3: Enc. Social | CO3: Prov | CQ3: Despesa mensal | CR3: Despesa anual | CS3: Provisão anual | CT3: Tempo de Contrato | DE3: quantidade | DF3: Utilitários | DG3: Valor do novo | DH3: Valor do usado | DI3: Ano de constr. | DJ3: Valor residual | DK3: km | DL3: Manutenção | DM3: Depr. Linear | DN3: Seguro | DO3: Juros | DP3: Manutenção | DQ3: Depr. Linear | DR3: Seguro | DS3: Juros | DT3: Vida útil (ano) | DU3: frc | DV3: of use | DW3: carp unit | DX3: carp total
A4: 1 | B4: 5 | C4: =(75*1250)*0.95 -> 89062.5 | F4: =IF(C4="",VLOOKUP(B4,bens!$A$8:$Q$75,13)*D4,VLOOKUP(B4,bens!$A$8:$Q$75,13)*C4) -> 17812.5 | G4: =VLOOKUP(B4,bens!$A$8:$Q$75,14) -> 12000 | H4: =VLOOKUP(B4,bens!$A$8:$Q$75,5)*0.12 -> 9.12 | I4: =VLOOKUP(B4,bens!$A$8:$Q$75,5)*0.12*$I$2 -> 27.0864 | J4: =IF(C4="",VLOOKUP(B4,bens!$A$8:$Q$75,17)*Inventario!D4/Inventario!G4,VLOOKUP(B4,bens!$A$8:$Q$75,17)*Inventario!C4/Inventario!G4) -> 5.9375 | K4: =IF(C4="",(D4-F4)/G4,(C4-F4)/G4) -> 5.9375 | L4: =IF(C4="",(VLOOKUP(B4,bens!$A$8:$Q$75,16)*(D4+F4)/2)/(VLOOKUP(B4,bens!$A$8:$Q$75,15)),(VLOOKUP(B4,bens!$A$8:$Q$75,16)*(C4+F4)/2)/(VLOOKUP(B4,bens!$A$8:$Q$75,15))) -> 0.534375 | M4: =IF(C4="",($M$1*(D4+F4)/2)/(VLOOKUP(B4,bens!$A$8:$Q$75,15)),($M$1*(C4+F4)/2)/(VLOOKUP(B4,bens!$A$8:$Q$75,15))) -> 3.33984375 | N4: =A4*I4 -> 27.0864 | O4: =A4*J4 -> 5.9375 | P4: =K4*A4 -> 5.9375 | Q4: =IF(C4="",A4*$L$1*D4,A4*$L$1*C4) -> 667.96875 | R4: =IF(C4="",A4*($M$1*(D4+F4)/2),A4*($M$1*(C4+F4)/2)) -> 4007.8125 | S4: =VLOOKUP(B4,bens!$A$8:$Q$75,14)/VLOOKUP(B4,bens!$A$8:$Q$75,15) -> 10 | T4: =(((1+$U$2)^S4)*$U$2)/((1+$U$2)^S4-1) -> 0.11419973 | U4: =1/$V$2 -> 0.008547008547 | V4: =IF(C4="",D4*T4*U4,C4*T4*U4) -> 86.93088422 | W4: =V4*A4 -> 86.93088422 | X4: =A4*C4+A4*D4 -> 89062.5 | Y4: =(C4-F4)/10 -> 7125 | AA4: 1 | AB4: 14 | AC4: =(6000)*0.95 -> 5700 | AF4: =IF(AC4="",VLOOKUP(AB4,bens!$U$8:$AJ$170,12)*AD4,VLOOKUP(AB4,bens!$U$8:$AJ$170,12)*AC4) -> 1140 | AG4: =VLOOKUP(AB4,bens!$U$8:$AJ$170,13) -> 3000 | AH4: =IF(AC4="",VLOOKUP(AB4,bens!$U$8:$AJ$170,16)*Inventario!AD4/Inventario!AG4,VLOOKUP(AB4,bens!$U$8:$AJ$170,16)*Inventario!AC4/Inventario!AG4) -> 1.33 | AI4: =IF(AC4="",(AD4-AF4)/AG4,(AC4-AF4)/AG4) -> 1.52 | AJ4: =IF(AC4="",$AJ$1*((AD4+AF4)/2)/(VLOOKUP(AB4,bens!$U$8:$AJ$170,14)),$AJ$1*((AC4+AF4)/2)/(VLOOKUP(AB4,bens!$U$8:$AJ$170,14))) -> 0.0855 | AK4: =IF(AC4="",($AK$1*(AD4+AF4)/2)/(VLOOKUP(AB4,bens!$U$8:$AJ$170,14)),($AK$1*(AC4+AF4)/2)/(VLOOKUP(AB4,bens!$U$8:$AJ$170,14))) -> 0.855 | AL4: =AA4*AH4 -> 1.33 | AM4: =AI4*AA4 -> 1.52 | AN4: =IF(AC4="",AA4*$AJ$1*AD4,AA4*$AJ$1*AC4) -> 42.75 | AO4: =IF(AC4="",AA4*($AK$1*(AD4+AF4)/2),AA4*$AK$1*((AC4+AF4)/2)) -> 256.5 | AP4: =VLOOKUP(AB4,bens!$U$8:$AJ$17,13)/VLOOKUP(AB4,bens!$U$8:$AJ$17,14) -> 10 | AQ4: =(((1+$U$2)^AP4)*$U$2)/((1+$U$2)^AP4-1) -> 0.11419973 | AR4: =1/$V$2 -> 0.008547008547 | AS4: =IF(AC4="",AD4*AQ4*AR4,AC4*AQ4*AR4) -> 5.56357659 | AT4: =AS4*AA4 -> 5.56357659 | AU4: =AA4*AC4+AA4*AD4 -> 5700 | AX4: 1 | AY4: 2 | AZ4: =(1000*100)*1.05 -> 105000 | BC4: =IF(AZ4="",VLOOKUP(AY4,bens!$AP$8:$AX$58,5)*BA4,VLOOKUP(AY4,bens!$AP$8:$AX$58,5)*AZ4) -> 52500 | BD4: =VLOOKUP(AY4,bens!$AP$8:$AX$58,6) -> 30 | BE4: =IF(AZ4="",VLOOKUP(AY4,bens!$AP$8:$AX$58,9)*Inventario!BA4/Inventario!BD4,VLOOKUP(AY4,bens!$AP$8:$AX$58,9)*Inventario!AZ4/Inventario!BD4) -> 350 | BF4: =IF(AZ4="",(BA4-BC4)/BD4,(AZ4-BC4)/BD4) -> 1750 | BG4: =IF(AZ4="",(VLOOKUP(AY4,bens!$AP$8:$AX$58,8)*((BA4+BC4)/2)),(VLOOKUP(AY4,bens!$AP$8:$AX$58,8)*((AZ4+BC4)/2))) -> 945 | BH4: =IF(AZ4="",((BA4+BC4)/2)*Inventario!$BH$1/Inventario!BD4,((AZ4+BC4)/2)*Inventario!$BH$1/Inventario!BD4) -> 196.875 | BI4: =AX4*BE4 -> 350 | BJ4: =BF4*AX4 -> 1750 | BK4: =IF(AZ4="",AX4*((BA4+BC4)/2)*$BG$1,AX4*((AZ4+BC4)/2)*$BG$1) -> 275.625 | BL4: =IF(AZ4="",AX4*((BA4+BC4)/2)*$BH$1,AX4*((AZ4+BC4)/2)*$BH$1) -> 5906.25 | BM4: =BD4 -> 30 | BN4: =(((1+$U$2)^BM4)*$U$2)/((1+$U$2)^BM4-1) -> 0.04771395924 | BO4: =1/$V$2 -> 0.008547008547 | BP4: =IF(AZ4="",BA4*BN4*BO4,AZ4*BN4*BO4) -> 42.82021983 | BQ4: =BP4*AX4 -> 42.82021983 | BR4: =AX4*AZ4 -> 105000 | BS4: =($U$2/(((1+$U$2)^BM4)-1))*(AZ4)*BO4 -> 20.47406598 | BT4: =BP4-BS4 -> 22.34615385 | BV4: 1 | BW4: 8 | BX4: 1050 | BY4: =(BX4+CP4)/(((261*8)+(52*4))/12) -> 8.00625 | BZ4: =1/12*$BX4 -> 87.5 | CA4: =1/3/12*$BX4 -> 29.16666667 | CB4: =1/12*BX4 -> 87.5 | CC4: =1/12*$CE$1*$BX4 -> 2.3625 | CD4: =1/12*$CG$1*$BX4 -> 7 | CE4: =$CE$1*$BX4 -> 28.35 | CF4: =1/3/12*$CE$1*$BX4 -> 0.7875 | CG4: =$BX4*$CG$1 -> 84 | CH4: =1/3/12*$CG$1*$BX4 -> 2.333333333 | CI4: =1/12*$BX4*$CI$1 -> 87.5 | CJ4: =1/12*$CE$1*$BX4*$CI$1 -> 2.3625 | CK4: =$CG$1/2*$BX4*$CI$1 -> 42 | CL4: =$CL$1*BX4 -> 21 | CM4: =BZ4+CA4+CB4+CL4 -> 225.1666667 | CN4: =SUM(CC4:CH4) -> 124.8333333 | CO4: =SUM(CI4:CK4) -> 131.8625 | CP4: =SUM(CM4:CO4) -> 481.8625 | CQ4: =BV4*(BX4+CP4) -> 1531.8625 | CR4: =IF(CT4>0,(BX4+CP4)*CT4*BV4,(BX4+CP4)*12*BV4) -> 18382.35 | CS4: =IF(CT4>0,CO4*BV4*CT4,CO4*BV4*12) -> 1582.35 | DE4: 1 | DF4: 5 | DG4: 10000 | DJ4: =IF(DG4="",VLOOKUP(DF4,bens!$BC$9:$BQ$44,8)*DH4,VLOOKUP(DF4,bens!$BC$9:$BQ$44,8)*DG4) -> 2000 | DK4: =VLOOKUP(DF4,bens!$BC$9:$BQ$44,9) -> 100000 | DL4: =IF(DG4="",VLOOKUP(DF4,bens!$BC$9:$BQ$44,15)*Inventario!DH4/Inventario!DK4,VLOOKUP(DF4,bens!$BC$9:$BQ$44,15)*Inventario!DG4/Inventario!DK4) -> 0.05 | DM4: =IF(DG4="",(DH4-DJ4)/DK4,(DG4-DJ4)/DK4) -> 0.08 | DN4: =IF(DG4="",(VLOOKUP(DF4,bens!$BC$9:$BQ$44,14)*((DH4+DJ4)/2))/VLOOKUP(DF4,bens!$BC$9:$BQ$44,10),(VLOOKUP(DF4,bens!$BC$9:$BQ$44,14)*((DG4+DJ4)/2))/VLOOKUP(DF4,bens!$BC$9:$BQ$44,10)) -> 0.01666666667 | DO4: =IF(DG4="",(dados!$H$37*(DH4+DJ4)/2)/VLOOKUP(DF4,bens!$BC$9:$BQ$44,10),(dados!$H$37*(DG4+DJ4)/2))/VLOOKUP(DF4,bens!$BC$9:$BQ$44,10) -> 0.025 | DP4: =DE4*DL4 -> 0.05 | DQ4: =DM4*DE4 -> 0.08 | DR4: =DN4*DE4 -> 0.01666666667 | DS4: =DO4*DE4 -> 0.025 | DT4: =VLOOKUP(DF4,bens!$BC$9:$BQ$44,9)/VLOOKUP(DF4,bens!$BC$9:$BQ$44,10) -> 5.555555556 | DU4: =(((1+$U$2)^DT4)*$U2)/((1+$U$2)^DT4-1) -> 0.1949652519 | DV4: =1/$V$2 -> 0.008547008547 | DW4: =IF(DG4="",DH4*DU4*DV4,DG4*DU4*DV4) -> 16.66369674 | DX4: =DW4*DE4 -> 16.66369674 | DY4: =DE4*DG4+DE4*DH4 -> 10000
A5: 1 | B5: 9 | C5: =(105*1250)*0.95 -> 124687.5 | F5: =IF(C5="",VLOOKUP(B5,bens!$A$8:$Q$75,13)*D5,VLOOKUP(B5,bens!$A$8:$Q$75,13)*C5) -> 24937.5 | G5: =VLOOKUP(B5,bens!$A$8:$Q$75,14) -> 12000 | H5: =VLOOKUP(B5,bens!$A$8:$Q$75,5)*0.12 -> 12.6 | I5: =VLOOKUP(B5,bens!$A$8:$Q$75,5)*0.12*$I$2 -> 37.422 | J5: =IF(C5="",VLOOKUP(B5,bens!$A$8:$Q$75,17)*Inventario!D5/Inventario!G5,VLOOKUP(B5,bens!$A$8:$Q$75,17)*Inventario!C5/Inventario!G5) -> 8.3125 | K5: 8.3125 | L5: =IF(C5="",(VLOOKUP(B5,bens!$A$8:$Q$75,16)*(D5+F5)/2)/(VLOOKUP(B5,bens!$A$8:$Q$75,15)),(VLOOKUP(B5,bens!$A$8:$Q$75,16)*(C5+F5)/2)/(VLOOKUP(B5,bens!$A$8:$Q$75,15))) -> 0.748125 | M5: =IF(C5="",($M$1*(D5+F5)/2)/(VLOOKUP(B5,bens!$A$8:$Q$75,15)),($M$1*(C5+F5)/2)/(VLOOKUP(B5,bens!$A$8:$Q$75,15))) -> 4.67578125 | N5: 37.422 | O5: 8.3125 | P5: 8.3125 | Q5: =IF(C5="",A5*$L$1*D5,A5*$L$1*C5) -> 935.15625 | R5: =IF(C5="",A5*($M$1*(D5+F5)/2),A5*($M$1*(C5+F5)/2)) -> 5610.9375 | S5: =VLOOKUP(B5,bens!$A$8:$Q$75,14)/VLOOKUP(B5,bens!$A$8:$Q$75,15) -> 10 | T5: 0.11419973 | U5: 0.008547008547 | V5: 121.7032379 | W5: 121.7032379 | X5: 124687.5 | Y5: 9975 | AA5: 1 | AB5: 59 | AC5: =(13000)*0.95 -> 12350 | AF5: =IF(AC5="",VLOOKUP(AB5,bens!$U$8:$AJ$170,12)*AD5,VLOOKUP(AB5,bens!$U$8:$AJ$170,12)*AC5) -> 2470 | AG5: =VLOOKUP(AB5,bens!$U$8:$AJ$170,13) -> 2000 | AH5: =IF(AC5="",VLOOKUP(AB5,bens!$U$8:$AJ$170,16)*Inventario!AD5/Inventario!AG5,VLOOKUP(AB5,bens!$U$8:$AJ$170,16)*Inventario!AC5/Inventario!AG5) -> 9.2625 | AI5: 4.94 | AJ5: =IF(AC5="",$AJ$1*((AD5+AF5)/2)/(VLOOKUP(AB5,bens!$U$8:$AJ$170,14)),$AJ$1*((AC5+AF5)/2)/(VLOOKUP(AB5,bens!$U$8:$AJ$170,14))) -> 0.277875 | AK5: =IF(AC5="",($AK$1*(AD5+AF5)/2)/(VLOOKUP(AB5,bens!$U$8:$AJ$170,14)),($AK$1*(AC5+AF5)/2)/(VLOOKUP(AB5,bens!$U$8:$AJ$170,14))) -> 2.77875 | AL5: 9.2625 | AM5: 4.94 | AN5: =IF(AC5="",AA5*$AJ$1*AD5,AA5*$AJ$1*AC5) -> 92.625 | AO5: =IF(AC5="",AA5*($AK$1*(AD5+AF5)/2),AA5*$AK$1*((AC5+AF5)/2)) -> 555.75 | AP5: =VLOOKUP(AB5,bens!$U$8:$AJ$17,13)/VLOOKUP(AB5,bens!$U$8:$AJ$17,14) -> 10 | AQ5: 0.11419973 | AR5: 0.008547008547 | AS5: 12.05441595 | AT5: 12.05441595 | AU5: 12350 | AX5: 1 | AY5: 3 | AZ5: =(800*70)*1.05 -> 58800 | BC5: =IF(AZ5="",VLOOKUP(AY5,bens!$AP$8:$AX$58,5)*BA5,VLOOKUP(AY5,bens!$AP$8:$AX$58,5)*AZ5) -> 29400 | BD5: =VLOOKUP(AY5,bens!$AP$8:$AX$58,6) -> 30 | BE5: =IF(AZ5="",VLOOKUP(AY5,bens!$AP$8:$AX$58,9)*Inventario!BA5/Inventario!BD5,VLOOKUP(AY5,bens!$AP$8:$AX$58,9)*Inventario!AZ5/Inventario!BD5) -> 196 | BF5: 980 | BG5: =IF(AZ5="",(VLOOKUP(AY5,bens!$AP$8:$AX$58,8)*((BA5+BC5)/2)),(VLOOKUP(AY5,bens!$AP$8:$AX$58,8)*((AZ5+BC5)/2))) -> 529.2 | BH5: =IF(AZ5="",((BA5+BC5)/2)*Inventario!$BH$1/Inventario!BD5,((AZ5+BC5)/2)*Inventario!$BH$1/Inventario!BD5) -> 110.25 | BI5: 196 | BJ5: 980 | BK5: =IF(AZ5="",AX5*((BA5+BC5)/2)*$BG$1,AX5*((AZ5+BC5)/2)*$BG$1) -> 154.35 | BL5: =IF(AZ5="",AX5*((BA5+BC5)/2)*$BH$1,AX5*((AZ5+BC5)/2)*$BH$1) -> 3307.5 | BM5: 30 | BN5: 0.04771395924 | BO5: 0.008547008547 | BP5: 23.9793231 | BQ5: 23.9793231 | BR5: 58800 | BS5: 11.46547695 | BT5: 12.51384615 | BV5: 1 | BW5: 5 | BX5: =85*25 -> 2125 | BY5: =(BX5+CP5)/(((261*8)+(52*4))/12) -> 11.10627178 | CP5: =SUM(CM5:CO5) -> 0 | CQ5: 2125 | CR5: 2125 | CS5: 0 | CT5: 1 | DE5: 1 | DF5: 5 | DG5: 10000 | DJ5: =IF(DG5="",VLOOKUP(DF5,bens!$BC$9:$BQ$44,8)*DH5,VLOOKUP(DF5,bens!$BC$9:$BQ$44,8)*DG5) -> 2000 | DK5: =VLOOKUP(DF5,bens!$BC$9:$BQ$44,9) -> 100000 | DL5: =IF(DG5="",VLOOKUP(DF5,bens!$BC$9:$BQ$44,15)*Inventario!DH5/Inventario!DK5,VLOOKUP(DF5,bens!$BC$9:$BQ$44,15)*Inventario!DG5/Inventario!DK5) -> 0.05 | DM5: 0.08 | DN5: =IF(DG5="",(VLOOKUP(DF5,bens!$BC$9:$BQ$44,14)*((DH5+DJ5)/2))/VLOOKUP(DF5,bens!$BC$9:$BQ$44,10),(VLOOKUP(DF5,bens!$BC$9:$BQ$44,14)*((DG5+DJ5)/2))/VLOOKUP(DF5,bens!$BC$9:$BQ$44,10)) -> 0.01666666667 | DO5: =IF(DG5="",(dados!$H$37*(DH5+DJ5)/2)/VLOOKUP(DF5,bens!$BC$9:$BQ$44,10),(dados!$H$37*(DG5+DJ5)/2))/VLOOKUP(DF5,bens!$BC$9:$BQ$44,10) -> 0.025 | DP5: 0.05 | DQ5: 0.08 | DR5: 0.01666666667 | DS5: 0.025 | DT5: =VLOOKUP(DF5,bens!$BC$9:$BQ$44,9)/VLOOKUP(DF5,bens!$BC$9:$BQ$44,10) -> 5.555555556 | DU5: =(((1+$U$2)^DT5)*$U2)/((1+$U$2)^DT5-1) -> 0.1949652519 | DV5: 0.008547008547 | DW5: 16.66369674 | DX5: 16.66369674 | DY5: 10000
A6: 1 | B6: 36 | C6: 38000 | F6: =IF(C6="",VLOOKUP(B6,bens!$A$8:$Q$75,13)*D6,VLOOKUP(B6,bens!$A$8:$Q$75,13)*C6) -> 7600 | G6: =VLOOKUP(B6,bens!$A$8:$Q$75,14) -> 4000 | H6: =VLOOKUP(B6,bens!$A$8:$Q$75,5)*0.12 -> 0 | I6: =VLOOKUP(B6,bens!$A$8:$Q$75,5)*0.12*$I$2 -> 0 | J6: =IF(C6="",VLOOKUP(B6,bens!$A$8:$Q$75,17)*Inventario!D6/Inventario!G6,VLOOKUP(B6,bens!$A$8:$Q$75,17)*Inventario!C6/Inventario!G6) -> 7.6 | K6: 7.6 | L6: =IF(C6="",(VLOOKUP(B6,bens!$A$8:$Q$75,16)*(D6+F6)/2)/(VLOOKUP(B6,bens!$A$8:$Q$75,15)),(VLOOKUP(B6,bens!$A$8:$Q$75,16)*(C6+F6)/2)/(VLOOKUP(B6,bens!$A$8:$Q$75,15))) -> 0.684 | M6: =IF(C6="",($M$1*(D6+F6)/2)/(VLOOKUP(B6,bens!$A$8:$Q$75,15)),($M$1*(C6+F6)/2)/(VLOOKUP(B6,bens!$A$8:$Q$75,15))) -> 4.275 | N6: 0 | O6: 7.6 | P6: 7.6 | Q6: 285 | R6: 1710 | S6: =VLOOKUP(B6,bens!$A$8:$Q$75,14)/VLOOKUP(B6,bens!$A$8:$Q$75,15) -> 10 | T6: 0.11419973 | U6: 0.008547008547 | V6: 37.0905106 | W6: 37.0905106 | X6: 38000 | Y6: 3040 | AA6: 1 | AB6: 112 | AC6: =(6500)*0.95 -> 6175 | AF6: =IF(AC6="",VLOOKUP(AB6,bens!$U$8:$AJ$170,12)*AD6,VLOOKUP(AB6,bens!$U$8:$AJ$170,12)*AC6) -> 1235 | AG6: =VLOOKUP(AB6,bens!$U$8:$AJ$170,13) -> 2000 | AH6: =IF(AC6="",VLOOKUP(AB6,bens!$U$8:$AJ$170,16)*Inventario!AD6/Inventario!AG6,VLOOKUP(AB6,bens!$U$8:$AJ$170,16)*Inventario!AC6/Inventario!AG6) -> 1.54375 | AI6: 2.47 | AJ6: =IF(AC6="",$AJ$1*((AD6+AF6)/2)/(VLOOKUP(AB6,bens!$U$8:$AJ$170,14)),$AJ$1*((AC6+AF6)/2)/(VLOOKUP(AB6,bens!$U$8:$AJ$170,14))) -> 0.1389375 | AK6: =IF(AC6="",($AK$1*(AD6+AF6)/2)/(VLOOKUP(AB6,bens!$U$8:$AJ$170,14)),($AK$1*(AC6+AF6)/2)/(VLOOKUP(AB6,bens!$U$8:$AJ$170,14))) -> 1.389375 | AL6: 1.54375 | AM6: 2.47 | AN6: 46.3125 | AO6: 277.875 | AP6: =VLOOKUP(AB6,bens!$U$8:$AJ$17,13)/VLOOKUP(AB6,bens!$U$8:$AJ$17,14) -> 10 | AQ6: 0.11419973 | AR6: 0.008547008547 | AS6: 6.027207973 | AT6: 6.027207973 | AU6: 6175 | AX6: 1 | AY6: 4 | AZ6: =(500*300)*1.05 -> 157500 | BC6: =IF(AZ6="",VLOOKUP(AY6,bens!$AP$8:$AX$58,5)*BA6,VLOOKUP(AY6,bens!$AP$8:$AX$58,5)*AZ6) -> 78750 | BD6: =VLOOKUP(AY6,bens!$AP$8:$AX$58,6) -> 30 | BE6: =IF(AZ6="",VLOOKUP(AY6,bens!$AP$8:$AX$58,9)*Inventario!BA6/Inventario!BD6,VLOOKUP(AY6,bens!$AP$8:$AX$58,9)*Inventario!AZ6/Inventario!BD6) -> 525 | BF6: 2625 | BG6: =IF(AZ6="",(VLOOKUP(AY6,bens!$AP$8:$AX$58,8)*((BA6+BC6)/2)),(VLOOKUP(AY6,bens!$AP$8:$AX$58,8)*((AZ6+BC6)/2))) -> 1417.5 | BH6: =IF(AZ6="",((BA6+BC6)/2)*Inventario!$BH$1/Inventario!BD6,((AZ6+BC6)/2)*Inventario!$BH$1/Inventario!BD6) -> 295.3125 | BI6: 525 | BJ6: 2625 | BK6: 413.4375 | BL6: 8859.375 | BM6: 30 | BN6: 0.04771395924 | BO6: 0.008547008547 | BP6: 64.23032974 | BQ6: 64.23032974 | BR6: 157500 | BS6: 30.71109898 | BT6: 33.51923077 | BW6: 1 | BY6: 0 | BZ6: 0 | CA6: 0 | CB6: 0 | CC6: 0 | CD6: 0 | CE6: 0 | CF6: 0 | CG6: 0 | CH6: 0 | CI6: 0 | CJ6: 0 | CK6: 0 | CL6: 0 | CM6: 0 | CN6: 0 | CO6: 0 | CP6: 0 | CQ6: 0 | CR6: =IF(CT6>0,(BX6+CP6)*CT6*BV6,(BX6+CP6)*12*BV6) -> 0 | CS6: =IF(CT6>0,CO6*BV6*CT6,CO6*BV6*12) -> 0 | DE6: 1 | DF6: 5 | DG6: 10000 | DJ6: =IF(DG6="",VLOOKUP(DF6,bens!$BC$9:$BQ$44,8)*DH6,VLOOKUP(DF6,bens!$BC$9:$BQ$44,8)*DG6) -> 2000 | DK6: =VLOOKUP(DF6,bens!$BC$9:$BQ$44,9) -> 100000 | DL6: =IF(DG6="",VLOOKUP(DF6,bens!$BC$9:$BQ$44,15)*Inventario!DH6/Inventario!DK6,VLOOKUP(DF6,bens!$BC$9:$BQ$44,15)*Inventario!DG6/Inventario!DK6) -> 0.05 | DM6: 0.08 | DN6: =IF(DG6="",(VLOOKUP(DF6,bens!$BC$9:$BQ$44,14)*((DH6+DJ6)/2))/VLOOKUP(DF6,bens!$BC$9:$BQ$44,10),(VLOOKUP(DF6,bens!$BC$9:$BQ$44,14)*((DG6+DJ6)/2))/VLOOKUP(DF6,bens!$BC$9:$BQ$44,10)) -> 0.01666666667 | DO6: =IF(DG6="",(dados!$H$37*(DH6+DJ6)/2)/VLOOKUP(DF6,bens!$BC$9:$BQ$44,10),(dados!$H$37*(DG6+DJ6)/2))/VLOOKUP(DF6,bens!$BC$9:$BQ$44,10) -> 0.025 | DP6: 0.05 | DQ6: 0.08 | DR6: 0.01666666667 | DS6: 0.025 | DT6: =VLOOKUP(DF6,bens!$BC$9:$BQ$44,9)/VLOOKUP(DF6,bens!$BC$9:$BQ$44,10) -> 5.555555556 | DU6: =(((1+$U$2)^DT6)*$U2)/((1+$U$2)^DT6-1) -> 0.1949652519 | DV6: 0.008547008547 | DW6: 16.66369674 | DX6: 16.66369674 | DY6: 10000
A7: 1 | B7: 23 | C7: 389500 | F7: =IF(C7="",VLOOKUP(B7,bens!$A$8:$Q$75,13)*D7,VLOOKUP(B7,bens!$A$8:$Q$75,13)*C7) -> 77900 | G7: =VLOOKUP(B7,bens!$A$8:$Q$75,14) -> 4000 | H7: =VLOOKUP(B7,bens!$A$8:$Q$75,5)*0.12 -> 18.6 | I7: =VLOOKUP(B7,bens!$A$8:$Q$75,5)*0.12*$I$2 -> 55.242 | J7: =IF(C7="",VLOOKUP(B7,bens!$A$8:$Q$75,17)*Inventario!D7/Inventario!G7,VLOOKUP(B7,bens!$A$8:$Q$75,17)*Inventario!C7/Inventario!G7) -> 68.1625 | K7: 77.9 | L7: =IF(C7="",(VLOOKUP(B7,bens!$A$8:$Q$75,16)*(D7+F7)/2)/(VLOOKUP(B7,bens!$A$8:$Q$75,15)),(VLOOKUP(B7,bens!$A$8:$Q$75,16)*(C7+F7)/2)/(VLOOKUP(B7,bens!$A$8:$Q$75,15))) -> 10.5165 | M7: =IF(C7="",($M$1*(D7+F7)/2)/(VLOOKUP(B7,bens!$A$8:$Q$75,15)),($M$1*(C7+F7)/2)/(VLOOKUP(B7,bens!$A$8:$Q$75,15))) -> 65.728125 | N7: 55.242 | O7: 68.1625 | P7: 77.9 | Q7: 2921.25 | R7: 17527.5 | S7: =VLOOKUP(B7,bens!$A$8:$Q$75,14)/VLOOKUP(B7,bens!$A$8:$Q$75,15) -> 15 | T7: 0.08070705429 | U7: 0.008547008547 | V7: 268.6786124 | W7: 268.6786124 | X7: 389500 | Y7: 31160 | AA7: 1 | AB7: 33 | AC7: 10925 | AF7: =IF(AC7="",VLOOKUP(AB7,bens!$U$8:$AJ$170,12)*AD7,VLOOKUP(AB7,bens!$U$8:$AJ$170,12)*AC7) -> 2185 | AG7: =VLOOKUP(AB7,bens!$U$8:$AJ$170,13) -> 1200 | AH7: =IF(AC7="",VLOOKUP(AB7,bens!$U$8:$AJ$170,16)*Inventario!AD7/Inventario!AG7,VLOOKUP(AB7,bens!$U$8:$AJ$170,16)*Inventario!AC7/Inventario!AG7) -> 7.283333333 | AI7: 7.283333333 | AJ7: =IF(AC7="",$AJ$1*((AD7+AF7)/2)/(VLOOKUP(AB7,bens!$U$8:$AJ$170,14)),$AJ$1*((AC7+AF7)/2)/(VLOOKUP(AB7,bens!$U$8:$AJ$170,14))) -> 0.4096875 | AK7: =IF(AC7="",($AK$1*(AD7+AF7)/2)/(VLOOKUP(AB7,bens!$U$8:$AJ$170,14)),($AK$1*(AC7+AF7)/2)/(VLOOKUP(AB7,bens!$U$8:$AJ$170,14))) -> 4.096875 | AL7: 7.283333333 | AM7: 7.283333333 | AN7: 81.9375 | AO7: 491.625 | AP7: =VLOOKUP(AB7,bens!$U$8:$AJ$17,13)/VLOOKUP(AB7,bens!$U$8:$AJ$17,14) -> 10 | AQ7: 0.11419973 | AR7: 0.008547008547 | AS7: 10.6635218 | AT7: 10.6635218 | AU7: 10925 | AX7: 1 | AY7: 5 | AZ7: =(2000)*1.05 -> 2100 | BC7: =IF(AZ7="",VLOOKUP(AY7,bens!$AP$8:$AX$58,5)*BA7,VLOOKUP(AY7,bens!$AP$8:$AX$58,5)*AZ7) -> 1050 | BD7: =VLOOKUP(AY7,bens!$AP$8:$AX$58,6) -> 30 | BE7: =IF(AZ7="",VLOOKUP(AY7,bens!$AP$8:$AX$58,9)*Inventario!BA7/Inventario!BD7,VLOOKUP(AY7,bens!$AP$8:$AX$58,9)*Inventario!AZ7/Inventario!BD7) -> 7 | BF7: 35 | BG7: =IF(AZ7="",(VLOOKUP(AY7,bens!$AP$8:$AX$58,8)*((BA7+BC7)/2)),(VLOOKUP(AY7,bens!$AP$8:$AX$58,8)*((AZ7+BC7)/2))) -> 18.9 | BH7: =IF(AZ7="",((BA7+BC7)/2)*Inventario!$BH$1/Inventario!BD7,((AZ7+BC7)/2)*Inventario!$BH$1/Inventario!BD7) -> 3.9375 | BI7: 7 | BJ7: 35 | BK7: 5.5125 | BL7: 118.125 | BM7: 30 | BN7: 0.04771395924 | BO7: 0.008547008547 | BP7: 0.8564043966 | BQ7: 0.8564043966 | BR7: 2100 | BS7: 0.4094813197 | BT7: 0.4469230769 | BW7: 1 | BY7: 0 | BZ7: 0 | CA7: 0 | CB7: 0 | CC7: 0 | CD7: 0 | CE7: 0 | CF7: 0 | CG7: 0 | CH7: 0 | CI7: 0 | CJ7: 0 | CK7: 0 | CL7: 0 | CM7: 0 | CN7: 0 | CO7: 0 | CP7: 0 | CQ7: 0 | CR7: 0 | CS7: 0 | DE7: 1 | DF7: 5 | DG7: 10000 | DJ7: =IF(DG7="",VLOOKUP(DF7,bens!$BC$9:$BQ$44,8)*DH7,VLOOKUP(DF7,bens!$BC$9:$BQ$44,8)*DG7) -> 2000 | DK7: =VLOOKUP(DF7,bens!$BC$9:$BQ$44,9) -> 100000 | DL7: =IF(DG7="",VLOOKUP(DF7,bens!$BC$9:$BQ$44,15)*Inventario!DH7/Inventario!DK7,VLOOKUP(DF7,bens!$BC$9:$BQ$44,15)*Inventario!DG7/Inventario!DK7) -> 0.05 | DM7: 0.08 | DN7: =IF(DG7="",(VLOOKUP(DF7,bens!$BC$9:$BQ$44,14)*((DH7+DJ7)/2))/VLOOKUP(DF7,bens!$BC$9:$BQ$44,10),(VLOOKUP(DF7,bens!$BC$9:$BQ$44,14)*((DG7+DJ7)/2))/VLOOKUP(DF7,bens!$BC$9:$BQ$44,10)) -> 0.01666666667 | DO7: =IF(DG7="",(dados!$H$37*(DH7+DJ7)/2)/VLOOKUP(DF7,bens!$BC$9:$BQ$44,10),(dados!$H$37*(DG7+DJ7)/2))/VLOOKUP(DF7,bens!$BC$9:$BQ$44,10) -> 0.025 | DP7: 0.05 | DQ7: 0.08 | DR7: 0.01666666667 | DS7: 0.025 | DT7: =VLOOKUP(DF7,bens!$BC$9:$BQ$44,9)/VLOOKUP(DF7,bens!$BC$9:$BQ$44,10) -> 5.555555556 | DU7: =(((1+$U$2)^DT7)*$U2)/((1+$U$2)^DT7-1) -> 0.1949652519 | DV7: 0.008547008547 | DW7: 16.66369674 | DX7: 16.66369674 | DY7: 10000
B8: 1 | F8: =IF(C8="",VLOOKUP(B8,bens!$A$8:$Q$75,13)*D8,VLOOKUP(B8,bens!$A$8:$Q$75,13)*C8) -> 0 | G8: =VLOOKUP(B8,bens!$A$8:$Q$75,14) -> 12000 | H8: =VLOOKUP(B8,bens!$A$8:$Q$75,5)*0.12 -> 0 | I8: =VLOOKUP(B8,bens!$A$8:$Q$75,5)*0.12*$I$2 -> 0 | J8: =IF(C8="",VLOOKUP(B8,bens!$A$8:$Q$75,17)*Inventario!D8/Inventario!G8,VLOOKUP(B8,bens!$A$8:$Q$75,17)*Inventario!C8/Inventario!G8) -> 0 | K8: 0 | L8: =IF(C8="",(VLOOKUP(B8,bens!$A$8:$Q$75,16)*(D8+F8)/2)/(VLOOKUP(B8,bens!$A$8:$Q$75,15)),(VLOOKUP(B8,bens!$A$8:$Q$75,16)*(C8+F8)/2)/(VLOOKUP(B8,bens!$A$8:$Q$75,15))) -> 0 | M8: =IF(C8="",($M$1*(D8+F8)/2)/(VLOOKUP(B8,bens!$A$8:$Q$75,15)),($M$1*(C8+F8)/2)/(VLOOKUP(B8,bens!$A$8:$Q$75,15))) -> 0 | N8: 0 | O8: 0 | P8: 0 | Q8: 0 | R8: 0 | S8: =VLOOKUP(B8,bens!$A$8:$Q$75,14)/VLOOKUP(B8,bens!$A$8:$Q$75,15) -> 10 | T8: 0.11419973 | U8: 0.008547008547 | V8: 0 | W8: 0 | X8: 0 | Y8: 0 | AA8: 1 | AB8: 72 | AC8: 34200 | AF8: =IF(AC8="",VLOOKUP(AB8,bens!$U$8:$AJ$170,12)*AD8,VLOOKUP(AB8,bens!$U$8:$AJ$170,12)*AC8) -> 6840 | AG8: =VLOOKUP(AB8,bens!$U$8:$AJ$170,13) -> 1500 | AH8: =IF(AC8="",VLOOKUP(AB8,bens!$U$8:$AJ$170,16)*Inventario!AD8/Inventario!AG8,VLOOKUP(AB8,bens!$U$8:$AJ$170,16)*Inventario!AC8/Inventario!AG8) -> 15.96 | AI8: 18.24 | AJ8: =IF(AC8="",$AJ$1*((AD8+AF8)/2)/(VLOOKUP(AB8,bens!$U$8:$AJ$170,14)),$AJ$1*((AC8+AF8)/2)/(VLOOKUP(AB8,bens!$U$8:$AJ$170,14))) -> 1.026 | AK8: =IF(AC8="",($AK$1*(AD8+AF8)/2)/(VLOOKUP(AB8,bens!$U$8:$AJ$170,14)),($AK$1*(AC8+AF8)/2)/(VLOOKUP(AB8,bens!$U$8:$AJ$170,14))) -> 10.26 | AL8: 15.96 | AM8: 18.24 | AN8: 256.5 | AO8: 1539 | AP8: =VLOOKUP(AB8,bens!$U$8:$AJ$17,13)/VLOOKUP(AB8,bens!$U$8:$AJ$17,14) -> 10 | AQ8: 0.11419973 | AR8: 0.008547008547 | AS8: 33.38145954 | AT8: 33.38145954 | AU8: 34200 | AX8: 1 | AY8: 6 | AZ8: =(1000)*1.05 -> 1050 | BC8: =IF(AZ8="",VLOOKUP(AY8,bens!$AP$8:$AX$58,5)*BA8,VLOOKUP(AY8,bens!$AP$8:$AX$58,5)*AZ8) -> 525 | BD8: =VLOOKUP(AY8,bens!$AP$8:$AX$58,6) -> 30 | BE8: =IF(AZ8="",VLOOKUP(AY8,bens!$AP$8:$AX$58,9)*Inventario!BA8/Inventario!BD8,VLOOKUP(AY8,bens!$AP$8:$AX$58,9)*Inventario!AZ8/Inventario!BD8) -> 3.5 | BF8: 17.5 | BG8: =IF(AZ8="",(VLOOKUP(AY8,bens!$AP$8:$AX$58,8)*((BA8+BC8)/2)),(VLOOKUP(AY8,bens!$AP$8:$AX$58,8)*((AZ8+BC8)/2))) -> 9.45 | BH8: =IF(AZ8="",((BA8+BC8)/2)*Inventario!$BH$1/Inventario!BD8,((AZ8+BC8)/2)*Inventario!$BH$1/Inventario!BD8) -> 1.96875 | BI8: 3.5 | BJ8: 17.5 | BK8: 2.75625 | BL8: 59.0625 | BM8: 30 | BN8: 0.04771395924 | BO8: 0.008547008547 | BP8: 0.4282021983 | BQ8: 0.4282021983 | BR8: 1050 | BS8: 0.2047406598 | BT8: 0.2234615385 | BW8: 1 | BY8: 0 | BZ8: 0 | CA8: 0 | CB8: 0 | CC8: 0 | CD8: 0 | CE8: 0 | CF8: 0 | CG8: 0 | CH8: 0 | CI8: 0 | CJ8: 0 | CK8: 0 | CL8: 0 | CM8: 0 | CN8: 0 | CO8: 0 | CP8: 0 | CQ8: 0 | CR8: 0 | CS8: 0 | DE8: 1 | DF8: 5 | DG8: 10000 | DJ8: =IF(DG8="",VLOOKUP(DF8,bens!$BC$9:$BQ$44,8)*DH8,VLOOKUP(DF8,bens!$BC$9:$BQ$44,8)*DG8) -> 2000 | DK8: =VLOOKUP(DF8,bens!$BC$9:$BQ$44,9) -> 100000 | DL8: =IF(DG8="",VLOOKUP(DF8,bens!$BC$9:$BQ$44,15)*Inventario!DH8/Inventario!DK8,VLOOKUP(DF8,bens!$BC$9:$BQ$44,15)*Inventario!DG8/Inventario!DK8) -> 0.05 | DM8: 0.08 | DN8: =IF(DG8="",(VLOOKUP(DF8,bens!$BC$9:$BQ$44,14)*((DH8+DJ8)/2))/VLOOKUP(DF8,bens!$BC$9:$BQ$44,10),(VLOOKUP(DF8,bens!$BC$9:$BQ$44,14)*((DG8+DJ8)/2))/VLOOKUP(DF8,bens!$BC$9:$BQ$44,10)) -> 0.01666666667 | DO8: =IF(DG8="",(dados!$H$37*(DH8+DJ8)/2)/VLOOKUP(DF8,bens!$BC$9:$BQ$44,10),(dados!$H$37*(DG8+DJ8)/2))/VLOOKUP(DF8,bens!$BC$9:$BQ$44,10) -> 0.025 | DP8: 0.05 | DQ8: 0.08 | DR8: 0.01666666667 | DS8: 0.025 | DT8: =VLOOKUP(DF8,bens!$BC$9:$BQ$44,9)/VLOOKUP(DF8,bens!$BC$9:$BQ$44,10) -> 5.555555556 | DU8: =(((1+$U$2)^DT8)*$U2)/((1+$U$2)^DT8-1) -> 0.1949652519 | DV8: 0.008547008547 | DW8: 16.66369674 | DX8: 16.66369674 | DY8: 10000
B9: 1 | F9: =IF(C9="",VLOOKUP(B9,bens!$A$8:$Q$75,13)*D9,VLOOKUP(B9,bens!$A$8:$Q$75,13)*C9) -> 0 | G9: =VLOOKUP(B9,bens!$A$8:$Q$75,14) -> 12000 | H9: =VLOOKUP(B9,bens!$A$8:$Q$75,5)*0.12 -> 0 | I9: =VLOOKUP(B9,bens!$A$8:$Q$75,5)*0.12*$I$2 -> 0 | J9: =IF(C9="",VLOOKUP(B9,bens!$A$8:$Q$75,17)*Inventario!D9/Inventario!G9,VLOOKUP(B9,bens!$A$8:$Q$75,17)*Inventario!C9/Inventario!G9) -> 0 | K9: 0 | L9: =IF(C9="",(VLOOKUP(B9,bens!$A$8:$Q$75,16)*(D9+F9)/2)/(VLOOKUP(B9,bens!$A$8:$Q$75,15)),(VLOOKUP(B9,bens!$A$8:$Q$75,16)*(C9+F9)/2)/(VLOOKUP(B9,bens!$A$8:$Q$75,15))) -> 0 | M9: =IF(C9="",($M$1*(D9+F9)/2)/(VLOOKUP(B9,bens!$A$8:$Q$75,15)),($M$1*(C9+F9)/2)/(VLOOKUP(B9,bens!$A$8:$Q$75,15))) -> 0 | N9: 0 | O9: 0 | P9: 0 | Q9: 0 | R9: 0 | S9: =VLOOKUP(B9,bens!$A$8:$Q$75,14)/VLOOKUP(B9,bens!$A$8:$Q$75,15) -> 10 | T9: 0.11419973 | U9: 0.008547008547 | V9: 0 | W9: 0 | X9: 0 | Y9: 0 | AA9: 1 | AB9: 118 | AC9: =(67000)*0.95 -> 63650 | AF9: =IF(AC9="",VLOOKUP(AB9,bens!$U$8:$AJ$170,12)*AD9,VLOOKUP(AB9,bens!$U$8:$AJ$170,12)*AC9) -> 12730 | AG9: =VLOOKUP(AB9,bens!$U$8:$AJ$170,13) -> 2000 | AH9: =IF(AC9="",VLOOKUP(AB9,bens!$U$8:$AJ$170,16)*Inventario!AD9/Inventario!AG9,VLOOKUP(AB9,bens!$U$8:$AJ$170,16)*Inventario!AC9/Inventario!AG9) -> 15.9125 | AI9: 25.46 | AJ9: =IF(AC9="",$AJ$1*((AD9+AF9)/2)/(VLOOKUP(AB9,bens!$U$8:$AJ$170,14)),$AJ$1*((AC9+AF9)/2)/(VLOOKUP(AB9,bens!$U$8:$AJ$170,14))) -> 1.432125 | AK9: =IF(AC9="",($AK$1*(AD9+AF9)/2)/(VLOOKUP(AB9,bens!$U$8:$AJ$170,14)),($AK$1*(AC9+AF9)/2)/(VLOOKUP(AB9,bens!$U$8:$AJ$170,14))) -> 14.32125 | AL9: 15.9125 | AM9: 25.46 | AN9: 477.375 | AO9: 2864.25 | AP9: =VLOOKUP(AB9,bens!$U$8:$AJ$17,13)/VLOOKUP(AB9,bens!$U$8:$AJ$17,14) -> 10 | AQ9: 0.11419973 | AR9: 0.008547008547 | AS9: 62.12660526 | AT9: 62.12660526 | AU9: 63650 | AX9: 1 | AY9: 7 | AZ9: =(1000)*1.05 -> 1050 | BC9: =IF(AZ9="",VLOOKUP(AY9,bens!$AP$8:$AX$58,5)*BA9,VLOOKUP(AY9,bens!$AP$8:$AX$58,5)*AZ9) -> 525 | BD9: =VLOOKUP(AY9,bens!$AP$8:$AX$58,6) -> 30 | BE9: =IF(AZ9="",VLOOKUP(AY9,bens!$AP$8:$AX$58,9)*Inventario!BA9/Inventario!BD9,VLOOKUP(AY9,bens!$AP$8:$AX$58,9)*Inventario!AZ9/Inventario!BD9) -> 3.5 | BF9: 17.5 | BG9: =IF(AZ9="",(VLOOKUP(AY9,bens!$AP$8:$AX$58,8)*((BA9+BC9)/2)),(VLOOKUP(AY9,bens!$AP$8:$AX$58,8)*((AZ9+BC9)/2))) -> 9.45 | BH9: =IF(AZ9="",((BA9+BC9)/2)*Inventario!$BH$1/Inventario!BD9,((AZ9+BC9)/2)*Inventario!$BH$1/Inventario!BD9) -> 1.96875 | BI9: 3.5 | BJ9: 17.5 | BK9: 2.75625 | BL9: 59.0625 | BM9: 30 | BN9: 0.04771395924 | BO9: 0.008547008547 | BP9: 0.4282021983 | BQ9: 0.4282021983 | BR9: 1050 | BS9: 0.2047406598 | BT9: 0.2234615385 | BW9: 1 | BY9: 0 | BZ9: 0 | CA9: 0 | CB9: 0 | CC9: 0 | CD9: 0 | CE9: 0 | CF9: 0 | CG9: 0 | CH9: 0 | CI9: 0 | CJ9: 0 | CK9: 0 | CL9: 0 | CM9: 0 | CN9: 0 | CO9: 0 | CP9: 0 | CQ9: 0 | CR9: 0 | CS9: 0 | DE9: 1 | DF9: 5 | DG9: 10000 | DJ9: =IF(DG9="",VLOOKUP(DF9,bens!$BC$9:$BQ$44,8)*DH9,VLOOKUP(DF9,bens!$BC$9:$BQ$44,8)*DG9) -> 2000 | DK9: =VLOOKUP(DF9,bens!$BC$9:$BQ$44,9) -> 100000 | DL9: =IF(DG9="",VLOOKUP(DF9,bens!$BC$9:$BQ$44,15)*Inventario!DH9/Inventario!DK9,VLOOKUP(DF9,bens!$BC$9:$BQ$44,15)*Inventario!DG9/Inventario!DK9) -> 0.05 | DM9: 0.08 | DN9: =IF(DG9="",(VLOOKUP(DF9,bens!$BC$9:$BQ$44,14)*((DH9+DJ9)/2))/VLOOKUP(DF9,bens!$BC$9:$BQ$44,10),(VLOOKUP(DF9,bens!$BC$9:$BQ$44,14)*((DG9+DJ9)/2))/VLOOKUP(DF9,bens!$BC$9:$BQ$44,10)) -> 0.01666666667 | DO9: =IF(DG9="",(dados!$H$37*(DH9+DJ9)/2)/VLOOKUP(DF9,bens!$BC$9:$BQ$44,10),(dados!$H$37*(DG9+DJ9)/2))/VLOOKUP(DF9,bens!$BC$9:$BQ$44,10) -> 0.025 | DP9: 0.05 | DQ9: 0.08 | DR9: 0.01666666667 | DS9: 0.025 | DT9: =VLOOKUP(DF9,bens!$BC$9:$BQ$44,9)/VLOOKUP(DF9,bens!$BC$9:$BQ$44,10) -> 5.555555556 | DU9: =(((1+$U$2)^DT9)*$U2)/((1+$U$2)^DT9-1) -> 0.1949652519 | DV9: 0.008547008547 | DW9: 16.66369674 | DX9: 16.66369674 | DY9: 10000
B10: 1 | F10: =IF(C10="",VLOOKUP(B10,bens!$A$8:$Q$75,13)*D10,VLOOKUP(B10,bens!$A$8:$Q$75,13)*C10) -> 0 | G10: =VLOOKUP(B10,bens!$A$8:$Q$75,14) -> 12000 | H10: =VLOOKUP(B10,bens!$A$8:$Q$75,5)*0.12 -> 0 | I10: =VLOOKUP(B10,bens!$A$8:$Q$75,5)*0.12*$I$2 -> 0 | J10: =IF(C10="",VLOOKUP(B10,bens!$A$8:$Q$75,17)*Inventario!D10/Inventario!G10,VLOOKUP(B10,bens!$A$8:$Q$75,17)*Inventario!C10/Inventario!G10) -> 0 | K10: 0 | L10: =IF(C10="",(VLOOKUP(B10,bens!$A$8:$Q$75,16)*(D10+F10)/2)/(VLOOKUP(B10,bens!$A$8:$Q$75,15)),(VLOOKUP(B10,bens!$A$8:$Q$75,16)*(C10+F10)/2)/(VLOOKUP(B10,bens!$A$8:$Q$75,15))) -> 0 | M10: =IF(C10="",($M$1*(D10+F10)/2)/(VLOOKUP(B10,bens!$A$8:$Q$75,15)),($M$1*(C10+F10)/2)/(VLOOKUP(B10,bens!$A$8:$Q$75,15))) -> 0 | N10: 0 | O10: 0 | P10: 0 | Q10: 0 | R10: 0 | S10: =VLOOKUP(B10,bens!$A$8:$Q$75,14)/VLOOKUP(B10,bens!$A$8:$Q$75,15) -> 10 | T10: 0.11419973 | U10: 0.008547008547 | V10: 0 | W10: 0 | X10: 0 | Y10: 0 | AA10: 1 | AB10: 88 | AC10: =(12000*9)*0.95 -> 102600 | AF10: =IF(AC10="",VLOOKUP(AB10,bens!$U$8:$AJ$170,12)*AD10,VLOOKUP(AB10,bens!$U$8:$AJ$170,12)*AC10) -> 20520 | AG10: =VLOOKUP(AB10,bens!$U$8:$AJ$170,13) -> 1500 | AH10: =IF(AC10="",VLOOKUP(AB10,bens!$U$8:$AJ$170,16)*Inventario!AD10/Inventario!AG10,VLOOKUP(AB10,bens!$U$8:$AJ$170,16)*Inventario!AC10/Inventario!AG10) -> 51.3 | AI10: 54.72 | AJ10: =IF(AC10="",$AJ$1*((AD10+AF10)/2)/(VLOOKUP(AB10,bens!$U$8:$AJ$170,14)),$AJ$1*((AC10+AF10)/2)/(VLOOKUP(AB10,bens!$U$8:$AJ$170,14))) -> 3.078 | AK10: =IF(AC10="",($AK$1*(AD10+AF10)/2)/(VLOOKUP(AB10,bens!$U$8:$AJ$170,14)),($AK$1*(AC10+AF10)/2)/(VLOOKUP(AB10,bens!$U$8:$AJ$170,14))) -> 30.78 | AL10: 51.3 | AM10: 54.72 | AN10: 769.5 | AO10: 4617 | AP10: =VLOOKUP(AB10,bens!$U$8:$AJ$17,13)/VLOOKUP(AB10,bens!$U$8:$AJ$17,14) -> 10 | AQ10: 0.11419973 | AR10: 0.008547008547 | AS10: 100.1443786 | AT10: 100.1443786 | AU10: 102600 | AX10: 1 | AY10: 8 | AZ10: =(10000)*1.05 -> 10500 | BC10: =IF(AZ10="",VLOOKUP(AY10,bens!$AP$8:$AX$58,5)*BA10,VLOOKUP(AY10,bens!$AP$8:$AX$58,5)*AZ10) -> 5250 | BD10: =VLOOKUP(AY10,bens!$AP$8:$AX$58,6) -> 30 | BE10: =IF(AZ10="",VLOOKUP(AY10,bens!$AP$8:$AX$58,9)*Inventario!BA10/Inventario!BD10,VLOOKUP(AY10,bens!$AP$8:$AX$58,9)*Inventario!AZ10/Inventario!BD10) -> 35 | BF10: 175 | BG10: =IF(AZ10="",(VLOOKUP(AY10,bens!$AP$8:$AX$58,8)*((BA10+BC10)/2)),(VLOOKUP(AY10,bens!$AP$8:$AX$58,8)*((AZ10+BC10)/2))) -> 94.5 | BH10: =IF(AZ10="",((BA10+BC10)/2)*Inventario!$BH$1/Inventario!BD10,((AZ10+BC10)/2)*Inventario!$BH$1/Inventario!BD10) -> 19.6875 | BI10: 35 | BJ10: 175 | BK10: 27.5625 | BL10: 590.625 | BM10: 30 | BN10: 0.04771395924 | BO10: 0.008547008547 | BP10: 4.282021983 | BQ10: 4.282021983 | BR10: 10500 | BS10: 2.047406598 | BT10: 2.234615385 | BW10: 1 | BY10: 0 | BZ10: 0 | CA10: 0 | CB10: 0 | CC10: 0 | CD10: 0 | CE10: 0 | CF10: 0 | CG10: 0 | CH10: 0 | CI10: 0 | CJ10: 0 | CK10: 0 | CL10: 0 | CM10: 0 | CN10: 0 | CO10: 0 | CP10: 0 | CQ10: 0 | CR10: 0 | CS10: 0 | DE10: 1 | DF10: 5 | DG10: 10000 | DJ10: =IF(DG10="",VLOOKUP(DF10,bens!$BC$9:$BQ$44,8)*DH10,VLOOKUP(DF10,bens!$BC$9:$BQ$44,8)*DG10) -> 2000 | DK10: =VLOOKUP(DF10,bens!$BC$9:$BQ$44,9) -> 100000 | DL10: =IF(DG10="",VLOOKUP(DF10,bens!$BC$9:$BQ$44,15)*Inventario!DH10/Inventario!DK10,VLOOKUP(DF10,bens!$BC$9:$BQ$44,15)*Inventario!DG10/Inventario!DK10) -> 0.05 | DM10: 0.08 | DN10: =IF(DG10="",(VLOOKUP(DF10,bens!$BC$9:$BQ$44,14)*((DH10+DJ10)/2))/VLOOKUP(DF10,bens!$BC$9:$BQ$44,10),(VLOOKUP(DF10,bens!$BC$9:$BQ$44,14)*((DG10+DJ10)/2))/VLOOKUP(DF10,bens!$BC$9:$BQ$44,10)) -> 0.01666666667 | DO10: =IF(DG10="",(dados!$H$37*(DH10+DJ10)/2)/VLOOKUP(DF10,bens!$BC$9:$BQ$44,10),(dados!$H$37*(DG10+DJ10)/2))/VLOOKUP(DF10,bens!$BC$9:$BQ$44,10) -> 0.025 | DP10: 0.05 | DQ10: 0.08 | DR10: 0.01666666667 | DS10: 0.025 | DT10: =VLOOKUP(DF10,bens!$BC$9:$BQ$44,9)/VLOOKUP(DF10,bens!$BC$9:$BQ$44,10) -> 5.555555556 | DU10: =(((1+$U$2)^DT10)*$U2)/((1+$U$2)^DT10-1) -> 0.1949652519 | DV10: 0.008547008547 | DW10: 16.66369674 | DX10: 16.66369674 | DY10: 10000
B11: 1 | F11: =IF(C11="",VLOOKUP(B11,bens!$A$8:$Q$75,13)*D11,VLOOKUP(B11,bens!$A$8:$Q$75,13)*C11) -> 0 | G11: =VLOOKUP(B11,bens!$A$8:$Q$75,14) -> 12000 | H11: =VLOOKUP(B11,bens!$A$8:$Q$75,5)*0.12 -> 0 | I11: =VLOOKUP(B11,bens!$A$8:$Q$75,5)*0.12*$I$2 -> 0 | J11: =IF(C11="",VLOOKUP(B11,bens!$A$8:$Q$75,17)*Inventario!D11/Inventario!G11,VLOOKUP(B11,bens!$A$8:$Q$75,17)*Inventario!C11/Inventario!G11) -> 0 | K11: 0 | L11: =IF(C11="",(VLOOKUP(B11,bens!$A$8:$Q$75,16)*(D11+F11)/2)/(VLOOKUP(B11,bens!$A$8:$Q$75,15)),(VLOOKUP(B11,bens!$A$8:$Q$75,16)*(C11+F11)/2)/(VLOOKUP(B11,bens!$A$8:$Q$75,15))) -> 0 | M11: =IF(C11="",($M$1*(D11+F11)/2)/(VLOOKUP(B11,bens!$A$8:$Q$75,15)),($M$1*(C11+F11)/2)/(VLOOKUP(B11,bens!$A$8:$Q$75,15))) -> 0 | N11: 0 | O11: 0 | P11: 0 | Q11: 0 | R11: 0 | S11: =VLOOKUP(B11,bens!$A$8:$Q$75,14)/VLOOKUP(B11,bens!$A$8:$Q$75,15) -> 10 | T11: 0.11419973 | U11: 0.008547008547 | V11: 0 | W11: 0 | X11: 0 | Y11: 0 | AA11: 0 | AB11: 1 | AF11: =IF(AC11="",VLOOKUP(AB11,bens!$U$8:$AJ$170,12)*AD11,VLOOKUP(AB11,bens!$U$8:$AJ$170,12)*AC11) -> 0 | AG11: =VLOOKUP(AB11,bens!$U$8:$AJ$170,13) -> 2000 | AH11: =IF(AC11="",VLOOKUP(AB11,bens!$U$8:$AJ$170,16)*Inventario!AD11/Inventario!AG11,VLOOKUP(AB11,bens!$U$8:$AJ$170,16)*Inventario!AC11/Inventario!AG11) -> 0 | AI11: 0 | AJ11: =IF(AC11="",$AJ$1*((AD11+AF11)/2)/(VLOOKUP(AB11,bens!$U$8:$AJ$170,14)),$AJ$1*((AC11+AF11)/2)/(VLOOKUP(AB11,bens!$U$8:$AJ$170,14))) -> 0 | AK11: =IF(AC11="",($AK$1*(AD11+AF11)/2)/(VLOOKUP(AB11,bens!$U$8:$AJ$170,14)),($AK$1*(AC11+AF11)/2)/(VLOOKUP(AB11,bens!$U$8:$AJ$170,14))) -> 0 | AL11: 0 | AM11: 0 | AN11: 0 | AO11: 0 | AP11: =VLOOKUP(AB11,bens!$U$8:$AJ$17,13)/VLOOKUP(AB11,bens!$U$8:$AJ$17,14) -> 10 | AQ11: 0.11419973 | AR11: 0.008547008547 | AS11: 0 | AT11: 0 | AU11: 0 | AY11: 1 | BC11: =IF(AZ11="",VLOOKUP(AY11,bens!$AP$8:$AX$58,5)*BA11,VLOOKUP(AY11,bens!$AP$8:$AX$58,5)*AZ11) -> 0 | BD11: =VLOOKUP(AY11,bens!$AP$8:$AX$58,6) -> 30 | BE11: =IF(AZ11="",VLOOKUP(AY11,bens!$AP$8:$AX$58,9)*Inventario!BA11/Inventario!BD11,VLOOKUP(AY11,bens!$AP$8:$AX$58,9)*Inventario!AZ11/Inventario!BD11) -> 0 | BF11: 0 | BG11: =IF(AZ11="",(VLOOKUP(AY11,bens!$AP$8:$AX$58,8)*((BA11+BC11)/2)),(VLOOKUP(AY11,bens!$AP$8:$AX$58,8)*((AZ11+BC11)/2))) -> 0 | BH11: =IF(AZ11="",((BA11+BC11)/2)*Inventario!$BH$1/Inventario!BD11,((AZ11+BC11)/2)*Inventario!$BH$1/Inventario!BD11) -> 0 | BI11: 0 | BJ11: 0 | BK11: 0 | BL11: 0 | BM11: 30 | BN11: 0.04771395924 | BO11: 0.008547008547 | BP11: 0 | BQ11: 0 | BR11: 0 | BS11: 0 | BT11: 0 | BW11: 1 | BY11: 0 | BZ11: 0 | CA11: 0 | CB11: 0 | CC11: 0 | CD11: 0 | CE11: 0 | CF11: 0 | CG11: 0 | CH11: 0 | CI11: 0 | CJ11: 0 | CK11: 0 | CL11: 0 | CM11: 0 | CN11: 0 | CO11: 0 | CP11: 0 | CQ11: 0 | CR11: 0 | CS11: 0 | DE11: 1 | DF11: 5 | DG11: 10000 | DJ11: =IF(DG11="",VLOOKUP(DF11,bens!$BC$9:$BQ$44,8)*DH11,VLOOKUP(DF11,bens!$BC$9:$BQ$44,8)*DG11) -> 2000 | DK11: =VLOOKUP(DF11,bens!$BC$9:$BQ$44,9) -> 100000 | DL11: =IF(DG11="",VLOOKUP(DF11,bens!$BC$9:$BQ$44,15)*Inventario!DH11/Inventario!DK11,VLOOKUP(DF11,bens!$BC$9:$BQ$44,15)*Inventario!DG11/Inventario!DK11) -> 0.05 | DM11: 0.08 | DN11: =IF(DG11="",(VLOOKUP(DF11,bens!$BC$9:$BQ$44,14)*((DH11+DJ11)/2))/VLOOKUP(DF11,bens!$BC$9:$BQ$44,10),(VLOOKUP(DF11,bens!$BC$9:$BQ$44,14)*((DG11+DJ11)/2))/VLOOKUP(DF11,bens!$BC$9:$BQ$44,10)) -> 0.01666666667 | DO11: =IF(DG11="",(dados!$H$37*(DH11+DJ11)/2)/VLOOKUP(DF11,bens!$BC$9:$BQ$44,10),(dados!$H$37*(DG11+DJ11)/2))/VLOOKUP(DF11,bens!$BC$9:$BQ$44,10) -> 0.025 | DP11: 0.05 | DQ11: 0.08 | DR11: 0.01666666667 | DS11: 0.025 | DT11: =VLOOKUP(DF11,bens!$BC$9:$BQ$44,9)/VLOOKUP(DF11,bens!$BC$9:$BQ$44,10) -> 5.555555556 | DU11: =(((1+$U$2)^DT11)*$U2)/((1+$U$2)^DT11-1) -> 0.1949652519 | DV11: 0.008547008547 | DW11: 16.66369674 | DX11: 16.66369674 | DY11: 10000
B12: 1 | F12: =IF(C12="",VLOOKUP(B12,bens!$A$8:$Q$75,13)*D12,VLOOKUP(B12,bens!$A$8:$Q$75,13)*C12) -> 0 | G12: =VLOOKUP(B12,bens!$A$8:$Q$75,14) -> 12000 | H12: =VLOOKUP(B12,bens!$A$8:$Q$75,5)*0.12 -> 0 | I12: =VLOOKUP(B12,bens!$A$8:$Q$75,5)*0.12*$I$2 -> 0 | J12: =IF(C12="",VLOOKUP(B12,bens!$A$8:$Q$75,17)*Inventario!D12/Inventario!G12,VLOOKUP(B12,bens!$A$8:$Q$75,17)*Inventario!C12/Inventario!G12) -> 0 | K12: 0 | L12: =IF(C12="",(VLOOKUP(B12,bens!$A$8:$Q$75,16)*(D12+F12)/2)/(VLOOKUP(B12,bens!$A$8:$Q$75,15)),(VLOOKUP(B12,bens!$A$8:$Q$75,16)*(C12+F12)/2)/(VLOOKUP(B12,bens!$A$8:$Q$75,15))) -> 0 | M12: =IF(C12="",($M$1*(D12+F12)/2)/(VLOOKUP(B12,bens!$A$8:$Q$75,15)),($M$1*(C12+F12)/2)/(VLOOKUP(B12,bens!$A$8:$Q$75,15))) -> 0 | N12: 0 | O12: 0 | P12: 0 | Q12: 0 | R12: 0 | S12: =VLOOKUP(B12,bens!$A$8:$Q$75,14)/VLOOKUP(B12,bens!$A$8:$Q$75,15) -> 10 | T12: 0.11419973 | U12: 0.008547008547 | V12: 0 | W12: 0 | X12: 0 | Y12: 0 | AA12: 1 | AB12: 69 | AC12: =(10000*9)*0.95 -> 85500 | AF12: =IF(AC12="",VLOOKUP(AB12,bens!$U$8:$AJ$170,12)*AD12,VLOOKUP(AB12,bens!$U$8:$AJ$170,12)*AC12) -> 17100 | AG12: =VLOOKUP(AB12,bens!$U$8:$AJ$170,13) -> 2000 | AH12: =IF(AC12="",VLOOKUP(AB12,bens!$U$8:$AJ$170,16)*Inventario!AD12/Inventario!AG12,VLOOKUP(AB12,bens!$U$8:$AJ$170,16)*Inventario!AC12/Inventario!AG12) -> 21.375 | AI12: 34.2 | AJ12: =IF(AC12="",$AJ$1*((AD12+AF12)/2)/(VLOOKUP(AB12,bens!$U$8:$AJ$170,14)),$AJ$1*((AC12+AF12)/2)/(VLOOKUP(AB12,bens!$U$8:$AJ$170,14))) -> 1.92375 | AK12: =IF(AC12="",($AK$1*(AD12+AF12)/2)/(VLOOKUP(AB12,bens!$U$8:$AJ$170,14)),($AK$1*(AC12+AF12)/2)/(VLOOKUP(AB12,bens!$U$8:$AJ$170,14))) -> 19.2375 | AL12: 21.375 | AM12: 34.2 | AN12: 641.25 | AO12: 3847.5 | AP12: =VLOOKUP(AB12,bens!$U$8:$AJ$17,13)/VLOOKUP(AB12,bens!$U$8:$AJ$17,14) -> 10 | AQ12: 0.11419973 | AR12: 0.008547008547 | AS12: 83.45364886 | AT12: 83.45364886 | AU12: 85500 | AY12: 1 | BC12: =IF(AZ12="",VLOOKUP(AY12,bens!$AP$8:$AX$58,5)*BA12,VLOOKUP(AY12,bens!$AP$8:$AX$58,5)*AZ12) -> 0 | BD12: =VLOOKUP(AY12,bens!$AP$8:$AX$58,6) -> 30 | BE12: =IF(AZ12="",VLOOKUP(AY12,bens!$AP$8:$AX$58,9)*Inventario!BA12/Inventario!BD12,VLOOKUP(AY12,bens!$AP$8:$AX$58,9)*Inventario!AZ12/Inventario!BD12) -> 0 | BF12: 0 | BG12: =IF(AZ12="",(VLOOKUP(AY12,bens!$AP$8:$AX$58,8)*((BA12+BC12)/2)),(VLOOKUP(AY12,bens!$AP$8:$AX$58,8)*((AZ12+BC12)/2))) -> 0 | BH12: =IF(AZ12="",((BA12+BC12)/2)*Inventario!$BH$1/Inventario!BD12,((AZ12+BC12)/2)*Inventario!$BH$1/Inventario!BD12) -> 0 | BI12: 0 | BJ12: 0 | BK12: 0 | BL12: 0 | BM12: 30 | BN12: 0.04771395924 | BO12: 0.008547008547 | BP12: 0 | BQ12: 0 | BR12: 0 | BS12: 0 | BT12: 0 | BW12: 1 | BY12: 0 | BZ12: 0 | CA12: 0 | CB12: 0 | CC12: 0 | CD12: 0 | CE12: 0 | CF12: 0 | CG12: 0 | CH12: 0 | CI12: 0 | CJ12: 0 | CK12: 0 | CL12: 0 | CM12: 0 | CN12: 0 | CO12: 0 | CP12: 0 | CQ12: 0 | CR12: 0 | CS12: 0 | DE12: 1 | DF12: 5 | DG12: 10000 | DJ12: =IF(DG12="",VLOOKUP(DF12,bens!$BC$9:$BQ$44,8)*DH12,VLOOKUP(DF12,bens!$BC$9:$BQ$44,8)*DG12) -> 2000 | DK12: =VLOOKUP(DF12,bens!$BC$9:$BQ$44,9) -> 100000 | DL12: =IF(DG12="",VLOOKUP(DF12,bens!$BC$9:$BQ$44,15)*Inventario!DH12/Inventario!DK12,VLOOKUP(DF12,bens!$BC$9:$BQ$44,15)*Inventario!DG12/Inventario!DK12) -> 0.05 | DM12: 0.08 | DN12: =IF(DG12="",(VLOOKUP(DF12,bens!$BC$9:$BQ$44,14)*((DH12+DJ12)/2))/VLOOKUP(DF12,bens!$BC$9:$BQ$44,10),(VLOOKUP(DF12,bens!$BC$9:$BQ$44,14)*((DG12+DJ12)/2))/VLOOKUP(DF12,bens!$BC$9:$BQ$44,10)) -> 0.01666666667 | DO12: =IF(DG12="",(dados!$H$37*(DH12+DJ12)/2)/VLOOKUP(DF12,bens!$BC$9:$BQ$44,10),(dados!$H$37*(DG12+DJ12)/2))/VLOOKUP(DF12,bens!$BC$9:$BQ$44,10) -> 0.025 | DP12: 0.05 | DQ12: 0.08 | DR12: 0.01666666667 | DS12: 0.025 | DT12: =VLOOKUP(DF12,bens!$BC$9:$BQ$44,9)/VLOOKUP(DF12,bens!$BC$9:$BQ$44,10) -> 5.555555556 | DU12: =(((1+$U$2)^DT12)*$U2)/((1+$U$2)^DT12-1) -> 0.1949652519 | DV12: 0.008547008547 | DW12: 16.66369674 | DX12: 16.66369674 | DY12: 10000
B13: 1 | F13: =IF(C13="",VLOOKUP(B13,bens!$A$8:$Q$75,13)*D13,VLOOKUP(B13,bens!$A$8:$Q$75,13)*C13) -> 0 | G13: =VLOOKUP(B13,bens!$A$8:$Q$75,14) -> 12000 | H13: =VLOOKUP(B13,bens!$A$8:$Q$75,5)*0.12 -> 0 | I13: =VLOOKUP(B13,bens!$A$8:$Q$75,5)*0.12*$I$2 -> 0 | J13: =IF(C13="",VLOOKUP(B13,bens!$A$8:$Q$75,17)*Inventario!D13/Inventario!G13,VLOOKUP(B13,bens!$A$8:$Q$75,17)*Inventario!C13/Inventario!G13) -> 0 | K13: 0 | L13: =IF(C13="",(VLOOKUP(B13,bens!$A$8:$Q$75,16)*(D13+F13)/2)/(VLOOKUP(B13,bens!$A$8:$Q$75,15)),(VLOOKUP(B13,bens!$A$8:$Q$75,16)*(C13+F13)/2)/(VLOOKUP(B13,bens!$A$8:$Q$75,15))) -> 0 | M13: =IF(C13="",($M$1*(D13+F13)/2)/(VLOOKUP(B13,bens!$A$8:$Q$75,15)),($M$1*(C13+F13)/2)/(VLOOKUP(B13,bens!$A$8:$Q$75,15))) -> 0 | N13: 0 | O13: 0 | P13: 0 | Q13: 0 | R13: 0 | S13: =VLOOKUP(B13,bens!$A$8:$Q$75,14)/VLOOKUP(B13,bens!$A$8:$Q$75,15) -> 10 | T13: 0.11419973 | U13: 0.008547008547 | V13: 0 | W13: 0 | X13: 0 | Y13: 0 | AB13: 1 | AF13: =IF(AC13="",VLOOKUP(AB13,bens!$U$8:$AJ$170,12)*AD13,VLOOKUP(AB13,bens!$U$8:$AJ$170,12)*AC13) -> 0 | AG13: =VLOOKUP(AB13,bens!$U$8:$AJ$170,13) -> 2000 | AH13: =IF(AC13="",VLOOKUP(AB13,bens!$U$8:$AJ$170,16)*Inventario!AD13/Inventario!AG13,VLOOKUP(AB13,bens!$U$8:$AJ$170,16)*Inventario!AC13/Inventario!AG13) -> 0 | AI13: 0 | AJ13: =IF(AC13="",$AJ$1*((AD13+AF13)/2)/(VLOOKUP(AB13,bens!$U$8:$AJ$170,14)),$AJ$1*((AC13+AF13)/2)/(VLOOKUP(AB13,bens!$U$8:$AJ$170,14))) -> 0 | AK13: =IF(AC13="",($AK$1*(AD13+AF13)/2)/(VLOOKUP(AB13,bens!$U$8:$AJ$170,14)),($AK$1*(AC13+AF13)/2)/(VLOOKUP(AB13,bens!$U$8:$AJ$170,14))) -> 0 | AL13: 0 | AM13: 0 | AN13: 0 | AO13: 0 | AP13: =VLOOKUP(AB13,bens!$U$8:$AJ$17,13)/VLOOKUP(AB13,bens!$U$8:$AJ$17,14) -> 10 | AQ13: 0.11419973 | AR13: 0.008547008547 | AS13: 0 | AT13: 0 | AU13: 0 | AY13: 1 | BC13: =IF(AZ13="",VLOOKUP(AY13,bens!$AP$8:$AX$58,5)*BA13,VLOOKUP(AY13,bens!$AP$8:$AX$58,5)*AZ13) -> 0 | BD13: =VLOOKUP(AY13,bens!$AP$8:$AX$58,6) -> 30 | BE13: =IF(AZ13="",VLOOKUP(AY13,bens!$AP$8:$AX$58,9)*Inventario!BA13/Inventario!BD13,VLOOKUP(AY13,bens!$AP$8:$AX$58,9)*Inventario!AZ13/Inventario!BD13) -> 0 | BF13: 0 | BG13: =IF(AZ13="",(VLOOKUP(AY13,bens!$AP$8:$AX$58,8)*((BA13+BC13)/2)),(VLOOKUP(AY13,bens!$AP$8:$AX$58,8)*((AZ13+BC13)/2))) -> 0 | BH13: =IF(AZ13="",((BA13+BC13)/2)*Inventario!$BH$1/Inventario!BD13,((AZ13+BC13)/2)*Inventario!$BH$1/Inventario!BD13) -> 0 | BI13: 0 | BJ13: 0 | BK13: 0 | BL13: 0 | BM13: 30 | BN13: 0.04771395924 | BO13: 0.008547008547 | BP13: 0 | BQ13: 0 | BR13: 0 | BS13: 0 | BT13: 0 | BW13: 1 | BY13: 0 | BZ13: 0 | CA13: 0 | CB13: 0 | CC13: 0 | CD13: 0 | CE13: 0 | CF13: 0 | CG13: 0 | CH13: 0 | CI13: 0 | CJ13: 0 | CK13: 0 | CL13: 0 | CM13: 0 | CN13: 0 | CO13: 0 | CP13: 0 | CQ13: 0 | CR13: 0 | CS13: 0 | DE13: 1 | DF13: 5 | DG13: 10000 | DJ13: =IF(DG13="",VLOOKUP(DF13,bens!$BC$9:$BQ$44,8)*DH13,VLOOKUP(DF13,bens!$BC$9:$BQ$44,8)*DG13) -> 2000 | DK13: =VLOOKUP(DF13,bens!$BC$9:$BQ$44,9) -> 100000 | DL13: =IF(DG13="",VLOOKUP(DF13,bens!$BC$9:$BQ$44,15)*Inventario!DH13/Inventario!DK13,VLOOKUP(DF13,bens!$BC$9:$BQ$44,15)*Inventario!DG13/Inventario!DK13) -> 0.05 | DM13: 0.08 | DN13: =IF(DG13="",(VLOOKUP(DF13,bens!$BC$9:$BQ$44,14)*((DH13+DJ13)/2))/VLOOKUP(DF13,bens!$BC$9:$BQ$44,10),(VLOOKUP(DF13,bens!$BC$9:$BQ$44,14)*((DG13+DJ13)/2))/VLOOKUP(DF13,bens!$BC$9:$BQ$44,10)) -> 0.01666666667 | DO13: =IF(DG13="",(dados!$H$37*(DH13+DJ13)/2)/VLOOKUP(DF13,bens!$BC$9:$BQ$44,10),(dados!$H$37*(DG13+DJ13)/2))/VLOOKUP(DF13,bens!$BC$9:$BQ$44,10) -> 0.025 | DP13: 0.05 | DQ13: 0.08 | DR13: 0.01666666667 | DS13: 0.025 | DT13: =VLOOKUP(DF13,bens!$BC$9:$BQ$44,9)/VLOOKUP(DF13,bens!$BC$9:$BQ$44,10) -> 5.555555556 | DU13: =(((1+$U$2)^DT13)*$U2)/((1+$U$2)^DT13-1) -> 0.1949652519 | DV13: 0.008547008547 | DW13: 16.66369674 | DX13: 16.66369674 | DY13: 10000
B14: 1 | F14: =IF(C14="",VLOOKUP(B14,bens!$A$8:$Q$75,13)*D14,VLOOKUP(B14,bens!$A$8:$Q$75,13)*C14) -> 0 | G14: =VLOOKUP(B14,bens!$A$8:$Q$75,14) -> 12000 | H14: =VLOOKUP(B14,bens!$A$8:$Q$75,5)*0.12 -> 0 | I14: =VLOOKUP(B14,bens!$A$8:$Q$75,5)*0.12*$I$2 -> 0 | J14: =IF(C14="",VLOOKUP(B14,bens!$A$8:$Q$75,17)*Inventario!D14/Inventario!G14,VLOOKUP(B14,bens!$A$8:$Q$75,17)*Inventario!C14/Inventario!G14) -> 0 | K14: 0 | L14: =IF(C14="",(VLOOKUP(B14,bens!$A$8:$Q$75,16)*(D14+F14)/2)/(VLOOKUP(B14,bens!$A$8:$Q$75,15)),(VLOOKUP(B14,bens!$A$8:$Q$75,16)*(C14+F14)/2)/(VLOOKUP(B14,bens!$A$8:$Q$75,15))) -> 0 | M14: =IF(C14="",($M$1*(D14+F14)/2)/(VLOOKUP(B14,bens!$A$8:$Q$75,15)),($M$1*(C14+F14)/2)/(VLOOKUP(B14,bens!$A$8:$Q$75,15))) -> 0 | N14: 0 | O14: 0 | P14: 0 | Q14: 0 | R14: 0 | S14: =VLOOKUP(B14,bens!$A$8:$Q$75,14)/VLOOKUP(B14,bens!$A$8:$Q$75,15) -> 10 | T14: 0.11419973 | U14: 0.008547008547 | V14: 0 | W14: 0 | X14: 0 | Y14: 0 | AB14: 1 | AF14: =IF(AC14="",VLOOKUP(AB14,bens!$U$8:$AJ$170,12)*AD14,VLOOKUP(AB14,bens!$U$8:$AJ$170,12)*AC14) -> 0 | AG14: =VLOOKUP(AB14,bens!$U$8:$AJ$170,13) -> 2000 | AH14: =IF(AC14="",VLOOKUP(AB14,bens!$U$8:$AJ$170,16)*Inventario!AD14/Inventario!AG14,VLOOKUP(AB14,bens!$U$8:$AJ$170,16)*Inventario!AC14/Inventario!AG14) -> 0 | AI14: 0 | AJ14: =IF(AC14="",$AJ$1*((AD14+AF14)/2)/(VLOOKUP(AB14,bens!$U$8:$AJ$170,14)),$AJ$1*((AC14+AF14)/2)/(VLOOKUP(AB14,bens!$U$8:$AJ$170,14))) -> 0 | AK14: =IF(AC14="",($AK$1*(AD14+AF14)/2)/(VLOOKUP(AB14,bens!$U$8:$AJ$170,14)),($AK$1*(AC14+AF14)/2)/(VLOOKUP(AB14,bens!$U$8:$AJ$170,14))) -> 0 | AL14: 0 | AM14: 0 | AN14: 0 | AO14: 0 | AP14: =VLOOKUP(AB14,bens!$U$8:$AJ$17,13)/VLOOKUP(AB14,bens!$U$8:$AJ$17,14) -> 10 | AQ14: 0.11419973 | AR14: 0.008547008547 | AS14: 0 | AT14: 0 | AU14: 0 | AY14: 1 | BC14: =IF(AZ14="",VLOOKUP(AY14,bens!$AP$8:$AX$58,5)*BA14,VLOOKUP(AY14,bens!$AP$8:$AX$58,5)*AZ14) -> 0 | BD14: =VLOOKUP(AY14,bens!$AP$8:$AX$58,6) -> 30 | BE14: =IF(AZ14="",VLOOKUP(AY14,bens!$AP$8:$AX$58,9)*Inventario!BA14/Inventario!BD14,VLOOKUP(AY14,bens!$AP$8:$AX$58,9)*Inventario!AZ14/Inventario!BD14) -> 0 | BF14: 0 | BG14: =IF(AZ14="",(VLOOKUP(AY14,bens!$AP$8:$AX$58,8)*((BA14+BC14)/2)),(VLOOKUP(AY14,bens!$AP$8:$AX$58,8)*((AZ14+BC14)/2))) -> 0 | BH14: =IF(AZ14="",((BA14+BC14)/2)*Inventario!$BH$1/Inventario!BD14,((AZ14+BC14)/2)*Inventario!$BH$1/Inventario!BD14) -> 0 | BI14: 0 | BJ14: 0 | BK14: 0 | BL14: 0 | BM14: 30 | BN14: 0.04771395924 | BO14: 0.008547008547 | BP14: 0 | BQ14: 0 | BR14: 0 | BS14: 0 | BT14: 0 | BW14: 1 | BY14: 0 | BZ14: 0 | CA14: 0 | CB14: 0 | CC14: 0 | CD14: 0 | CE14: 0 | CF14: 0 | CG14: 0 | CH14: 0 | CI14: 0 | CJ14: 0 | CK14: 0 | CL14: 0 | CM14: 0 | CN14: 0 | CO14: 0 | CP14: 0 | CQ14: 0 | CR14: 0 | CS14: 0 | DE14: 1 | DF14: 5 | DG14: 10000 | DJ14: =IF(DG14="",VLOOKUP(DF14,bens!$BC$9:$BQ$44,8)*DH14,VLOOKUP(DF14,bens!$BC$9:$BQ$44,8)*DG14) -> 2000 | DK14: =VLOOKUP(DF14,bens!$BC$9:$BQ$44,9) -> 100000 | DL14: =IF(DG14="",VLOOKUP(DF14,bens!$BC$9:$BQ$44,15)*Inventario!DH14/Inventario!DK14,VLOOKUP(DF14,bens!$BC$9:$BQ$44,15)*Inventario!DG14/Inventario!DK14) -> 0.05 | DM14: 0.08 | DN14: =IF(DG14="",(VLOOKUP(DF14,bens!$BC$9:$BQ$44,14)*((DH14+DJ14)/2))/VLOOKUP(DF14,bens!$BC$9:$BQ$44,10),(VLOOKUP(DF14,bens!$BC$9:$BQ$44,14)*((DG14+DJ14)/2))/VLOOKUP(DF14,bens!$BC$9:$BQ$44,10)) -> 0.01666666667 | DO14: =IF(DG14="",(dados!$H$37*(DH14+DJ14)/2)/VLOOKUP(DF14,bens!$BC$9:$BQ$44,10),(dados!$H$37*(DG14+DJ14)/2))/VLOOKUP(DF14,bens!$BC$9:$BQ$44,10) -> 0.025 | DP14: 0.05 | DQ14: 0.08 | DR14: 0.01666666667 | DS14: 0.025 | DT14: =VLOOKUP(DF14,bens!$BC$9:$BQ$44,9)/VLOOKUP(DF14,bens!$BC$9:$BQ$44,10) -> 5.555555556 | DU14: =(((1+$U$2)^DT14)*$U2)/((1+$U$2)^DT14-1) -> 0.1949652519 | DV14: 0.008547008547 | DW14: 16.66369674 | DX14: 16.66369674 | DY14: 10000
B15: 1 | F15: =IF(C15="",VLOOKUP(B15,bens!$A$8:$Q$75,13)*D15,VLOOKUP(B15,bens!$A$8:$Q$75,13)*C15) -> 0 | G15: =VLOOKUP(B15,bens!$A$8:$Q$75,14) -> 12000 | H15: =VLOOKUP(B15,bens!$A$8:$Q$75,5)*0.12 -> 0 | I15: =VLOOKUP(B15,bens!$A$8:$Q$75,5)*0.12*$I$2 -> 0 | J15: =IF(C15="",VLOOKUP(B15,bens!$A$8:$Q$75,17)*Inventario!D15/Inventario!G15,VLOOKUP(B15,bens!$A$8:$Q$75,17)*Inventario!C15/Inventario!G15) -> 0 | K15: 0 | L15: =IF(C15="",(VLOOKUP(B15,bens!$A$8:$Q$75,16)*(D15+F15)/2)/(VLOOKUP(B15,bens!$A$8:$Q$75,15)),(VLOOKUP(B15,bens!$A$8:$Q$75,16)*(C15+F15)/2)/(VLOOKUP(B15,bens!$A$8:$Q$75,15))) -> 0 | M15: =IF(C15="",($M$1*(D15+F15)/2)/(VLOOKUP(B15,bens!$A$8:$Q$75,15)),($M$1*(C15+F15)/2)/(VLOOKUP(B15,bens!$A$8:$Q$75,15))) -> 0 | N15: 0 | O15: 0 | P15: 0 | Q15: 0 | R15: 0 | S15: =VLOOKUP(B15,bens!$A$8:$Q$75,14)/VLOOKUP(B15,bens!$A$8:$Q$75,15) -> 10 | T15: 0.11419973 | U15: 0.008547008547 | V15: 0 | W15: 0 | X15: 0 | Y15: 0 | AB15: 1 | AF15: =IF(AC15="",VLOOKUP(AB15,bens!$U$8:$AJ$170,12)*AD15,VLOOKUP(AB15,bens!$U$8:$AJ$170,12)*AC15) -> 0 | AG15: =VLOOKUP(AB15,bens!$U$8:$AJ$170,13) -> 2000 | AH15: =IF(AC15="",VLOOKUP(AB15,bens!$U$8:$AJ$170,16)*Inventario!AD15/Inventario!AG15,VLOOKUP(AB15,bens!$U$8:$AJ$170,16)*Inventario!AC15/Inventario!AG15) -> 0 | AI15: 0 | AJ15: =IF(AC15="",$AJ$1*((AD15+AF15)/2)/(VLOOKUP(AB15,bens!$U$8:$AJ$170,14)),$AJ$1*((AC15+AF15)/2)/(VLOOKUP(AB15,bens!$U$8:$AJ$170,14))) -> 0 | AK15: =IF(AC15="",($AK$1*(AD15+AF15)/2)/(VLOOKUP(AB15,bens!$U$8:$AJ$170,14)),($AK$1*(AC15+AF15)/2)/(VLOOKUP(AB15,bens!$U$8:$AJ$170,14))) -> 0 | AL15: 0 | AM15: 0 | AN15: 0 | AO15: 0 | AP15: =VLOOKUP(AB15,bens!$U$8:$AJ$17,13)/VLOOKUP(AB15,bens!$U$8:$AJ$17,14) -> 10 | AQ15: 0.11419973 | AR15: 0.008547008547 | AS15: 0 | AT15: 0 | AU15: 0 | AY15: 1 | BC15: =IF(AZ15="",VLOOKUP(AY15,bens!$AP$8:$AX$58,5)*BA15,VLOOKUP(AY15,bens!$AP$8:$AX$58,5)*AZ15) -> 0 | BD15: =VLOOKUP(AY15,bens!$AP$8:$AX$58,6) -> 30 | BE15: =IF(AZ15="",VLOOKUP(AY15,bens!$AP$8:$AX$58,9)*Inventario!BA15/Inventario!BD15,VLOOKUP(AY15,bens!$AP$8:$AX$58,9)*Inventario!AZ15/Inventario!BD15) -> 0 | BF15: 0 | BG15: =IF(AZ15="",(VLOOKUP(AY15,bens!$AP$8:$AX$58,8)*((BA15+BC15)/2)),(VLOOKUP(AY15,bens!$AP$8:$AX$58,8)*((AZ15+BC15)/2))) -> 0 | BH15: =IF(AZ15="",((BA15+BC15)/2)*Inventario!$BH$1/Inventario!BD15,((AZ15+BC15)/2)*Inventario!$BH$1/Inventario!BD15) -> 0 | BI15: 0 | BJ15: 0 | BK15: 0 | BL15: 0 | BM15: 30 | BN15: 0.04771395924 | BO15: 0.008547008547 | BP15: 0 | BQ15: 0 | BR15: 0 | BS15: 0 | BT15: 0 | BW15: 1 | BY15: 0 | BZ15: 0 | CA15: 0 | CB15: 0 | CC15: 0 | CD15: 0 | CE15: 0 | CF15: 0 | CG15: 0 | CH15: 0 | CI15: 0 | CJ15: 0 | CK15: 0 | CL15: 0 | CM15: 0 | CN15: 0 | CO15: 0 | CP15: 0 | CQ15: 0 | CR15: 0 | CS15: 0 | DE15: 1 | DF15: 5 | DG15: 10000 | DJ15: =IF(DG15="",VLOOKUP(DF15,bens!$BC$9:$BQ$44,8)*DH15,VLOOKUP(DF15,bens!$BC$9:$BQ$44,8)*DG15) -> 2000 | DK15: =VLOOKUP(DF15,bens!$BC$9:$BQ$44,9) -> 100000 | DL15: =IF(DG15="",VLOOKUP(DF15,bens!$BC$9:$BQ$44,15)*Inventario!DH15/Inventario!DK15,VLOOKUP(DF15,bens!$BC$9:$BQ$44,15)*Inventario!DG15/Inventario!DK15) -> 0.05 | DM15: 0.08 | DN15: =IF(DG15="",(VLOOKUP(DF15,bens!$BC$9:$BQ$44,14)*((DH15+DJ15)/2))/VLOOKUP(DF15,bens!$BC$9:$BQ$44,10),(VLOOKUP(DF15,bens!$BC$9:$BQ$44,14)*((DG15+DJ15)/2))/VLOOKUP(DF15,bens!$BC$9:$BQ$44,10)) -> 0.01666666667 | DO15: =IF(DG15="",(dados!$H$37*(DH15+DJ15)/2)/VLOOKUP(DF15,bens!$BC$9:$BQ$44,10),(dados!$H$37*(DG15+DJ15)/2))/VLOOKUP(DF15,bens!$BC$9:$BQ$44,10) -> 0.025 | DP15: 0.05 | DQ15: 0.08 | DR15: 0.01666666667 | DS15: 0.025 | DT15: =VLOOKUP(DF15,bens!$BC$9:$BQ$44,9)/VLOOKUP(DF15,bens!$BC$9:$BQ$44,10) -> 5.555555556 | DU15: =(((1+$U$2)^DT15)*$U2)/((1+$U$2)^DT15-1) -> 0.1949652519 | DV15: 0.008547008547 | DW15: 16.66369674 | DX15: 16.66369674 | DY15: 10000
B16: 1 | F16: =IF(C16="",VLOOKUP(B16,bens!$A$8:$Q$75,13)*D16,VLOOKUP(B16,bens!$A$8:$Q$75,13)*C16) -> 0 | G16: =VLOOKUP(B16,bens!$A$8:$Q$75,14) -> 12000 | H16: =VLOOKUP(B16,bens!$A$8:$Q$75,5)*0.12 -> 0 | I16: =VLOOKUP(B16,bens!$A$8:$Q$75,5)*0.12*$I$2 -> 0 | J16: =IF(C16="",VLOOKUP(B16,bens!$A$8:$Q$75,17)*Inventario!D16/Inventario!G16,VLOOKUP(B16,bens!$A$8:$Q$75,17)*Inventario!C16/Inventario!G16) -> 0 | K16: 0 | L16: =IF(C16="",(VLOOKUP(B16,bens!$A$8:$Q$75,16)*(D16+F16)/2)/(VLOOKUP(B16,bens!$A$8:$Q$75,15)),(VLOOKUP(B16,bens!$A$8:$Q$75,16)*(C16+F16)/2)/(VLOOKUP(B16,bens!$A$8:$Q$75,15))) -> 0 | M16: =IF(C16="",($M$1*(D16+F16)/2)/(VLOOKUP(B16,bens!$A$8:$Q$75,15)),($M$1*(C16+F16)/2)/(VLOOKUP(B16,bens!$A$8:$Q$75,15))) -> 0 | N16: 0 | O16: 0 | P16: 0 | Q16: 0 | R16: 0 | S16: =VLOOKUP(B16,bens!$A$8:$Q$75,14)/VLOOKUP(B16,bens!$A$8:$Q$75,15) -> 10 | T16: 0.11419973 | U16: 0.008547008547 | V16: 0 | W16: 0 | X16: 0 | Y16: 0 | AB16: 1 | AF16: =IF(AC16="",VLOOKUP(AB16,bens!$U$8:$AJ$170,12)*AD16,VLOOKUP(AB16,bens!$U$8:$AJ$170,12)*AC16) -> 0 | AG16: =VLOOKUP(AB16,bens!$U$8:$AJ$170,13) -> 2000 | AH16: =IF(AC16="",VLOOKUP(AB16,bens!$U$8:$AJ$170,16)*Inventario!AD16/Inventario!AG16,VLOOKUP(AB16,bens!$U$8:$AJ$170,16)*Inventario!AC16/Inventario!AG16) -> 0 | AI16: 0 | AJ16: =IF(AC16="",$AJ$1*((AD16+AF16)/2)/(VLOOKUP(AB16,bens!$U$8:$AJ$170,14)),$AJ$1*((AC16+AF16)/2)/(VLOOKUP(AB16,bens!$U$8:$AJ$170,14))) -> 0 | AK16: =IF(AC16="",($AK$1*(AD16+AF16)/2)/(VLOOKUP(AB16,bens!$U$8:$AJ$170,14)),($AK$1*(AC16+AF16)/2)/(VLOOKUP(AB16,bens!$U$8:$AJ$170,14))) -> 0 | AL16: 0 | AM16: 0 | AN16: 0 | AO16: 0 | AP16: =VLOOKUP(AB16,bens!$U$8:$AJ$17,13)/VLOOKUP(AB16,bens!$U$8:$AJ$17,14) -> 10 | AQ16: 0.11419973 | AR16: 0.008547008547 | AS16: 0 | AT16: 0 | AU16: 0 | AY16: 1 | BC16: =IF(AZ16="",VLOOKUP(AY16,bens!$AP$8:$AX$58,5)*BA16,VLOOKUP(AY16,bens!$AP$8:$AX$58,5)*AZ16) -> 0 | BD16: =VLOOKUP(AY16,bens!$AP$8:$AX$58,6) -> 30 | BE16: =IF(AZ16="",VLOOKUP(AY16,bens!$AP$8:$AX$58,9)*Inventario!BA16/Inventario!BD16,VLOOKUP(AY16,bens!$AP$8:$AX$58,9)*Inventario!AZ16/Inventario!BD16) -> 0 | BF16: 0 | BG16: =IF(AZ16="",(VLOOKUP(AY16,bens!$AP$8:$AX$58,8)*((BA16+BC16)/2)),(VLOOKUP(AY16,bens!$AP$8:$AX$58,8)*((AZ16+BC16)/2))) -> 0 | BH16: =IF(AZ16="",((BA16+BC16)/2)*Inventario!$BH$1/Inventario!BD16,((AZ16+BC16)/2)*Inventario!$BH$1/Inventario!BD16) -> 0 | BI16: 0 | BJ16: 0 | BK16: 0 | BL16: 0 | BM16: 30 | BN16: 0.04771395924 | BO16: 0.008547008547 | BP16: 0 | BQ16: 0 | BR16: 0 | BS16: 0 | BT16: 0 | BW16: 1 | BY16: 0 | BZ16: 0 | CA16: 0 | CB16: 0 | CC16: 0 | CD16: 0 | CE16: 0 | CF16: 0 | CG16: 0 | CH16: 0 | CI16: 0 | CJ16: 0 | CK16: 0 | CL16: 0 | CM16: 0 | CN16: 0 | CO16: 0 | CP16: 0 | CQ16: 0 | CR16: 0 | CS16: 0 | DE16: 1 | DF16: 5 | DG16: 10000 | DJ16: =IF(DG16="",VLOOKUP(DF16,bens!$BC$9:$BQ$44,8)*DH16,VLOOKUP(DF16,bens!$BC$9:$BQ$44,8)*DG16) -> 2000 | DK16: =VLOOKUP(DF16,bens!$BC$9:$BQ$44,9) -> 100000 | DL16: =IF(DG16="",VLOOKUP(DF16,bens!$BC$9:$BQ$44,15)*Inventario!DH16/Inventario!DK16,VLOOKUP(DF16,bens!$BC$9:$BQ$44,15)*Inventario!DG16/Inventario!DK16) -> 0.05 | DM16: 0.08 | DN16: =IF(DG16="",(VLOOKUP(DF16,bens!$BC$9:$BQ$44,14)*((DH16+DJ16)/2))/VLOOKUP(DF16,bens!$BC$9:$BQ$44,10),(VLOOKUP(DF16,bens!$BC$9:$BQ$44,14)*((DG16+DJ16)/2))/VLOOKUP(DF16,bens!$BC$9:$BQ$44,10)) -> 0.01666666667 | DO16: =IF(DG16="",(dados!$H$37*(DH16+DJ16)/2)/VLOOKUP(DF16,bens!$BC$9:$BQ$44,10),(dados!$H$37*(DG16+DJ16)/2))/VLOOKUP(DF16,bens!$BC$9:$BQ$44,10) -> 0.025 | DP16: 0.05 | DQ16: 0.08 | DR16: 0.01666666667 | DS16: 0.025 | DT16: =VLOOKUP(DF16,bens!$BC$9:$BQ$44,9)/VLOOKUP(DF16,bens!$BC$9:$BQ$44,10) -> 5.555555556 | DU16: =(((1+$U$2)^DT16)*$U2)/((1+$U$2)^DT16-1) -> 0.1949652519 | DV16: 0.008547008547 | DW16: 16.66369674 | DX16: 16.66369674 | DY16: 10000
B17: 1 | F17: =IF(C17="",VLOOKUP(B17,bens!$A$8:$Q$75,13)*D17,VLOOKUP(B17,bens!$A$8:$Q$75,13)*C17) -> 0 | G17: =VLOOKUP(B17,bens!$A$8:$Q$75,14) -> 12000 | H17: =VLOOKUP(B17,bens!$A$8:$Q$75,5)*0.12 -> 0 | I17: =VLOOKUP(B17,bens!$A$8:$Q$75,5)*0.12*$I$2 -> 0 | J17: =IF(C17="",VLOOKUP(B17,bens!$A$8:$Q$75,17)*Inventario!D17/Inventario!G17,VLOOKUP(B17,bens!$A$8:$Q$75,17)*Inventario!C17/Inventario!G17) -> 0 | K17: 0 | L17: =IF(C17="",(VLOOKUP(B17,bens!$A$8:$Q$75,16)*(D17+F17)/2)/(VLOOKUP(B17,bens!$A$8:$Q$75,15)),(VLOOKUP(B17,bens!$A$8:$Q$75,16)*(C17+F17)/2)/(VLOOKUP(B17,bens!$A$8:$Q$75,15))) -> 0 | M17: =IF(C17="",($M$1*(D17+F17)/2)/(VLOOKUP(B17,bens!$A$8:$Q$75,15)),($M$1*(C17+F17)/2)/(VLOOKUP(B17,bens!$A$8:$Q$75,15))) -> 0 | N17: 0 | O17: 0 | P17: 0 | Q17: 0 | R17: 0 | S17: =VLOOKUP(B17,bens!$A$8:$Q$75,14)/VLOOKUP(B17,bens!$A$8:$Q$75,15) -> 10 | T17: 0.11419973 | U17: 0.008547008547 | V17: 0 | W17: 0 | X17: 0 | Y17: 0 | AB17: 1 | AF17: =IF(AC17="",VLOOKUP(AB17,bens!$U$8:$AJ$170,12)*AD17,VLOOKUP(AB17,bens!$U$8:$AJ$170,12)*AC17) -> 0 | AG17: =VLOOKUP(AB17,bens!$U$8:$AJ$170,13) -> 2000 | AH17: =IF(AC17="",VLOOKUP(AB17,bens!$U$8:$AJ$170,16)*Inventario!AD17/Inventario!AG17,VLOOKUP(AB17,bens!$U$8:$AJ$170,16)*Inventario!AC17/Inventario!AG17) -> 0 | AI17: 0 | AJ17: =IF(AC17="",$AJ$1*((AD17+AF17)/2)/(VLOOKUP(AB17,bens!$U$8:$AJ$170,14)),$AJ$1*((AC17+AF17)/2)/(VLOOKUP(AB17,bens!$U$8:$AJ$170,14))) -> 0 | AK17: =IF(AC17="",($AK$1*(AD17+AF17)/2)/(VLOOKUP(AB17,bens!$U$8:$AJ$170,14)),($AK$1*(AC17+AF17)/2)/(VLOOKUP(AB17,bens!$U$8:$AJ$170,14))) -> 0 | AL17: 0 | AM17: 0 | AN17: 0 | AO17: 0 | AP17: =VLOOKUP(AB17,bens!$U$8:$AJ$17,13)/VLOOKUP(AB17,bens!$U$8:$AJ$17,14) -> 10 | AQ17: 0.11419973 | AR17: 0.008547008547 | AS17: 0 | AT17: 0 | AU17: 0 | AY17: 1 | BC17: =IF(AZ17="",VLOOKUP(AY17,bens!$AP$8:$AX$58,5)*BA17,VLOOKUP(AY17,bens!$AP$8:$AX$58,5)*AZ17) -> 0 | BD17: =VLOOKUP(AY17,bens!$AP$8:$AX$58,6) -> 30 | BE17: =IF(AZ17="",VLOOKUP(AY17,bens!$AP$8:$AX$58,9)*Inventario!BA17/Inventario!BD17,VLOOKUP(AY17,bens!$AP$8:$AX$58,9)*Inventario!AZ17/Inventario!BD17) -> 0 | BF17: 0 | BG17: =IF(AZ17="",(VLOOKUP(AY17,bens!$AP$8:$AX$58,8)*((BA17+BC17)/2)),(VLOOKUP(AY17,bens!$AP$8:$AX$58,8)*((AZ17+BC17)/2))) -> 0 | BH17: =IF(AZ17="",((BA17+BC17)/2)*Inventario!$BH$1/Inventario!BD17,((AZ17+BC17)/2)*Inventario!$BH$1/Inventario!BD17) -> 0 | BI17: 0 | BJ17: 0 | BK17: 0 | BL17: 0 | BM17: 30 | BN17: 0.04771395924 | BO17: 0.008547008547 | BP17: 0 | BQ17: 0 | BR17: 0 | BS17: 0 | BT17: 0 | BW17: 1 | BY17: 0 | BZ17: 0 | CA17: 0 | CB17: 0 | CC17: 0 | CD17: 0 | CE17: 0 | CF17: 0 | CG17: 0 | CH17: 0 | CI17: 0 | CJ17: 0 | CK17: 0 | CL17: 0 | CM17: 0 | CN17: 0 | CO17: 0 | CP17: 0 | CQ17: 0 | CR17: 0 | CS17: 0 | DE17: 1 | DF17: 5 | DG17: 10000 | DJ17: =IF(DG17="",VLOOKUP(DF17,bens!$BC$9:$BQ$44,8)*DH17,VLOOKUP(DF17,bens!$BC$9:$BQ$44,8)*DG17) -> 2000 | DK17: =VLOOKUP(DF17,bens!$BC$9:$BQ$44,9) -> 100000 | DL17: =IF(DG17="",VLOOKUP(DF17,bens!$BC$9:$BQ$44,15)*Inventario!DH17/Inventario!DK17,VLOOKUP(DF17,bens!$BC$9:$BQ$44,15)*Inventario!DG17/Inventario!DK17) -> 0.05 | DM17: 0.08 | DN17: =IF(DG17="",(VLOOKUP(DF17,bens!$BC$9:$BQ$44,14)*((DH17+DJ17)/2))/VLOOKUP(DF17,bens!$BC$9:$BQ$44,10),(VLOOKUP(DF17,bens!$BC$9:$BQ$44,14)*((DG17+DJ17)/2))/VLOOKUP(DF17,bens!$BC$9:$BQ$44,10)) -> 0.01666666667 | DO17: =IF(DG17="",(dados!$H$37*(DH17+DJ17)/2)/VLOOKUP(DF17,bens!$BC$9:$BQ$44,10),(dados!$H$37*(DG17+DJ17)/2))/VLOOKUP(DF17,bens!$BC$9:$BQ$44,10) -> 0.025 | DP17: 0.05 | DQ17: 0.08 | DR17: 0.01666666667 | DS17: 0.025 | DT17: =VLOOKUP(DF17,bens!$BC$9:$BQ$44,9)/VLOOKUP(DF17,bens!$BC$9:$BQ$44,10) -> 5.555555556 | DU17: =(((1+$U$2)^DT17)*$U2)/((1+$U$2)^DT17-1) -> 0.1949652519 | DV17: 0.008547008547 | DW17: 16.66369674 | DX17: 16.66369674 | DY17: 10000
B18: 1 | F18: =IF(C18="",VLOOKUP(B18,bens!$A$8:$Q$75,13)*D18,VLOOKUP(B18,bens!$A$8:$Q$75,13)*C18) -> 0 | G18: =VLOOKUP(B18,bens!$A$8:$Q$75,14) -> 12000 | H18: =VLOOKUP(B18,bens!$A$8:$Q$75,5)*0.12 -> 0 | I18: =VLOOKUP(B18,bens!$A$8:$Q$75,5)*0.12*$I$2 -> 0 | J18: =IF(C18="",VLOOKUP(B18,bens!$A$8:$Q$75,17)*Inventario!D18/Inventario!G18,VLOOKUP(B18,bens!$A$8:$Q$75,17)*Inventario!C18/Inventario!G18) -> 0 | K18: 0 | L18: =IF(C18="",(VLOOKUP(B18,bens!$A$8:$Q$75,16)*(D18+F18)/2)/(VLOOKUP(B18,bens!$A$8:$Q$75,15)),(VLOOKUP(B18,bens!$A$8:$Q$75,16)*(C18+F18)/2)/(VLOOKUP(B18,bens!$A$8:$Q$75,15))) -> 0 | M18: =IF(C18="",($M$1*(D18+F18)/2)/(VLOOKUP(B18,bens!$A$8:$Q$75,15)),($M$1*(C18+F18)/2)/(VLOOKUP(B18,bens!$A$8:$Q$75,15))) -> 0 | N18: 0 | O18: 0 | P18: 0 | Q18: 0 | R18: 0 | S18: =VLOOKUP(B18,bens!$A$8:$Q$75,14)/VLOOKUP(B18,bens!$A$8:$Q$75,15) -> 10 | T18: 0.11419973 | U18: 0.008547008547 | V18: 0 | W18: 0 | X18: 0 | Y18: 0 | AB18: 1 | AF18: =IF(AC18="",VLOOKUP(AB18,bens!$U$8:$AJ$170,12)*AD18,VLOOKUP(AB18,bens!$U$8:$AJ$170,12)*AC18) -> 0 | AG18: =VLOOKUP(AB18,bens!$U$8:$AJ$170,13) -> 2000 | AH18: =IF(AC18="",VLOOKUP(AB18,bens!$U$8:$AJ$170,16)*Inventario!AD18/Inventario!AG18,VLOOKUP(AB18,bens!$U$8:$AJ$170,16)*Inventario!AC18/Inventario!AG18) -> 0 | AI18: 0 | AJ18: =IF(AC18="",$AJ$1*((AD18+AF18)/2)/(VLOOKUP(AB18,bens!$U$8:$AJ$170,14)),$AJ$1*((AC18+AF18)/2)/(VLOOKUP(AB18,bens!$U$8:$AJ$170,14))) -> 0 | AK18: =IF(AC18="",($AK$1*(AD18+AF18)/2)/(VLOOKUP(AB18,bens!$U$8:$AJ$170,14)),($AK$1*(AC18+AF18)/2)/(VLOOKUP(AB18,bens!$U$8:$AJ$170,14))) -> 0 | AL18: 0 | AM18: 0 | AN18: 0 | AO18: 0 | AP18: =VLOOKUP(AB18,bens!$U$8:$AJ$17,13)/VLOOKUP(AB18,bens!$U$8:$AJ$17,14) -> 10 | AQ18: 0.11419973 | AR18: 0.008547008547 | AS18: 0 | AT18: 0 | AU18: 0 | AY18: 1 | BC18: =IF(AZ18="",VLOOKUP(AY18,bens!$AP$8:$AX$58,5)*BA18,VLOOKUP(AY18,bens!$AP$8:$AX$58,5)*AZ18) -> 0 | BD18: =VLOOKUP(AY18,bens!$AP$8:$AX$58,6) -> 30 | BE18: =IF(AZ18="",VLOOKUP(AY18,bens!$AP$8:$AX$58,9)*Inventario!BA18/Inventario!BD18,VLOOKUP(AY18,bens!$AP$8:$AX$58,9)*Inventario!AZ18/Inventario!BD18) -> 0 | BF18: 0 | BG18: =IF(AZ18="",(VLOOKUP(AY18,bens!$AP$8:$AX$58,8)*((BA18+BC18)/2)),(VLOOKUP(AY18,bens!$AP$8:$AX$58,8)*((AZ18+BC18)/2))) -> 0 | BH18: =IF(AZ18="",((BA18+BC18)/2)*Inventario!$BH$1/Inventario!BD18,((AZ18+BC18)/2)*Inventario!$BH$1/Inventario!BD18) -> 0 | BI18: 0 | BJ18: 0 | BK18: 0 | BL18: 0 | BM18: 30 | BN18: 0.04771395924 | BO18: 0.008547008547 | BP18: 0 | BQ18: 0 | BR18: 0 | BS18: 0 | BT18: 0 | BW18: 1 | BY18: 0 | BZ18: 0 | CA18: 0 | CB18: 0 | CC18: 0 | CD18: 0 | CE18: 0 | CF18: 0 | CG18: 0 | CH18: 0 | CI18: 0 | CJ18: 0 | CK18: 0 | CL18: 0 | CM18: 0 | CN18: 0 | CO18: 0 | CP18: 0 | CQ18: 0 | CR18: 0 | CS18: 0 | DE18: 1 | DF18: 5 | DG18: 10000 | DJ18: =IF(DG18="",VLOOKUP(DF18,bens!$BC$9:$BQ$44,8)*DH18,VLOOKUP(DF18,bens!$BC$9:$BQ$44,8)*DG18) -> 2000 | DK18: =VLOOKUP(DF18,bens!$BC$9:$BQ$44,9) -> 100000 | DL18: =IF(DG18="",VLOOKUP(DF18,bens!$BC$9:$BQ$44,15)*Inventario!DH18/Inventario!DK18,VLOOKUP(DF18,bens!$BC$9:$BQ$44,15)*Inventario!DG18/Inventario!DK18) -> 0.05 | DM18: 0.08 | DN18: =IF(DG18="",(VLOOKUP(DF18,bens!$BC$9:$BQ$44,14)*((DH18+DJ18)/2))/VLOOKUP(DF18,bens!$BC$9:$BQ$44,10),(VLOOKUP(DF18,bens!$BC$9:$BQ$44,14)*((DG18+DJ18)/2))/VLOOKUP(DF18,bens!$BC$9:$BQ$44,10)) -> 0.01666666667 | DO18: =IF(DG18="",(dados!$H$37*(DH18+DJ18)/2)/VLOOKUP(DF18,bens!$BC$9:$BQ$44,10),(dados!$H$37*(DG18+DJ18)/2))/VLOOKUP(DF18,bens!$BC$9:$BQ$44,10) -> 0.025 | DP18: 0.05 | DQ18: 0.08 | DR18: 0.01666666667 | DS18: 0.025 | DT18: =VLOOKUP(DF18,bens!$BC$9:$BQ$44,9)/VLOOKUP(DF18,bens!$BC$9:$BQ$44,10) -> 5.555555556 | DU18: =(((1+$U$2)^DT18)*$U2)/((1+$U$2)^DT18-1) -> 0.1949652519 | DV18: 0.008547008547 | DW18: 16.66369674 | DX18: 16.66369674 | DY18: 10000
B19: 1 | F19: =IF(C19="",VLOOKUP(B19,bens!$A$8:$Q$75,13)*D19,VLOOKUP(B19,bens!$A$8:$Q$75,13)*C19) -> 0 | G19: =VLOOKUP(B19,bens!$A$8:$Q$75,14) -> 12000 | H19: =VLOOKUP(B19,bens!$A$8:$Q$75,5)*0.12 -> 0 | I19: =VLOOKUP(B19,bens!$A$8:$Q$75,5)*0.12*$I$2 -> 0 | J19: =IF(C19="",VLOOKUP(B19,bens!$A$8:$Q$75,17)*Inventario!D19/Inventario!G19,VLOOKUP(B19,bens!$A$8:$Q$75,17)*Inventario!C19/Inventario!G19) -> 0 | K19: 0 | L19: =IF(C19="",(VLOOKUP(B19,bens!$A$8:$Q$75,16)*(D19+F19)/2)/(VLOOKUP(B19,bens!$A$8:$Q$75,15)),(VLOOKUP(B19,bens!$A$8:$Q$75,16)*(C19+F19)/2)/(VLOOKUP(B19,bens!$A$8:$Q$75,15))) -> 0 | M19: =IF(C19="",($M$1*(D19+F19)/2)/(VLOOKUP(B19,bens!$A$8:$Q$75,15)),($M$1*(C19+F19)/2)/(VLOOKUP(B19,bens!$A$8:$Q$75,15))) -> 0 | N19: 0 | O19: 0 | P19: 0 | Q19: 0 | R19: 0 | S19: =VLOOKUP(B19,bens!$A$8:$Q$75,14)/VLOOKUP(B19,bens!$A$8:$Q$75,15) -> 10 | T19: 0.11419973 | U19: 0.008547008547 | V19: 0 | W19: 0 | X19: 0 | Y19: 0 | AB19: 1 | AF19: =IF(AC19="",VLOOKUP(AB19,bens!$U$8:$AJ$170,12)*AD19,VLOOKUP(AB19,bens!$U$8:$AJ$170,12)*AC19) -> 0 | AG19: =VLOOKUP(AB19,bens!$U$8:$AJ$170,13) -> 2000 | AH19: =IF(AC19="",VLOOKUP(AB19,bens!$U$8:$AJ$170,16)*Inventario!AD19/Inventario!AG19,VLOOKUP(AB19,bens!$U$8:$AJ$170,16)*Inventario!AC19/Inventario!AG19) -> 0 | AI19: 0 | AJ19: =IF(AC19="",$AJ$1*((AD19+AF19)/2)/(VLOOKUP(AB19,bens!$U$8:$AJ$170,14)),$AJ$1*((AC19+AF19)/2)/(VLOOKUP(AB19,bens!$U$8:$AJ$170,14))) -> 0 | AK19: =IF(AC19="",($AK$1*(AD19+AF19)/2)/(VLOOKUP(AB19,bens!$U$8:$AJ$170,14)),($AK$1*(AC19+AF19)/2)/(VLOOKUP(AB19,bens!$U$8:$AJ$170,14))) -> 0 | AL19: 0 | AM19: 0 | AN19: 0 | AO19: 0 | AP19: =VLOOKUP(AB19,bens!$U$8:$AJ$17,13)/VLOOKUP(AB19,bens!$U$8:$AJ$17,14) -> 10 | AQ19: 0.11419973 | AR19: 0.008547008547 | AS19: 0 | AT19: 0 | AU19: 0 | AY19: 1 | BC19: =IF(AZ19="",VLOOKUP(AY19,bens!$AP$8:$AX$58,5)*BA19,VLOOKUP(AY19,bens!$AP$8:$AX$58,5)*AZ19) -> 0 | BD19: =VLOOKUP(AY19,bens!$AP$8:$AX$58,6) -> 30 | BE19: =IF(AZ19="",VLOOKUP(AY19,bens!$AP$8:$AX$58,9)*Inventario!BA19/Inventario!BD19,VLOOKUP(AY19,bens!$AP$8:$AX$58,9)*Inventario!AZ19/Inventario!BD19) -> 0 | BF19: 0 | BG19: =IF(AZ19="",(VLOOKUP(AY19,bens!$AP$8:$AX$58,8)*((BA19+BC19)/2)),(VLOOKUP(AY19,bens!$AP$8:$AX$58,8)*((AZ19+BC19)/2))) -> 0 | BH19: =IF(AZ19="",((BA19+BC19)/2)*Inventario!$BH$1/Inventario!BD19,((AZ19+BC19)/2)*Inventario!$BH$1/Inventario!BD19) -> 0 | BI19: 0 | BJ19: 0 | BK19: 0 | BL19: 0 | BM19: 30 | BN19: 0.04771395924 | BO19: 0.008547008547 | BP19: 0 | BQ19: 0 | BR19: 0 | BS19: 0 | BT19: 0 | BW19: 1 | BY19: 0 | BZ19: 0 | CA19: 0 | CB19: 0 | CC19: 0 | CD19: 0 | CE19: 0 | CF19: 0 | CG19: 0 | CH19: 0 | CI19: 0 | CJ19: 0 | CK19: 0 | CL19: 0 | CM19: 0 | CN19: 0 | CO19: 0 | CP19: 0 | CQ19: 0 | CR19: 0 | CS19: 0 | DE19: 1 | DF19: 5 | DG19: 10000 | DJ19: =IF(DG19="",VLOOKUP(DF19,bens!$BC$9:$BQ$44,8)*DH19,VLOOKUP(DF19,bens!$BC$9:$BQ$44,8)*DG19) -> 2000 | DK19: =VLOOKUP(DF19,bens!$BC$9:$BQ$44,9) -> 100000 | DL19: =IF(DG19="",VLOOKUP(DF19,bens!$BC$9:$BQ$44,15)*Inventario!DH19/Inventario!DK19,VLOOKUP(DF19,bens!$BC$9:$BQ$44,15)*Inventario!DG19/Inventario!DK19) -> 0.05 | DM19: 0.08 | DN19: =IF(DG19="",(VLOOKUP(DF19,bens!$BC$9:$BQ$44,14)*((DH19+DJ19)/2))/VLOOKUP(DF19,bens!$BC$9:$BQ$44,10),(VLOOKUP(DF19,bens!$BC$9:$BQ$44,14)*((DG19+DJ19)/2))/VLOOKUP(DF19,bens!$BC$9:$BQ$44,10)) -> 0.01666666667 | DO19: =IF(DG19="",(dados!$H$37*(DH19+DJ19)/2)/VLOOKUP(DF19,bens!$BC$9:$BQ$44,10),(dados!$H$37*(DG19+DJ19)/2))/VLOOKUP(DF19,bens!$BC$9:$BQ$44,10) -> 0.025 | DP19: 0.05 | DQ19: 0.08 | DR19: 0.01666666667 | DS19: 0.025 | DT19: =VLOOKUP(DF19,bens!$BC$9:$BQ$44,9)/VLOOKUP(DF19,bens!$BC$9:$BQ$44,10) -> 5.555555556 | DU19: =(((1+$U$2)^DT19)*$U2)/((1+$U$2)^DT19-1) -> 0.1949652519 | DV19: 0.008547008547 | DW19: 16.66369674 | DX19: 16.66369674 | DY19: 10000
B20: 1 | F20: =IF(C20="",VLOOKUP(B20,bens!$A$8:$Q$75,13)*D20,VLOOKUP(B20,bens!$A$8:$Q$75,13)*C20) -> 0 | G20: =VLOOKUP(B20,bens!$A$8:$Q$75,14) -> 12000 | H20: =VLOOKUP(B20,bens!$A$8:$Q$75,5)*0.12 -> 0 | I20: =VLOOKUP(B20,bens!$A$8:$Q$75,5)*0.12*$I$2 -> 0 | J20: =IF(C20="",VLOOKUP(B20,bens!$A$8:$Q$75,17)*Inventario!D20/Inventario!G20,VLOOKUP(B20,bens!$A$8:$Q$75,17)*Inventario!C20/Inventario!G20) -> 0 | K20: 0 | L20: =IF(C20="",(VLOOKUP(B20,bens!$A$8:$Q$75,16)*(D20+F20)/2)/(VLOOKUP(B20,bens!$A$8:$Q$75,15)),(VLOOKUP(B20,bens!$A$8:$Q$75,16)*(C20+F20)/2)/(VLOOKUP(B20,bens!$A$8:$Q$75,15))) -> 0 | M20: =IF(C20="",($M$1*(D20+F20)/2)/(VLOOKUP(B20,bens!$A$8:$Q$75,15)),($M$1*(C20+F20)/2)/(VLOOKUP(B20,bens!$A$8:$Q$75,15))) -> 0 | N20: 0 | O20: 0 | P20: 0 | Q20: 0 | R20: 0 | S20: =VLOOKUP(B20,bens!$A$8:$Q$75,14)/VLOOKUP(B20,bens!$A$8:$Q$75,15) -> 10 | T20: 0.11419973 | U20: 0.008547008547 | V20: 0 | W20: 0 | X20: 0 | Y20: 0 | AB20: 1 | AF20: =IF(AC20="",VLOOKUP(AB20,bens!$U$8:$AJ$170,12)*AD20,VLOOKUP(AB20,bens!$U$8:$AJ$170,12)*AC20) -> 0 | AG20: =VLOOKUP(AB20,bens!$U$8:$AJ$170,13) -> 2000 | AH20: =IF(AC20="",VLOOKUP(AB20,bens!$U$8:$AJ$170,16)*Inventario!AD20/Inventario!AG20,VLOOKUP(AB20,bens!$U$8:$AJ$170,16)*Inventario!AC20/Inventario!AG20) -> 0 | AI20: 0 | AJ20: =IF(AC20="",$AJ$1*((AD20+AF20)/2)/(VLOOKUP(AB20,bens!$U$8:$AJ$170,14)),$AJ$1*((AC20+AF20)/2)/(VLOOKUP(AB20,bens!$U$8:$AJ$170,14))) -> 0 | AK20: =IF(AC20="",($AK$1*(AD20+AF20)/2)/(VLOOKUP(AB20,bens!$U$8:$AJ$170,14)),($AK$1*(AC20+AF20)/2)/(VLOOKUP(AB20,bens!$U$8:$AJ$170,14))) -> 0 | AL20: 0 | AM20: 0 | AN20: 0 | AO20: 0 | AP20: =VLOOKUP(AB20,bens!$U$8:$AJ$17,13)/VLOOKUP(AB20,bens!$U$8:$AJ$17,14) -> 10 | AQ20: 0.11419973 | AR20: 0.008547008547 | AS20: 0 | AT20: 0 | AU20: 0 | AY20: 1 | BC20: =IF(AZ20="",VLOOKUP(AY20,bens!$AP$8:$AX$58,5)*BA20,VLOOKUP(AY20,bens!$AP$8:$AX$58,5)*AZ20) -> 0 | BD20: =VLOOKUP(AY20,bens!$AP$8:$AX$58,6) -> 30 | BE20: =IF(AZ20="",VLOOKUP(AY20,bens!$AP$8:$AX$58,9)*Inventario!BA20/Inventario!BD20,VLOOKUP(AY20,bens!$AP$8:$AX$58,9)*Inventario!AZ20/Inventario!BD20) -> 0 | BF20: 0 | BG20: =IF(AZ20="",(VLOOKUP(AY20,bens!$AP$8:$AX$58,8)*((BA20+BC20)/2)),(VLOOKUP(AY20,bens!$AP$8:$AX$58,8)*((AZ20+BC20)/2))) -> 0 | BH20: =IF(AZ20="",((BA20+BC20)/2)*Inventario!$BH$1/Inventario!BD20,((AZ20+BC20)/2)*Inventario!$BH$1/Inventario!BD20) -> 0 | BI20: 0 | BJ20: 0 | BK20: 0 | BL20: 0 | BM20: 30 | BN20: 0.04771395924 | BO20: 0.008547008547 | BP20: 0 | BQ20: 0 | BR20: 0 | BS20: 0 | BT20: 0 | BW20: 1 | BY20: 0 | BZ20: 0 | CA20: 0 | CB20: 0 | CC20: 0 | CD20: 0 | CE20: 0 | CF20: 0 | CG20: 0 | CH20: 0 | CI20: 0 | CJ20: 0 | CK20: 0 | CL20: 0 | CM20: 0 | CN20: 0 | CO20: 0 | CP20: 0 | CQ20: 0 | CR20: 0 | CS20: 0 | DE20: 1 | DF20: 5 | DG20: 10000 | DJ20: =IF(DG20="",VLOOKUP(DF20,bens!$BC$9:$BQ$44,8)*DH20,VLOOKUP(DF20,bens!$BC$9:$BQ$44,8)*DG20) -> 2000 | DK20: =VLOOKUP(DF20,bens!$BC$9:$BQ$44,9) -> 100000 | DL20: =IF(DG20="",VLOOKUP(DF20,bens!$BC$9:$BQ$44,15)*Inventario!DH20/Inventario!DK20,VLOOKUP(DF20,bens!$BC$9:$BQ$44,15)*Inventario!DG20/Inventario!DK20) -> 0.05 | DM20: 0.08 | DN20: =IF(DG20="",(VLOOKUP(DF20,bens!$BC$9:$BQ$44,14)*((DH20+DJ20)/2))/VLOOKUP(DF20,bens!$BC$9:$BQ$44,10),(VLOOKUP(DF20,bens!$BC$9:$BQ$44,14)*((DG20+DJ20)/2))/VLOOKUP(DF20,bens!$BC$9:$BQ$44,10)) -> 0.01666666667 | DO20: =IF(DG20="",(dados!$H$37*(DH20+DJ20)/2)/VLOOKUP(DF20,bens!$BC$9:$BQ$44,10),(dados!$H$37*(DG20+DJ20)/2))/VLOOKUP(DF20,bens!$BC$9:$BQ$44,10) -> 0.025 | DP20: 0.05 | DQ20: 0.08 | DR20: 0.01666666667 | DS20: 0.025 | DT20: =VLOOKUP(DF20,bens!$BC$9:$BQ$44,9)/VLOOKUP(DF20,bens!$BC$9:$BQ$44,10) -> 5.555555556 | DU20: =(((1+$U$2)^DT20)*$U2)/((1+$U$2)^DT20-1) -> 0.1949652519 | DV20: 0.008547008547 | DW20: 16.66369674 | DX20: 16.66369674 | DY20: 10000
B21: 1 | F21: =IF(C21="",VLOOKUP(B21,bens!$A$8:$Q$75,13)*D21,VLOOKUP(B21,bens!$A$8:$Q$75,13)*C21) -> 0 | G21: =VLOOKUP(B21,bens!$A$8:$Q$75,14) -> 12000 | H21: =VLOOKUP(B21,bens!$A$8:$Q$75,5)*0.12 -> 0 | I21: =VLOOKUP(B21,bens!$A$8:$Q$75,5)*0.12*$I$2 -> 0 | J21: =IF(C21="",VLOOKUP(B21,bens!$A$8:$Q$75,17)*Inventario!D21/Inventario!G21,VLOOKUP(B21,bens!$A$8:$Q$75,17)*Inventario!C21/Inventario!G21) -> 0 | K21: 0 | L21: =IF(C21="",(VLOOKUP(B21,bens!$A$8:$Q$75,16)*(D21+F21)/2)/(VLOOKUP(B21,bens!$A$8:$Q$75,15)),(VLOOKUP(B21,bens!$A$8:$Q$75,16)*(C21+F21)/2)/(VLOOKUP(B21,bens!$A$8:$Q$75,15))) -> 0 | M21: =IF(C21="",($M$1*(D21+F21)/2)/(VLOOKUP(B21,bens!$A$8:$Q$75,15)),($M$1*(C21+F21)/2)/(VLOOKUP(B21,bens!$A$8:$Q$75,15))) -> 0 | N21: 0 | O21: 0 | P21: 0 | Q21: 0 | R21: 0 | S21: =VLOOKUP(B21,bens!$A$8:$Q$75,14)/VLOOKUP(B21,bens!$A$8:$Q$75,15) -> 10 | T21: 0.11419973 | U21: 0.008547008547 | V21: 0 | W21: 0 | X21: 0 | Y21: 0 | AB21: 1 | AF21: =IF(AC21="",VLOOKUP(AB21,bens!$U$8:$AJ$170,12)*AD21,VLOOKUP(AB21,bens!$U$8:$AJ$170,12)*AC21) -> 0 | AG21: =VLOOKUP(AB21,bens!$U$8:$AJ$170,13) -> 2000 | AH21: =IF(AC21="",VLOOKUP(AB21,bens!$U$8:$AJ$170,16)*Inventario!AD21/Inventario!AG21,VLOOKUP(AB21,bens!$U$8:$AJ$170,16)*Inventario!AC21/Inventario!AG21) -> 0 | AI21: 0 | AJ21: =IF(AC21="",$AJ$1*((AD21+AF21)/2)/(VLOOKUP(AB21,bens!$U$8:$AJ$170,14)),$AJ$1*((AC21+AF21)/2)/(VLOOKUP(AB21,bens!$U$8:$AJ$170,14))) -> 0 | AK21: =IF(AC21="",($AK$1*(AD21+AF21)/2)/(VLOOKUP(AB21,bens!$U$8:$AJ$170,14)),($AK$1*(AC21+AF21)/2)/(VLOOKUP(AB21,bens!$U$8:$AJ$170,14))) -> 0 | AL21: 0 | AM21: 0 | AN21: 0 | AO21: 0 | AP21: =VLOOKUP(AB21,bens!$U$8:$AJ$17,13)/VLOOKUP(AB21,bens!$U$8:$AJ$17,14) -> 10 | AQ21: 0.11419973 | AR21: 0.008547008547 | AS21: 0 | AT21: 0 | AU21: 0 | AY21: 1 | BC21: =IF(AZ21="",VLOOKUP(AY21,bens!$AP$8:$AX$58,5)*BA21,VLOOKUP(AY21,bens!$AP$8:$AX$58,5)*AZ21) -> 0 | BD21: =VLOOKUP(AY21,bens!$AP$8:$AX$58,6) -> 30 | BE21: =IF(AZ21="",VLOOKUP(AY21,bens!$AP$8:$AX$58,9)*Inventario!BA21/Inventario!BD21,VLOOKUP(AY21,bens!$AP$8:$AX$58,9)*Inventario!AZ21/Inventario!BD21) -> 0 | BF21: 0 | BG21: =IF(AZ21="",(VLOOKUP(AY21,bens!$AP$8:$AX$58,8)*((BA21+BC21)/2)),(VLOOKUP(AY21,bens!$AP$8:$AX$58,8)*((AZ21+BC21)/2))) -> 0 | BH21: =IF(AZ21="",((BA21+BC21)/2)*Inventario!$BH$1/Inventario!BD21,((AZ21+BC21)/2)*Inventario!$BH$1/Inventario!BD21) -> 0 | BI21: 0 | BJ21: 0 | BK21: 0 | BL21: 0 | BM21: 30 | BN21: 0.04771395924 | BO21: 0.008547008547 | BP21: 0 | BQ21: 0 | BR21: 0 | BS21: 0 | BT21: 0 | BW21: 1 | BY21: 0 | BZ21: 0 | CA21: 0 | CB21: 0 | CC21: 0 | CD21: 0 | CE21: 0 | CF21: 0 | CG21: 0 | CH21: 0 | CI21: 0 | CJ21: 0 | CK21: 0 | CL21: 0 | CM21: 0 | CN21: 0 | CO21: 0 | CP21: 0 | CQ21: 0 | CR21: 0 | CS21: 0 | DE21: 1 | DF21: 5 | DG21: 10000 | DJ21: =IF(DG21="",VLOOKUP(DF21,bens!$BC$9:$BQ$44,8)*DH21,VLOOKUP(DF21,bens!$BC$9:$BQ$44,8)*DG21) -> 2000 | DK21: =VLOOKUP(DF21,bens!$BC$9:$BQ$44,9) -> 100000 | DL21: =IF(DG21="",VLOOKUP(DF21,bens!$BC$9:$BQ$44,15)*Inventario!DH21/Inventario!DK21,VLOOKUP(DF21,bens!$BC$9:$BQ$44,15)*Inventario!DG21/Inventario!DK21) -> 0.05 | DM21: 0.08 | DN21: =IF(DG21="",(VLOOKUP(DF21,bens!$BC$9:$BQ$44,14)*((DH21+DJ21)/2))/VLOOKUP(DF21,bens!$BC$9:$BQ$44,10),(VLOOKUP(DF21,bens!$BC$9:$BQ$44,14)*((DG21+DJ21)/2))/VLOOKUP(DF21,bens!$BC$9:$BQ$44,10)) -> 0.01666666667 | DO21: =IF(DG21="",(dados!$H$37*(DH21+DJ21)/2)/VLOOKUP(DF21,bens!$BC$9:$BQ$44,10),(dados!$H$37*(DG21+DJ21)/2))/VLOOKUP(DF21,bens!$BC$9:$BQ$44,10) -> 0.025 | DP21: 0.05 | DQ21: 0.08 | DR21: 0.01666666667 | DS21: 0.025 | DT21: =VLOOKUP(DF21,bens!$BC$9:$BQ$44,9)/VLOOKUP(DF21,bens!$BC$9:$BQ$44,10) -> 5.555555556 | DU21: =(((1+$U$2)^DT21)*$U2)/((1+$U$2)^DT21-1) -> 0.1949652519 | DV21: 0.008547008547 | DW21: 16.66369674 | DX21: 16.66369674 | DY21: 10000
B22: 1 | F22: =IF(C22="",VLOOKUP(B22,bens!$A$8:$Q$75,13)*D22,VLOOKUP(B22,bens!$A$8:$Q$75,13)*C22) -> 0 | G22: =VLOOKUP(B22,bens!$A$8:$Q$75,14) -> 12000 | H22: =VLOOKUP(B22,bens!$A$8:$Q$75,5)*0.12 -> 0 | I22: =VLOOKUP(B22,bens!$A$8:$Q$75,5)*0.12*$I$2 -> 0 | J22: =IF(C22="",VLOOKUP(B22,bens!$A$8:$Q$75,17)*Inventario!D22/Inventario!G22,VLOOKUP(B22,bens!$A$8:$Q$75,17)*Inventario!C22/Inventario!G22) -> 0 | K22: 0 | L22: =IF(C22="",(VLOOKUP(B22,bens!$A$8:$Q$75,16)*(D22+F22)/2)/(VLOOKUP(B22,bens!$A$8:$Q$75,15)),(VLOOKUP(B22,bens!$A$8:$Q$75,16)*(C22+F22)/2)/(VLOOKUP(B22,bens!$A$8:$Q$75,15))) -> 0 | M22: =IF(C22="",($M$1*(D22+F22)/2)/(VLOOKUP(B22,bens!$A$8:$Q$75,15)),($M$1*(C22+F22)/2)/(VLOOKUP(B22,bens!$A$8:$Q$75,15))) -> 0 | N22: 0 | O22: 0 | P22: 0 | Q22: 0 | R22: 0 | S22: =VLOOKUP(B22,bens!$A$8:$Q$75,14)/VLOOKUP(B22,bens!$A$8:$Q$75,15) -> 10 | T22: 0.11419973 | U22: 0.008547008547 | V22: 0 | W22: 0 | X22: 0 | Y22: 0 | AB22: 1 | AF22: =IF(AC22="",VLOOKUP(AB22,bens!$U$8:$AJ$170,12)*AD22,VLOOKUP(AB22,bens!$U$8:$AJ$170,12)*AC22) -> 0 | AG22: =VLOOKUP(AB22,bens!$U$8:$AJ$170,13) -> 2000 | AH22: =IF(AC22="",VLOOKUP(AB22,bens!$U$8:$AJ$170,16)*Inventario!AD22/Inventario!AG22,VLOOKUP(AB22,bens!$U$8:$AJ$170,16)*Inventario!AC22/Inventario!AG22) -> 0 | AI22: 0 | AJ22: =IF(AC22="",$AJ$1*((AD22+AF22)/2)/(VLOOKUP(AB22,bens!$U$8:$AJ$170,14)),$AJ$1*((AC22+AF22)/2)/(VLOOKUP(AB22,bens!$U$8:$AJ$170,14))) -> 0 | AK22: =IF(AC22="",($AK$1*(AD22+AF22)/2)/(VLOOKUP(AB22,bens!$U$8:$AJ$170,14)),($AK$1*(AC22+AF22)/2)/(VLOOKUP(AB22,bens!$U$8:$AJ$170,14))) -> 0 | AL22: 0 | AM22: 0 | AN22: 0 | AO22: 0 | AP22: =VLOOKUP(AB22,bens!$U$8:$AJ$17,13)/VLOOKUP(AB22,bens!$U$8:$AJ$17,14) -> 10 | AQ22: 0.11419973 | AR22: 0.008547008547 | AS22: 0 | AT22: 0 | AU22: 0 | AY22: 1 | BC22: =IF(AZ22="",VLOOKUP(AY22,bens!$AP$8:$AX$58,5)*BA22,VLOOKUP(AY22,bens!$AP$8:$AX$58,5)*AZ22) -> 0 | BD22: =VLOOKUP(AY22,bens!$AP$8:$AX$58,6) -> 30 | BE22: =IF(AZ22="",VLOOKUP(AY22,bens!$AP$8:$AX$58,9)*Inventario!BA22/Inventario!BD22,VLOOKUP(AY22,bens!$AP$8:$AX$58,9)*Inventario!AZ22/Inventario!BD22) -> 0 | BF22: 0 | BG22: =IF(AZ22="",(VLOOKUP(AY22,bens!$AP$8:$AX$58,8)*((BA22+BC22)/2)),(VLOOKUP(AY22,bens!$AP$8:$AX$58,8)*((AZ22+BC22)/2))) -> 0 | BH22: =IF(AZ22="",((BA22+BC22)/2)*Inventario!$BH$1/Inventario!BD22,((AZ22+BC22)/2)*Inventario!$BH$1/Inventario!BD22) -> 0 | BI22: 0 | BJ22: 0 | BK22: 0 | BL22: 0 | BM22: 30 | BN22: 0.04771395924 | BO22: 0.008547008547 | BP22: 0 | BQ22: 0 | BR22: 0 | BS22: 0 | BT22: 0 | BW22: 1 | BY22: 0 | BZ22: 0 | CA22: 0 | CB22: 0 | CC22: 0 | CD22: 0 | CE22: 0 | CF22: 0 | CG22: 0 | CH22: 0 | CI22: 0 | CJ22: 0 | CK22: 0 | CL22: 0 | CM22: 0 | CN22: 0 | CO22: 0 | CP22: 0 | CQ22: 0 | CR22: 0 | CS22: 0 | DE22: 1 | DF22: 5 | DG22: 10000 | DJ22: =IF(DG22="",VLOOKUP(DF22,bens!$BC$9:$BQ$44,8)*DH22,VLOOKUP(DF22,bens!$BC$9:$BQ$44,8)*DG22) -> 2000 | DK22: =VLOOKUP(DF22,bens!$BC$9:$BQ$44,9) -> 100000 | DL22: =IF(DG22="",VLOOKUP(DF22,bens!$BC$9:$BQ$44,15)*Inventario!DH22/Inventario!DK22,VLOOKUP(DF22,bens!$BC$9:$BQ$44,15)*Inventario!DG22/Inventario!DK22) -> 0.05 | DM22: 0.08 | DN22: =IF(DG22="",(VLOOKUP(DF22,bens!$BC$9:$BQ$44,14)*((DH22+DJ22)/2))/VLOOKUP(DF22,bens!$BC$9:$BQ$44,10),(VLOOKUP(DF22,bens!$BC$9:$BQ$44,14)*((DG22+DJ22)/2))/VLOOKUP(DF22,bens!$BC$9:$BQ$44,10)) -> 0.01666666667 | DO22: =IF(DG22="",(dados!$H$37*(DH22+DJ22)/2)/VLOOKUP(DF22,bens!$BC$9:$BQ$44,10),(dados!$H$37*(DG22+DJ22)/2))/VLOOKUP(DF22,bens!$BC$9:$BQ$44,10) -> 0.025 | DP22: 0.05 | DQ22: 0.08 | DR22: 0.01666666667 | DS22: 0.025 | DT22: =VLOOKUP(DF22,bens!$BC$9:$BQ$44,9)/VLOOKUP(DF22,bens!$BC$9:$BQ$44,10) -> 5.555555556 | DU22: =(((1+$U$2)^DT22)*$U2)/((1+$U$2)^DT22-1) -> 0.1949652519 | DV22: 0.008547008547 | DW22: 16.66369674 | DX22: 16.66369674 | DY22: 10000
B23: 1 | F23: =IF(C23="",VLOOKUP(B23,bens!$A$8:$Q$75,13)*D23,VLOOKUP(B23,bens!$A$8:$Q$75,13)*C23) -> 0 | G23: =VLOOKUP(B23,bens!$A$8:$Q$75,14) -> 12000 | H23: =VLOOKUP(B23,bens!$A$8:$Q$75,5)*0.12 -> 0 | I23: =VLOOKUP(B23,bens!$A$8:$Q$75,5)*0.12*$I$2 -> 0 | J23: =IF(C23="",VLOOKUP(B23,bens!$A$8:$Q$75,17)*Inventario!D23/Inventario!G23,VLOOKUP(B23,bens!$A$8:$Q$75,17)*Inventario!C23/Inventario!G23) -> 0 | K23: 0 | L23: =IF(C23="",(VLOOKUP(B23,bens!$A$8:$Q$75,16)*(D23+F23)/2)/(VLOOKUP(B23,bens!$A$8:$Q$75,15)),(VLOOKUP(B23,bens!$A$8:$Q$75,16)*(C23+F23)/2)/(VLOOKUP(B23,bens!$A$8:$Q$75,15))) -> 0 | M23: =IF(C23="",($M$1*(D23+F23)/2)/(VLOOKUP(B23,bens!$A$8:$Q$75,15)),($M$1*(C23+F23)/2)/(VLOOKUP(B23,bens!$A$8:$Q$75,15))) -> 0 | N23: 0 | O23: 0 | P23: 0 | Q23: 0 | R23: 0 | S23: =VLOOKUP(B23,bens!$A$8:$Q$75,14)/VLOOKUP(B23,bens!$A$8:$Q$75,15) -> 10 | T23: 0.11419973 | U23: 0.008547008547 | V23: 0 | W23: 0 | X23: 0 | Y23: 0 | AB23: 1 | AF23: =IF(AC23="",VLOOKUP(AB23,bens!$U$8:$AJ$170,12)*AD23,VLOOKUP(AB23,bens!$U$8:$AJ$170,12)*AC23) -> 0 | AG23: =VLOOKUP(AB23,bens!$U$8:$AJ$170,13) -> 2000 | AH23: =IF(AC23="",VLOOKUP(AB23,bens!$U$8:$AJ$170,16)*Inventario!AD23/Inventario!AG23,VLOOKUP(AB23,bens!$U$8:$AJ$170,16)*Inventario!AC23/Inventario!AG23) -> 0 | AI23: 0 | AJ23: =IF(AC23="",$AJ$1*((AD23+AF23)/2)/(VLOOKUP(AB23,bens!$U$8:$AJ$170,14)),$AJ$1*((AC23+AF23)/2)/(VLOOKUP(AB23,bens!$U$8:$AJ$170,14))) -> 0 | AK23: =IF(AC23="",($AK$1*(AD23+AF23)/2)/(VLOOKUP(AB23,bens!$U$8:$AJ$170,14)),($AK$1*(AC23+AF23)/2)/(VLOOKUP(AB23,bens!$U$8:$AJ$170,14))) -> 0 | AL23: 0 | AM23: 0 | AN23: 0 | AO23: 0 | AP23: =VLOOKUP(AB23,bens!$U$8:$AJ$17,13)/VLOOKUP(AB23,bens!$U$8:$AJ$17,14) -> 10 | AQ23: 0.11419973 | AR23: 0.008547008547 | AS23: 0 | AT23: 0 | AU23: 0 | AY23: 1 | BC23: =IF(AZ23="",VLOOKUP(AY23,bens!$AP$8:$AX$58,5)*BA23,VLOOKUP(AY23,bens!$AP$8:$AX$58,5)*AZ23) -> 0 | BD23: =VLOOKUP(AY23,bens!$AP$8:$AX$58,6) -> 30 | BE23: =IF(AZ23="",VLOOKUP(AY23,bens!$AP$8:$AX$58,9)*Inventario!BA23/Inventario!BD23,VLOOKUP(AY23,bens!$AP$8:$AX$58,9)*Inventario!AZ23/Inventario!BD23) -> 0 | BF23: 0 | BG23: =IF(AZ23="",(VLOOKUP(AY23,bens!$AP$8:$AX$58,8)*((BA23+BC23)/2)),(VLOOKUP(AY23,bens!$AP$8:$AX$58,8)*((AZ23+BC23)/2))) -> 0 | BH23: =IF(AZ23="",((BA23+BC23)/2)*Inventario!$BH$1/Inventario!BD23,((AZ23+BC23)/2)*Inventario!$BH$1/Inventario!BD23) -> 0 | BI23: 0 | BJ23: 0 | BK23: 0 | BL23: 0 | BM23: 30 | BN23: 0.04771395924 | BO23: 0.008547008547 | BP23: 0 | BQ23: 0 | BR23: 0 | BS23: 0 | BT23: 0 | BW23: 1 | BY23: 0 | BZ23: 0 | CA23: 0 | CB23: 0 | CC23: 0 | CD23: 0 | CE23: 0 | CF23: 0 | CG23: 0 | CH23: 0 | CI23: 0 | CJ23: 0 | CK23: 0 | CL23: 0 | CM23: 0 | CN23: 0 | CO23: 0 | CP23: 0 | CQ23: 0 | CR23: 0 | CS23: 0 | DE23: 1 | DF23: 5 | DG23: 10000 | DJ23: =IF(DG23="",VLOOKUP(DF23,bens!$BC$9:$BQ$44,8)*DH23,VLOOKUP(DF23,bens!$BC$9:$BQ$44,8)*DG23) -> 2000 | DK23: =VLOOKUP(DF23,bens!$BC$9:$BQ$44,9) -> 100000 | DL23: =IF(DG23="",VLOOKUP(DF23,bens!$BC$9:$BQ$44,15)*Inventario!DH23/Inventario!DK23,VLOOKUP(DF23,bens!$BC$9:$BQ$44,15)*Inventario!DG23/Inventario!DK23) -> 0.05 | DM23: 0.08 | DN23: =IF(DG23="",(VLOOKUP(DF23,bens!$BC$9:$BQ$44,14)*((DH23+DJ23)/2))/VLOOKUP(DF23,bens!$BC$9:$BQ$44,10),(VLOOKUP(DF23,bens!$BC$9:$BQ$44,14)*((DG23+DJ23)/2))/VLOOKUP(DF23,bens!$BC$9:$BQ$44,10)) -> 0.01666666667 | DO23: =IF(DG23="",(dados!$H$37*(DH23+DJ23)/2)/VLOOKUP(DF23,bens!$BC$9:$BQ$44,10),(dados!$H$37*(DG23+DJ23)/2))/VLOOKUP(DF23,bens!$BC$9:$BQ$44,10) -> 0.025 | DP23: 0.05 | DQ23: 0.08 | DR23: 0.01666666667 | DS23: 0.025 | DT23: =VLOOKUP(DF23,bens!$BC$9:$BQ$44,9)/VLOOKUP(DF23,bens!$BC$9:$BQ$44,10) -> 5.555555556 | DU23: =(((1+$U$2)^DT23)*$U2)/((1+$U$2)^DT23-1) -> 0.1949652519 | DV23: 0.008547008547 | DW23: 16.66369674 | DX23: 16.66369674 | DY23: 10000
B24: 1 | F24: =IF(C24="",VLOOKUP(B24,bens!$A$8:$Q$75,13)*D24,VLOOKUP(B24,bens!$A$8:$Q$75,13)*C24) -> 0 | G24: =VLOOKUP(B24,bens!$A$8:$Q$75,14) -> 12000 | H24: =VLOOKUP(B24,bens!$A$8:$Q$75,5)*0.12 -> 0 | I24: =VLOOKUP(B24,bens!$A$8:$Q$75,5)*0.12*$I$2 -> 0 | J24: =IF(C24="",VLOOKUP(B24,bens!$A$8:$Q$75,17)*Inventario!D24/Inventario!G24,VLOOKUP(B24,bens!$A$8:$Q$75,17)*Inventario!C24/Inventario!G24) -> 0 | K24: 0 | L24: =IF(C24="",(VLOOKUP(B24,bens!$A$8:$Q$75,16)*(D24+F24)/2)/(VLOOKUP(B24,bens!$A$8:$Q$75,15)),(VLOOKUP(B24,bens!$A$8:$Q$75,16)*(C24+F24)/2)/(VLOOKUP(B24,bens!$A$8:$Q$75,15))) -> 0 | M24: =IF(C24="",($M$1*(D24+F24)/2)/(VLOOKUP(B24,bens!$A$8:$Q$75,15)),($M$1*(C24+F24)/2)/(VLOOKUP(B24,bens!$A$8:$Q$75,15))) -> 0 | N24: 0 | O24: 0 | P24: 0 | Q24: 0 | R24: 0 | S24: =VLOOKUP(B24,bens!$A$8:$Q$75,14)/VLOOKUP(B24,bens!$A$8:$Q$75,15) -> 10 | T24: 0.11419973 | U24: 0.008547008547 | V24: 0 | W24: 0 | X24: 0 | Y24: 0 | AB24: 1 | AF24: =IF(AC24="",VLOOKUP(AB24,bens!$U$8:$AJ$170,12)*AD24,VLOOKUP(AB24,bens!$U$8:$AJ$170,12)*AC24) -> 0 | AG24: =VLOOKUP(AB24,bens!$U$8:$AJ$170,13) -> 2000 | AH24: =IF(AC24="",VLOOKUP(AB24,bens!$U$8:$AJ$170,16)*Inventario!AD24/Inventario!AG24,VLOOKUP(AB24,bens!$U$8:$AJ$170,16)*Inventario!AC24/Inventario!AG24) -> 0 | AI24: 0 | AJ24: =IF(AC24="",$AJ$1*((AD24+AF24)/2)/(VLOOKUP(AB24,bens!$U$8:$AJ$170,14)),$AJ$1*((AC24+AF24)/2)/(VLOOKUP(AB24,bens!$U$8:$AJ$170,14))) -> 0 | AK24: =IF(AC24="",($AK$1*(AD24+AF24)/2)/(VLOOKUP(AB24,bens!$U$8:$AJ$170,14)),($AK$1*(AC24+AF24)/2)/(VLOOKUP(AB24,bens!$U$8:$AJ$170,14))) -> 0 | AL24: 0 | AM24: 0 | AN24: 0 | AO24: 0 | AP24: =VLOOKUP(AB24,bens!$U$8:$AJ$17,13)/VLOOKUP(AB24,bens!$U$8:$AJ$17,14) -> 10 | AQ24: 0.11419973 | AR24: 0.008547008547 | AS24: 0 | AT24: 0 | AU24: 0 | AY24: 1 | BC24: =IF(AZ24="",VLOOKUP(AY24,bens!$AP$8:$AX$58,5)*BA24,VLOOKUP(AY24,bens!$AP$8:$AX$58,5)*AZ24) -> 0 | BD24: =VLOOKUP(AY24,bens!$AP$8:$AX$58,6) -> 30 | BE24: =IF(AZ24="",VLOOKUP(AY24,bens!$AP$8:$AX$58,9)*Inventario!BA24/Inventario!BD24,VLOOKUP(AY24,bens!$AP$8:$AX$58,9)*Inventario!AZ24/Inventario!BD24) -> 0 | BF24: 0 | BG24: =IF(AZ24="",(VLOOKUP(AY24,bens!$AP$8:$AX$58,8)*((BA24+BC24)/2)),(VLOOKUP(AY24,bens!$AP$8:$AX$58,8)*((AZ24+BC24)/2))) -> 0 | BH24: =IF(AZ24="",((BA24+BC24)/2)*Inventario!$BH$1/Inventario!BD24,((AZ24+BC24)/2)*Inventario!$BH$1/Inventario!BD24) -> 0 | BI24: 0 | BJ24: 0 | BK24: 0 | BL24: 0 | BM24: 30 | BN24: 0.04771395924 | BO24: 0.008547008547 | BP24: 0 | BQ24: 0 | BR24: 0 | BS24: 0 | BT24: 0 | BW24: 1 | BY24: 0 | BZ24: 0 | CA24: 0 | CB24: 0 | CC24: 0 | CD24: 0 | CE24: 0 | CF24: 0 | CG24: 0 | CH24: 0 | CI24: 0 | CJ24: 0 | CK24: 0 | CL24: 0 | CM24: 0 | CN24: 0 | CO24: 0 | CP24: 0 | CQ24: 0 | CR24: 0 | CS24: 0 | DE24: 1 | DF24: 5 | DG24: 10000 | DJ24: =IF(DG24="",VLOOKUP(DF24,bens!$BC$9:$BQ$44,8)*DH24,VLOOKUP(DF24,bens!$BC$9:$BQ$44,8)*DG24) -> 2000 | DK24: =VLOOKUP(DF24,bens!$BC$9:$BQ$44,9) -> 100000 | DL24: =IF(DG24="",VLOOKUP(DF24,bens!$BC$9:$BQ$44,15)*Inventario!DH24/Inventario!DK24,VLOOKUP(DF24,bens!$BC$9:$BQ$44,15)*Inventario!DG24/Inventario!DK24) -> 0.05 | DM24: 0.08 | DN24: =IF(DG24="",(VLOOKUP(DF24,bens!$BC$9:$BQ$44,14)*((DH24+DJ24)/2))/VLOOKUP(DF24,bens!$BC$9:$BQ$44,10),(VLOOKUP(DF24,bens!$BC$9:$BQ$44,14)*((DG24+DJ24)/2))/VLOOKUP(DF24,bens!$BC$9:$BQ$44,10)) -> 0.01666666667 | DO24: =IF(DG24="",(dados!$H$37*(DH24+DJ24)/2)/VLOOKUP(DF24,bens!$BC$9:$BQ$44,10),(dados!$H$37*(DG24+DJ24)/2))/VLOOKUP(DF24,bens!$BC$9:$BQ$44,10) -> 0.025 | DP24: 0.05 | DQ24: 0.08 | DR24: 0.01666666667 | DS24: 0.025 | DT24: =VLOOKUP(DF24,bens!$BC$9:$BQ$44,9)/VLOOKUP(DF24,bens!$BC$9:$BQ$44,10) -> 5.555555556 | DU24: =(((1+$U$2)^DT24)*$U2)/((1+$U$2)^DT24-1) -> 0.1949652519 | DV24: 0.008547008547 | DW24: 16.66369674 | DX24: 16.66369674 | DY24: 10000
B25: 1 | F25: =IF(C25="",VLOOKUP(B25,bens!$A$8:$Q$75,13)*D25,VLOOKUP(B25,bens!$A$8:$Q$75,13)*C25) -> 0 | G25: =VLOOKUP(B25,bens!$A$8:$Q$75,14) -> 12000 | H25: =VLOOKUP(B25,bens!$A$8:$Q$75,5)*0.12 -> 0 | I25: =VLOOKUP(B25,bens!$A$8:$Q$75,5)*0.12*$I$2 -> 0 | J25: =IF(C25="",VLOOKUP(B25,bens!$A$8:$Q$75,17)*Inventario!D25/Inventario!G25,VLOOKUP(B25,bens!$A$8:$Q$75,17)*Inventario!C25/Inventario!G25) -> 0 | K25: 0 | L25: =IF(C25="",(VLOOKUP(B25,bens!$A$8:$Q$75,16)*(D25+F25)/2)/(VLOOKUP(B25,bens!$A$8:$Q$75,15)),(VLOOKUP(B25,bens!$A$8:$Q$75,16)*(C25+F25)/2)/(VLOOKUP(B25,bens!$A$8:$Q$75,15))) -> 0 | M25: =IF(C25="",($M$1*(D25+F25)/2)/(VLOOKUP(B25,bens!$A$8:$Q$75,15)),($M$1*(C25+F25)/2)/(VLOOKUP(B25,bens!$A$8:$Q$75,15))) -> 0 | N25: 0 | O25: 0 | P25: 0 | Q25: 0 | R25: 0 | S25: =VLOOKUP(B25,bens!$A$8:$Q$75,14)/VLOOKUP(B25,bens!$A$8:$Q$75,15) -> 10 | T25: 0.11419973 | U25: 0.008547008547 | V25: 0 | W25: 0 | X25: 0 | Y25: 0 | AB25: 1 | AF25: =IF(AC25="",VLOOKUP(AB25,bens!$U$8:$AJ$170,12)*AD25,VLOOKUP(AB25,bens!$U$8:$AJ$170,12)*AC25) -> 0 | AG25: =VLOOKUP(AB25,bens!$U$8:$AJ$170,13) -> 2000 | AH25: =IF(AC25="",VLOOKUP(AB25,bens!$U$8:$AJ$170,16)*Inventario!AD25/Inventario!AG25,VLOOKUP(AB25,bens!$U$8:$AJ$170,16)*Inventario!AC25/Inventario!AG25) -> 0 | AI25: 0 | AJ25: =IF(AC25="",$AJ$1*((AD25+AF25)/2)/(VLOOKUP(AB25,bens!$U$8:$AJ$170,14)),$AJ$1*((AC25+AF25)/2)/(VLOOKUP(AB25,bens!$U$8:$AJ$170,14))) -> 0 | AK25: =IF(AC25="",($AK$1*(AD25+AF25)/2)/(VLOOKUP(AB25,bens!$U$8:$AJ$170,14)),($AK$1*(AC25+AF25)/2)/(VLOOKUP(AB25,bens!$U$8:$AJ$170,14))) -> 0 | AL25: 0 | AM25: 0 | AN25: 0 | AO25: 0 | AP25: =VLOOKUP(AB25,bens!$U$8:$AJ$17,13)/VLOOKUP(AB25,bens!$U$8:$AJ$17,14) -> 10 | AQ25: 0.11419973 | AR25: 0.008547008547 | AS25: 0 | AT25: 0 | AU25: 0 | AY25: 1 | BC25: =IF(AZ25="",VLOOKUP(AY25,bens!$AP$8:$AX$58,5)*BA25,VLOOKUP(AY25,bens!$AP$8:$AX$58,5)*AZ25) -> 0 | BD25: =VLOOKUP(AY25,bens!$AP$8:$AX$58,6) -> 30 | BE25: =IF(AZ25="",VLOOKUP(AY25,bens!$AP$8:$AX$58,9)*Inventario!BA25/Inventario!BD25,VLOOKUP(AY25,bens!$AP$8:$AX$58,9)*Inventario!AZ25/Inventario!BD25) -> 0 | BF25: 0 | BG25: =IF(AZ25="",(VLOOKUP(AY25,bens!$AP$8:$AX$58,8)*((BA25+BC25)/2)),(VLOOKUP(AY25,bens!$AP$8:$AX$58,8)*((AZ25+BC25)/2))) -> 0 | BH25: =IF(AZ25="",((BA25+BC25)/2)*Inventario!$BH$1/Inventario!BD25,((AZ25+BC25)/2)*Inventario!$BH$1/Inventario!BD25) -> 0 | BI25: 0 | BJ25: 0 | BK25: 0 | BL25: 0 | BM25: 30 | BN25: 0.04771395924 | BO25: 0.008547008547 | BP25: 0 | BQ25: 0 | BR25: 0 | BS25: 0 | BT25: 0 | BW25: 1 | BY25: 0 | BZ25: 0 | CA25: 0 | CB25: 0 | CC25: 0 | CD25: 0 | CE25: 0 | CF25: 0 | CG25: 0 | CH25: 0 | CI25: 0 | CJ25: 0 | CK25: 0 | CL25: 0 | CM25: 0 | CN25: 0 | CO25: 0 | CP25: 0 | CQ25: 0 | CR25: 0 | CS25: 0 | DE25: 1 | DF25: 5 | DG25: 10000 | DJ25: =IF(DG25="",VLOOKUP(DF25,bens!$BC$9:$BQ$44,8)*DH25,VLOOKUP(DF25,bens!$BC$9:$BQ$44,8)*DG25) -> 2000 | DK25: =VLOOKUP(DF25,bens!$BC$9:$BQ$44,9) -> 100000 | DL25: =IF(DG25="",VLOOKUP(DF25,bens!$BC$9:$BQ$44,15)*Inventario!DH25/Inventario!DK25,VLOOKUP(DF25,bens!$BC$9:$BQ$44,15)*Inventario!DG25/Inventario!DK25) -> 0.05 | DM25: 0.08 | DN25: =IF(DG25="",(VLOOKUP(DF25,bens!$BC$9:$BQ$44,14)*((DH25+DJ25)/2))/VLOOKUP(DF25,bens!$BC$9:$BQ$44,10),(VLOOKUP(DF25,bens!$BC$9:$BQ$44,14)*((DG25+DJ25)/2))/VLOOKUP(DF25,bens!$BC$9:$BQ$44,10)) -> 0.01666666667 | DO25: =IF(DG25="",(dados!$H$37*(DH25+DJ25)/2)/VLOOKUP(DF25,bens!$BC$9:$BQ$44,10),(dados!$H$37*(DG25+DJ25)/2))/VLOOKUP(DF25,bens!$BC$9:$BQ$44,10) -> 0.025 | DP25: 0.05 | DQ25: 0.08 | DR25: 0.01666666667 | DS25: 0.025 | DT25: =VLOOKUP(DF25,bens!$BC$9:$BQ$44,9)/VLOOKUP(DF25,bens!$BC$9:$BQ$44,10) -> 5.555555556 | DU25: =(((1+$U$2)^DT25)*$U2)/((1+$U$2)^DT25-1) -> 0.1949652519 | DV25: 0.008547008547 | DW25: 16.66369674 | DX25: 16.66369674 | DY25: 10000
B26: 1 | F26: =IF(C26="",VLOOKUP(B26,bens!$A$8:$Q$75,13)*D26,VLOOKUP(B26,bens!$A$8:$Q$75,13)*C26) -> 0 | G26: =VLOOKUP(B26,bens!$A$8:$Q$75,14) -> 12000 | H26: =VLOOKUP(B26,bens!$A$8:$Q$75,5)*0.12 -> 0 | I26: =VLOOKUP(B26,bens!$A$8:$Q$75,5)*0.12*$I$2 -> 0 | J26: =IF(C26="",VLOOKUP(B26,bens!$A$8:$Q$75,17)*Inventario!D26/Inventario!G26,VLOOKUP(B26,bens!$A$8:$Q$75,17)*Inventario!C26/Inventario!G26) -> 0 | K26: 0 | L26: =IF(C26="",(VLOOKUP(B26,bens!$A$8:$Q$75,16)*(D26+F26)/2)/(VLOOKUP(B26,bens!$A$8:$Q$75,15)),(VLOOKUP(B26,bens!$A$8:$Q$75,16)*(C26+F26)/2)/(VLOOKUP(B26,bens!$A$8:$Q$75,15))) -> 0 | M26: =IF(C26="",($M$1*(D26+F26)/2)/(VLOOKUP(B26,bens!$A$8:$Q$75,15)),($M$1*(C26+F26)/2)/(VLOOKUP(B26,bens!$A$8:$Q$75,15))) -> 0 | N26: 0 | O26: 0 | P26: 0 | Q26: 0 | R26: 0 | S26: =VLOOKUP(B26,bens!$A$8:$Q$75,14)/VLOOKUP(B26,bens!$A$8:$Q$75,15) -> 10 | T26: 0.11419973 | U26: 0.008547008547 | V26: 0 | W26: 0 | X26: 0 | Y26: 0 | AB26: 1 | AF26: =IF(AC26="",VLOOKUP(AB26,bens!$U$8:$AJ$170,12)*AD26,VLOOKUP(AB26,bens!$U$8:$AJ$170,12)*AC26) -> 0 | AG26: =VLOOKUP(AB26,bens!$U$8:$AJ$170,13) -> 2000 | AH26: =IF(AC26="",VLOOKUP(AB26,bens!$U$8:$AJ$170,16)*Inventario!AD26/Inventario!AG26,VLOOKUP(AB26,bens!$U$8:$AJ$170,16)*Inventario!AC26/Inventario!AG26) -> 0 | AI26: 0 | AJ26: =IF(AC26="",$AJ$1*((AD26+AF26)/2)/(VLOOKUP(AB26,bens!$U$8:$AJ$170,14)),$AJ$1*((AC26+AF26)/2)/(VLOOKUP(AB26,bens!$U$8:$AJ$170,14))) -> 0 | AK26: =IF(AC26="",($AK$1*(AD26+AF26)/2)/(VLOOKUP(AB26,bens!$U$8:$AJ$170,14)),($AK$1*(AC26+AF26)/2)/(VLOOKUP(AB26,bens!$U$8:$AJ$170,14))) -> 0 | AL26: 0 | AM26: 0 | AN26: 0 | AO26: 0 | AP26: =VLOOKUP(AB26,bens!$U$8:$AJ$17,13)/VLOOKUP(AB26,bens!$U$8:$AJ$17,14) -> 10 | AQ26: 0.11419973 | AR26: 0.008547008547 | AS26: 0 | AT26: 0 | AU26: 0 | AY26: 1 | BC26: =IF(AZ26="",VLOOKUP(AY26,bens!$AP$8:$AX$58,5)*BA26,VLOOKUP(AY26,bens!$AP$8:$AX$58,5)*AZ26) -> 0 | BD26: =VLOOKUP(AY26,bens!$AP$8:$AX$58,6) -> 30 | BE26: =IF(AZ26="",VLOOKUP(AY26,bens!$AP$8:$AX$58,9)*Inventario!BA26/Inventario!BD26,VLOOKUP(AY26,bens!$AP$8:$AX$58,9)*Inventario!AZ26/Inventario!BD26) -> 0 | BF26: 0 | BG26: =IF(AZ26="",(VLOOKUP(AY26,bens!$AP$8:$AX$58,8)*((BA26+BC26)/2)),(VLOOKUP(AY26,bens!$AP$8:$AX$58,8)*((AZ26+BC26)/2))) -> 0 | BH26: =IF(AZ26="",((BA26+BC26)/2)*Inventario!$BH$1/Inventario!BD26,((AZ26+BC26)/2)*Inventario!$BH$1/Inventario!BD26) -> 0 | BI26: 0 | BJ26: 0 | BK26: 0 | BL26: 0 | BM26: 30 | BN26: 0.04771395924 | BO26: 0.008547008547 | BP26: 0 | BQ26: 0 | BR26: 0 | BS26: 0 | BT26: 0 | BW26: 1 | BY26: 0 | BZ26: 0 | CA26: 0 | CB26: 0 | CC26: 0 | CD26: 0 | CE26: 0 | CF26: 0 | CG26: 0 | CH26: 0 | CI26: 0 | CJ26: 0 | CK26: 0 | CL26: 0 | CM26: 0 | CN26: 0 | CO26: 0 | CP26: 0 | CQ26: 0 | CR26: 0 | CS26: 0 | DE26: 1 | DF26: 5 | DG26: 10000 | DJ26: =IF(DG26="",VLOOKUP(DF26,bens!$BC$9:$BQ$44,8)*DH26,VLOOKUP(DF26,bens!$BC$9:$BQ$44,8)*DG26) -> 2000 | DK26: =VLOOKUP(DF26,bens!$BC$9:$BQ$44,9) -> 100000 | DL26: =IF(DG26="",VLOOKUP(DF26,bens!$BC$9:$BQ$44,15)*Inventario!DH26/Inventario!DK26,VLOOKUP(DF26,bens!$BC$9:$BQ$44,15)*Inventario!DG26/Inventario!DK26) -> 0.05 | DM26: 0.08 | DN26: =IF(DG26="",(VLOOKUP(DF26,bens!$BC$9:$BQ$44,14)*((DH26+DJ26)/2))/VLOOKUP(DF26,bens!$BC$9:$BQ$44,10),(VLOOKUP(DF26,bens!$BC$9:$BQ$44,14)*((DG26+DJ26)/2))/VLOOKUP(DF26,bens!$BC$9:$BQ$44,10)) -> 0.01666666667 | DO26: =IF(DG26="",(dados!$H$37*(DH26+DJ26)/2)/VLOOKUP(DF26,bens!$BC$9:$BQ$44,10),(dados!$H$37*(DG26+DJ26)/2))/VLOOKUP(DF26,bens!$BC$9:$BQ$44,10) -> 0.025 | DP26: 0.05 | DQ26: 0.08 | DR26: 0.01666666667 | DS26: 0.025 | DT26: =VLOOKUP(DF26,bens!$BC$9:$BQ$44,9)/VLOOKUP(DF26,bens!$BC$9:$BQ$44,10) -> 5.555555556 | DU26: =(((1+$U$2)^DT26)*$U2)/((1+$U$2)^DT26-1) -> 0.1949652519 | DV26: 0.008547008547 | DW26: 16.66369674 | DX26: 16.66369674 | DY26: 10000
B27: 1 | F27: =IF(C27="",VLOOKUP(B27,bens!$A$8:$Q$75,13)*D27,VLOOKUP(B27,bens!$A$8:$Q$75,13)*C27) -> 0 | G27: =VLOOKUP(B27,bens!$A$8:$Q$75,14) -> 12000 | H27: =VLOOKUP(B27,bens!$A$8:$Q$75,5)*0.12 -> 0 | I27: =VLOOKUP(B27,bens!$A$8:$Q$75,5)*0.12*$I$2 -> 0 | J27: =IF(C27="",VLOOKUP(B27,bens!$A$8:$Q$75,17)*Inventario!D27/Inventario!G27,VLOOKUP(B27,bens!$A$8:$Q$75,17)*Inventario!C27/Inventario!G27) -> 0 | K27: 0 | L27: =IF(C27="",(VLOOKUP(B27,bens!$A$8:$Q$75,16)*(D27+F27)/2)/(VLOOKUP(B27,bens!$A$8:$Q$75,15)),(VLOOKUP(B27,bens!$A$8:$Q$75,16)*(C27+F27)/2)/(VLOOKUP(B27,bens!$A$8:$Q$75,15))) -> 0 | M27: =IF(C27="",($M$1*(D27+F27)/2)/(VLOOKUP(B27,bens!$A$8:$Q$75,15)),($M$1*(C27+F27)/2)/(VLOOKUP(B27,bens!$A$8:$Q$75,15))) -> 0 | N27: 0 | O27: 0 | P27: 0 | Q27: 0 | R27: 0 | S27: =VLOOKUP(B27,bens!$A$8:$Q$75,14)/VLOOKUP(B27,bens!$A$8:$Q$75,15) -> 10 | T27: 0.11419973 | U27: 0.008547008547 | V27: 0 | W27: 0 | X27: 0 | Y27: 0 | AB27: 1 | AF27: =IF(AC27="",VLOOKUP(AB27,bens!$U$8:$AJ$170,12)*AD27,VLOOKUP(AB27,bens!$U$8:$AJ$170,12)*AC27) -> 0 | AG27: =VLOOKUP(AB27,bens!$U$8:$AJ$170,13) -> 2000 | AH27: =IF(AC27="",VLOOKUP(AB27,bens!$U$8:$AJ$170,16)*Inventario!AD27/Inventario!AG27,VLOOKUP(AB27,bens!$U$8:$AJ$170,16)*Inventario!AC27/Inventario!AG27) -> 0 | AI27: 0 | AJ27: =IF(AC27="",$AJ$1*((AD27+AF27)/2)/(VLOOKUP(AB27,bens!$U$8:$AJ$170,14)),$AJ$1*((AC27+AF27)/2)/(VLOOKUP(AB27,bens!$U$8:$AJ$170,14))) -> 0 | AK27: =IF(AC27="",($AK$1*(AD27+AF27)/2)/(VLOOKUP(AB27,bens!$U$8:$AJ$170,14)),($AK$1*(AC27+AF27)/2)/(VLOOKUP(AB27,bens!$U$8:$AJ$170,14))) -> 0 | AL27: 0 | AM27: 0 | AN27: 0 | AO27: 0 | AP27: =VLOOKUP(AB27,bens!$U$8:$AJ$17,13)/VLOOKUP(AB27,bens!$U$8:$AJ$17,14) -> 10 | AQ27: 0.11419973 | AR27: 0.008547008547 | AS27: 0 | AT27: 0 | AU27: 0 | AY27: 1 | BC27: =IF(AZ27="",VLOOKUP(AY27,bens!$AP$8:$AX$58,5)*BA27,VLOOKUP(AY27,bens!$AP$8:$AX$58,5)*AZ27) -> 0 | BD27: =VLOOKUP(AY27,bens!$AP$8:$AX$58,6) -> 30 | BE27: =IF(AZ27="",VLOOKUP(AY27,bens!$AP$8:$AX$58,9)*Inventario!BA27/Inventario!BD27,VLOOKUP(AY27,bens!$AP$8:$AX$58,9)*Inventario!AZ27/Inventario!BD27) -> 0 | BF27: 0 | BG27: =IF(AZ27="",(VLOOKUP(AY27,bens!$AP$8:$AX$58,8)*((BA27+BC27)/2)),(VLOOKUP(AY27,bens!$AP$8:$AX$58,8)*((AZ27+BC27)/2))) -> 0 | BH27: =IF(AZ27="",((BA27+BC27)/2)*Inventario!$BH$1/Inventario!BD27,((AZ27+BC27)/2)*Inventario!$BH$1/Inventario!BD27) -> 0 | BI27: 0 | BJ27: 0 | BK27: 0 | BL27: 0 | BM27: 30 | BN27: 0.04771395924 | BO27: 0.008547008547 | BP27: 0 | BQ27: 0 | BR27: 0 | BS27: 0 | BT27: 0 | BW27: 1 | BY27: 0 | BZ27: 0 | CA27: 0 | CB27: 0 | CC27: 0 | CD27: 0 | CE27: 0 | CF27: 0 | CG27: 0 | CH27: 0 | CI27: 0 | CJ27: 0 | CK27: 0 | CL27: 0 | CM27: 0 | CN27: 0 | CO27: 0 | CP27: 0 | CQ27: 0 | CR27: 0 | CS27: 0 | DE27: 1 | DF27: 5 | DG27: 10000 | DJ27: =IF(DG27="",VLOOKUP(DF27,bens!$BC$9:$BQ$44,8)*DH27,VLOOKUP(DF27,bens!$BC$9:$BQ$44,8)*DG27) -> 2000 | DK27: =VLOOKUP(DF27,bens!$BC$9:$BQ$44,9) -> 100000 | DL27: =IF(DG27="",VLOOKUP(DF27,bens!$BC$9:$BQ$44,15)*Inventario!DH27/Inventario!DK27,VLOOKUP(DF27,bens!$BC$9:$BQ$44,15)*Inventario!DG27/Inventario!DK27) -> 0.05 | DM27: 0.08 | DN27: =IF(DG27="",(VLOOKUP(DF27,bens!$BC$9:$BQ$44,14)*((DH27+DJ27)/2))/VLOOKUP(DF27,bens!$BC$9:$BQ$44,10),(VLOOKUP(DF27,bens!$BC$9:$BQ$44,14)*((DG27+DJ27)/2))/VLOOKUP(DF27,bens!$BC$9:$BQ$44,10)) -> 0.01666666667 | DO27: =IF(DG27="",(dados!$H$37*(DH27+DJ27)/2)/VLOOKUP(DF27,bens!$BC$9:$BQ$44,10),(dados!$H$37*(DG27+DJ27)/2))/VLOOKUP(DF27,bens!$BC$9:$BQ$44,10) -> 0.025 | DP27: 0.05 | DQ27: 0.08 | DR27: 0.01666666667 | DS27: 0.025 | DT27: =VLOOKUP(DF27,bens!$BC$9:$BQ$44,9)/VLOOKUP(DF27,bens!$BC$9:$BQ$44,10) -> 5.555555556 | DU27: =(((1+$U$2)^DT27)*$U2)/((1+$U$2)^DT27-1) -> 0.1949652519 | DV27: 0.008547008547 | DW27: 16.66369674 | DX27: 16.66369674 | DY27: 10000
B28: 1 | F28: =IF(C28="",VLOOKUP(B28,bens!$A$8:$Q$75,13)*D28,VLOOKUP(B28,bens!$A$8:$Q$75,13)*C28) -> 0 | G28: =VLOOKUP(B28,bens!$A$8:$Q$75,14) -> 12000 | H28: =VLOOKUP(B28,bens!$A$8:$Q$75,5)*0.12 -> 0 | I28: =VLOOKUP(B28,bens!$A$8:$Q$75,5)*0.12*$I$2 -> 0 | J28: =IF(C28="",VLOOKUP(B28,bens!$A$8:$Q$75,17)*Inventario!D28/Inventario!G28,VLOOKUP(B28,bens!$A$8:$Q$75,17)*Inventario!C28/Inventario!G28) -> 0 | K28: 0 | L28: =IF(C28="",(VLOOKUP(B28,bens!$A$8:$Q$75,16)*(D28+F28)/2)/(VLOOKUP(B28,bens!$A$8:$Q$75,15)),(VLOOKUP(B28,bens!$A$8:$Q$75,16)*(C28+F28)/2)/(VLOOKUP(B28,bens!$A$8:$Q$75,15))) -> 0 | M28: =IF(C28="",($M$1*(D28+F28)/2)/(VLOOKUP(B28,bens!$A$8:$Q$75,15)),($M$1*(C28+F28)/2)/(VLOOKUP(B28,bens!$A$8:$Q$75,15))) -> 0 | N28: 0 | O28: 0 | P28: 0 | Q28: 0 | R28: 0 | S28: =VLOOKUP(B28,bens!$A$8:$Q$75,14)/VLOOKUP(B28,bens!$A$8:$Q$75,15) -> 10 | T28: 0.11419973 | U28: 0.008547008547 | V28: 0 | W28: 0 | X28: 0 | Y28: 0 | AB28: 1 | AF28: =IF(AC28="",VLOOKUP(AB28,bens!$U$8:$AJ$170,12)*AD28,VLOOKUP(AB28,bens!$U$8:$AJ$170,12)*AC28) -> 0 | AG28: =VLOOKUP(AB28,bens!$U$8:$AJ$170,13) -> 2000 | AH28: =IF(AC28="",VLOOKUP(AB28,bens!$U$8:$AJ$170,16)*Inventario!AD28/Inventario!AG28,VLOOKUP(AB28,bens!$U$8:$AJ$170,16)*Inventario!AC28/Inventario!AG28) -> 0 | AI28: 0 | AJ28: =IF(AC28="",$AJ$1*((AD28+AF28)/2)/(VLOOKUP(AB28,bens!$U$8:$AJ$170,14)),$AJ$1*((AC28+AF28)/2)/(VLOOKUP(AB28,bens!$U$8:$AJ$170,14))) -> 0 | AK28: =IF(AC28="",($AK$1*(AD28+AF28)/2)/(VLOOKUP(AB28,bens!$U$8:$AJ$170,14)),($AK$1*(AC28+AF28)/2)/(VLOOKUP(AB28,bens!$U$8:$AJ$170,14))) -> 0 | AL28: 0 | AM28: 0 | AN28: 0 | AO28: 0 | AP28: =VLOOKUP(AB28,bens!$U$8:$AJ$17,13)/VLOOKUP(AB28,bens!$U$8:$AJ$17,14) -> 10 | AQ28: 0.11419973 | AR28: 0.008547008547 | AS28: 0 | AT28: 0 | AU28: 0 | AY28: 1 | BC28: =IF(AZ28="",VLOOKUP(AY28,bens!$AP$8:$AX$58,5)*BA28,VLOOKUP(AY28,bens!$AP$8:$AX$58,5)*AZ28) -> 0 | BD28: =VLOOKUP(AY28,bens!$AP$8:$AX$58,6) -> 30 | BE28: =IF(AZ28="",VLOOKUP(AY28,bens!$AP$8:$AX$58,9)*Inventario!BA28/Inventario!BD28,VLOOKUP(AY28,bens!$AP$8:$AX$58,9)*Inventario!AZ28/Inventario!BD28) -> 0 | BF28: 0 | BG28: =IF(AZ28="",(VLOOKUP(AY28,bens!$AP$8:$AX$58,8)*((BA28+BC28)/2)),(VLOOKUP(AY28,bens!$AP$8:$AX$58,8)*((AZ28+BC28)/2))) -> 0 | BH28: =IF(AZ28="",((BA28+BC28)/2)*Inventario!$BH$1/Inventario!BD28,((AZ28+BC28)/2)*Inventario!$BH$1/Inventario!BD28) -> 0 | BI28: 0 | BJ28: 0 | BK28: 0 | BL28: 0 | BM28: 30 | BN28: 0.04771395924 | BO28: 0.008547008547 | BP28: 0 | BQ28: 0 | BR28: 0 | BS28: 0 | BT28: 0 | BW28: 1 | BY28: 0 | BZ28: 0 | CA28: 0 | CB28: 0 | CC28: 0 | CD28: 0 | CE28: 0 | CF28: 0 | CG28: 0 | CH28: 0 | CI28: 0 | CJ28: 0 | CK28: 0 | CL28: 0 | CM28: 0 | CN28: 0 | CO28: 0 | CP28: 0 | CQ28: 0 | CR28: 0 | CS28: 0 | DE28: 1 | DF28: 5 | DG28: 10000 | DJ28: =IF(DG28="",VLOOKUP(DF28,bens!$BC$9:$BQ$44,8)*DH28,VLOOKUP(DF28,bens!$BC$9:$BQ$44,8)*DG28) -> 2000 | DK28: =VLOOKUP(DF28,bens!$BC$9:$BQ$44,9) -> 100000 | DL28: =IF(DG28="",VLOOKUP(DF28,bens!$BC$9:$BQ$44,15)*Inventario!DH28/Inventario!DK28,VLOOKUP(DF28,bens!$BC$9:$BQ$44,15)*Inventario!DG28/Inventario!DK28) -> 0.05 | DM28: 0.08 | DN28: =IF(DG28="",(VLOOKUP(DF28,bens!$BC$9:$BQ$44,14)*((DH28+DJ28)/2))/VLOOKUP(DF28,bens!$BC$9:$BQ$44,10),(VLOOKUP(DF28,bens!$BC$9:$BQ$44,14)*((DG28+DJ28)/2))/VLOOKUP(DF28,bens!$BC$9:$BQ$44,10)) -> 0.01666666667 | DO28: =IF(DG28="",(dados!$H$37*(DH28+DJ28)/2)/VLOOKUP(DF28,bens!$BC$9:$BQ$44,10),(dados!$H$37*(DG28+DJ28)/2))/VLOOKUP(DF28,bens!$BC$9:$BQ$44,10) -> 0.025 | DP28: 0.05 | DQ28: 0.08 | DR28: 0.01666666667 | DS28: 0.025 | DT28: =VLOOKUP(DF28,bens!$BC$9:$BQ$44,9)/VLOOKUP(DF28,bens!$BC$9:$BQ$44,10) -> 5.555555556 | DU28: =(((1+$U$2)^DT28)*$U2)/((1+$U$2)^DT28-1) -> 0.1949652519 | DV28: 0.008547008547 | DW28: 16.66369674 | DX28: 16.66369674 | DY28: 10000
B29: 1 | F29: =IF(C29="",VLOOKUP(B29,bens!$A$8:$Q$75,13)*D29,VLOOKUP(B29,bens!$A$8:$Q$75,13)*C29) -> 0 | G29: =VLOOKUP(B29,bens!$A$8:$Q$75,14) -> 12000 | H29: =VLOOKUP(B29,bens!$A$8:$Q$75,5)*0.12 -> 0 | I29: =VLOOKUP(B29,bens!$A$8:$Q$75,5)*0.12*$I$2 -> 0 | J29: =IF(C29="",VLOOKUP(B29,bens!$A$8:$Q$75,17)*Inventario!D29/Inventario!G29,VLOOKUP(B29,bens!$A$8:$Q$75,17)*Inventario!C29/Inventario!G29) -> 0 | K29: 0 | L29: =IF(C29="",(VLOOKUP(B29,bens!$A$8:$Q$75,16)*(D29+F29)/2)/(VLOOKUP(B29,bens!$A$8:$Q$75,15)),(VLOOKUP(B29,bens!$A$8:$Q$75,16)*(C29+F29)/2)/(VLOOKUP(B29,bens!$A$8:$Q$75,15))) -> 0 | M29: =IF(C29="",($M$1*(D29+F29)/2)/(VLOOKUP(B29,bens!$A$8:$Q$75,15)),($M$1*(C29+F29)/2)/(VLOOKUP(B29,bens!$A$8:$Q$75,15))) -> 0 | N29: 0 | O29: 0 | P29: 0 | Q29: 0 | R29: 0 | S29: =VLOOKUP(B29,bens!$A$8:$Q$75,14)/VLOOKUP(B29,bens!$A$8:$Q$75,15) -> 10 | T29: 0.11419973 | U29: 0.008547008547 | V29: 0 | W29: 0 | X29: 0 | Y29: 0 | AB29: 1 | AF29: =IF(AC29="",VLOOKUP(AB29,bens!$U$8:$AJ$170,12)*AD29,VLOOKUP(AB29,bens!$U$8:$AJ$170,12)*AC29) -> 0 | AG29: =VLOOKUP(AB29,bens!$U$8:$AJ$170,13) -> 2000 | AH29: =IF(AC29="",VLOOKUP(AB29,bens!$U$8:$AJ$170,16)*Inventario!AD29/Inventario!AG29,VLOOKUP(AB29,bens!$U$8:$AJ$170,16)*Inventario!AC29/Inventario!AG29) -> 0 | AI29: 0 | AJ29: =IF(AC29="",$AJ$1*((AD29+AF29)/2)/(VLOOKUP(AB29,bens!$U$8:$AJ$170,14)),$AJ$1*((AC29+AF29)/2)/(VLOOKUP(AB29,bens!$U$8:$AJ$170,14))) -> 0 | AK29: =IF(AC29="",($AK$1*(AD29+AF29)/2)/(VLOOKUP(AB29,bens!$U$8:$AJ$170,14)),($AK$1*(AC29+AF29)/2)/(VLOOKUP(AB29,bens!$U$8:$AJ$170,14))) -> 0 | AL29: 0 | AM29: 0 | AN29: 0 | AO29: 0 | AP29: =VLOOKUP(AB29,bens!$U$8:$AJ$17,13)/VLOOKUP(AB29,bens!$U$8:$AJ$17,14) -> 10 | AQ29: 0.11419973 | AR29: 0.008547008547 | AS29: 0 | AT29: 0 | AU29: 0 | AY29: 1 | BC29: =IF(AZ29="",VLOOKUP(AY29,bens!$AP$8:$AX$58,5)*BA29,VLOOKUP(AY29,bens!$AP$8:$AX$58,5)*AZ29) -> 0 | BD29: =VLOOKUP(AY29,bens!$AP$8:$AX$58,6) -> 30 | BE29: =IF(AZ29="",VLOOKUP(AY29,bens!$AP$8:$AX$58,9)*Inventario!BA29/Inventario!BD29,VLOOKUP(AY29,bens!$AP$8:$AX$58,9)*Inventario!AZ29/Inventario!BD29) -> 0 | BF29: 0 | BG29: =IF(AZ29="",(VLOOKUP(AY29,bens!$AP$8:$AX$58,8)*((BA29+BC29)/2)),(VLOOKUP(AY29,bens!$AP$8:$AX$58,8)*((AZ29+BC29)/2))) -> 0 | BH29: =IF(AZ29="",((BA29+BC29)/2)*Inventario!$BH$1/Inventario!BD29,((AZ29+BC29)/2)*Inventario!$BH$1/Inventario!BD29) -> 0 | BI29: 0 | BJ29: 0 | BK29: 0 | BL29: 0 | BM29: 30 | BN29: 0.04771395924 | BO29: 0.008547008547 | BP29: 0 | BQ29: 0 | BR29: 0 | BS29: 0 | BT29: 0 | BW29: 1 | BY29: 0 | BZ29: 0 | CA29: 0 | CB29: 0 | CC29: 0 | CD29: 0 | CE29: 0 | CF29: 0 | CG29: 0 | CH29: 0 | CI29: 0 | CJ29: 0 | CK29: 0 | CL29: 0 | CM29: 0 | CN29: 0 | CO29: 0 | CP29: 0 | CQ29: 0 | CR29: 0 | CS29: 0 | DE29: 1 | DF29: 5 | DG29: 10000 | DJ29: =IF(DG29="",VLOOKUP(DF29,bens!$BC$9:$BQ$44,8)*DH29,VLOOKUP(DF29,bens!$BC$9:$BQ$44,8)*DG29) -> 2000 | DK29: =VLOOKUP(DF29,bens!$BC$9:$BQ$44,9) -> 100000 | DL29: =IF(DG29="",VLOOKUP(DF29,bens!$BC$9:$BQ$44,15)*Inventario!DH29/Inventario!DK29,VLOOKUP(DF29,bens!$BC$9:$BQ$44,15)*Inventario!DG29/Inventario!DK29) -> 0.05 | DM29: 0.08 | DN29: =IF(DG29="",(VLOOKUP(DF29,bens!$BC$9:$BQ$44,14)*((DH29+DJ29)/2))/VLOOKUP(DF29,bens!$BC$9:$BQ$44,10),(VLOOKUP(DF29,bens!$BC$9:$BQ$44,14)*((DG29+DJ29)/2))/VLOOKUP(DF29,bens!$BC$9:$BQ$44,10)) -> 0.01666666667 | DO29: =IF(DG29="",(dados!$H$37*(DH29+DJ29)/2)/VLOOKUP(DF29,bens!$BC$9:$BQ$44,10),(dados!$H$37*(DG29+DJ29)/2))/VLOOKUP(DF29,bens!$BC$9:$BQ$44,10) -> 0.025 | DP29: 0.05 | DQ29: 0.08 | DR29: 0.01666666667 | DS29: 0.025 | DT29: =VLOOKUP(DF29,bens!$BC$9:$BQ$44,9)/VLOOKUP(DF29,bens!$BC$9:$BQ$44,10) -> 5.555555556 | DU29: =(((1+$U$2)^DT29)*$U2)/((1+$U$2)^DT29-1) -> 0.1949652519 | DV29: 0.008547008547 | DW29: 16.66369674 | DX29: 16.66369674 | DY29: 10000
B30: 1 | F30: =IF(C30="",VLOOKUP(B30,bens!$A$8:$Q$75,13)*D30,VLOOKUP(B30,bens!$A$8:$Q$75,13)*C30) -> 0 | G30: =VLOOKUP(B30,bens!$A$8:$Q$75,14) -> 12000 | H30: =VLOOKUP(B30,bens!$A$8:$Q$75,5)*0.12 -> 0 | I30: =VLOOKUP(B30,bens!$A$8:$Q$75,5)*0.12*$I$2 -> 0 | J30: =IF(C30="",VLOOKUP(B30,bens!$A$8:$Q$75,17)*Inventario!D30/Inventario!G30,VLOOKUP(B30,bens!$A$8:$Q$75,17)*Inventario!C30/Inventario!G30) -> 0 | K30: 0 | L30: =IF(C30="",(VLOOKUP(B30,bens!$A$8:$Q$75,16)*(D30+F30)/2)/(VLOOKUP(B30,bens!$A$8:$Q$75,15)),(VLOOKUP(B30,bens!$A$8:$Q$75,16)*(C30+F30)/2)/(VLOOKUP(B30,bens!$A$8:$Q$75,15))) -> 0 | M30: =IF(C30="",($M$1*(D30+F30)/2)/(VLOOKUP(B30,bens!$A$8:$Q$75,15)),($M$1*(C30+F30)/2)/(VLOOKUP(B30,bens!$A$8:$Q$75,15))) -> 0 | N30: 0 | O30: 0 | P30: 0 | Q30: 0 | R30: 0 | S30: =VLOOKUP(B30,bens!$A$8:$Q$75,14)/VLOOKUP(B30,bens!$A$8:$Q$75,15) -> 10 | T30: 0.11419973 | U30: 0.008547008547 | V30: 0 | W30: 0 | X30: 0 | Y30: 0 | AB30: 1 | AF30: =IF(AC30="",VLOOKUP(AB30,bens!$U$8:$AJ$170,12)*AD30,VLOOKUP(AB30,bens!$U$8:$AJ$170,12)*AC30) -> 0 | AG30: =VLOOKUP(AB30,bens!$U$8:$AJ$170,13) -> 2000 | AH30: =IF(AC30="",VLOOKUP(AB30,bens!$U$8:$AJ$170,16)*Inventario!AD30/Inventario!AG30,VLOOKUP(AB30,bens!$U$8:$AJ$170,16)*Inventario!AC30/Inventario!AG30) -> 0 | AI30: 0 | AJ30: =IF(AC30="",$AJ$1*((AD30+AF30)/2)/(VLOOKUP(AB30,bens!$U$8:$AJ$170,14)),$AJ$1*((AC30+AF30)/2)/(VLOOKUP(AB30,bens!$U$8:$AJ$170,14))) -> 0 | AK30: =IF(AC30="",($AK$1*(AD30+AF30)/2)/(VLOOKUP(AB30,bens!$U$8:$AJ$170,14)),($AK$1*(AC30+AF30)/2)/(VLOOKUP(AB30,bens!$U$8:$AJ$170,14))) -> 0 | AL30: 0 | AM30: 0 | AN30: 0 | AO30: 0 | AP30: =VLOOKUP(AB30,bens!$U$8:$AJ$17,13)/VLOOKUP(AB30,bens!$U$8:$AJ$17,14) -> 10 | AQ30: 0.11419973 | AR30: 0.008547008547 | AS30: 0 | AT30: 0 | AU30: 0 | AY30: 1 | BC30: =IF(AZ30="",VLOOKUP(AY30,bens!$AP$8:$AX$58,5)*BA30,VLOOKUP(AY30,bens!$AP$8:$AX$58,5)*AZ30) -> 0 | BD30: =VLOOKUP(AY30,bens!$AP$8:$AX$58,6) -> 30 | BE30: =IF(AZ30="",VLOOKUP(AY30,bens!$AP$8:$AX$58,9)*Inventario!BA30/Inventario!BD30,VLOOKUP(AY30,bens!$AP$8:$AX$58,9)*Inventario!AZ30/Inventario!BD30) -> 0 | BF30: 0 | BG30: =IF(AZ30="",(VLOOKUP(AY30,bens!$AP$8:$AX$58,8)*((BA30+BC30)/2)),(VLOOKUP(AY30,bens!$AP$8:$AX$58,8)*((AZ30+BC30)/2))) -> 0 | BH30: =IF(AZ30="",((BA30+BC30)/2)*Inventario!$BH$1/Inventario!BD30,((AZ30+BC30)/2)*Inventario!$BH$1/Inventario!BD30) -> 0 | BI30: 0 | BJ30: 0 | BK30: 0 | BL30: 0 | BM30: 30 | BN30: 0.04771395924 | BO30: 0.008547008547 | BP30: 0 | BQ30: 0 | BR30: 0 | BS30: 0 | BT30: 0 | BW30: 1 | BY30: 0 | BZ30: 0 | CA30: 0 | CB30: 0 | CC30: 0 | CD30: 0 | CE30: 0 | CF30: 0 | CG30: 0 | CH30: 0 | CI30: 0 | CJ30: 0 | CK30: 0 | CL30: 0 | CM30: 0 | CN30: 0 | CO30: 0 | CP30: 0 | CQ30: 0 | CR30: 0 | CS30: 0 | DE30: 1 | DF30: 5 | DG30: 10000 | DJ30: =IF(DG30="",VLOOKUP(DF30,bens!$BC$9:$BQ$44,8)*DH30,VLOOKUP(DF30,bens!$BC$9:$BQ$44,8)*DG30) -> 2000 | DK30: =VLOOKUP(DF30,bens!$BC$9:$BQ$44,9) -> 100000 | DL30: =IF(DG30="",VLOOKUP(DF30,bens!$BC$9:$BQ$44,15)*Inventario!DH30/Inventario!DK30,VLOOKUP(DF30,bens!$BC$9:$BQ$44,15)*Inventario!DG30/Inventario!DK30) -> 0.05 | DM30: 0.08 | DN30: =IF(DG30="",(VLOOKUP(DF30,bens!$BC$9:$BQ$44,14)*((DH30+DJ30)/2))/VLOOKUP(DF30,bens!$BC$9:$BQ$44,10),(VLOOKUP(DF30,bens!$BC$9:$BQ$44,14)*((DG30+DJ30)/2))/VLOOKUP(DF30,bens!$BC$9:$BQ$44,10)) -> 0.01666666667 | DO30: =IF(DG30="",(dados!$H$37*(DH30+DJ30)/2)/VLOOKUP(DF30,bens!$BC$9:$BQ$44,10),(dados!$H$37*(DG30+DJ30)/2))/VLOOKUP(DF30,bens!$BC$9:$BQ$44,10) -> 0.025 | DP30: 0.05 | DQ30: 0.08 | DR30: 0.01666666667 | DS30: 0.025 | DT30: =VLOOKUP(DF30,bens!$BC$9:$BQ$44,9)/VLOOKUP(DF30,bens!$BC$9:$BQ$44,10) -> 5.555555556 | DU30: =(((1+$U$2)^DT30)*$U2)/((1+$U$2)^DT30-1) -> 0.1949652519 | DV30: 0.008547008547 | DW30: 16.66369674 | DX30: 16.66369674 | DY30: 10000
B31: 1 | F31: =IF(C31="",VLOOKUP(B31,bens!$A$8:$Q$75,13)*D31,VLOOKUP(B31,bens!$A$8:$Q$75,13)*C31) -> 0 | G31: =VLOOKUP(B31,bens!$A$8:$Q$75,14) -> 12000 | H31: =VLOOKUP(B31,bens!$A$8:$Q$75,5)*0.12 -> 0 | I31: =VLOOKUP(B31,bens!$A$8:$Q$75,5)*0.12*$I$2 -> 0 | J31: =IF(C31="",VLOOKUP(B31,bens!$A$8:$Q$75,17)*Inventario!D31/Inventario!G31,VLOOKUP(B31,bens!$A$8:$Q$75,17)*Inventario!C31/Inventario!G31) -> 0 | K31: 0 | L31: =IF(C31="",(VLOOKUP(B31,bens!$A$8:$Q$75,16)*(D31+F31)/2)/(VLOOKUP(B31,bens!$A$8:$Q$75,15)),(VLOOKUP(B31,bens!$A$8:$Q$75,16)*(C31+F31)/2)/(VLOOKUP(B31,bens!$A$8:$Q$75,15))) -> 0 | M31: =IF(C31="",($M$1*(D31+F31)/2)/(VLOOKUP(B31,bens!$A$8:$Q$75,15)),($M$1*(C31+F31)/2)/(VLOOKUP(B31,bens!$A$8:$Q$75,15))) -> 0 | N31: 0 | O31: 0 | P31: 0 | Q31: 0 | R31: 0 | S31: =VLOOKUP(B31,bens!$A$8:$Q$75,14)/VLOOKUP(B31,bens!$A$8:$Q$75,15) -> 10 | T31: 0.11419973 | U31: 0.008547008547 | V31: 0 | W31: 0 | X31: 0 | Y31: 0 | AB31: 1 | AF31: =IF(AC31="",VLOOKUP(AB31,bens!$U$8:$AJ$170,12)*AD31,VLOOKUP(AB31,bens!$U$8:$AJ$170,12)*AC31) -> 0 | AG31: =VLOOKUP(AB31,bens!$U$8:$AJ$170,13) -> 2000 | AH31: =IF(AC31="",VLOOKUP(AB31,bens!$U$8:$AJ$170,16)*Inventario!AD31/Inventario!AG31,VLOOKUP(AB31,bens!$U$8:$AJ$170,16)*Inventario!AC31/Inventario!AG31) -> 0 | AI31: 0 | AJ31: =IF(AC31="",$AJ$1*((AD31+AF31)/2)/(VLOOKUP(AB31,bens!$U$8:$AJ$170,14)),$AJ$1*((AC31+AF31)/2)/(VLOOKUP(AB31,bens!$U$8:$AJ$170,14))) -> 0 | AK31: =IF(AC31="",($AK$1*(AD31+AF31)/2)/(VLOOKUP(AB31,bens!$U$8:$AJ$170,14)),($AK$1*(AC31+AF31)/2)/(VLOOKUP(AB31,bens!$U$8:$AJ$170,14))) -> 0 | AL31: 0 | AM31: 0 | AN31: 0 | AO31: 0 | AP31: =VLOOKUP(AB31,bens!$U$8:$AJ$17,13)/VLOOKUP(AB31,bens!$U$8:$AJ$17,14) -> 10 | AQ31: 0.11419973 | AR31: 0.008547008547 | AS31: 0 | AT31: 0 | AU31: 0 | AY31: 1 | BC31: =IF(AZ31="",VLOOKUP(AY31,bens!$AP$8:$AX$58,5)*BA31,VLOOKUP(AY31,bens!$AP$8:$AX$58,5)*AZ31) -> 0 | BD31: =VLOOKUP(AY31,bens!$AP$8:$AX$58,6) -> 30 | BE31: =IF(AZ31="",VLOOKUP(AY31,bens!$AP$8:$AX$58,9)*Inventario!BA31/Inventario!BD31,VLOOKUP(AY31,bens!$AP$8:$AX$58,9)*Inventario!AZ31/Inventario!BD31) -> 0 | BF31: 0 | BG31: =IF(AZ31="",(VLOOKUP(AY31,bens!$AP$8:$AX$58,8)*((BA31+BC31)/2)),(VLOOKUP(AY31,bens!$AP$8:$AX$58,8)*((AZ31+BC31)/2))) -> 0 | BH31: =IF(AZ31="",((BA31+BC31)/2)*Inventario!$BH$1/Inventario!BD31,((AZ31+BC31)/2)*Inventario!$BH$1/Inventario!BD31) -> 0 | BI31: 0 | BJ31: 0 | BK31: 0 | BL31: 0 | BM31: 30 | BN31: 0.04771395924 | BO31: 0.008547008547 | BP31: 0 | BQ31: 0 | BR31: 0 | BS31: 0 | BT31: 0 | BW31: 1 | BY31: 0 | BZ31: 0 | CA31: 0 | CB31: 0 | CC31: 0 | CD31: 0 | CE31: 0 | CF31: 0 | CG31: 0 | CH31: 0 | CI31: 0 | CJ31: 0 | CK31: 0 | CL31: 0 | CM31: 0 | CN31: 0 | CO31: 0 | CP31: 0 | CQ31: 0 | CR31: 0 | CS31: 0 | DE31: 1 | DF31: 5 | DG31: 10000 | DJ31: =IF(DG31="",VLOOKUP(DF31,bens!$BC$9:$BQ$44,8)*DH31,VLOOKUP(DF31,bens!$BC$9:$BQ$44,8)*DG31) -> 2000 | DK31: =VLOOKUP(DF31,bens!$BC$9:$BQ$44,9) -> 100000 | DL31: =IF(DG31="",VLOOKUP(DF31,bens!$BC$9:$BQ$44,15)*Inventario!DH31/Inventario!DK31,VLOOKUP(DF31,bens!$BC$9:$BQ$44,15)*Inventario!DG31/Inventario!DK31) -> 0.05 | DM31: 0.08 | DN31: =IF(DG31="",(VLOOKUP(DF31,bens!$BC$9:$BQ$44,14)*((DH31+DJ31)/2))/VLOOKUP(DF31,bens!$BC$9:$BQ$44,10),(VLOOKUP(DF31,bens!$BC$9:$BQ$44,14)*((DG31+DJ31)/2))/VLOOKUP(DF31,bens!$BC$9:$BQ$44,10)) -> 0.01666666667 | DO31: =IF(DG31="",(dados!$H$37*(DH31+DJ31)/2)/VLOOKUP(DF31,bens!$BC$9:$BQ$44,10),(dados!$H$37*(DG31+DJ31)/2))/VLOOKUP(DF31,bens!$BC$9:$BQ$44,10) -> 0.025 | DP31: 0.05 | DQ31: 0.08 | DR31: 0.01666666667 | DS31: 0.025 | DT31: =VLOOKUP(DF31,bens!$BC$9:$BQ$44,9)/VLOOKUP(DF31,bens!$BC$9:$BQ$44,10) -> 5.555555556 | DU31: =(((1+$U$2)^DT31)*$U2)/((1+$U$2)^DT31-1) -> 0.1949652519 | DV31: 0.008547008547 | DW31: 16.66369674 | DX31: 16.66369674 | DY31: 10000
B32: 1 | F32: =IF(C32="",VLOOKUP(B32,bens!$A$8:$Q$75,13)*D32,VLOOKUP(B32,bens!$A$8:$Q$75,13)*C32) -> 0 | G32: =VLOOKUP(B32,bens!$A$8:$Q$75,14) -> 12000 | H32: =VLOOKUP(B32,bens!$A$8:$Q$75,5)*0.12 -> 0 | I32: =VLOOKUP(B32,bens!$A$8:$Q$75,5)*0.12*$I$2 -> 0 | J32: =IF(C32="",VLOOKUP(B32,bens!$A$8:$Q$75,17)*Inventario!D32/Inventario!G32,VLOOKUP(B32,bens!$A$8:$Q$75,17)*Inventario!C32/Inventario!G32) -> 0 | K32: 0 | L32: =IF(C32="",(VLOOKUP(B32,bens!$A$8:$Q$75,16)*(D32+F32)/2)/(VLOOKUP(B32,bens!$A$8:$Q$75,15)),(VLOOKUP(B32,bens!$A$8:$Q$75,16)*(C32+F32)/2)/(VLOOKUP(B32,bens!$A$8:$Q$75,15))) -> 0 | M32: =IF(C32="",($M$1*(D32+F32)/2)/(VLOOKUP(B32,bens!$A$8:$Q$75,15)),($M$1*(C32+F32)/2)/(VLOOKUP(B32,bens!$A$8:$Q$75,15))) -> 0 | N32: 0 | O32: 0 | P32: 0 | Q32: 0 | R32: 0 | S32: =VLOOKUP(B32,bens!$A$8:$Q$75,14)/VLOOKUP(B32,bens!$A$8:$Q$75,15) -> 10 | T32: 0.11419973 | U32: 0.008547008547 | V32: 0 | W32: 0 | X32: 0 | Y32: 0 | AB32: 1 | AF32: =IF(AC32="",VLOOKUP(AB32,bens!$U$8:$AJ$170,12)*AD32,VLOOKUP(AB32,bens!$U$8:$AJ$170,12)*AC32) -> 0 | AG32: =VLOOKUP(AB32,bens!$U$8:$AJ$170,13) -> 2000 | AH32: =IF(AC32="",VLOOKUP(AB32,bens!$U$8:$AJ$170,16)*Inventario!AD32/Inventario!AG32,VLOOKUP(AB32,bens!$U$8:$AJ$170,16)*Inventario!AC32/Inventario!AG32) -> 0 | AI32: 0 | AJ32: =IF(AC32="",$AJ$1*((AD32+AF32)/2)/(VLOOKUP(AB32,bens!$U$8:$AJ$170,14)),$AJ$1*((AC32+AF32)/2)/(VLOOKUP(AB32,bens!$U$8:$AJ$170,14))) -> 0 | AK32: =IF(AC32="",($AK$1*(AD32+AF32)/2)/(VLOOKUP(AB32,bens!$U$8:$AJ$170,14)),($AK$1*(AC32+AF32)/2)/(VLOOKUP(AB32,bens!$U$8:$AJ$170,14))) -> 0 | AL32: 0 | AM32: 0 | AN32: 0 | AO32: 0 | AP32: =VLOOKUP(AB32,bens!$U$8:$AJ$17,13)/VLOOKUP(AB32,bens!$U$8:$AJ$17,14) -> 10 | AQ32: 0.11419973 | AR32: 0.008547008547 | AS32: 0 | AT32: 0 | AU32: 0 | AY32: 1 | BC32: =IF(AZ32="",VLOOKUP(AY32,bens!$AP$8:$AX$58,5)*BA32,VLOOKUP(AY32,bens!$AP$8:$AX$58,5)*AZ32) -> 0 | BD32: =VLOOKUP(AY32,bens!$AP$8:$AX$58,6) -> 30 | BE32: =IF(AZ32="",VLOOKUP(AY32,bens!$AP$8:$AX$58,9)*Inventario!BA32/Inventario!BD32,VLOOKUP(AY32,bens!$AP$8:$AX$58,9)*Inventario!AZ32/Inventario!BD32) -> 0 | BF32: 0 | BG32: =IF(AZ32="",(VLOOKUP(AY32,bens!$AP$8:$AX$58,8)*((BA32+BC32)/2)),(VLOOKUP(AY32,bens!$AP$8:$AX$58,8)*((AZ32+BC32)/2))) -> 0 | BH32: =IF(AZ32="",((BA32+BC32)/2)*Inventario!$BH$1/Inventario!BD32,((AZ32+BC32)/2)*Inventario!$BH$1/Inventario!BD32) -> 0 | BI32: 0 | BJ32: 0 | BK32: 0 | BL32: 0 | BM32: 30 | BN32: 0.04771395924 | BO32: 0.008547008547 | BP32: 0 | BQ32: 0 | BR32: 0 | BS32: 0 | BT32: 0 | BW32: 1 | BY32: 0 | BZ32: 0 | CA32: 0 | CB32: 0 | CC32: 0 | CD32: 0 | CE32: 0 | CF32: 0 | CG32: 0 | CH32: 0 | CI32: 0 | CJ32: 0 | CK32: 0 | CL32: 0 | CM32: 0 | CN32: 0 | CO32: 0 | CP32: 0 | CQ32: 0 | CR32: 0 | CS32: 0 | DE32: 1 | DF32: 5 | DG32: 10000 | DJ32: =IF(DG32="",VLOOKUP(DF32,bens!$BC$9:$BQ$44,8)*DH32,VLOOKUP(DF32,bens!$BC$9:$BQ$44,8)*DG32) -> 2000 | DK32: =VLOOKUP(DF32,bens!$BC$9:$BQ$44,9) -> 100000 | DL32: =IF(DG32="",VLOOKUP(DF32,bens!$BC$9:$BQ$44,15)*Inventario!DH32/Inventario!DK32,VLOOKUP(DF32,bens!$BC$9:$BQ$44,15)*Inventario!DG32/Inventario!DK32) -> 0.05 | DM32: 0.08 | DN32: =IF(DG32="",(VLOOKUP(DF32,bens!$BC$9:$BQ$44,14)*((DH32+DJ32)/2))/VLOOKUP(DF32,bens!$BC$9:$BQ$44,10),(VLOOKUP(DF32,bens!$BC$9:$BQ$44,14)*((DG32+DJ32)/2))/VLOOKUP(DF32,bens!$BC$9:$BQ$44,10)) -> 0.01666666667 | DO32: =IF(DG32="",(dados!$H$37*(DH32+DJ32)/2)/VLOOKUP(DF32,bens!$BC$9:$BQ$44,10),(dados!$H$37*(DG32+DJ32)/2))/VLOOKUP(DF32,bens!$BC$9:$BQ$44,10) -> 0.025 | DP32: 0.05 | DQ32: 0.08 | DR32: 0.01666666667 | DS32: 0.025 | DT32: =VLOOKUP(DF32,bens!$BC$9:$BQ$44,9)/VLOOKUP(DF32,bens!$BC$9:$BQ$44,10) -> 5.555555556 | DU32: =(((1+$U$2)^DT32)*$U2)/((1+$U$2)^DT32-1) -> 0.1949652519 | DV32: 0.008547008547 | DW32: 16.66369674 | DX32: 16.66369674 | DY32: 10000
B33: 1 | F33: =IF(C33="",VLOOKUP(B33,bens!$A$8:$Q$75,13)*D33,VLOOKUP(B33,bens!$A$8:$Q$75,13)*C33) -> 0 | G33: =VLOOKUP(B33,bens!$A$8:$Q$75,14) -> 12000 | H33: =VLOOKUP(B33,bens!$A$8:$Q$75,5)*0.12 -> 0 | I33: =VLOOKUP(B33,bens!$A$8:$Q$75,5)*0.12*$I$2 -> 0 | J33: =IF(C33="",VLOOKUP(B33,bens!$A$8:$Q$75,17)*Inventario!D33/Inventario!G33,VLOOKUP(B33,bens!$A$8:$Q$75,17)*Inventario!C33/Inventario!G33) -> 0 | K33: 0 | L33: =IF(C33="",(VLOOKUP(B33,bens!$A$8:$Q$75,16)*(D33+F33)/2)/(VLOOKUP(B33,bens!$A$8:$Q$75,15)),(VLOOKUP(B33,bens!$A$8:$Q$75,16)*(C33+F33)/2)/(VLOOKUP(B33,bens!$A$8:$Q$75,15))) -> 0 | M33: =IF(C33="",($M$1*(D33+F33)/2)/(VLOOKUP(B33,bens!$A$8:$Q$75,15)),($M$1*(C33+F33)/2)/(VLOOKUP(B33,bens!$A$8:$Q$75,15))) -> 0 | N33: 0 | O33: 0 | P33: 0 | Q33: 0 | R33: 0 | S33: =VLOOKUP(B33,bens!$A$8:$Q$75,14)/VLOOKUP(B33,bens!$A$8:$Q$75,15) -> 10 | T33: 0.11419973 | U33: 0.008547008547 | V33: 0 | W33: 0 | X33: 0 | Y33: 0 | AB33: 1 | AF33: =IF(AC33="",VLOOKUP(AB33,bens!$U$8:$AJ$170,12)*AD33,VLOOKUP(AB33,bens!$U$8:$AJ$170,12)*AC33) -> 0 | AG33: =VLOOKUP(AB33,bens!$U$8:$AJ$170,13) -> 2000 | AH33: =IF(AC33="",VLOOKUP(AB33,bens!$U$8:$AJ$170,16)*Inventario!AD33/Inventario!AG33,VLOOKUP(AB33,bens!$U$8:$AJ$170,16)*Inventario!AC33/Inventario!AG33) -> 0 | AI33: 0 | AJ33: =IF(AC33="",$AJ$1*((AD33+AF33)/2)/(VLOOKUP(AB33,bens!$U$8:$AJ$170,14)),$AJ$1*((AC33+AF33)/2)/(VLOOKUP(AB33,bens!$U$8:$AJ$170,14))) -> 0 | AK33: =IF(AC33="",($AK$1*(AD33+AF33)/2)/(VLOOKUP(AB33,bens!$U$8:$AJ$170,14)),($AK$1*(AC33+AF33)/2)/(VLOOKUP(AB33,bens!$U$8:$AJ$170,14))) -> 0 | AL33: 0 | AM33: 0 | AN33: 0 | AO33: 0 | AP33: =VLOOKUP(AB33,bens!$U$8:$AJ$17,13)/VLOOKUP(AB33,bens!$U$8:$AJ$17,14) -> 10 | AQ33: 0.11419973 | AR33: 0.008547008547 | AS33: 0 | AT33: 0 | AU33: 0 | AY33: 1 | BC33: =IF(AZ33="",VLOOKUP(AY33,bens!$AP$8:$AX$58,5)*BA33,VLOOKUP(AY33,bens!$AP$8:$AX$58,5)*AZ33) -> 0 | BD33: =VLOOKUP(AY33,bens!$AP$8:$AX$58,6) -> 30 | BE33: =IF(AZ33="",VLOOKUP(AY33,bens!$AP$8:$AX$58,9)*Inventario!BA33/Inventario!BD33,VLOOKUP(AY33,bens!$AP$8:$AX$58,9)*Inventario!AZ33/Inventario!BD33) -> 0 | BF33: 0 | BG33: =IF(AZ33="",(VLOOKUP(AY33,bens!$AP$8:$AX$58,8)*((BA33+BC33)/2)),(VLOOKUP(AY33,bens!$AP$8:$AX$58,8)*((AZ33+BC33)/2))) -> 0 | BH33: =IF(AZ33="",((BA33+BC33)/2)*Inventario!$BH$1/Inventario!BD33,((AZ33+BC33)/2)*Inventario!$BH$1/Inventario!BD33) -> 0 | BI33: 0 | BJ33: 0 | BK33: 0 | BL33: 0 | BM33: 30 | BN33: 0.04771395924 | BO33: 0.008547008547 | BP33: 0 | BQ33: 0 | BR33: 0 | BS33: 0 | BT33: 0 | BW33: 1 | BY33: 0 | BZ33: 0 | CA33: 0 | CB33: 0 | CC33: 0 | CD33: 0 | CE33: 0 | CF33: 0 | CG33: 0 | CH33: 0 | CI33: 0 | CJ33: 0 | CK33: 0 | CL33: 0 | CM33: 0 | CN33: 0 | CO33: 0 | CP33: 0 | CQ33: 0 | CR33: 0 | CS33: 0 | DE33: 1 | DF33: 5 | DG33: 10000 | DJ33: =IF(DG33="",VLOOKUP(DF33,bens!$BC$9:$BQ$44,8)*DH33,VLOOKUP(DF33,bens!$BC$9:$BQ$44,8)*DG33) -> 2000 | DK33: =VLOOKUP(DF33,bens!$BC$9:$BQ$44,9) -> 100000 | DL33: =IF(DG33="",VLOOKUP(DF33,bens!$BC$9:$BQ$44,15)*Inventario!DH33/Inventario!DK33,VLOOKUP(DF33,bens!$BC$9:$BQ$44,15)*Inventario!DG33/Inventario!DK33) -> 0.05 | DM33: 0.08 | DN33: =IF(DG33="",(VLOOKUP(DF33,bens!$BC$9:$BQ$44,14)*((DH33+DJ33)/2))/VLOOKUP(DF33,bens!$BC$9:$BQ$44,10),(VLOOKUP(DF33,bens!$BC$9:$BQ$44,14)*((DG33+DJ33)/2))/VLOOKUP(DF33,bens!$BC$9:$BQ$44,10)) -> 0.01666666667 | DO33: =IF(DG33="",(dados!$H$37*(DH33+DJ33)/2)/VLOOKUP(DF33,bens!$BC$9:$BQ$44,10),(dados!$H$37*(DG33+DJ33)/2))/VLOOKUP(DF33,bens!$BC$9:$BQ$44,10) -> 0.025 | DP33: 0.05 | DQ33: 0.08 | DR33: 0.01666666667 | DS33: 0.025 | DT33: =VLOOKUP(DF33,bens!$BC$9:$BQ$44,9)/VLOOKUP(DF33,bens!$BC$9:$BQ$44,10) -> 5.555555556 | DU33: =(((1+$U$2)^DT33)*$U2)/((1+$U$2)^DT33-1) -> 0.1949652519 | DV33: 0.008547008547 | DW33: 16.66369674 | DX33: 16.66369674 | DY33: 10000
B34: 1 | F34: =IF(C34="",VLOOKUP(B34,bens!$A$8:$Q$75,13)*D34,VLOOKUP(B34,bens!$A$8:$Q$75,13)*C34) -> 0 | G34: =VLOOKUP(B34,bens!$A$8:$Q$75,14) -> 12000 | H34: =VLOOKUP(B34,bens!$A$8:$Q$75,5)*0.12 -> 0 | I34: =VLOOKUP(B34,bens!$A$8:$Q$75,5)*0.12*$I$2 -> 0 | J34: =IF(C34="",VLOOKUP(B34,bens!$A$8:$Q$75,17)*Inventario!D34/Inventario!G34,VLOOKUP(B34,bens!$A$8:$Q$75,17)*Inventario!C34/Inventario!G34) -> 0 | K34: 0 | L34: =IF(C34="",(VLOOKUP(B34,bens!$A$8:$Q$75,16)*(D34+F34)/2)/(VLOOKUP(B34,bens!$A$8:$Q$75,15)),(VLOOKUP(B34,bens!$A$8:$Q$75,16)*(C34+F34)/2)/(VLOOKUP(B34,bens!$A$8:$Q$75,15))) -> 0 | M34: =IF(C34="",($M$1*(D34+F34)/2)/(VLOOKUP(B34,bens!$A$8:$Q$75,15)),($M$1*(C34+F34)/2)/(VLOOKUP(B34,bens!$A$8:$Q$75,15))) -> 0 | N34: 0 | O34: 0 | P34: 0 | Q34: 0 | R34: 0 | S34: =VLOOKUP(B34,bens!$A$8:$Q$75,14)/VLOOKUP(B34,bens!$A$8:$Q$75,15) -> 10 | T34: 0.11419973 | U34: 0.008547008547 | V34: 0 | W34: 0 | X34: 0 | Y34: 0 | AB34: 1 | AF34: =IF(AC34="",VLOOKUP(AB34,bens!$U$8:$AJ$170,12)*AD34,VLOOKUP(AB34,bens!$U$8:$AJ$170,12)*AC34) -> 0 | AG34: =VLOOKUP(AB34,bens!$U$8:$AJ$170,13) -> 2000 | AH34: =IF(AC34="",VLOOKUP(AB34,bens!$U$8:$AJ$170,16)*Inventario!AD34/Inventario!AG34,VLOOKUP(AB34,bens!$U$8:$AJ$170,16)*Inventario!AC34/Inventario!AG34) -> 0 | AI34: 0 | AJ34: =IF(AC34="",$AJ$1*((AD34+AF34)/2)/(VLOOKUP(AB34,bens!$U$8:$AJ$170,14)),$AJ$1*((AC34+AF34)/2)/(VLOOKUP(AB34,bens!$U$8:$AJ$170,14))) -> 0 | AK34: =IF(AC34="",($AK$1*(AD34+AF34)/2)/(VLOOKUP(AB34,bens!$U$8:$AJ$170,14)),($AK$1*(AC34+AF34)/2)/(VLOOKUP(AB34,bens!$U$8:$AJ$170,14))) -> 0 | AL34: 0 | AM34: 0 | AN34: 0 | AO34: 0 | AP34: =VLOOKUP(AB34,bens!$U$8:$AJ$17,13)/VLOOKUP(AB34,bens!$U$8:$AJ$17,14) -> 10 | AQ34: 0.11419973 | AR34: 0.008547008547 | AS34: 0 | AT34: 0 | AU34: 0 | AY34: 1 | BC34: =IF(AZ34="",VLOOKUP(AY34,bens!$AP$8:$AX$58,5)*BA34,VLOOKUP(AY34,bens!$AP$8:$AX$58,5)*AZ34) -> 0 | BD34: =VLOOKUP(AY34,bens!$AP$8:$AX$58,6) -> 30 | BE34: =IF(AZ34="",VLOOKUP(AY34,bens!$AP$8:$AX$58,9)*Inventario!BA34/Inventario!BD34,VLOOKUP(AY34,bens!$AP$8:$AX$58,9)*Inventario!AZ34/Inventario!BD34) -> 0 | BF34: 0 | BG34: =IF(AZ34="",(VLOOKUP(AY34,bens!$AP$8:$AX$58,8)*((BA34+BC34)/2)),(VLOOKUP(AY34,bens!$AP$8:$AX$58,8)*((AZ34+BC34)/2))) -> 0 | BH34: =IF(AZ34="",((BA34+BC34)/2)*Inventario!$BH$1/Inventario!BD34,((AZ34+BC34)/2)*Inventario!$BH$1/Inventario!BD34) -> 0 | BI34: 0 | BJ34: 0 | BK34: 0 | BL34: 0 | BM34: 30 | BN34: 0.04771395924 | BO34: 0.008547008547 | BP34: 0 | BQ34: 0 | BR34: 0 | BS34: 0 | BT34: 0 | BW34: 1 | BY34: 0 | BZ34: 0 | CA34: 0 | CB34: 0 | CC34: 0 | CD34: 0 | CE34: 0 | CF34: 0 | CG34: 0 | CH34: 0 | CI34: 0 | CJ34: 0 | CK34: 0 | CL34: 0 | CM34: 0 | CN34: 0 | CO34: 0 | CP34: 0 | CQ34: 0 | CR34: 0 | CS34: 0 | DE34: 1 | DF34: 5 | DG34: 10000 | DJ34: =IF(DG34="",VLOOKUP(DF34,bens!$BC$9:$BQ$44,8)*DH34,VLOOKUP(DF34,bens!$BC$9:$BQ$44,8)*DG34) -> 2000 | DK34: =VLOOKUP(DF34,bens!$BC$9:$BQ$44,9) -> 100000 | DL34: =IF(DG34="",VLOOKUP(DF34,bens!$BC$9:$BQ$44,15)*Inventario!DH34/Inventario!DK34,VLOOKUP(DF34,bens!$BC$9:$BQ$44,15)*Inventario!DG34/Inventario!DK34) -> 0.05 | DM34: 0.08 | DN34: =IF(DG34="",(VLOOKUP(DF34,bens!$BC$9:$BQ$44,14)*((DH34+DJ34)/2))/VLOOKUP(DF34,bens!$BC$9:$BQ$44,10),(VLOOKUP(DF34,bens!$BC$9:$BQ$44,14)*((DG34+DJ34)/2))/VLOOKUP(DF34,bens!$BC$9:$BQ$44,10)) -> 0.01666666667 | DO34: =IF(DG34="",(dados!$H$37*(DH34+DJ34)/2)/VLOOKUP(DF34,bens!$BC$9:$BQ$44,10),(dados!$H$37*(DG34+DJ34)/2))/VLOOKUP(DF34,bens!$BC$9:$BQ$44,10) -> 0.025 | DP34: 0.05 | DQ34: 0.08 | DR34: 0.01666666667 | DS34: 0.025 | DT34: =VLOOKUP(DF34,bens!$BC$9:$BQ$44,9)/VLOOKUP(DF34,bens!$BC$9:$BQ$44,10) -> 5.555555556 | DU34: =(((1+$U$2)^DT34)*$U2)/((1+$U$2)^DT34-1) -> 0.1949652519 | DV34: 0.008547008547 | DW34: 16.66369674 | DX34: 16.66369674 | DY34: 10000
B35: 1 | F35: =IF(C35="",VLOOKUP(B35,bens!$A$8:$Q$75,13)*D35,VLOOKUP(B35,bens!$A$8:$Q$75,13)*C35) -> 0 | G35: =VLOOKUP(B35,bens!$A$8:$Q$75,14) -> 12000 | H35: =VLOOKUP(B35,bens!$A$8:$Q$75,5)*0.12 -> 0 | I35: =VLOOKUP(B35,bens!$A$8:$Q$75,5)*0.12*$I$2 -> 0 | J35: =IF(C35="",VLOOKUP(B35,bens!$A$8:$Q$75,17)*Inventario!D35/Inventario!G35,VLOOKUP(B35,bens!$A$8:$Q$75,17)*Inventario!C35/Inventario!G35) -> 0 | K35: 0 | L35: =IF(C35="",(VLOOKUP(B35,bens!$A$8:$Q$75,16)*(D35+F35)/2)/(VLOOKUP(B35,bens!$A$8:$Q$75,15)),(VLOOKUP(B35,bens!$A$8:$Q$75,16)*(C35+F35)/2)/(VLOOKUP(B35,bens!$A$8:$Q$75,15))) -> 0 | M35: =IF(C35="",($M$1*(D35+F35)/2)/(VLOOKUP(B35,bens!$A$8:$Q$75,15)),($M$1*(C35+F35)/2)/(VLOOKUP(B35,bens!$A$8:$Q$75,15))) -> 0 | N35: 0 | O35: 0 | P35: 0 | Q35: 0 | R35: 0 | S35: =VLOOKUP(B35,bens!$A$8:$Q$75,14)/VLOOKUP(B35,bens!$A$8:$Q$75,15) -> 10 | T35: 0.11419973 | U35: 0.008547008547 | V35: 0 | W35: 0 | X35: 0 | Y35: 0 | AB35: 1 | AF35: =IF(AC35="",VLOOKUP(AB35,bens!$U$8:$AJ$170,12)*AD35,VLOOKUP(AB35,bens!$U$8:$AJ$170,12)*AC35) -> 0 | AG35: =VLOOKUP(AB35,bens!$U$8:$AJ$170,13) -> 2000 | AH35: =IF(AC35="",VLOOKUP(AB35,bens!$U$8:$AJ$170,16)*Inventario!AD35/Inventario!AG35,VLOOKUP(AB35,bens!$U$8:$AJ$170,16)*Inventario!AC35/Inventario!AG35) -> 0 | AI35: 0 | AJ35: =IF(AC35="",$AJ$1*((AD35+AF35)/2)/(VLOOKUP(AB35,bens!$U$8:$AJ$170,14)),$AJ$1*((AC35+AF35)/2)/(VLOOKUP(AB35,bens!$U$8:$AJ$170,14))) -> 0 | AK35: =IF(AC35="",($AK$1*(AD35+AF35)/2)/(VLOOKUP(AB35,bens!$U$8:$AJ$170,14)),($AK$1*(AC35+AF35)/2)/(VLOOKUP(AB35,bens!$U$8:$AJ$170,14))) -> 0 | AL35: 0 | AM35: 0 | AN35: 0 | AO35: 0 | AP35: =VLOOKUP(AB35,bens!$U$8:$AJ$17,13)/VLOOKUP(AB35,bens!$U$8:$AJ$17,14) -> 10 | AQ35: 0.11419973 | AR35: 0.008547008547 | AS35: 0 | AT35: 0 | AU35: 0 | AY35: 1 | BC35: =IF(AZ35="",VLOOKUP(AY35,bens!$AP$8:$AX$58,5)*BA35,VLOOKUP(AY35,bens!$AP$8:$AX$58,5)*AZ35) -> 0 | BD35: =VLOOKUP(AY35,bens!$AP$8:$AX$58,6) -> 30 | BE35: =IF(AZ35="",VLOOKUP(AY35,bens!$AP$8:$AX$58,9)*Inventario!BA35/Inventario!BD35,VLOOKUP(AY35,bens!$AP$8:$AX$58,9)*Inventario!AZ35/Inventario!BD35) -> 0 | BF35: 0 | BG35: =IF(AZ35="",(VLOOKUP(AY35,bens!$AP$8:$AX$58,8)*((BA35+BC35)/2)),(VLOOKUP(AY35,bens!$AP$8:$AX$58,8)*((AZ35+BC35)/2))) -> 0 | BH35: =IF(AZ35="",((BA35+BC35)/2)*Inventario!$BH$1/Inventario!BD35,((AZ35+BC35)/2)*Inventario!$BH$1/Inventario!BD35) -> 0 | BI35: 0 | BJ35: 0 | BK35: 0 | BL35: 0 | BM35: 30 | BN35: 0.04771395924 | BO35: 0.008547008547 | BP35: 0 | BQ35: 0 | BR35: 0 | BS35: 0 | BT35: 0 | BW35: 1 | BY35: 0 | BZ35: 0 | CA35: 0 | CB35: 0 | CC35: 0 | CD35: 0 | CE35: 0 | CF35: 0 | CG35: 0 | CH35: 0 | CI35: 0 | CJ35: 0 | CK35: 0 | CL35: 0 | CM35: 0 | CN35: 0 | CO35: 0 | CP35: 0 | CQ35: 0 | CR35: 0 | CS35: 0 | DE35: 1 | DF35: 5 | DG35: 10000 | DJ35: =IF(DG35="",VLOOKUP(DF35,bens!$BC$9:$BQ$44,8)*DH35,VLOOKUP(DF35,bens!$BC$9:$BQ$44,8)*DG35) -> 2000 | DK35: =VLOOKUP(DF35,bens!$BC$9:$BQ$44,9) -> 100000 | DL35: =IF(DG35="",VLOOKUP(DF35,bens!$BC$9:$BQ$44,15)*Inventario!DH35/Inventario!DK35,VLOOKUP(DF35,bens!$BC$9:$BQ$44,15)*Inventario!DG35/Inventario!DK35) -> 0.05 | DM35: 0.08 | DN35: =IF(DG35="",(VLOOKUP(DF35,bens!$BC$9:$BQ$44,14)*((DH35+DJ35)/2))/VLOOKUP(DF35,bens!$BC$9:$BQ$44,10),(VLOOKUP(DF35,bens!$BC$9:$BQ$44,14)*((DG35+DJ35)/2))/VLOOKUP(DF35,bens!$BC$9:$BQ$44,10)) -> 0.01666666667 | DO35: =IF(DG35="",(dados!$H$37*(DH35+DJ35)/2)/VLOOKUP(DF35,bens!$BC$9:$BQ$44,10),(dados!$H$37*(DG35+DJ35)/2))/VLOOKUP(DF35,bens!$BC$9:$BQ$44,10) -> 0.025 | DP35: 0.05 | DQ35: 0.08 | DR35: 0.01666666667 | DS35: 0.025 | DT35: =VLOOKUP(DF35,bens!$BC$9:$BQ$44,9)/VLOOKUP(DF35,bens!$BC$9:$BQ$44,10) -> 5.555555556 | DU35: =(((1+$U$2)^DT35)*$U2)/((1+$U$2)^DT35-1) -> 0.1949652519 | DV35: 0.008547008547 | DW35: 16.66369674 | DX35: 16.66369674 | DY35: 10000
B36: 1 | F36: =IF(C36="",VLOOKUP(B36,bens!$A$8:$Q$75,13)*D36,VLOOKUP(B36,bens!$A$8:$Q$75,13)*C36) -> 0 | G36: =VLOOKUP(B36,bens!$A$8:$Q$75,14) -> 12000 | H36: =VLOOKUP(B36,bens!$A$8:$Q$75,5)*0.12 -> 0 | I36: =VLOOKUP(B36,bens!$A$8:$Q$75,5)*0.12*$I$2 -> 0 | J36: =IF(C36="",VLOOKUP(B36,bens!$A$8:$Q$75,17)*Inventario!D36/Inventario!G36,VLOOKUP(B36,bens!$A$8:$Q$75,17)*Inventario!C36/Inventario!G36) -> 0 | K36: =IF(C36="",(D36-F36)/G36,(C36-F36)/G36) -> 0 | L36: =IF(C36="",(VLOOKUP(B36,bens!$A$8:$Q$75,16)*(D36+F36)/2)/(VLOOKUP(B36,bens!$A$8:$Q$75,15)),(VLOOKUP(B36,bens!$A$8:$Q$75,16)*(C36+F36)/2)/(VLOOKUP(B36,bens!$A$8:$Q$75,15))) -> 0 | M36: =IF(C36="",($M$1*(D36+F36)/2)/(VLOOKUP(B36,bens!$A$8:$Q$75,15)),($M$1*(C36+F36)/2)/(VLOOKUP(B36,bens!$A$8:$Q$75,15))) -> 0 | N36: =A36*I36 -> 0 | O36: =A36*J36 -> 0 | P36: =K36*A36 -> 0 | Q36: 0 | R36: 0 | S36: =VLOOKUP(B36,bens!$A$8:$Q$75,14)/VLOOKUP(B36,bens!$A$8:$Q$75,15) -> 10 | T36: =(((1+$U$2)^S36)*$U$2)/((1+$U$2)^S36-1) -> 0.11419973 | U36: 0.008547008547 | V36: =IF(C36="",D36*T36*U36,C36*T36*U36) -> 0 | W36: =V36*A36 -> 0 | X36: =A36*C36+A36*D36 -> 0 | Y36: =(C36-F36)/10 -> 0 | AB36: 1 | AF36: =IF(AC36="",VLOOKUP(AB36,bens!$U$8:$AJ$170,12)*AD36,VLOOKUP(AB36,bens!$U$8:$AJ$170,12)*AC36) -> 0 | AG36: =VLOOKUP(AB36,bens!$U$8:$AJ$170,13) -> 2000 | AH36: =IF(AC36="",VLOOKUP(AB36,bens!$U$8:$AJ$170,16)*Inventario!AD36/Inventario!AG36,VLOOKUP(AB36,bens!$U$8:$AJ$170,16)*Inventario!AC36/Inventario!AG36) -> 0 | AI36: =IF(AC36="",(AD36-AF36)/AG36,(AC36-AF36)/AG36) -> 0 | AJ36: =IF(AC36="",$AJ$1*((AD36+AF36)/2)/(VLOOKUP(AB36,bens!$U$8:$AJ$170,14)),$AJ$1*((AC36+AF36)/2)/(VLOOKUP(AB36,bens!$U$8:$AJ$170,14))) -> 0 | AK36: =IF(AC36="",($AK$1*(AD36+AF36)/2)/(VLOOKUP(AB36,bens!$U$8:$AJ$170,14)),($AK$1*(AC36+AF36)/2)/(VLOOKUP(AB36,bens!$U$8:$AJ$170,14))) -> 0 | AL36: =AA36*AH36 -> 0 | AM36: 0 | AN36: 0 | AO36: 0 | AP36: =VLOOKUP(AB36,bens!$U$8:$AJ$17,13)/VLOOKUP(AB36,bens!$U$8:$AJ$17,14) -> 10 | AQ36: =(((1+$U$2)^AP36)*$U$2)/((1+$U$2)^AP36-1) -> 0.11419973 | AR36: 0.008547008547 | AS36: 0 | AT36: 0 | AU36: =AA36*AC36+AA36*AD36 -> 0 | AY36: 1 | BC36: =IF(AZ36="",VLOOKUP(AY36,bens!$AP$8:$AX$58,5)*BA36,VLOOKUP(AY36,bens!$AP$8:$AX$58,5)*AZ36) -> 0 | BD36: =VLOOKUP(AY36,bens!$AP$8:$AX$58,6) -> 30 | BE36: =IF(AZ36="",VLOOKUP(AY36,bens!$AP$8:$AX$58,9)*Inventario!BA36/Inventario!BD36,VLOOKUP(AY36,bens!$AP$8:$AX$58,9)*Inventario!AZ36/Inventario!BD36) -> 0 | BF36: =IF(AZ36="",(BA36-BC36)/BD36,(AZ36-BC36)/BD36) -> 0 | BG36: =IF(AZ36="",(VLOOKUP(AY36,bens!$AP$8:$AX$58,8)*((BA36+BC36)/2)),(VLOOKUP(AY36,bens!$AP$8:$AX$58,8)*((AZ36+BC36)/2))) -> 0 | BH36: =IF(AZ36="",((BA36+BC36)/2)*Inventario!$BH$1/Inventario!BD36,((AZ36+BC36)/2)*Inventario!$BH$1/Inventario!BD36) -> 0 | BI36: =AX36*BE36 -> 0 | BJ36: =BF36*AX36 -> 0 | BK36: 0 | BL36: 0 | BM36: =BD36 -> 30 | BN36: =(((1+$U$2)^BM36)*$U$2)/((1+$U$2)^BM36-1) -> 0.04771395924 | BO36: =1/$V$2 -> 0.008547008547 | BP36: =IF(AZ36="",BA36*BN36*BO36,AZ36*BN36*BO36) -> 0 | BQ36: =BP36*AX36 -> 0 | BR36: =AX36*AZ36 -> 0 | BS36: 0 | BT36: 0 | BW36: 1 | BY36: 0 | BZ36: 0 | CA36: 0 | CB36: 0 | CC36: 0 | CD36: 0 | CE36: =$CE$1*$BX36 -> 0 | CF36: =1/3/12*$CE$1*$BX36 -> 0 | CG36: 0 | CH36: 0 | CI36: =1/12*$BX36*$CI$1 -> 0 | CJ36: =1/12*$CE$1*$BX36*$CI$1 -> 0 | CK36: =$CG$1/2*$BX36*$CI$1 -> 0 | CL36: 0 | CM36: =BZ36+CA36+CB36+CL36 -> 0 | CN36: =SUM(CC36:CH36) -> 0 | CO36: =SUM(CI36:CK36) -> 0 | CP36: 0 | CQ36: =BV36*(BX36+CP36) -> 0 | CR36: 0 | CS36: 0 | DE36: 1 | DF36: 5 | DG36: 10000 | DJ36: =IF(DG36="",VLOOKUP(DF36,bens!$BC$9:$BQ$44,8)*DH36,VLOOKUP(DF36,bens!$BC$9:$BQ$44,8)*DG36) -> 2000 | DK36: =VLOOKUP(DF36,bens!$BC$9:$BQ$44,9) -> 100000 | DL36: =IF(DG36="",VLOOKUP(DF36,bens!$BC$9:$BQ$44,15)*Inventario!DH36/Inventario!DK36,VLOOKUP(DF36,bens!$BC$9:$BQ$44,15)*Inventario!DG36/Inventario!DK36) -> 0.05 | DM36: 0.08 | DN36: =IF(DG36="",(VLOOKUP(DF36,bens!$BC$9:$BQ$44,14)*((DH36+DJ36)/2))/VLOOKUP(DF36,bens!$BC$9:$BQ$44,10),(VLOOKUP(DF36,bens!$BC$9:$BQ$44,14)*((DG36+DJ36)/2))/VLOOKUP(DF36,bens!$BC$9:$BQ$44,10)) -> 0.01666666667 | DO36: =IF(DG36="",(dados!$H$37*(DH36+DJ36)/2)/VLOOKUP(DF36,bens!$BC$9:$BQ$44,10),(dados!$H$37*(DG36+DJ36)/2))/VLOOKUP(DF36,bens!$BC$9:$BQ$44,10) -> 0.025 | DP36: 0.05 | DQ36: 0.08 | DR36: 0.01666666667 | DS36: 0.025 | DT36: =VLOOKUP(DF36,bens!$BC$9:$BQ$44,9)/VLOOKUP(DF36,bens!$BC$9:$BQ$44,10) -> 5.555555556 | DU36: =(((1+$U$2)^DT36)*$U2)/((1+$U$2)^DT36-1) -> 0.1949652519 | DV36: 0.008547008547 | DW36: 16.66369674 | DX36: 16.66369674 | DY36: =DE36*DG36+DE36*DH36 -> 10000
B37: 1 | F37: =IF(C37="",VLOOKUP(B37,bens!$A$8:$Q$75,13)*D37,VLOOKUP(B37,bens!$A$8:$Q$75,13)*C37) -> 0 | G37: =VLOOKUP(B37,bens!$A$8:$Q$75,14) -> 12000 | H37: =VLOOKUP(B37,bens!$A$8:$Q$75,5)*0.12 -> 0 | I37: =VLOOKUP(B37,bens!$A$8:$Q$75,5)*0.12*$I$2 -> 0 | J37: =IF(C37="",VLOOKUP(B37,bens!$A$8:$Q$75,17)*Inventario!D37/Inventario!G37,VLOOKUP(B37,bens!$A$8:$Q$75,17)*Inventario!C37/Inventario!G37) -> 0 | K37: 0 | L37: =IF(C37="",(VLOOKUP(B37,bens!$A$8:$Q$75,16)*(D37+F37)/2)/(VLOOKUP(B37,bens!$A$8:$Q$75,15)),(VLOOKUP(B37,bens!$A$8:$Q$75,16)*(C37+F37)/2)/(VLOOKUP(B37,bens!$A$8:$Q$75,15))) -> 0 | M37: =IF(C37="",($M$1*(D37+F37)/2)/(VLOOKUP(B37,bens!$A$8:$Q$75,15)),($M$1*(C37+F37)/2)/(VLOOKUP(B37,bens!$A$8:$Q$75,15))) -> 0 | N37: 0 | O37: 0 | P37: 0 | Q37: 0 | R37: 0 | S37: =VLOOKUP(B37,bens!$A$8:$Q$75,14)/VLOOKUP(B37,bens!$A$8:$Q$75,15) -> 10 | T37: 0.11419973 | U37: 0.008547008547 | V37: 0 | W37: 0 | X37: 0 | Y37: 0 | AB37: 1 | AF37: =IF(AC37="",VLOOKUP(AB37,bens!$U$8:$AJ$170,12)*AD37,VLOOKUP(AB37,bens!$U$8:$AJ$170,12)*AC37) -> 0 | AG37: =VLOOKUP(AB37,bens!$U$8:$AJ$170,13) -> 2000 | AH37: =IF(AC37="",VLOOKUP(AB37,bens!$U$8:$AJ$170,16)*Inventario!AD37/Inventario!AG37,VLOOKUP(AB37,bens!$U$8:$AJ$170,16)*Inventario!AC37/Inventario!AG37) -> 0 | AI37: 0 | AJ37: =IF(AC37="",$AJ$1*((AD37+AF37)/2)/(VLOOKUP(AB37,bens!$U$8:$AJ$170,14)),$AJ$1*((AC37+AF37)/2)/(VLOOKUP(AB37,bens!$U$8:$AJ$170,14))) -> 0 | AK37: =IF(AC37="",($AK$1*(AD37+AF37)/2)/(VLOOKUP(AB37,bens!$U$8:$AJ$170,14)),($AK$1*(AC37+AF37)/2)/(VLOOKUP(AB37,bens!$U$8:$AJ$170,14))) -> 0 | AL37: 0 | AM37: 0 | AN37: 0 | AO37: 0 | AP37: =VLOOKUP(AB37,bens!$U$8:$AJ$17,13)/VLOOKUP(AB37,bens!$U$8:$AJ$17,14) -> 10 | AQ37: 0.11419973 | AR37: 0.008547008547 | AS37: 0 | AT37: 0 | AU37: 0 | AY37: 1 | BC37: =IF(AZ37="",VLOOKUP(AY37,bens!$AP$8:$AX$58,5)*BA37,VLOOKUP(AY37,bens!$AP$8:$AX$58,5)*AZ37) -> 0 | BD37: =VLOOKUP(AY37,bens!$AP$8:$AX$58,6) -> 30 | BE37: =IF(AZ37="",VLOOKUP(AY37,bens!$AP$8:$AX$58,9)*Inventario!BA37/Inventario!BD37,VLOOKUP(AY37,bens!$AP$8:$AX$58,9)*Inventario!AZ37/Inventario!BD37) -> 0 | BF37: 0 | BG37: =IF(AZ37="",(VLOOKUP(AY37,bens!$AP$8:$AX$58,8)*((BA37+BC37)/2)),(VLOOKUP(AY37,bens!$AP$8:$AX$58,8)*((AZ37+BC37)/2))) -> 0 | BH37: =IF(AZ37="",((BA37+BC37)/2)*Inventario!$BH$1/Inventario!BD37,((AZ37+BC37)/2)*Inventario!$BH$1/Inventario!BD37) -> 0 | BI37: 0 | BJ37: 0 | BK37: 0 | BL37: 0 | BM37: 30 | BN37: 0.04771395924 | BO37: 0.008547008547 | BP37: 0 | BQ37: 0 | BR37: 0 | BS37: 0 | BT37: 0 | BW37: 1 | BY37: 0 | BZ37: 0 | CA37: 0 | CB37: 0 | CC37: 0 | CD37: 0 | CE37: 0 | CF37: 0 | CG37: 0 | CH37: 0 | CI37: 0 | CJ37: 0 | CK37: 0 | CL37: 0 | CM37: 0 | CN37: 0 | CO37: 0 | CP37: 0 | CQ37: 0 | CR37: 0 | CS37: 0 | DE37: 1 | DF37: 5 | DG37: 10000 | DJ37: =IF(DG37="",VLOOKUP(DF37,bens!$BC$9:$BQ$44,8)*DH37,VLOOKUP(DF37,bens!$BC$9:$BQ$44,8)*DG37) -> 2000 | DK37: =VLOOKUP(DF37,bens!$BC$9:$BQ$44,9) -> 100000 | DL37: =IF(DG37="",VLOOKUP(DF37,bens!$BC$9:$BQ$44,15)*Inventario!DH37/Inventario!DK37,VLOOKUP(DF37,bens!$BC$9:$BQ$44,15)*Inventario!DG37/Inventario!DK37) -> 0.05 | DM37: 0.08 | DN37: =IF(DG37="",(VLOOKUP(DF37,bens!$BC$9:$BQ$44,14)*((DH37+DJ37)/2))/VLOOKUP(DF37,bens!$BC$9:$BQ$44,10),(VLOOKUP(DF37,bens!$BC$9:$BQ$44,14)*((DG37+DJ37)/2))/VLOOKUP(DF37,bens!$BC$9:$BQ$44,10)) -> 0.01666666667 | DO37: =IF(DG37="",(dados!$H$37*(DH37+DJ37)/2)/VLOOKUP(DF37,bens!$BC$9:$BQ$44,10),(dados!$H$37*(DG37+DJ37)/2))/VLOOKUP(DF37,bens!$BC$9:$BQ$44,10) -> 0.025 | DP37: 0.05 | DQ37: 0.08 | DR37: 0.01666666667 | DS37: 0.025 | DT37: =VLOOKUP(DF37,bens!$BC$9:$BQ$44,9)/VLOOKUP(DF37,bens!$BC$9:$BQ$44,10) -> 5.555555556 | DU37: =(((1+$U$2)^DT37)*$U2)/((1+$U$2)^DT37-1) -> 0.1949652519 | DV37: 0.008547008547 | DW37: 16.66369674 | DX37: 16.66369674 | DY37: 10000
B38: 1 | F38: =IF(C38="",VLOOKUP(B38,bens!$A$8:$Q$75,13)*D38,VLOOKUP(B38,bens!$A$8:$Q$75,13)*C38) -> 0 | G38: =VLOOKUP(B38,bens!$A$8:$Q$75,14) -> 12000 | H38: =VLOOKUP(B38,bens!$A$8:$Q$75,5)*0.12 -> 0 | I38: =VLOOKUP(B38,bens!$A$8:$Q$75,5)*0.12*$I$2 -> 0 | J38: =IF(C38="",VLOOKUP(B38,bens!$A$8:$Q$75,17)*Inventario!D38/Inventario!G38,VLOOKUP(B38,bens!$A$8:$Q$75,17)*Inventario!C38/Inventario!G38) -> 0 | K38: 0 | L38: =IF(C38="",(VLOOKUP(B38,bens!$A$8:$Q$75,16)*(D38+F38)/2)/(VLOOKUP(B38,bens!$A$8:$Q$75,15)),(VLOOKUP(B38,bens!$A$8:$Q$75,16)*(C38+F38)/2)/(VLOOKUP(B38,bens!$A$8:$Q$75,15))) -> 0 | M38: =IF(C38="",($M$1*(D38+F38)/2)/(VLOOKUP(B38,bens!$A$8:$Q$75,15)),($M$1*(C38+F38)/2)/(VLOOKUP(B38,bens!$A$8:$Q$75,15))) -> 0 | N38: 0 | O38: 0 | P38: 0 | Q38: 0 | R38: 0 | S38: =VLOOKUP(B38,bens!$A$8:$Q$75,14)/VLOOKUP(B38,bens!$A$8:$Q$75,15) -> 10 | T38: 0.11419973 | U38: 0.008547008547 | V38: 0 | W38: 0 | X38: 0 | Y38: 0 | AB38: 1 | AF38: =IF(AC38="",VLOOKUP(AB38,bens!$U$8:$AJ$170,12)*AD38,VLOOKUP(AB38,bens!$U$8:$AJ$170,12)*AC38) -> 0 | AG38: =VLOOKUP(AB38,bens!$U$8:$AJ$170,13) -> 2000 | AH38: =IF(AC38="",VLOOKUP(AB38,bens!$U$8:$AJ$170,16)*Inventario!AD38/Inventario!AG38,VLOOKUP(AB38,bens!$U$8:$AJ$170,16)*Inventario!AC38/Inventario!AG38) -> 0 | AI38: 0 | AJ38: =IF(AC38="",$AJ$1*((AD38+AF38)/2)/(VLOOKUP(AB38,bens!$U$8:$AJ$170,14)),$AJ$1*((AC38+AF38)/2)/(VLOOKUP(AB38,bens!$U$8:$AJ$170,14))) -> 0 | AK38: =IF(AC38="",($AK$1*(AD38+AF38)/2)/(VLOOKUP(AB38,bens!$U$8:$AJ$170,14)),($AK$1*(AC38+AF38)/2)/(VLOOKUP(AB38,bens!$U$8:$AJ$170,14))) -> 0 | AL38: 0 | AM38: 0 | AN38: 0 | AO38: 0 | AP38: =VLOOKUP(AB38,bens!$U$8:$AJ$17,13)/VLOOKUP(AB38,bens!$U$8:$AJ$17,14) -> 10 | AQ38: 0.11419973 | AR38: 0.008547008547 | AS38: 0 | AT38: 0 | AU38: 0 | AY38: 1 | BC38: =IF(AZ38="",VLOOKUP(AY38,bens!$AP$8:$AX$58,5)*BA38,VLOOKUP(AY38,bens!$AP$8:$AX$58,5)*AZ38) -> 0 | BD38: =VLOOKUP(AY38,bens!$AP$8:$AX$58,6) -> 30 | BE38: =IF(AZ38="",VLOOKUP(AY38,bens!$AP$8:$AX$58,9)*Inventario!BA38/Inventario!BD38,VLOOKUP(AY38,bens!$AP$8:$AX$58,9)*Inventario!AZ38/Inventario!BD38) -> 0 | BF38: 0 | BG38: =IF(AZ38="",(VLOOKUP(AY38,bens!$AP$8:$AX$58,8)*((BA38+BC38)/2)),(VLOOKUP(AY38,bens!$AP$8:$AX$58,8)*((AZ38+BC38)/2))) -> 0 | BH38: =IF(AZ38="",((BA38+BC38)/2)*Inventario!$BH$1/Inventario!BD38,((AZ38+BC38)/2)*Inventario!$BH$1/Inventario!BD38) -> 0 | BI38: 0 | BJ38: 0 | BK38: 0 | BL38: 0 | BM38: 30 | BN38: 0.04771395924 | BO38: 0.008547008547 | BP38: 0 | BQ38: 0 | BR38: 0 | BS38: 0 | BT38: 0 | BW38: 1 | BY38: 0 | BZ38: 0 | CA38: 0 | CB38: 0 | CC38: 0 | CD38: 0 | CE38: 0 | CF38: 0 | CG38: 0 | CH38: 0 | CI38: 0 | CJ38: 0 | CK38: 0 | CL38: 0 | CM38: 0 | CN38: 0 | CO38: 0 | CP38: 0 | CQ38: 0 | CR38: 0 | CS38: 0 | DE38: 1 | DF38: 5 | DG38: 10000 | DJ38: =IF(DG38="",VLOOKUP(DF38,bens!$BC$9:$BQ$44,8)*DH38,VLOOKUP(DF38,bens!$BC$9:$BQ$44,8)*DG38) -> 2000 | DK38: =VLOOKUP(DF38,bens!$BC$9:$BQ$44,9) -> 100000 | DL38: =IF(DG38="",VLOOKUP(DF38,bens!$BC$9:$BQ$44,15)*Inventario!DH38/Inventario!DK38,VLOOKUP(DF38,bens!$BC$9:$BQ$44,15)*Inventario!DG38/Inventario!DK38) -> 0.05 | DM38: 0.08 | DN38: =IF(DG38="",(VLOOKUP(DF38,bens!$BC$9:$BQ$44,14)*((DH38+DJ38)/2))/VLOOKUP(DF38,bens!$BC$9:$BQ$44,10),(VLOOKUP(DF38,bens!$BC$9:$BQ$44,14)*((DG38+DJ38)/2))/VLOOKUP(DF38,bens!$BC$9:$BQ$44,10)) -> 0.01666666667 | DO38: =IF(DG38="",(dados!$H$37*(DH38+DJ38)/2)/VLOOKUP(DF38,bens!$BC$9:$BQ$44,10),(dados!$H$37*(DG38+DJ38)/2))/VLOOKUP(DF38,bens!$BC$9:$BQ$44,10) -> 0.025 | DP38: 0.05 | DQ38: 0.08 | DR38: 0.01666666667 | DS38: 0.025 | DT38: =VLOOKUP(DF38,bens!$BC$9:$BQ$44,9)/VLOOKUP(DF38,bens!$BC$9:$BQ$44,10) -> 5.555555556 | DU38: =(((1+$U$2)^DT38)*$U2)/((1+$U$2)^DT38-1) -> 0.1949652519 | DV38: 0.008547008547 | DW38: 16.66369674 | DX38: 16.66369674 | DY38: 10000
B39: 1 | F39: =IF(C39="",VLOOKUP(B39,bens!$A$8:$Q$75,13)*D39,VLOOKUP(B39,bens!$A$8:$Q$75,13)*C39) -> 0 | G39: =VLOOKUP(B39,bens!$A$8:$Q$75,14) -> 12000 | H39: =VLOOKUP(B39,bens!$A$8:$Q$75,5)*0.12 -> 0 | I39: =VLOOKUP(B39,bens!$A$8:$Q$75,5)*0.12*$I$2 -> 0 | J39: =IF(C39="",VLOOKUP(B39,bens!$A$8:$Q$75,17)*Inventario!D39/Inventario!G39,VLOOKUP(B39,bens!$A$8:$Q$75,17)*Inventario!C39/Inventario!G39) -> 0 | K39: 0 | L39: =IF(C39="",(VLOOKUP(B39,bens!$A$8:$Q$75,16)*(D39+F39)/2)/(VLOOKUP(B39,bens!$A$8:$Q$75,15)),(VLOOKUP(B39,bens!$A$8:$Q$75,16)*(C39+F39)/2)/(VLOOKUP(B39,bens!$A$8:$Q$75,15))) -> 0 | M39: =IF(C39="",($M$1*(D39+F39)/2)/(VLOOKUP(B39,bens!$A$8:$Q$75,15)),($M$1*(C39+F39)/2)/(VLOOKUP(B39,bens!$A$8:$Q$75,15))) -> 0 | N39: 0 | O39: 0 | P39: 0 | Q39: 0 | R39: 0 | S39: =VLOOKUP(B39,bens!$A$8:$Q$75,14)/VLOOKUP(B39,bens!$A$8:$Q$75,15) -> 10 | T39: 0.11419973 | U39: 0.008547008547 | V39: 0 | W39: 0 | X39: 0 | Y39: 0 | AB39: 1 | AF39: =IF(AC39="",VLOOKUP(AB39,bens!$U$8:$AJ$170,12)*AD39,VLOOKUP(AB39,bens!$U$8:$AJ$170,12)*AC39) -> 0 | AG39: =VLOOKUP(AB39,bens!$U$8:$AJ$170,13) -> 2000 | AH39: =IF(AC39="",VLOOKUP(AB39,bens!$U$8:$AJ$170,16)*Inventario!AD39/Inventario!AG39,VLOOKUP(AB39,bens!$U$8:$AJ$170,16)*Inventario!AC39/Inventario!AG39) -> 0 | AI39: 0 | AJ39: =IF(AC39="",$AJ$1*((AD39+AF39)/2)/(VLOOKUP(AB39,bens!$U$8:$AJ$170,14)),$AJ$1*((AC39+AF39)/2)/(VLOOKUP(AB39,bens!$U$8:$AJ$170,14))) -> 0 | AK39: =IF(AC39="",($AK$1*(AD39+AF39)/2)/(VLOOKUP(AB39,bens!$U$8:$AJ$170,14)),($AK$1*(AC39+AF39)/2)/(VLOOKUP(AB39,bens!$U$8:$AJ$170,14))) -> 0 | AL39: 0 | AM39: 0 | AN39: 0 | AO39: 0 | AP39: =VLOOKUP(AB39,bens!$U$8:$AJ$17,13)/VLOOKUP(AB39,bens!$U$8:$AJ$17,14) -> 10 | AQ39: 0.11419973 | AR39: 0.008547008547 | AS39: 0 | AT39: 0 | AU39: 0 | AY39: 1 | BC39: =IF(AZ39="",VLOOKUP(AY39,bens!$AP$8:$AX$58,5)*BA39,VLOOKUP(AY39,bens!$AP$8:$AX$58,5)*AZ39) -> 0 | BD39: =VLOOKUP(AY39,bens!$AP$8:$AX$58,6) -> 30 | BE39: =IF(AZ39="",VLOOKUP(AY39,bens!$AP$8:$AX$58,9)*Inventario!BA39/Inventario!BD39,VLOOKUP(AY39,bens!$AP$8:$AX$58,9)*Inventario!AZ39/Inventario!BD39) -> 0 | BF39: 0 | BG39: =IF(AZ39="",(VLOOKUP(AY39,bens!$AP$8:$AX$58,8)*((BA39+BC39)/2)),(VLOOKUP(AY39,bens!$AP$8:$AX$58,8)*((AZ39+BC39)/2))) -> 0 | BH39: =IF(AZ39="",((BA39+BC39)/2)*Inventario!$BH$1/Inventario!BD39,((AZ39+BC39)/2)*Inventario!$BH$1/Inventario!BD39) -> 0 | BI39: 0 | BJ39: 0 | BK39: 0 | BL39: 0 | BM39: 30 | BN39: 0.04771395924 | BO39: 0.008547008547 | BP39: 0 | BQ39: 0 | BR39: 0 | BS39: 0 | BT39: 0 | BW39: 1 | BY39: 0 | BZ39: 0 | CA39: 0 | CB39: 0 | CC39: 0 | CD39: 0 | CE39: 0 | CF39: 0 | CG39: 0 | CH39: 0 | CI39: 0 | CJ39: 0 | CK39: 0 | CL39: 0 | CM39: 0 | CN39: 0 | CO39: 0 | CP39: 0 | CQ39: 0 | CR39: 0 | CS39: 0 | DE39: 1 | DF39: 5 | DG39: 10000 | DJ39: =IF(DG39="",VLOOKUP(DF39,bens!$BC$9:$BQ$44,8)*DH39,VLOOKUP(DF39,bens!$BC$9:$BQ$44,8)*DG39) -> 2000 | DK39: =VLOOKUP(DF39,bens!$BC$9:$BQ$44,9) -> 100000 | DL39: =IF(DG39="",VLOOKUP(DF39,bens!$BC$9:$BQ$44,15)*Inventario!DH39/Inventario!DK39,VLOOKUP(DF39,bens!$BC$9:$BQ$44,15)*Inventario!DG39/Inventario!DK39) -> 0.05 | DM39: 0.08 | DN39: =IF(DG39="",(VLOOKUP(DF39,bens!$BC$9:$BQ$44,14)*((DH39+DJ39)/2))/VLOOKUP(DF39,bens!$BC$9:$BQ$44,10),(VLOOKUP(DF39,bens!$BC$9:$BQ$44,14)*((DG39+DJ39)/2))/VLOOKUP(DF39,bens!$BC$9:$BQ$44,10)) -> 0.01666666667 | DO39: =IF(DG39="",(dados!$H$37*(DH39+DJ39)/2)/VLOOKUP(DF39,bens!$BC$9:$BQ$44,10),(dados!$H$37*(DG39+DJ39)/2))/VLOOKUP(DF39,bens!$BC$9:$BQ$44,10) -> 0.025 | DP39: 0.05 | DQ39: 0.08 | DR39: 0.01666666667 | DS39: 0.025 | DT39: =VLOOKUP(DF39,bens!$BC$9:$BQ$44,9)/VLOOKUP(DF39,bens!$BC$9:$BQ$44,10) -> 5.555555556 | DU39: =(((1+$U$2)^DT39)*$U2)/((1+$U$2)^DT39-1) -> 0.1949652519 | DV39: 0.008547008547 | DW39: 16.66369674 | DX39: 16.66369674 | DY39: 10000
B40: 1 | F40: =IF(C40="",VLOOKUP(B40,bens!$A$8:$Q$75,13)*D40,VLOOKUP(B40,bens!$A$8:$Q$75,13)*C40) -> 0 | G40: =VLOOKUP(B40,bens!$A$8:$Q$75,14) -> 12000 | H40: =VLOOKUP(B40,bens!$A$8:$Q$75,5)*0.12 -> 0 | I40: =VLOOKUP(B40,bens!$A$8:$Q$75,5)*0.12*$I$2 -> 0 | J40: =IF(C40="",VLOOKUP(B40,bens!$A$8:$Q$75,17)*Inventario!D40/Inventario!G40,VLOOKUP(B40,bens!$A$8:$Q$75,17)*Inventario!C40/Inventario!G40) -> 0 | K40: 0 | L40: =IF(C40="",(VLOOKUP(B40,bens!$A$8:$Q$75,16)*(D40+F40)/2)/(VLOOKUP(B40,bens!$A$8:$Q$75,15)),(VLOOKUP(B40,bens!$A$8:$Q$75,16)*(C40+F40)/2)/(VLOOKUP(B40,bens!$A$8:$Q$75,15))) -> 0 | M40: =IF(C40="",($M$1*(D40+F40)/2)/(VLOOKUP(B40,bens!$A$8:$Q$75,15)),($M$1*(C40+F40)/2)/(VLOOKUP(B40,bens!$A$8:$Q$75,15))) -> 0 | N40: 0 | O40: 0 | P40: 0 | Q40: 0 | R40: 0 | S40: =VLOOKUP(B40,bens!$A$8:$Q$75,14)/VLOOKUP(B40,bens!$A$8:$Q$75,15) -> 10 | T40: 0.11419973 | U40: 0.008547008547 | V40: 0 | W40: 0 | X40: 0 | Y40: 0 | AB40: 1 | AF40: =IF(AC40="",VLOOKUP(AB40,bens!$U$8:$AJ$170,12)*AD40,VLOOKUP(AB40,bens!$U$8:$AJ$170,12)*AC40) -> 0 | AG40: =VLOOKUP(AB40,bens!$U$8:$AJ$170,13) -> 2000 | AH40: =IF(AC40="",VLOOKUP(AB40,bens!$U$8:$AJ$170,16)*Inventario!AD40/Inventario!AG40,VLOOKUP(AB40,bens!$U$8:$AJ$170,16)*Inventario!AC40/Inventario!AG40) -> 0 | AI40: 0 | AJ40: =IF(AC40="",$AJ$1*((AD40+AF40)/2)/(VLOOKUP(AB40,bens!$U$8:$AJ$170,14)),$AJ$1*((AC40+AF40)/2)/(VLOOKUP(AB40,bens!$U$8:$AJ$170,14))) -> 0 | AK40: =IF(AC40="",($AK$1*(AD40+AF40)/2)/(VLOOKUP(AB40,bens!$U$8:$AJ$170,14)),($AK$1*(AC40+AF40)/2)/(VLOOKUP(AB40,bens!$U$8:$AJ$170,14))) -> 0 | AL40: 0 | AM40: 0 | AN40: 0 | AO40: 0 | AP40: =VLOOKUP(AB40,bens!$U$8:$AJ$17,13)/VLOOKUP(AB40,bens!$U$8:$AJ$17,14) -> 10 | AQ40: 0.11419973 | AR40: 0.008547008547 | AS40: 0 | AT40: 0 | AU40: 0 | AY40: 1 | BC40: =IF(AZ40="",VLOOKUP(AY40,bens!$AP$8:$AX$58,5)*BA40,VLOOKUP(AY40,bens!$AP$8:$AX$58,5)*AZ40) -> 0 | BD40: =VLOOKUP(AY40,bens!$AP$8:$AX$58,6) -> 30 | BE40: =IF(AZ40="",VLOOKUP(AY40,bens!$AP$8:$AX$58,9)*Inventario!BA40/Inventario!BD40,VLOOKUP(AY40,bens!$AP$8:$AX$58,9)*Inventario!AZ40/Inventario!BD40) -> 0 | BF40: 0 | BG40: =IF(AZ40="",(VLOOKUP(AY40,bens!$AP$8:$AX$58,8)*((BA40+BC40)/2)),(VLOOKUP(AY40,bens!$AP$8:$AX$58,8)*((AZ40+BC40)/2))) -> 0 | BH40: =IF(AZ40="",((BA40+BC40)/2)*Inventario!$BH$1/Inventario!BD40,((AZ40+BC40)/2)*Inventario!$BH$1/Inventario!BD40) -> 0 | BI40: 0 | BJ40: 0 | BK40: 0 | BL40: 0 | BM40: 30 | BN40: 0.04771395924 | BO40: 0.008547008547 | BP40: 0 | BQ40: 0 | BR40: 0 | BS40: 0 | BT40: 0 | BW40: 1 | BY40: 0 | BZ40: 0 | CA40: 0 | CB40: 0 | CC40: 0 | CD40: 0 | CE40: 0 | CF40: 0 | CG40: 0 | CH40: 0 | CI40: 0 | CJ40: 0 | CK40: 0 | CL40: 0 | CM40: 0 | CN40: 0 | CO40: 0 | CP40: 0 | CQ40: 0 | CR40: 0 | CS40: 0 | DE40: 1 | DF40: 5 | DG40: 10000 | DJ40: =IF(DG40="",VLOOKUP(DF40,bens!$BC$9:$BQ$44,8)*DH40,VLOOKUP(DF40,bens!$BC$9:$BQ$44,8)*DG40) -> 2000 | DK40: =VLOOKUP(DF40,bens!$BC$9:$BQ$44,9) -> 100000 | DL40: =IF(DG40="",VLOOKUP(DF40,bens!$BC$9:$BQ$44,15)*Inventario!DH40/Inventario!DK40,VLOOKUP(DF40,bens!$BC$9:$BQ$44,15)*Inventario!DG40/Inventario!DK40) -> 0.05 | DM40: 0.08 | DN40: =IF(DG40="",(VLOOKUP(DF40,bens!$BC$9:$BQ$44,14)*((DH40+DJ40)/2))/VLOOKUP(DF40,bens!$BC$9:$BQ$44,10),(VLOOKUP(DF40,bens!$BC$9:$BQ$44,14)*((DG40+DJ40)/2))/VLOOKUP(DF40,bens!$BC$9:$BQ$44,10)) -> 0.01666666667 | DO40: =IF(DG40="",(dados!$H$37*(DH40+DJ40)/2)/VLOOKUP(DF40,bens!$BC$9:$BQ$44,10),(dados!$H$37*(DG40+DJ40)/2))/VLOOKUP(DF40,bens!$BC$9:$BQ$44,10) -> 0.025 | DP40: 0.05 | DQ40: 0.08 | DR40: 0.01666666667 | DS40: 0.025 | DT40: =VLOOKUP(DF40,bens!$BC$9:$BQ$44,9)/VLOOKUP(DF40,bens!$BC$9:$BQ$44,10) -> 5.555555556 | DU40: =(((1+$U$2)^DT40)*$U2)/((1+$U$2)^DT40-1) -> 0.1949652519 | DV40: 0.008547008547 | DW40: 16.66369674 | DX40: 16.66369674 | DY40: 10000
B41: 1 | F41: =IF(C41="",VLOOKUP(B41,bens!$A$8:$Q$75,13)*D41,VLOOKUP(B41,bens!$A$8:$Q$75,13)*C41) -> 0 | G41: =VLOOKUP(B41,bens!$A$8:$Q$75,14) -> 12000 | H41: =VLOOKUP(B41,bens!$A$8:$Q$75,5)*0.12 -> 0 | I41: =VLOOKUP(B41,bens!$A$8:$Q$75,5)*0.12*$I$2 -> 0 | J41: =IF(C41="",VLOOKUP(B41,bens!$A$8:$Q$75,17)*Inventario!D41/Inventario!G41,VLOOKUP(B41,bens!$A$8:$Q$75,17)*Inventario!C41/Inventario!G41) -> 0 | K41: 0 | L41: =IF(C41="",(VLOOKUP(B41,bens!$A$8:$Q$75,16)*(D41+F41)/2)/(VLOOKUP(B41,bens!$A$8:$Q$75,15)),(VLOOKUP(B41,bens!$A$8:$Q$75,16)*(C41+F41)/2)/(VLOOKUP(B41,bens!$A$8:$Q$75,15))) -> 0 | M41: =IF(C41="",($M$1*(D41+F41)/2)/(VLOOKUP(B41,bens!$A$8:$Q$75,15)),($M$1*(C41+F41)/2)/(VLOOKUP(B41,bens!$A$8:$Q$75,15))) -> 0 | N41: 0 | O41: 0 | P41: 0 | Q41: 0 | R41: 0 | S41: =VLOOKUP(B41,bens!$A$8:$Q$75,14)/VLOOKUP(B41,bens!$A$8:$Q$75,15) -> 10 | T41: 0.11419973 | U41: 0.008547008547 | V41: 0 | W41: 0 | X41: 0 | Y41: 0 | AB41: 1 | AF41: =IF(AC41="",VLOOKUP(AB41,bens!$U$8:$AJ$170,12)*AD41,VLOOKUP(AB41,bens!$U$8:$AJ$170,12)*AC41) -> 0 | AG41: =VLOOKUP(AB41,bens!$U$8:$AJ$170,13) -> 2000 | AH41: =IF(AC41="",VLOOKUP(AB41,bens!$U$8:$AJ$170,16)*Inventario!AD41/Inventario!AG41,VLOOKUP(AB41,bens!$U$8:$AJ$170,16)*Inventario!AC41/Inventario!AG41) -> 0 | AI41: 0 | AJ41: =IF(AC41="",$AJ$1*((AD41+AF41)/2)/(VLOOKUP(AB41,bens!$U$8:$AJ$170,14)),$AJ$1*((AC41+AF41)/2)/(VLOOKUP(AB41,bens!$U$8:$AJ$170,14))) -> 0 | AK41: =IF(AC41="",($AK$1*(AD41+AF41)/2)/(VLOOKUP(AB41,bens!$U$8:$AJ$170,14)),($AK$1*(AC41+AF41)/2)/(VLOOKUP(AB41,bens!$U$8:$AJ$170,14))) -> 0 | AL41: 0 | AM41: 0 | AN41: 0 | AO41: 0 | AP41: =VLOOKUP(AB41,bens!$U$8:$AJ$17,13)/VLOOKUP(AB41,bens!$U$8:$AJ$17,14) -> 10 | AQ41: 0.11419973 | AR41: 0.008547008547 | AS41: 0 | AT41: 0 | AU41: 0 | AY41: 1 | BC41: =IF(AZ41="",VLOOKUP(AY41,bens!$AP$8:$AX$58,5)*BA41,VLOOKUP(AY41,bens!$AP$8:$AX$58,5)*AZ41) -> 0 | BD41: =VLOOKUP(AY41,bens!$AP$8:$AX$58,6) -> 30 | BE41: =IF(AZ41="",VLOOKUP(AY41,bens!$AP$8:$AX$58,9)*Inventario!BA41/Inventario!BD41,VLOOKUP(AY41,bens!$AP$8:$AX$58,9)*Inventario!AZ41/Inventario!BD41) -> 0 | BF41: 0 | BG41: =IF(AZ41="",(VLOOKUP(AY41,bens!$AP$8:$AX$58,8)*((BA41+BC41)/2)),(VLOOKUP(AY41,bens!$AP$8:$AX$58,8)*((AZ41+BC41)/2))) -> 0 | BH41: =IF(AZ41="",((BA41+BC41)/2)*Inventario!$BH$1/Inventario!BD41,((AZ41+BC41)/2)*Inventario!$BH$1/Inventario!BD41) -> 0 | BI41: 0 | BJ41: 0 | BK41: 0 | BL41: 0 | BM41: 30 | BN41: 0.04771395924 | BO41: 0.008547008547 | BP41: 0 | BQ41: 0 | BR41: 0 | BS41: 0 | BT41: 0 | BW41: 1 | BY41: 0 | BZ41: 0 | CA41: 0 | CB41: 0 | CC41: 0 | CD41: 0 | CE41: 0 | CF41: 0 | CG41: 0 | CH41: 0 | CI41: 0 | CJ41: 0 | CK41: 0 | CL41: 0 | CM41: 0 | CN41: 0 | CO41: 0 | CP41: 0 | CQ41: 0 | CR41: 0 | CS41: 0 | DE41: 1 | DF41: 5 | DG41: 10000 | DJ41: =IF(DG41="",VLOOKUP(DF41,bens!$BC$9:$BQ$44,8)*DH41,VLOOKUP(DF41,bens!$BC$9:$BQ$44,8)*DG41) -> 2000 | DK41: =VLOOKUP(DF41,bens!$BC$9:$BQ$44,9) -> 100000 | DL41: =IF(DG41="",VLOOKUP(DF41,bens!$BC$9:$BQ$44,15)*Inventario!DH41/Inventario!DK41,VLOOKUP(DF41,bens!$BC$9:$BQ$44,15)*Inventario!DG41/Inventario!DK41) -> 0.05 | DM41: 0.08 | DN41: =IF(DG41="",(VLOOKUP(DF41,bens!$BC$9:$BQ$44,14)*((DH41+DJ41)/2))/VLOOKUP(DF41,bens!$BC$9:$BQ$44,10),(VLOOKUP(DF41,bens!$BC$9:$BQ$44,14)*((DG41+DJ41)/2))/VLOOKUP(DF41,bens!$BC$9:$BQ$44,10)) -> 0.01666666667 | DO41: =IF(DG41="",(dados!$H$37*(DH41+DJ41)/2)/VLOOKUP(DF41,bens!$BC$9:$BQ$44,10),(dados!$H$37*(DG41+DJ41)/2))/VLOOKUP(DF41,bens!$BC$9:$BQ$44,10) -> 0.025 | DP41: 0.05 | DQ41: 0.08 | DR41: 0.01666666667 | DS41: 0.025 | DT41: =VLOOKUP(DF41,bens!$BC$9:$BQ$44,9)/VLOOKUP(DF41,bens!$BC$9:$BQ$44,10) -> 5.555555556 | DU41: =(((1+$U$2)^DT41)*$U2)/((1+$U$2)^DT41-1) -> 0.1949652519 | DV41: 0.008547008547 | DW41: 16.66369674 | DX41: 16.66369674 | DY41: 10000
B42: 1 | F42: =IF(C42="",VLOOKUP(B42,bens!$A$8:$Q$75,13)*D42,VLOOKUP(B42,bens!$A$8:$Q$75,13)*C42) -> 0 | G42: =VLOOKUP(B42,bens!$A$8:$Q$75,14) -> 12000 | H42: =VLOOKUP(B42,bens!$A$8:$Q$75,5)*0.12 -> 0 | I42: =VLOOKUP(B42,bens!$A$8:$Q$75,5)*0.12*$I$2 -> 0 | J42: =IF(C42="",VLOOKUP(B42,bens!$A$8:$Q$75,17)*Inventario!D42/Inventario!G42,VLOOKUP(B42,bens!$A$8:$Q$75,17)*Inventario!C42/Inventario!G42) -> 0 | K42: 0 | L42: =IF(C42="",(VLOOKUP(B42,bens!$A$8:$Q$75,16)*(D42+F42)/2)/(VLOOKUP(B42,bens!$A$8:$Q$75,15)),(VLOOKUP(B42,bens!$A$8:$Q$75,16)*(C42+F42)/2)/(VLOOKUP(B42,bens!$A$8:$Q$75,15))) -> 0 | M42: =IF(C42="",($M$1*(D42+F42)/2)/(VLOOKUP(B42,bens!$A$8:$Q$75,15)),($M$1*(C42+F42)/2)/(VLOOKUP(B42,bens!$A$8:$Q$75,15))) -> 0 | N42: 0 | O42: 0 | P42: 0 | Q42: 0 | R42: 0 | S42: =VLOOKUP(B42,bens!$A$8:$Q$75,14)/VLOOKUP(B42,bens!$A$8:$Q$75,15) -> 10 | T42: 0.11419973 | U42: 0.008547008547 | V42: 0 | W42: 0 | X42: 0 | Y42: 0 | AB42: 1 | AF42: =IF(AC42="",VLOOKUP(AB42,bens!$U$8:$AJ$170,12)*AD42,VLOOKUP(AB42,bens!$U$8:$AJ$170,12)*AC42) -> 0 | AG42: =VLOOKUP(AB42,bens!$U$8:$AJ$170,13) -> 2000 | AH42: =IF(AC42="",VLOOKUP(AB42,bens!$U$8:$AJ$170,16)*Inventario!AD42/Inventario!AG42,VLOOKUP(AB42,bens!$U$8:$AJ$170,16)*Inventario!AC42/Inventario!AG42) -> 0 | AI42: 0 | AJ42: =IF(AC42="",$AJ$1*((AD42+AF42)/2)/(VLOOKUP(AB42,bens!$U$8:$AJ$170,14)),$AJ$1*((AC42+AF42)/2)/(VLOOKUP(AB42,bens!$U$8:$AJ$170,14))) -> 0 | AK42: =IF(AC42="",($AK$1*(AD42+AF42)/2)/(VLOOKUP(AB42,bens!$U$8:$AJ$170,14)),($AK$1*(AC42+AF42)/2)/(VLOOKUP(AB42,bens!$U$8:$AJ$170,14))) -> 0 | AL42: 0 | AM42: 0 | AN42: 0 | AO42: 0 | AP42: =VLOOKUP(AB42,bens!$U$8:$AJ$17,13)/VLOOKUP(AB42,bens!$U$8:$AJ$17,14) -> 10 | AQ42: 0.11419973 | AR42: 0.008547008547 | AS42: 0 | AT42: 0 | AU42: 0 | AY42: 1 | BC42: =IF(AZ42="",VLOOKUP(AY42,bens!$AP$8:$AX$58,5)*BA42,VLOOKUP(AY42,bens!$AP$8:$AX$58,5)*AZ42) -> 0 | BD42: =VLOOKUP(AY42,bens!$AP$8:$AX$58,6) -> 30 | BE42: =IF(AZ42="",VLOOKUP(AY42,bens!$AP$8:$AX$58,9)*Inventario!BA42/Inventario!BD42,VLOOKUP(AY42,bens!$AP$8:$AX$58,9)*Inventario!AZ42/Inventario!BD42) -> 0 | BF42: 0 | BG42: =IF(AZ42="",(VLOOKUP(AY42,bens!$AP$8:$AX$58,8)*((BA42+BC42)/2)),(VLOOKUP(AY42,bens!$AP$8:$AX$58,8)*((AZ42+BC42)/2))) -> 0 | BH42: =IF(AZ42="",((BA42+BC42)/2)*Inventario!$BH$1/Inventario!BD42,((AZ42+BC42)/2)*Inventario!$BH$1/Inventario!BD42) -> 0 | BI42: 0 | BJ42: 0 | BK42: 0 | BL42: 0 | BM42: 30 | BN42: 0.04771395924 | BO42: 0.008547008547 | BP42: 0 | BQ42: 0 | BR42: 0 | BS42: 0 | BT42: 0 | BW42: 1 | BY42: 0 | BZ42: 0 | CA42: 0 | CB42: 0 | CC42: 0 | CD42: 0 | CE42: 0 | CF42: 0 | CG42: 0 | CH42: 0 | CI42: 0 | CJ42: 0 | CK42: 0 | CL42: 0 | CM42: 0 | CN42: 0 | CO42: 0 | CP42: 0 | CQ42: 0 | CR42: 0 | CS42: 0 | DE42: 1 | DF42: 5 | DG42: 10000 | DJ42: =IF(DG42="",VLOOKUP(DF42,bens!$BC$9:$BQ$44,8)*DH42,VLOOKUP(DF42,bens!$BC$9:$BQ$44,8)*DG42) -> 2000 | DK42: =VLOOKUP(DF42,bens!$BC$9:$BQ$44,9) -> 100000 | DL42: =IF(DG42="",VLOOKUP(DF42,bens!$BC$9:$BQ$44,15)*Inventario!DH42/Inventario!DK42,VLOOKUP(DF42,bens!$BC$9:$BQ$44,15)*Inventario!DG42/Inventario!DK42) -> 0.05 | DM42: 0.08 | DN42: =IF(DG42="",(VLOOKUP(DF42,bens!$BC$9:$BQ$44,14)*((DH42+DJ42)/2))/VLOOKUP(DF42,bens!$BC$9:$BQ$44,10),(VLOOKUP(DF42,bens!$BC$9:$BQ$44,14)*((DG42+DJ42)/2))/VLOOKUP(DF42,bens!$BC$9:$BQ$44,10)) -> 0.01666666667 | DO42: =IF(DG42="",(dados!$H$37*(DH42+DJ42)/2)/VLOOKUP(DF42,bens!$BC$9:$BQ$44,10),(dados!$H$37*(DG42+DJ42)/2))/VLOOKUP(DF42,bens!$BC$9:$BQ$44,10) -> 0.025 | DP42: 0.05 | DQ42: 0.08 | DR42: 0.01666666667 | DS42: 0.025 | DT42: =VLOOKUP(DF42,bens!$BC$9:$BQ$44,9)/VLOOKUP(DF42,bens!$BC$9:$BQ$44,10) -> 5.555555556 | DU42: =(((1+$U$2)^DT42)*$U2)/((1+$U$2)^DT42-1) -> 0.1949652519 | DV42: 0.008547008547 | DW42: 16.66369674 | DX42: 16.66369674 | DY42: 10000
B43: 1 | F43: =IF(C43="",VLOOKUP(B43,bens!$A$8:$Q$75,13)*D43,VLOOKUP(B43,bens!$A$8:$Q$75,13)*C43) -> 0 | G43: =VLOOKUP(B43,bens!$A$8:$Q$75,14) -> 12000 | H43: =VLOOKUP(B43,bens!$A$8:$Q$75,5)*0.12 -> 0 | I43: =VLOOKUP(B43,bens!$A$8:$Q$75,5)*0.12*$I$2 -> 0 | J43: =IF(C43="",VLOOKUP(B43,bens!$A$8:$Q$75,17)*Inventario!D43/Inventario!G43,VLOOKUP(B43,bens!$A$8:$Q$75,17)*Inventario!C43/Inventario!G43) -> 0 | K43: 0 | L43: =IF(C43="",(VLOOKUP(B43,bens!$A$8:$Q$75,16)*(D43+F43)/2)/(VLOOKUP(B43,bens!$A$8:$Q$75,15)),(VLOOKUP(B43,bens!$A$8:$Q$75,16)*(C43+F43)/2)/(VLOOKUP(B43,bens!$A$8:$Q$75,15))) -> 0 | M43: =IF(C43="",($M$1*(D43+F43)/2)/(VLOOKUP(B43,bens!$A$8:$Q$75,15)),($M$1*(C43+F43)/2)/(VLOOKUP(B43,bens!$A$8:$Q$75,15))) -> 0 | N43: 0 | O43: 0 | P43: 0 | Q43: 0 | R43: 0 | S43: =VLOOKUP(B43,bens!$A$8:$Q$75,14)/VLOOKUP(B43,bens!$A$8:$Q$75,15) -> 10 | T43: 0.11419973 | U43: 0.008547008547 | V43: 0 | W43: 0 | X43: 0 | Y43: 0 | AB43: 1 | AF43: =IF(AC43="",VLOOKUP(AB43,bens!$U$8:$AJ$170,12)*AD43,VLOOKUP(AB43,bens!$U$8:$AJ$170,12)*AC43) -> 0 | AG43: =VLOOKUP(AB43,bens!$U$8:$AJ$170,13) -> 2000 | AH43: =IF(AC43="",VLOOKUP(AB43,bens!$U$8:$AJ$170,16)*Inventario!AD43/Inventario!AG43,VLOOKUP(AB43,bens!$U$8:$AJ$170,16)*Inventario!AC43/Inventario!AG43) -> 0 | AI43: 0 | AJ43: =IF(AC43="",$AJ$1*((AD43+AF43)/2)/(VLOOKUP(AB43,bens!$U$8:$AJ$170,14)),$AJ$1*((AC43+AF43)/2)/(VLOOKUP(AB43,bens!$U$8:$AJ$170,14))) -> 0 | AK43: =IF(AC43="",($AK$1*(AD43+AF43)/2)/(VLOOKUP(AB43,bens!$U$8:$AJ$170,14)),($AK$1*(AC43+AF43)/2)/(VLOOKUP(AB43,bens!$U$8:$AJ$170,14))) -> 0 | AL43: 0 | AM43: 0 | AN43: 0 | AO43: 0 | AP43: =VLOOKUP(AB43,bens!$U$8:$AJ$17,13)/VLOOKUP(AB43,bens!$U$8:$AJ$17,14) -> 10 | AQ43: 0.11419973 | AR43: 0.008547008547 | AS43: 0 | AT43: 0 | AU43: 0 | AY43: 1 | BC43: =IF(AZ43="",VLOOKUP(AY43,bens!$AP$8:$AX$58,5)*BA43,VLOOKUP(AY43,bens!$AP$8:$AX$58,5)*AZ43) -> 0 | BD43: =VLOOKUP(AY43,bens!$AP$8:$AX$58,6) -> 30 | BE43: =IF(AZ43="",VLOOKUP(AY43,bens!$AP$8:$AX$58,9)*Inventario!BA43/Inventario!BD43,VLOOKUP(AY43,bens!$AP$8:$AX$58,9)*Inventario!AZ43/Inventario!BD43) -> 0 | BF43: 0 | BG43: =IF(AZ43="",(VLOOKUP(AY43,bens!$AP$8:$AX$58,8)*((BA43+BC43)/2)),(VLOOKUP(AY43,bens!$AP$8:$AX$58,8)*((AZ43+BC43)/2))) -> 0 | BH43: =IF(AZ43="",((BA43+BC43)/2)*Inventario!$BH$1/Inventario!BD43,((AZ43+BC43)/2)*Inventario!$BH$1/Inventario!BD43) -> 0 | BI43: 0 | BJ43: 0 | BK43: 0 | BL43: 0 | BM43: 30 | BN43: 0.04771395924 | BO43: 0.008547008547 | BP43: 0 | BQ43: 0 | BR43: 0 | BS43: 0 | BT43: 0 | BW43: 1 | BY43: 0 | BZ43: 0 | CA43: 0 | CB43: 0 | CC43: 0 | CD43: 0 | CE43: 0 | CF43: 0 | CG43: 0 | CH43: 0 | CI43: 0 | CJ43: 0 | CK43: 0 | CL43: 0 | CM43: 0 | CN43: 0 | CO43: 0 | CP43: 0 | CQ43: 0 | CR43: 0 | CS43: 0 | DE43: 1 | DF43: 5 | DG43: 10000 | DJ43: =IF(DG43="",VLOOKUP(DF43,bens!$BC$9:$BQ$44,8)*DH43,VLOOKUP(DF43,bens!$BC$9:$BQ$44,8)*DG43) -> 2000 | DK43: =VLOOKUP(DF43,bens!$BC$9:$BQ$44,9) -> 100000 | DL43: =IF(DG43="",VLOOKUP(DF43,bens!$BC$9:$BQ$44,15)*Inventario!DH43/Inventario!DK43,VLOOKUP(DF43,bens!$BC$9:$BQ$44,15)*Inventario!DG43/Inventario!DK43) -> 0.05 | DM43: 0.08 | DN43: =IF(DG43="",(VLOOKUP(DF43,bens!$BC$9:$BQ$44,14)*((DH43+DJ43)/2))/VLOOKUP(DF43,bens!$BC$9:$BQ$44,10),(VLOOKUP(DF43,bens!$BC$9:$BQ$44,14)*((DG43+DJ43)/2))/VLOOKUP(DF43,bens!$BC$9:$BQ$44,10)) -> 0.01666666667 | DO43: =IF(DG43="",(dados!$H$37*(DH43+DJ43)/2)/VLOOKUP(DF43,bens!$BC$9:$BQ$44,10),(dados!$H$37*(DG43+DJ43)/2))/VLOOKUP(DF43,bens!$BC$9:$BQ$44,10) -> 0.025 | DP43: 0.05 | DQ43: 0.08 | DR43: 0.01666666667 | DS43: 0.025 | DT43: =VLOOKUP(DF43,bens!$BC$9:$BQ$44,9)/VLOOKUP(DF43,bens!$BC$9:$BQ$44,10) -> 5.555555556 | DU43: =(((1+$U$2)^DT43)*$U2)/((1+$U$2)^DT43-1) -> 0.1949652519 | DV43: 0.008547008547 | DW43: 16.66369674 | DX43: 16.66369674 | DY43: 10000
B44: 1 | F44: =IF(C44="",VLOOKUP(B44,bens!$A$8:$Q$75,13)*D44,VLOOKUP(B44,bens!$A$8:$Q$75,13)*C44) -> 0 | G44: =VLOOKUP(B44,bens!$A$8:$Q$75,14) -> 12000 | H44: =VLOOKUP(B44,bens!$A$8:$Q$75,5)*0.12 -> 0 | I44: =VLOOKUP(B44,bens!$A$8:$Q$75,5)*0.12*$I$2 -> 0 | J44: =IF(C44="",VLOOKUP(B44,bens!$A$8:$Q$75,17)*Inventario!D44/Inventario!G44,VLOOKUP(B44,bens!$A$8:$Q$75,17)*Inventario!C44/Inventario!G44) -> 0 | K44: 0 | L44: =IF(C44="",(VLOOKUP(B44,bens!$A$8:$Q$75,16)*(D44+F44)/2)/(VLOOKUP(B44,bens!$A$8:$Q$75,15)),(VLOOKUP(B44,bens!$A$8:$Q$75,16)*(C44+F44)/2)/(VLOOKUP(B44,bens!$A$8:$Q$75,15))) -> 0 | M44: =IF(C44="",($M$1*(D44+F44)/2)/(VLOOKUP(B44,bens!$A$8:$Q$75,15)),($M$1*(C44+F44)/2)/(VLOOKUP(B44,bens!$A$8:$Q$75,15))) -> 0 | N44: 0 | O44: 0 | P44: 0 | Q44: 0 | R44: 0 | S44: =VLOOKUP(B44,bens!$A$8:$Q$75,14)/VLOOKUP(B44,bens!$A$8:$Q$75,15) -> 10 | T44: 0.11419973 | U44: 0.008547008547 | V44: 0 | W44: 0 | X44: 0 | Y44: 0 | AB44: 1 | AF44: =IF(AC44="",VLOOKUP(AB44,bens!$U$8:$AJ$170,12)*AD44,VLOOKUP(AB44,bens!$U$8:$AJ$170,12)*AC44) -> 0 | AG44: =VLOOKUP(AB44,bens!$U$8:$AJ$170,13) -> 2000 | AH44: =IF(AC44="",VLOOKUP(AB44,bens!$U$8:$AJ$170,16)*Inventario!AD44/Inventario!AG44,VLOOKUP(AB44,bens!$U$8:$AJ$170,16)*Inventario!AC44/Inventario!AG44) -> 0 | AI44: 0 | AJ44: =IF(AC44="",$AJ$1*((AD44+AF44)/2)/(VLOOKUP(AB44,bens!$U$8:$AJ$170,14)),$AJ$1*((AC44+AF44)/2)/(VLOOKUP(AB44,bens!$U$8:$AJ$170,14))) -> 0 | AK44: =IF(AC44="",($AK$1*(AD44+AF44)/2)/(VLOOKUP(AB44,bens!$U$8:$AJ$170,14)),($AK$1*(AC44+AF44)/2)/(VLOOKUP(AB44,bens!$U$8:$AJ$170,14))) -> 0 | AL44: 0 | AM44: 0 | AN44: 0 | AO44: 0 | AP44: =VLOOKUP(AB44,bens!$U$8:$AJ$17,13)/VLOOKUP(AB44,bens!$U$8:$AJ$17,14) -> 10 | AQ44: 0.11419973 | AR44: 0.008547008547 | AS44: 0 | AT44: 0 | AU44: 0 | AY44: 1 | BC44: =IF(AZ44="",VLOOKUP(AY44,bens!$AP$8:$AX$58,5)*BA44,VLOOKUP(AY44,bens!$AP$8:$AX$58,5)*AZ44) -> 0 | BD44: =VLOOKUP(AY44,bens!$AP$8:$AX$58,6) -> 30 | BE44: =IF(AZ44="",VLOOKUP(AY44,bens!$AP$8:$AX$58,9)*Inventario!BA44/Inventario!BD44,VLOOKUP(AY44,bens!$AP$8:$AX$58,9)*Inventario!AZ44/Inventario!BD44) -> 0 | BF44: 0 | BG44: =IF(AZ44="",(VLOOKUP(AY44,bens!$AP$8:$AX$58,8)*((BA44+BC44)/2)),(VLOOKUP(AY44,bens!$AP$8:$AX$58,8)*((AZ44+BC44)/2))) -> 0 | BH44: =IF(AZ44="",((BA44+BC44)/2)*Inventario!$BH$1/Inventario!BD44,((AZ44+BC44)/2)*Inventario!$BH$1/Inventario!BD44) -> 0 | BI44: 0 | BJ44: 0 | BK44: 0 | BL44: 0 | BM44: 30 | BN44: 0.04771395924 | BO44: 0.008547008547 | BP44: 0 | BQ44: 0 | BR44: 0 | BS44: 0 | BT44: 0 | BW44: 1 | BY44: 0 | BZ44: 0 | CA44: 0 | CB44: 0 | CC44: 0 | CD44: 0 | CE44: 0 | CF44: 0 | CG44: 0 | CH44: 0 | CI44: 0 | CJ44: 0 | CK44: 0 | CL44: 0 | CM44: 0 | CN44: 0 | CO44: 0 | CP44: 0 | CQ44: 0 | CR44: 0 | CS44: 0 | DE44: 1 | DF44: 5 | DG44: 10000 | DJ44: =IF(DG44="",VLOOKUP(DF44,bens!$BC$9:$BQ$44,8)*DH44,VLOOKUP(DF44,bens!$BC$9:$BQ$44,8)*DG44) -> 2000 | DK44: =VLOOKUP(DF44,bens!$BC$9:$BQ$44,9) -> 100000 | DL44: =IF(DG44="",VLOOKUP(DF44,bens!$BC$9:$BQ$44,15)*Inventario!DH44/Inventario!DK44,VLOOKUP(DF44,bens!$BC$9:$BQ$44,15)*Inventario!DG44/Inventario!DK44) -> 0.05 | DM44: 0.08 | DN44: =IF(DG44="",(VLOOKUP(DF44,bens!$BC$9:$BQ$44,14)*((DH44+DJ44)/2))/VLOOKUP(DF44,bens!$BC$9:$BQ$44,10),(VLOOKUP(DF44,bens!$BC$9:$BQ$44,14)*((DG44+DJ44)/2))/VLOOKUP(DF44,bens!$BC$9:$BQ$44,10)) -> 0.01666666667 | DO44: =IF(DG44="",(dados!$H$37*(DH44+DJ44)/2)/VLOOKUP(DF44,bens!$BC$9:$BQ$44,10),(dados!$H$37*(DG44+DJ44)/2))/VLOOKUP(DF44,bens!$BC$9:$BQ$44,10) -> 0.025 | DP44: 0.05 | DQ44: 0.08 | DR44: 0.01666666667 | DS44: 0.025 | DT44: =VLOOKUP(DF44,bens!$BC$9:$BQ$44,9)/VLOOKUP(DF44,bens!$BC$9:$BQ$44,10) -> 5.555555556 | DU44: =(((1+$U$2)^DT44)*$U2)/((1+$U$2)^DT44-1) -> 0.1949652519 | DV44: 0.008547008547 | DW44: 16.66369674 | DX44: 16.66369674 | DY44: 10000
B45: 1 | F45: =IF(C45="",VLOOKUP(B45,bens!$A$8:$Q$75,13)*D45,VLOOKUP(B45,bens!$A$8:$Q$75,13)*C45) -> 0 | G45: =VLOOKUP(B45,bens!$A$8:$Q$75,14) -> 12000 | H45: =VLOOKUP(B45,bens!$A$8:$Q$75,5)*0.12 -> 0 | I45: =VLOOKUP(B45,bens!$A$8:$Q$75,5)*0.12*$I$2 -> 0 | J45: =IF(C45="",VLOOKUP(B45,bens!$A$8:$Q$75,17)*Inventario!D45/Inventario!G45,VLOOKUP(B45,bens!$A$8:$Q$75,17)*Inventario!C45/Inventario!G45) -> 0 | K45: 0 | L45: =IF(C45="",(VLOOKUP(B45,bens!$A$8:$Q$75,16)*(D45+F45)/2)/(VLOOKUP(B45,bens!$A$8:$Q$75,15)),(VLOOKUP(B45,bens!$A$8:$Q$75,16)*(C45+F45)/2)/(VLOOKUP(B45,bens!$A$8:$Q$75,15))) -> 0 | M45: =IF(C45="",($M$1*(D45+F45)/2)/(VLOOKUP(B45,bens!$A$8:$Q$75,15)),($M$1*(C45+F45)/2)/(VLOOKUP(B45,bens!$A$8:$Q$75,15))) -> 0 | N45: 0 | O45: 0 | P45: 0 | Q45: 0 | R45: 0 | S45: =VLOOKUP(B45,bens!$A$8:$Q$75,14)/VLOOKUP(B45,bens!$A$8:$Q$75,15) -> 10 | T45: 0.11419973 | U45: 0.008547008547 | V45: 0 | W45: 0 | X45: 0 | Y45: 0 | AB45: 1 | AF45: =IF(AC45="",VLOOKUP(AB45,bens!$U$8:$AJ$170,12)*AD45,VLOOKUP(AB45,bens!$U$8:$AJ$170,12)*AC45) -> 0 | AG45: =VLOOKUP(AB45,bens!$U$8:$AJ$170,13) -> 2000 | AH45: =IF(AC45="",VLOOKUP(AB45,bens!$U$8:$AJ$170,16)*Inventario!AD45/Inventario!AG45,VLOOKUP(AB45,bens!$U$8:$AJ$170,16)*Inventario!AC45/Inventario!AG45) -> 0 | AI45: 0 | AJ45: =IF(AC45="",$AJ$1*((AD45+AF45)/2)/(VLOOKUP(AB45,bens!$U$8:$AJ$170,14)),$AJ$1*((AC45+AF45)/2)/(VLOOKUP(AB45,bens!$U$8:$AJ$170,14))) -> 0 | AK45: =IF(AC45="",($AK$1*(AD45+AF45)/2)/(VLOOKUP(AB45,bens!$U$8:$AJ$170,14)),($AK$1*(AC45+AF45)/2)/(VLOOKUP(AB45,bens!$U$8:$AJ$170,14))) -> 0 | AL45: 0 | AM45: 0 | AN45: 0 | AO45: 0 | AP45: =VLOOKUP(AB45,bens!$U$8:$AJ$17,13)/VLOOKUP(AB45,bens!$U$8:$AJ$17,14) -> 10 | AQ45: 0.11419973 | AR45: 0.008547008547 | AS45: 0 | AT45: 0 | AU45: 0 | AY45: 1 | BC45: =IF(AZ45="",VLOOKUP(AY45,bens!$AP$8:$AX$58,5)*BA45,VLOOKUP(AY45,bens!$AP$8:$AX$58,5)*AZ45) -> 0 | BD45: =VLOOKUP(AY45,bens!$AP$8:$AX$58,6) -> 30 | BE45: =IF(AZ45="",VLOOKUP(AY45,bens!$AP$8:$AX$58,9)*Inventario!BA45/Inventario!BD45,VLOOKUP(AY45,bens!$AP$8:$AX$58,9)*Inventario!AZ45/Inventario!BD45) -> 0 | BF45: 0 | BG45: =IF(AZ45="",(VLOOKUP(AY45,bens!$AP$8:$AX$58,8)*((BA45+BC45)/2)),(VLOOKUP(AY45,bens!$AP$8:$AX$58,8)*((AZ45+BC45)/2))) -> 0 | BH45: =IF(AZ45="",((BA45+BC45)/2)*Inventario!$BH$1/Inventario!BD45,((AZ45+BC45)/2)*Inventario!$BH$1/Inventario!BD45) -> 0 | BI45: 0 | BJ45: 0 | BK45: 0 | BL45: 0 | BM45: 30 | BN45: 0.04771395924 | BO45: 0.008547008547 | BP45: 0 | BQ45: 0 | BR45: 0 | BS45: 0 | BT45: 0 | BW45: 1 | BY45: 0 | BZ45: 0 | CA45: 0 | CB45: 0 | CC45: 0 | CD45: 0 | CE45: 0 | CF45: 0 | CG45: 0 | CH45: 0 | CI45: 0 | CJ45: 0 | CK45: 0 | CL45: 0 | CM45: 0 | CN45: 0 | CO45: 0 | CP45: 0 | CQ45: 0 | CR45: 0 | CS45: 0 | DE45: 1 | DF45: 5 | DG45: 10000 | DJ45: =IF(DG45="",VLOOKUP(DF45,bens!$BC$9:$BQ$44,8)*DH45,VLOOKUP(DF45,bens!$BC$9:$BQ$44,8)*DG45) -> 2000 | DK45: =VLOOKUP(DF45,bens!$BC$9:$BQ$44,9) -> 100000 | DL45: =IF(DG45="",VLOOKUP(DF45,bens!$BC$9:$BQ$44,15)*Inventario!DH45/Inventario!DK45,VLOOKUP(DF45,bens!$BC$9:$BQ$44,15)*Inventario!DG45/Inventario!DK45) -> 0.05 | DM45: 0.08 | DN45: =IF(DG45="",(VLOOKUP(DF45,bens!$BC$9:$BQ$44,14)*((DH45+DJ45)/2))/VLOOKUP(DF45,bens!$BC$9:$BQ$44,10),(VLOOKUP(DF45,bens!$BC$9:$BQ$44,14)*((DG45+DJ45)/2))/VLOOKUP(DF45,bens!$BC$9:$BQ$44,10)) -> 0.01666666667 | DO45: =IF(DG45="",(dados!$H$37*(DH45+DJ45)/2)/VLOOKUP(DF45,bens!$BC$9:$BQ$44,10),(dados!$H$37*(DG45+DJ45)/2))/VLOOKUP(DF45,bens!$BC$9:$BQ$44,10) -> 0.025 | DP45: 0.05 | DQ45: 0.08 | DR45: 0.01666666667 | DS45: 0.025 | DT45: =VLOOKUP(DF45,bens!$BC$9:$BQ$44,9)/VLOOKUP(DF45,bens!$BC$9:$BQ$44,10) -> 5.555555556 | DU45: =(((1+$U$2)^DT45)*$U2)/((1+$U$2)^DT45-1) -> 0.1949652519 | DV45: 0.008547008547 | DW45: 16.66369674 | DX45: 16.66369674 | DY45: 10000
B46: 1 | F46: =IF(C46="",VLOOKUP(B46,bens!$A$8:$Q$75,13)*D46,VLOOKUP(B46,bens!$A$8:$Q$75,13)*C46) -> 0 | G46: =VLOOKUP(B46,bens!$A$8:$Q$75,14) -> 12000 | H46: =VLOOKUP(B46,bens!$A$8:$Q$75,5)*0.12 -> 0 | I46: =VLOOKUP(B46,bens!$A$8:$Q$75,5)*0.12*$I$2 -> 0 | J46: =IF(C46="",VLOOKUP(B46,bens!$A$8:$Q$75,17)*Inventario!D46/Inventario!G46,VLOOKUP(B46,bens!$A$8:$Q$75,17)*Inventario!C46/Inventario!G46) -> 0 | K46: 0 | L46: =IF(C46="",(VLOOKUP(B46,bens!$A$8:$Q$75,16)*(D46+F46)/2)/(VLOOKUP(B46,bens!$A$8:$Q$75,15)),(VLOOKUP(B46,bens!$A$8:$Q$75,16)*(C46+F46)/2)/(VLOOKUP(B46,bens!$A$8:$Q$75,15))) -> 0 | M46: =IF(C46="",($M$1*(D46+F46)/2)/(VLOOKUP(B46,bens!$A$8:$Q$75,15)),($M$1*(C46+F46)/2)/(VLOOKUP(B46,bens!$A$8:$Q$75,15))) -> 0 | N46: 0 | O46: 0 | P46: 0 | Q46: 0 | R46: 0 | S46: =VLOOKUP(B46,bens!$A$8:$Q$75,14)/VLOOKUP(B46,bens!$A$8:$Q$75,15) -> 10 | T46: 0.11419973 | U46: 0.008547008547 | V46: 0 | W46: 0 | X46: 0 | Y46: 0 | AB46: 1 | AF46: =IF(AC46="",VLOOKUP(AB46,bens!$U$8:$AJ$170,12)*AD46,VLOOKUP(AB46,bens!$U$8:$AJ$170,12)*AC46) -> 0 | AG46: =VLOOKUP(AB46,bens!$U$8:$AJ$170,13) -> 2000 | AH46: =IF(AC46="",VLOOKUP(AB46,bens!$U$8:$AJ$170,16)*Inventario!AD46/Inventario!AG46,VLOOKUP(AB46,bens!$U$8:$AJ$170,16)*Inventario!AC46/Inventario!AG46) -> 0 | AI46: 0 | AJ46: =IF(AC46="",$AJ$1*((AD46+AF46)/2)/(VLOOKUP(AB46,bens!$U$8:$AJ$170,14)),$AJ$1*((AC46+AF46)/2)/(VLOOKUP(AB46,bens!$U$8:$AJ$170,14))) -> 0 | AK46: =IF(AC46="",($AK$1*(AD46+AF46)/2)/(VLOOKUP(AB46,bens!$U$8:$AJ$170,14)),($AK$1*(AC46+AF46)/2)/(VLOOKUP(AB46,bens!$U$8:$AJ$170,14))) -> 0 | AL46: 0 | AM46: 0 | AN46: 0 | AO46: 0 | AP46: =VLOOKUP(AB46,bens!$U$8:$AJ$17,13)/VLOOKUP(AB46,bens!$U$8:$AJ$17,14) -> 10 | AQ46: 0.11419973 | AR46: 0.008547008547 | AS46: 0 | AT46: 0 | AU46: 0 | AY46: 1 | BC46: =IF(AZ46="",VLOOKUP(AY46,bens!$AP$8:$AX$58,5)*BA46,VLOOKUP(AY46,bens!$AP$8:$AX$58,5)*AZ46) -> 0 | BD46: =VLOOKUP(AY46,bens!$AP$8:$AX$58,6) -> 30 | BE46: =IF(AZ46="",VLOOKUP(AY46,bens!$AP$8:$AX$58,9)*Inventario!BA46/Inventario!BD46,VLOOKUP(AY46,bens!$AP$8:$AX$58,9)*Inventario!AZ46/Inventario!BD46) -> 0 | BF46: 0 | BG46: =IF(AZ46="",(VLOOKUP(AY46,bens!$AP$8:$AX$58,8)*((BA46+BC46)/2)),(VLOOKUP(AY46,bens!$AP$8:$AX$58,8)*((AZ46+BC46)/2))) -> 0 | BH46: =IF(AZ46="",((BA46+BC46)/2)*Inventario!$BH$1/Inventario!BD46,((AZ46+BC46)/2)*Inventario!$BH$1/Inventario!BD46) -> 0 | BI46: 0 | BJ46: 0 | BK46: 0 | BL46: 0 | BM46: 30 | BN46: 0.04771395924 | BO46: 0.008547008547 | BP46: 0 | BQ46: 0 | BR46: 0 | BS46: 0 | BT46: 0 | BW46: 1 | BY46: 0 | BZ46: 0 | CA46: 0 | CB46: 0 | CC46: 0 | CD46: 0 | CE46: 0 | CF46: 0 | CG46: 0 | CH46: 0 | CI46: 0 | CJ46: 0 | CK46: 0 | CL46: 0 | CM46: 0 | CN46: 0 | CO46: 0 | CP46: 0 | CQ46: 0 | CR46: 0 | CS46: 0 | DE46: 1 | DF46: 5 | DG46: 10000 | DJ46: =IF(DG46="",VLOOKUP(DF46,bens!$BC$9:$BQ$44,8)*DH46,VLOOKUP(DF46,bens!$BC$9:$BQ$44,8)*DG46) -> 2000 | DK46: =VLOOKUP(DF46,bens!$BC$9:$BQ$44,9) -> 100000 | DL46: =IF(DG46="",VLOOKUP(DF46,bens!$BC$9:$BQ$44,15)*Inventario!DH46/Inventario!DK46,VLOOKUP(DF46,bens!$BC$9:$BQ$44,15)*Inventario!DG46/Inventario!DK46) -> 0.05 | DM46: 0.08 | DN46: =IF(DG46="",(VLOOKUP(DF46,bens!$BC$9:$BQ$44,14)*((DH46+DJ46)/2))/VLOOKUP(DF46,bens!$BC$9:$BQ$44,10),(VLOOKUP(DF46,bens!$BC$9:$BQ$44,14)*((DG46+DJ46)/2))/VLOOKUP(DF46,bens!$BC$9:$BQ$44,10)) -> 0.01666666667 | DO46: =IF(DG46="",(dados!$H$37*(DH46+DJ46)/2)/VLOOKUP(DF46,bens!$BC$9:$BQ$44,10),(dados!$H$37*(DG46+DJ46)/2))/VLOOKUP(DF46,bens!$BC$9:$BQ$44,10) -> 0.025 | DP46: 0.05 | DQ46: 0.08 | DR46: 0.01666666667 | DS46: 0.025 | DT46: =VLOOKUP(DF46,bens!$BC$9:$BQ$44,9)/VLOOKUP(DF46,bens!$BC$9:$BQ$44,10) -> 5.555555556 | DU46: =(((1+$U$2)^DT46)*$U2)/((1+$U$2)^DT46-1) -> 0.1949652519 | DV46: 0.008547008547 | DW46: 16.66369674 | DX46: 16.66369674 | DY46: 10000
B47: 1 | F47: =IF(C47="",VLOOKUP(B47,bens!$A$8:$Q$75,13)*D47,VLOOKUP(B47,bens!$A$8:$Q$75,13)*C47) -> 0 | G47: =VLOOKUP(B47,bens!$A$8:$Q$75,14) -> 12000 | H47: =VLOOKUP(B47,bens!$A$8:$Q$75,5)*0.12 -> 0 | I47: =VLOOKUP(B47,bens!$A$8:$Q$75,5)*0.12*$I$2 -> 0 | J47: =IF(C47="",VLOOKUP(B47,bens!$A$8:$Q$75,17)*Inventario!D47/Inventario!G47,VLOOKUP(B47,bens!$A$8:$Q$75,17)*Inventario!C47/Inventario!G47) -> 0 | K47: 0 | L47: =IF(C47="",(VLOOKUP(B47,bens!$A$8:$Q$75,16)*(D47+F47)/2)/(VLOOKUP(B47,bens!$A$8:$Q$75,15)),(VLOOKUP(B47,bens!$A$8:$Q$75,16)*(C47+F47)/2)/(VLOOKUP(B47,bens!$A$8:$Q$75,15))) -> 0 | M47: =IF(C47="",($M$1*(D47+F47)/2)/(VLOOKUP(B47,bens!$A$8:$Q$75,15)),($M$1*(C47+F47)/2)/(VLOOKUP(B47,bens!$A$8:$Q$75,15))) -> 0 | N47: 0 | O47: 0 | P47: 0 | Q47: 0 | R47: 0 | S47: =VLOOKUP(B47,bens!$A$8:$Q$75,14)/VLOOKUP(B47,bens!$A$8:$Q$75,15) -> 10 | T47: 0.11419973 | U47: 0.008547008547 | V47: 0 | W47: 0 | X47: 0 | Y47: 0 | AB47: 1 | AF47: =IF(AC47="",VLOOKUP(AB47,bens!$U$8:$AJ$170,12)*AD47,VLOOKUP(AB47,bens!$U$8:$AJ$170,12)*AC47) -> 0 | AG47: =VLOOKUP(AB47,bens!$U$8:$AJ$170,13) -> 2000 | AH47: =IF(AC47="",VLOOKUP(AB47,bens!$U$8:$AJ$170,16)*Inventario!AD47/Inventario!AG47,VLOOKUP(AB47,bens!$U$8:$AJ$170,16)*Inventario!AC47/Inventario!AG47) -> 0 | AI47: 0 | AJ47: =IF(AC47="",$AJ$1*((AD47+AF47)/2)/(VLOOKUP(AB47,bens!$U$8:$AJ$170,14)),$AJ$1*((AC47+AF47)/2)/(VLOOKUP(AB47,bens!$U$8:$AJ$170,14))) -> 0 | AK47: =IF(AC47="",($AK$1*(AD47+AF47)/2)/(VLOOKUP(AB47,bens!$U$8:$AJ$170,14)),($AK$1*(AC47+AF47)/2)/(VLOOKUP(AB47,bens!$U$8:$AJ$170,14))) -> 0 | AL47: 0 | AM47: 0 | AN47: 0 | AO47: 0 | AP47: =VLOOKUP(AB47,bens!$U$8:$AJ$17,13)/VLOOKUP(AB47,bens!$U$8:$AJ$17,14) -> 10 | AQ47: 0.11419973 | AR47: 0.008547008547 | AS47: 0 | AT47: 0 | AU47: 0 | AY47: 1 | BC47: =IF(AZ47="",VLOOKUP(AY47,bens!$AP$8:$AX$58,5)*BA47,VLOOKUP(AY47,bens!$AP$8:$AX$58,5)*AZ47) -> 0 | BD47: =VLOOKUP(AY47,bens!$AP$8:$AX$58,6) -> 30 | BE47: =IF(AZ47="",VLOOKUP(AY47,bens!$AP$8:$AX$58,9)*Inventario!BA47/Inventario!BD47,VLOOKUP(AY47,bens!$AP$8:$AX$58,9)*Inventario!AZ47/Inventario!BD47) -> 0 | BF47: 0 | BG47: =IF(AZ47="",(VLOOKUP(AY47,bens!$AP$8:$AX$58,8)*((BA47+BC47)/2)),(VLOOKUP(AY47,bens!$AP$8:$AX$58,8)*((AZ47+BC47)/2))) -> 0 | BH47: =IF(AZ47="",((BA47+BC47)/2)*Inventario!$BH$1/Inventario!BD47,((AZ47+BC47)/2)*Inventario!$BH$1/Inventario!BD47) -> 0 | BI47: 0 | BJ47: 0 | BK47: 0 | BL47: 0 | BM47: 30 | BN47: 0.04771395924 | BO47: 0.008547008547 | BP47: 0 | BQ47: 0 | BR47: 0 | BS47: 0 | BT47: 0 | BW47: 1 | BY47: 0 | BZ47: 0 | CA47: 0 | CB47: 0 | CC47: 0 | CD47: 0 | CE47: 0 | CF47: 0 | CG47: 0 | CH47: 0 | CI47: 0 | CJ47: 0 | CK47: 0 | CL47: 0 | CM47: 0 | CN47: 0 | CO47: 0 | CP47: 0 | CQ47: 0 | CR47: 0 | CS47: 0 | DE47: 1 | DF47: 5 | DG47: 10000 | DJ47: =IF(DG47="",VLOOKUP(DF47,bens!$BC$9:$BQ$44,8)*DH47,VLOOKUP(DF47,bens!$BC$9:$BQ$44,8)*DG47) -> 2000 | DK47: =VLOOKUP(DF47,bens!$BC$9:$BQ$44,9) -> 100000 | DL47: =IF(DG47="",VLOOKUP(DF47,bens!$BC$9:$BQ$44,15)*Inventario!DH47/Inventario!DK47,VLOOKUP(DF47,bens!$BC$9:$BQ$44,15)*Inventario!DG47/Inventario!DK47) -> 0.05 | DM47: 0.08 | DN47: =IF(DG47="",(VLOOKUP(DF47,bens!$BC$9:$BQ$44,14)*((DH47+DJ47)/2))/VLOOKUP(DF47,bens!$BC$9:$BQ$44,10),(VLOOKUP(DF47,bens!$BC$9:$BQ$44,14)*((DG47+DJ47)/2))/VLOOKUP(DF47,bens!$BC$9:$BQ$44,10)) -> 0.01666666667 | DO47: =IF(DG47="",(dados!$H$37*(DH47+DJ47)/2)/VLOOKUP(DF47,bens!$BC$9:$BQ$44,10),(dados!$H$37*(DG47+DJ47)/2))/VLOOKUP(DF47,bens!$BC$9:$BQ$44,10) -> 0.025 | DP47: 0.05 | DQ47: 0.08 | DR47: 0.01666666667 | DS47: 0.025 | DT47: =VLOOKUP(DF47,bens!$BC$9:$BQ$44,9)/VLOOKUP(DF47,bens!$BC$9:$BQ$44,10) -> 5.555555556 | DU47: =(((1+$U$2)^DT47)*$U2)/((1+$U$2)^DT47-1) -> 0.1949652519 | DV47: 0.008547008547 | DW47: 16.66369674 | DX47: 16.66369674 | DY47: 10000
B48: 1 | F48: =IF(C48="",VLOOKUP(B48,bens!$A$8:$Q$75,13)*D48,VLOOKUP(B48,bens!$A$8:$Q$75,13)*C48) -> 0 | G48: =VLOOKUP(B48,bens!$A$8:$Q$75,14) -> 12000 | H48: =VLOOKUP(B48,bens!$A$8:$Q$75,5)*0.12 -> 0 | I48: =VLOOKUP(B48,bens!$A$8:$Q$75,5)*0.12*$I$2 -> 0 | J48: =IF(C48="",VLOOKUP(B48,bens!$A$8:$Q$75,17)*Inventario!D48/Inventario!G48,VLOOKUP(B48,bens!$A$8:$Q$75,17)*Inventario!C48/Inventario!G48) -> 0 | K48: 0 | L48: =IF(C48="",(VLOOKUP(B48,bens!$A$8:$Q$75,16)*(D48+F48)/2)/(VLOOKUP(B48,bens!$A$8:$Q$75,15)),(VLOOKUP(B48,bens!$A$8:$Q$75,16)*(C48+F48)/2)/(VLOOKUP(B48,bens!$A$8:$Q$75,15))) -> 0 | M48: =IF(C48="",($M$1*(D48+F48)/2)/(VLOOKUP(B48,bens!$A$8:$Q$75,15)),($M$1*(C48+F48)/2)/(VLOOKUP(B48,bens!$A$8:$Q$75,15))) -> 0 | N48: 0 | O48: 0 | P48: 0 | Q48: 0 | R48: 0 | S48: =VLOOKUP(B48,bens!$A$8:$Q$75,14)/VLOOKUP(B48,bens!$A$8:$Q$75,15) -> 10 | T48: 0.11419973 | U48: 0.008547008547 | V48: 0 | W48: 0 | X48: 0 | Y48: 0 | AB48: 1 | AF48: =IF(AC48="",VLOOKUP(AB48,bens!$U$8:$AJ$170,12)*AD48,VLOOKUP(AB48,bens!$U$8:$AJ$170,12)*AC48) -> 0 | AG48: =VLOOKUP(AB48,bens!$U$8:$AJ$170,13) -> 2000 | AH48: =IF(AC48="",VLOOKUP(AB48,bens!$U$8:$AJ$170,16)*Inventario!AD48/Inventario!AG48,VLOOKUP(AB48,bens!$U$8:$AJ$170,16)*Inventario!AC48/Inventario!AG48) -> 0 | AI48: 0 | AJ48: =IF(AC48="",$AJ$1*((AD48+AF48)/2)/(VLOOKUP(AB48,bens!$U$8:$AJ$170,14)),$AJ$1*((AC48+AF48)/2)/(VLOOKUP(AB48,bens!$U$8:$AJ$170,14))) -> 0 | AK48: =IF(AC48="",($AK$1*(AD48+AF48)/2)/(VLOOKUP(AB48,bens!$U$8:$AJ$170,14)),($AK$1*(AC48+AF48)/2)/(VLOOKUP(AB48,bens!$U$8:$AJ$170,14))) -> 0 | AL48: 0 | AM48: 0 | AN48: 0 | AO48: 0 | AP48: =VLOOKUP(AB48,bens!$U$8:$AJ$17,13)/VLOOKUP(AB48,bens!$U$8:$AJ$17,14) -> 10 | AQ48: 0.11419973 | AR48: 0.008547008547 | AS48: 0 | AT48: 0 | AU48: 0 | AY48: 1 | BC48: =IF(AZ48="",VLOOKUP(AY48,bens!$AP$8:$AX$58,5)*BA48,VLOOKUP(AY48,bens!$AP$8:$AX$58,5)*AZ48) -> 0 | BD48: =VLOOKUP(AY48,bens!$AP$8:$AX$58,6) -> 30 | BE48: =IF(AZ48="",VLOOKUP(AY48,bens!$AP$8:$AX$58,9)*Inventario!BA48/Inventario!BD48,VLOOKUP(AY48,bens!$AP$8:$AX$58,9)*Inventario!AZ48/Inventario!BD48) -> 0 | BF48: 0 | BG48: =IF(AZ48="",(VLOOKUP(AY48,bens!$AP$8:$AX$58,8)*((BA48+BC48)/2)),(VLOOKUP(AY48,bens!$AP$8:$AX$58,8)*((AZ48+BC48)/2))) -> 0 | BH48: =IF(AZ48="",((BA48+BC48)/2)*Inventario!$BH$1/Inventario!BD48,((AZ48+BC48)/2)*Inventario!$BH$1/Inventario!BD48) -> 0 | BI48: 0 | BJ48: 0 | BK48: 0 | BL48: 0 | BM48: 30 | BN48: 0.04771395924 | BO48: 0.008547008547 | BP48: 0 | BQ48: 0 | BR48: 0 | BS48: 0 | BT48: 0 | BW48: 1 | BY48: 0 | BZ48: 0 | CA48: 0 | CB48: 0 | CC48: 0 | CD48: 0 | CE48: 0 | CF48: 0 | CG48: 0 | CH48: 0 | CI48: 0 | CJ48: 0 | CK48: 0 | CL48: 0 | CM48: 0 | CN48: 0 | CO48: 0 | CP48: 0 | CQ48: 0 | CR48: 0 | CS48: 0 | DE48: 1 | DF48: 5 | DG48: 10000 | DJ48: =IF(DG48="",VLOOKUP(DF48,bens!$BC$9:$BQ$44,8)*DH48,VLOOKUP(DF48,bens!$BC$9:$BQ$44,8)*DG48) -> 2000 | DK48: =VLOOKUP(DF48,bens!$BC$9:$BQ$44,9) -> 100000 | DL48: =IF(DG48="",VLOOKUP(DF48,bens!$BC$9:$BQ$44,15)*Inventario!DH48/Inventario!DK48,VLOOKUP(DF48,bens!$BC$9:$BQ$44,15)*Inventario!DG48/Inventario!DK48) -> 0.05 | DM48: 0.08 | DN48: =IF(DG48="",(VLOOKUP(DF48,bens!$BC$9:$BQ$44,14)*((DH48+DJ48)/2))/VLOOKUP(DF48,bens!$BC$9:$BQ$44,10),(VLOOKUP(DF48,bens!$BC$9:$BQ$44,14)*((DG48+DJ48)/2))/VLOOKUP(DF48,bens!$BC$9:$BQ$44,10)) -> 0.01666666667 | DO48: =IF(DG48="",(dados!$H$37*(DH48+DJ48)/2)/VLOOKUP(DF48,bens!$BC$9:$BQ$44,10),(dados!$H$37*(DG48+DJ48)/2))/VLOOKUP(DF48,bens!$BC$9:$BQ$44,10) -> 0.025 | DP48: 0.05 | DQ48: 0.08 | DR48: 0.01666666667 | DS48: 0.025 | DT48: =VLOOKUP(DF48,bens!$BC$9:$BQ$44,9)/VLOOKUP(DF48,bens!$BC$9:$BQ$44,10) -> 5.555555556 | DU48: =(((1+$U$2)^DT48)*$U2)/((1+$U$2)^DT48-1) -> 0.1949652519 | DV48: 0.008547008547 | DW48: 16.66369674 | DX48: 16.66369674 | DY48: 10000
B49: 1 | F49: =IF(C49="",VLOOKUP(B49,bens!$A$8:$Q$75,13)*D49,VLOOKUP(B49,bens!$A$8:$Q$75,13)*C49) -> 0 | G49: =VLOOKUP(B49,bens!$A$8:$Q$75,14) -> 12000 | H49: =VLOOKUP(B49,bens!$A$8:$Q$75,5)*0.12 -> 0 | I49: =VLOOKUP(B49,bens!$A$8:$Q$75,5)*0.12*$I$2 -> 0 | J49: =IF(C49="",VLOOKUP(B49,bens!$A$8:$Q$75,17)*Inventario!D49/Inventario!G49,VLOOKUP(B49,bens!$A$8:$Q$75,17)*Inventario!C49/Inventario!G49) -> 0 | K49: 0 | L49: =IF(C49="",(VLOOKUP(B49,bens!$A$8:$Q$75,16)*(D49+F49)/2)/(VLOOKUP(B49,bens!$A$8:$Q$75,15)),(VLOOKUP(B49,bens!$A$8:$Q$75,16)*(C49+F49)/2)/(VLOOKUP(B49,bens!$A$8:$Q$75,15))) -> 0 | M49: =IF(C49="",($M$1*(D49+F49)/2)/(VLOOKUP(B49,bens!$A$8:$Q$75,15)),($M$1*(C49+F49)/2)/(VLOOKUP(B49,bens!$A$8:$Q$75,15))) -> 0 | N49: 0 | O49: 0 | P49: 0 | Q49: 0 | R49: 0 | S49: =VLOOKUP(B49,bens!$A$8:$Q$75,14)/VLOOKUP(B49,bens!$A$8:$Q$75,15) -> 10 | T49: 0.11419973 | U49: 0.008547008547 | V49: 0 | W49: 0 | X49: 0 | Y49: 0 | AB49: 1 | AF49: =IF(AC49="",VLOOKUP(AB49,bens!$U$8:$AJ$170,12)*AD49,VLOOKUP(AB49,bens!$U$8:$AJ$170,12)*AC49) -> 0 | AG49: =VLOOKUP(AB49,bens!$U$8:$AJ$170,13) -> 2000 | AH49: =IF(AC49="",VLOOKUP(AB49,bens!$U$8:$AJ$170,16)*Inventario!AD49/Inventario!AG49,VLOOKUP(AB49,bens!$U$8:$AJ$170,16)*Inventario!AC49/Inventario!AG49) -> 0 | AI49: 0 | AJ49: =IF(AC49="",$AJ$1*((AD49+AF49)/2)/(VLOOKUP(AB49,bens!$U$8:$AJ$170,14)),$AJ$1*((AC49+AF49)/2)/(VLOOKUP(AB49,bens!$U$8:$AJ$170,14))) -> 0 | AK49: =IF(AC49="",($AK$1*(AD49+AF49)/2)/(VLOOKUP(AB49,bens!$U$8:$AJ$170,14)),($AK$1*(AC49+AF49)/2)/(VLOOKUP(AB49,bens!$U$8:$AJ$170,14))) -> 0 | AL49: 0 | AM49: 0 | AN49: 0 | AO49: 0 | AP49: =VLOOKUP(AB49,bens!$U$8:$AJ$17,13)/VLOOKUP(AB49,bens!$U$8:$AJ$17,14) -> 10 | AQ49: 0.11419973 | AR49: 0.008547008547 | AS49: 0 | AT49: 0 | AU49: 0 | AY49: 1 | BC49: =IF(AZ49="",VLOOKUP(AY49,bens!$AP$8:$AX$58,5)*BA49,VLOOKUP(AY49,bens!$AP$8:$AX$58,5)*AZ49) -> 0 | BD49: =VLOOKUP(AY49,bens!$AP$8:$AX$58,6) -> 30 | BE49: =IF(AZ49="",VLOOKUP(AY49,bens!$AP$8:$AX$58,9)*Inventario!BA49/Inventario!BD49,VLOOKUP(AY49,bens!$AP$8:$AX$58,9)*Inventario!AZ49/Inventario!BD49) -> 0 | BF49: 0 | BG49: =IF(AZ49="",(VLOOKUP(AY49,bens!$AP$8:$AX$58,8)*((BA49+BC49)/2)),(VLOOKUP(AY49,bens!$AP$8:$AX$58,8)*((AZ49+BC49)/2))) -> 0 | BH49: =IF(AZ49="",((BA49+BC49)/2)*Inventario!$BH$1/Inventario!BD49,((AZ49+BC49)/2)*Inventario!$BH$1/Inventario!BD49) -> 0 | BI49: 0 | BJ49: 0 | BK49: 0 | BL49: 0 | BM49: 30 | BN49: 0.04771395924 | BO49: 0.008547008547 | BP49: 0 | BQ49: 0 | BR49: 0 | BS49: 0 | BT49: 0 | BW49: 1 | BY49: 0 | BZ49: 0 | CA49: 0 | CB49: 0 | CC49: 0 | CD49: 0 | CE49: 0 | CF49: 0 | CG49: 0 | CH49: 0 | CI49: 0 | CJ49: 0 | CK49: 0 | CL49: 0 | CM49: 0 | CN49: 0 | CO49: 0 | CP49: 0 | CQ49: 0 | CR49: 0 | CS49: 0 | DE49: 1 | DF49: 5 | DG49: 10000 | DJ49: =IF(DG49="",VLOOKUP(DF49,bens!$BC$9:$BQ$44,8)*DH49,VLOOKUP(DF49,bens!$BC$9:$BQ$44,8)*DG49) -> 2000 | DK49: =VLOOKUP(DF49,bens!$BC$9:$BQ$44,9) -> 100000 | DL49: =IF(DG49="",VLOOKUP(DF49,bens!$BC$9:$BQ$44,15)*Inventario!DH49/Inventario!DK49,VLOOKUP(DF49,bens!$BC$9:$BQ$44,15)*Inventario!DG49/Inventario!DK49) -> 0.05 | DM49: 0.08 | DN49: =IF(DG49="",(VLOOKUP(DF49,bens!$BC$9:$BQ$44,14)*((DH49+DJ49)/2))/VLOOKUP(DF49,bens!$BC$9:$BQ$44,10),(VLOOKUP(DF49,bens!$BC$9:$BQ$44,14)*((DG49+DJ49)/2))/VLOOKUP(DF49,bens!$BC$9:$BQ$44,10)) -> 0.01666666667 | DO49: =IF(DG49="",(dados!$H$37*(DH49+DJ49)/2)/VLOOKUP(DF49,bens!$BC$9:$BQ$44,10),(dados!$H$37*(DG49+DJ49)/2))/VLOOKUP(DF49,bens!$BC$9:$BQ$44,10) -> 0.025 | DP49: 0.05 | DQ49: 0.08 | DR49: 0.01666666667 | DS49: 0.025 | DT49: =VLOOKUP(DF49,bens!$BC$9:$BQ$44,9)/VLOOKUP(DF49,bens!$BC$9:$BQ$44,10) -> 5.555555556 | DU49: =(((1+$U$2)^DT49)*$U2)/((1+$U$2)^DT49-1) -> 0.1949652519 | DV49: 0.008547008547 | DW49: 16.66369674 | DX49: 16.66369674 | DY49: 10000
